Workbook

Sheet Personalize (hidden)
D1: FORM RESULTS | F1: 0 | G1: MockDraftCentral | H1: CBS | I1: CAIRO | J1: Teams | K1: Starters | L1: More Starters | N1: ADP | R1: Cairo | S1: 0 | T1: 0 | U1: LAA | V1: TRUE | W1: C
D2: AB | E2: 0 | F2: 1 | G2: Yahoo | H2: Yahoo Staff | I2: Steamer | J2: 6 | K2: 0 | L2: 0 | M2: ADP | R2: Steamer | S2: 25 | T2: 25 | U2: ARI | V2: TRUE | W2: 1B
B3: Team 1 | D3: Single | E3: 1 | F3: 2 | G3: CBS (Points) | H3: USA Today | J3: 7 | K3: 1 | L3: 1 | M3: Proj. Points | R3: Fangraphs | S3: 25 | T3: 25 | U3: ATL | V3: TRUE | W3: 2B
B4: Team 2 | D4: Double | E4: 2 | F4: 3 | G4: ESPN | H4: ESPN (Points) | I4: Fangraphs | J4: 8 | K4: 2 | L4: 2 | M4: Exp. Rank | R4: ZiPS | S4: 0 | T4: 0 | U4: BAL | V4: TRUE | W4: 3B
B5: Team 3 | D5: Triple | E5: 3 | F5: 4 | G5: Avg of ADP Sources | H5: Fantasy Baseball Café | I5: ZiPS | J5: 9 | K5: 3 | L5: 3 | M5: StDev Rank | R5: Oliver | S5: 25 | T5: 25 | U5: BOS | V5: TRUE | W5: SS
B6: Team 4 | D6: HR | E6: 4 | F6: 5 | G6: Fantasy Gameday | I6: Oliver | J6: 10 | L6: 4 | M6: By Position | R6: Marcel | S6: 0 | T6: 0 | U6: CHC | V6: TRUE | W6: OF
B7: Team 5 | D7: BB | E7: 1 | F7: 6 | G7: Imported ADP | J7: 11 | L7: 5 | M7: By Team | S7: 0 | T7: 0 | U7: CHW | V7: TRUE | W7: SP
B8: Team 6 | D8: SB | E8: 1 | F8: 7 | H8: Fantasy Pros Avg | I8: MORPS | J8: 12 | L8: 6 | M8: Pts. Per IP | R8: MORPS | S8: 0 | T8: 0 | U8: CIN | V8: TRUE | W8: RP
B9: Team 7 | D9: CS | E9: -1 | F9: 8 | H9: Mr. Cheatsheet | I9: Clay Davenport | J9: 13 | L9: 7 | M9: Pts. Per PA | R9: Clay Davenport | S9: 25 | T9: 25 | U9: CLE | V9: TRUE
B10: Team 8 | D10: K | E10: -1 | F10: 9 | I10: Weighted Projections | J10: 14 | L10: 8 | M10: AVG | R10: Steamer (w/ Fangraphs PT) | S10: 0 | T10: 0 | U10: COL | V10: TRUE
B11: Team 9 | D11: R | E11: 1 | F11: 10 | I11: Mr. Cheatsheet's Special Blend | J11: 15 | L11: 9 | M11: HR | U11: DET | V11: TRUE
B12: Team 10 | D12: RBI | E12: 1 | F12: 11 | I12: Imported Projections | J12: 16 | M12: Runs | U12: HOU | V12: TRUE
B13: Team 11 | D13: W | E13: 4 | F13: 12 | J13: 17 | M13: RBI | U13: KC | V13: TRUE
B14: Team 12 | D14: L | E14: -2 | F14: 13 | J14: 18 | M14: SB | U14: LAD | V14: TRUE
B15: Team 13 | D15: IP | E15: 1 | F15: 14 | J15: 19 | M15: ERA | U15: MIA | V15: TRUE
A16: =IF((Personalize!$E$18+1)<14,"","Team 14") ->  | B16: Team 14 | D16: Hit Allowed | E16: -1 | F16: 15 | J16: 20 | M16: WHIP | U16: MIL | V16: TRUE
A17: =IF((Personalize!$E$18+1)<15,"","Team 15") ->  | B17: Team 15 | D17: BB | E17: -1 | F17: 16 | J17: 21 | M17: K's | U17: MIN | V17: TRUE
A18: =IF((Personalize!$E$18+1)<16,"","Team 16") ->  | B18: Team 16 | D18: K | E18: 2.5 | F18: 17 | J18: 22 | M18: Wins | U18: NYM | V18: TRUE
B19: Team 17 | D19: ER | E19: -1 | F19: 18 | J19: 23 | M19: Saves | U19: NYY | V19: TRUE
B20: Team 18 | D20: S | E20: 10 | F20: 19 | J20: 24 | U20: OAK | V20: TRUE
B21: Team 19 | D21: QS | E21: 0 | F21: 20 | U21: PHI | V21: TRUE
B22: Team 20 | D22: # of Teams | E22: 12 | F22: 21 | U22: PIT | V22: TRUE
B23: Team 21 | D23: C | E23: 1 | F23: 22 | U23: SD | V23: TRUE
B24: Team 22 | D24: 1B | E24: 1 | F24: 23 | U24: SEA | V24: TRUE
B25: Team 23 | D25: 2B | E25: 1 | F25: 24 | U25: SF | V25: TRUE
B26: Team 24 | D26: 3B | E26: 1 | U26: STL | V26: TRUE
D27: SS | E27: 1 | U27: TB | V27: TRUE
B28: TRUE | D28: CI | E28: 0 | U28: TEX | V28: TRUE
B29: TRUE | D29: MI | E29: 0 | U29: TOR | V29: TRUE
B30: FALSE | D30: OF | E30: 3 | U30: WAS | V30: TRUE
D31: LF | E31: 0 | U31: All Players
D32: CF | E32: 0 | U32: NL-Only
D33: RF | E33: 0 | U33: AL-Only
D34: DH | E34: 1 | U34: Custom
D35: SP | E35: 4
D36: RP | E36: 1
D37: P | E37: 1
D38: ADP Site: | E38: =IF(F38=G1,1,IF(F38=G2,2,IF(F38=G3,3,IF(F38=G4,4,IF(F38=G5,5,IF(F38=G6,6,IF(F38=G7,7,0))))))) -> 3 | F38: CBS (Points)
D39: Rankings: | E39: =IF(F39=H1,1,IF(F39=H2,2,IF(F39=H3,3,IF(F39=H4,4,IF(F39=H5,5,IF(F39=H6,6,IF(F39=H7,7,IF(F39=H8,8,0)))))))) -> 4 | F39: ESPN (Points)
D40: Projections: | E40: =IF(F40=I1,1,IF(F40=I2,2,IF(F40=I3,10,IF(F40=I4,3,IF(F40=I5,4,IF(F40=I6,5,IF(F40=I7,6,IF(F40=I9,9,IF(F40=I10,7,IF(F40=I8,8,IF(F40=I11,11,IF(F40=I12,12,0)))))))))))) -> 11 | F40: Mr. Cheatsheet's Special Blend
E41: 1
B42: 5 | D42: CG | E42: 5
B43: 5 | D43: Shutout | E43: 5
B44: 0 | D44: Holds | E44: 0

Sheet Draft Central
A1: Sort by:
G2: Draft Cheatsheet
B3: Player Info | G3: Draft Data | K3: Point Projections | P3: Projected Stats | Z3: Draft Odds | AC3: ="Current Pick: "&(COUNTA($A$6:$A$745)+1) -> Current Pick: 1 | AD3: 3 | AE3: 29
A4: Drafted By (click box to select team) | B4: Name | C4: Pos | D4: OF Elig | E4: Tm | F4: Age | G4: ADP | H4: ADP Rd | I4: Exp Rank | J4: SDAA Rank | K4: Projected Points | L4: Pos Avg | M4: Std Devs Above Avg | N4: Pts Per PA | O4: Pts Per IP | P4: W | Q4: S | R4: K | S4: ERA | T4: WHIP | U4: AVG | V4: HR | W4: RBI | X4: R | Y4: SB | Z4: Odds Curr Avail | AA4: In One Round | AB4: In Two Rounds | AC4: Your Player Notes: | AD4: Early | AE4: Late | AF4: Drafted | AG4: No Proj | AH4: Team | AI4: Post | AJ4: Starter
B6: Mike Trout | C6: OF | D6: =IFERROR(IF(VLOOKUP(B6,'Starter Calc'!$B$2:$E$700,4,FALSE)="","",VLOOKUP(B6,'Starter Calc'!$B$2:$E$700,4,FALSE)),"") -> LF,,CF | E6: =IFERROR(VLOOKUP($B6,'ADP-Rank'!$A$2:$D$700,3,FALSE),"") -> LAA | F6: =IFERROR(VLOOKUP($B6,'ADP-Rank'!$A$2:$W$700,23,FALSE),"") -> 22 | G6: =IFERROR((IF(Personalize!$E$38=1,VLOOKUP($B6,'ADP-Rank'!$A$2:$J$700,4,FALSE),(IF(Personalize!$E$38=2,VLOOKUP($B6,'ADP-Rank'!$A$2:$J$700,7,FALSE),(IF(Personalize!$E$38=3,VLOOKUP($B6,'ADP-Rank'!$A$2:$J$700,10,FALSE),(IF(Personalize!$E$38=4,VLOOKUP($B6,'ADP-Rank'!$A$2:$AD$700,24,FALSE),(IF(Personalize!$E$38=5,VLOOKUP($B6,'ADP-Rank'!$A$2:$AD$700,27,FALSE),(IF(Personalize!$E$38=6,VLOOKUP($B6,'ADP-Rank'!$A$2:$AZ$700,30,FALSE),(IF(Personalize!$E$38=7,VLOOKUP($B6,'ADP-Rank'!$A$2:$AZ$700,39,FALSE))))))))))))))),"") -> 1.82 | H6: =IFERROR(ROUNDDOWN(VLOOKUP($B6,'ADP-Rank'!$A$2:$AY$1064,38,FALSE),0),"") -> 1 | I6: =VLOOKUP($B6,'ADP-Rank'!$A$2:$AJ$1064,36,FALSE) -> 10 | J6: =IFERROR(RANK($M6,$M$6:$M$745,0),"") -> 1 | K6: =IFERROR(IF((OR($C6="RP",$C6="SP")),VLOOKUP($B6,Pitcher!$A$1:$Z$700,20,FALSE),(VLOOKUP($B6,Hitter!$A$1:$Z$700,26,FALSE))),"") -> 494.4994397 | L6: =IFERROR(IF((OR($C6="RP",$C6="SP")),VLOOKUP($C6,'Filtered-P'!$M$3:$P$4,4,FALSE), VLOOKUP($C6,Filtered!$Q$3:$T$14,4,FALSE)),"") -> 350.7983075 | M6: =IFERROR(($K6-$L6)/IF(OR($C6="SP",$C6="RP"),VLOOKUP($C6,'Filtered-P'!$M$3:$T$4,8,FALSE),VLOOKUP($C6,Filtered!$Q$3:$X$10,8,FALSE)),"") -> 3.520220714 | N6: =IFERROR(IF((OR($C6="RP",$C6="SP")),"",(VLOOKUP($B6,Hitter!$A$1:$Z$700,26,FALSE)/VLOOKUP($B6,Hitter!$A$1:$Z$700,2,FALSE))),"") -> 0.7280415032 | O6: =IFERROR(IF((OR($C6="RP",$C6="SP")),VLOOKUP($B6,Pitcher!$A$1:$Z$700,20,FALSE)/VLOOKUP($B6,Pitcher!$A$1:$Z$700,4,FALSE),""),"") ->  | P6: =IFERROR(IF((OR($C6="RP",$C6="SP")),VLOOKUP($B6,Pitcher!$A$1:$V$700,2,FALSE),""),"") ->  | Q6: =IFERROR(IF((OR($C6="RP",$C6="SP")),VLOOKUP($B6,Pitcher!$A$1:$V$700,9,FALSE),""),"") ->  | R6: =IFERROR(IF((OR($C6="RP",$C6="SP")),VLOOKUP($B6,Pitcher!$A$1:$V$700,7,FALSE),""),"") ->  | S6: =IFERROR(IF((OR($C6="RP",$C6="SP")),VLOOKUP($B6,Pitcher!$A$1:$AB$700,21,FALSE),""),"") ->  | T6: =IFERROR(IF((OR($C6="RP",$C6="SP")),VLOOKUP($B6,Pitcher!$A$1:$V$700,22,FALSE),""),"") ->  | U6: =IFERROR(IF((OR($C6="RP",$C6="SP")),"",VLOOKUP($B6,Hitter!$A$1:$AH$700,27,FALSE)),"") -> 0.3029002331 | V6: =IFERROR(IF((OR($C6="RP",$C6="SP")),"",VLOOKUP($B6,Hitter!$A$1:$AH$700,9,FALSE)),"") -> 26.07117583 | W6: =IFERROR(IF((OR($C6="RP",$C6="SP")),"",VLOOKUP($B6,Hitter!$A$1:$AH$700,10,FALSE)),"") -> 88.64901796 | X6: =IFERROR(IF((OR($C6="RP",$C6="SP")),"",VLOOKUP($B6,Hitter!$A$1:$AH$700,4,FALSE)),"") -> 116.6392213 | Y6: =IFERROR(IF((OR($C6="RP",$C6="SP")),"",VLOOKUP($B6,Hitter!$A$1:$AH$700,11,FALSE)),"") -> 37.53536845 | Z6: =IFERROR(IF(ISTEXT($A6),"",(1-NORMDIST((COUNTA($A$6:$A$745)),($G6),((AE6-AD6)/6),TRUE))),"") -> 1 | AA6: =IFERROR(IF(ISTEXT($A6),"",(1-NORMDIST((COUNTA($A$6:$A$745))+(Personalize!$E$18+1),$G6,((AE6-AD6)/6),TRUE))),"") -> 0 | AB6: =IFERROR(IF(ISTEXT($A6),"",(1-NORMDIST((COUNTA($A$6:$A$745))+((Personalize!$E$18+1)*2),$G6,((AE6-AD6)/6),TRUE))),"") -> 0 | AD6: =IF(Personalize!$E$34=1,VLOOKUP($B6,'ADP-Rank'!$A$2:$J$700,5,FALSE),(IF(Personalize!$E$34=2,VLOOKUP($B6,'ADP-Rank'!$A$2:$J$700,8,FALSE),(IF(Personalize!$E$34=3,VLOOKUP($B6,'ADP-Rank'!$A$2:$O$700,11,FALSE),(IF(Personalize!$E$31=4,VLOOKUP($B6,'ADP-Rank'!$A$2:$AZ$700,25,FALSE),(IF(Personalize!$E$31=5,VLOOKUP($B6,'ADP-Rank'!$A$2:$AZ$700,28,FALSE),(IF(Personalize!$E$31=6,VLOOKUP($B6,'ADP-Rank'!$A$2:$AZ$700,32,FALSE),""))))))))))) -> 1 | AE6: =IF(Personalize!$E$34=1,VLOOKUP($B6,'ADP-Rank'!$A$2:$J$700,6,FALSE),(IF(Personalize!$E$34=2,VLOOKUP($B6,'ADP-Rank'!$A$2:$J$700,9,FALSE),(IF(Personalize!$E$34=3,VLOOKUP($B6,'ADP-Rank'!$A$2:$O$700,12,FALSE),(IF(Personalize!$E$31=4,VLOOKUP($B6,'ADP-Rank'!$A$2:$AZ$700,26,FALSE),(IF(Personalize!$E$31=5,VLOOKUP($B6,'ADP-Rank'!$A$2:$AZ$700,29,FALSE),(IF(Personalize!$E$31=6,VLOOKUP($B6,'ADP-Rank'!$A$2:$AZ$700,33,FALSE),""))))))))))) -> 2 | AF6: =IF(ISBLANK(A6),0,1) -> 0 | AG6: =IF(K6="",0,1) -> 1 | AH6: =A6 -> 0 | AI6: =IF(C6="C",1,IF(C6="1B",2,IF(C6="2B",3,IF(C6="3B",4,IF(C6="SS",5,IF(C6="CI",6,IF(C6="MI",7,IF(C6="OF",11,IF(C6="LF",8,IF(C6="CF",9,IF(C6="RF",10,IF(C6="DH",12,IF(C6="SP",13,IF(C6="RP",14,IF(C6="P",15,16))))))))))))))) -> 11 | AJ6: =VLOOKUP(B6,'Starter Calc'!$B$2:$BN$700,65,FALSE) -> Starter | AK6: =IFERROR(VLOOKUP($B6,'ADP-Rank'!$A$2:$AH$964,34,FALSE),TRUE) -> TRUE | AL6: =IF(O6="",0,1) -> 0
B7: Miguel Cabrera | C7: 3B | D7: =IFERROR(IF(VLOOKUP(B7,'Starter Calc'!$B$2:$E$700,4,FALSE)="","",VLOOKUP(B7,'Starter Calc'!$B$2:$E$700,4,FALSE)),"") -> ,, | E7: =IFERROR(VLOOKUP($B7,'ADP-Rank'!$A$2:$D$700,3,FALSE),"") -> DET | F7: =IFERROR(VLOOKUP($B7,'ADP-Rank'!$A$2:$W$700,23,FALSE),"") -> 31 | G7: =IFERROR((IF(Personalize!$E$38=1,VLOOKUP($B7,'ADP-Rank'!$A$2:$J$700,4,FALSE),(IF(Personalize!$E$38=2,VLOOKUP($B7,'ADP-Rank'!$A$2:$J$700,7,FALSE),(IF(Personalize!$E$38=3,VLOOKUP($B7,'ADP-Rank'!$A$2:$J$700,10,FALSE),(IF(Personalize!$E$38=4,VLOOKUP($B7,'ADP-Rank'!$A$2:$AD$700,24,FALSE),(IF(Personalize!$E$38=5,VLOOKUP($B7,'ADP-Rank'!$A$2:$AD$700,27,FALSE),(IF(Personalize!$E$38=6,VLOOKUP($B7,'ADP-Rank'!$A$2:$AZ$700,30,FALSE),(IF(Personalize!$E$38=7,VLOOKUP($B7,'ADP-Rank'!$A$2:$AZ$700,39,FALSE))))))))))))))),"") -> 2.07 | H7: =IFERROR(ROUNDDOWN(VLOOKUP($B7,'ADP-Rank'!$A$2:$AY$1064,38,FALSE),0),"") -> 1 | I7: =VLOOKUP($B7,'ADP-Rank'!$A$2:$AJ$1064,36,FALSE) -> 1 | J7: =IFERROR(RANK($M7,$M$6:$M$745,0),"") -> 2 | K7: =IFERROR(IF((OR($C7="RP",$C7="SP")),VLOOKUP($B7,Pitcher!$A$1:$Z$700,20,FALSE),(VLOOKUP($B7,Hitter!$A$1:$Z$700,26,FALSE))),"") -> 546.1169399 | L7: =IFERROR(IF((OR($C7="RP",$C7="SP")),VLOOKUP($C7,'Filtered-P'!$M$3:$P$4,4,FALSE), VLOOKUP($C7,Filtered!$Q$3:$T$14,4,FALSE)),"") -> 361.8942626 | M7: =IFERROR(($K7-$L7)/IF(OR($C7="SP",$C7="RP"),VLOOKUP($C7,'Filtered-P'!$M$3:$T$4,8,FALSE),VLOOKUP($C7,Filtered!$Q$3:$X$10,8,FALSE)),"") -> 2.780376156 | N7: =IFERROR(IF((OR($C7="RP",$C7="SP")),"",(VLOOKUP($B7,Hitter!$A$1:$Z$700,26,FALSE)/VLOOKUP($B7,Hitter!$A$1:$Z$700,2,FALSE))),"") -> 0.8333846175 | O7: =IFERROR(IF((OR($C7="RP",$C7="SP")),VLOOKUP($B7,Pitcher!$A$1:$Z$700,20,FALSE)/VLOOKUP($B7,Pitcher!$A$1:$Z$700,4,FALSE),""),"") ->  | P7: =IFERROR(IF((OR($C7="RP",$C7="SP")),VLOOKUP($B7,Pitcher!$A$1:$V$700,2,FALSE),""),"") ->  | Q7: =IFERROR(IF((OR($C7="RP",$C7="SP")),VLOOKUP($B7,Pitcher!$A$1:$V$700,9,FALSE),""),"") ->  | R7: =IFERROR(IF((OR($C7="RP",$C7="SP")),VLOOKUP($B7,Pitcher!$A$1:$V$700,7,FALSE),""),"") ->  | S7: =IFERROR(IF((OR($C7="RP",$C7="SP")),VLOOKUP($B7,Pitcher!$A$1:$AB$700,21,FALSE),""),"") ->  | T7: =IFERROR(IF((OR($C7="RP",$C7="SP")),VLOOKUP($B7,Pitcher!$A$1:$V$700,22,FALSE),""),"") ->  | U7: =IFERROR(IF((OR($C7="RP",$C7="SP")),"",VLOOKUP($B7,Hitter!$A$1:$AH$700,27,FALSE)),"") -> 0.3252034308 | V7: =IFERROR(IF((OR($C7="RP",$C7="SP")),"",VLOOKUP($B7,Hitter!$A$1:$AH$700,9,FALSE)),"") -> 38.55693328 | W7: =IFERROR(IF((OR($C7="RP",$C7="SP")),"",VLOOKUP($B7,Hitter!$A$1:$AH$700,10,FALSE)),"") -> 116.2597899 | X7: =IFERROR(IF((OR($C7="RP",$C7="SP")),"",VLOOKUP($B7,Hitter!$A$1:$AH$700,4,FALSE)),"") -> 104.8809821 | Y7: =IFERROR(IF((OR($C7="RP",$C7="SP")),"",VLOOKUP($B7,Hitter!$A$1:$AH$700,11,FALSE)),"") -> 3.312957072 | Z7: =IFERROR(IF(ISTEXT($A7),"",(1-NORMDIST((COUNTA($A$6:$A$745)),($G7),((AE7-AD7)/6),TRUE))),"") -> 1 | AA7: =IFERROR(IF(ISTEXT($A7),"",(1-NORMDIST((COUNTA($A$6:$A$745))+(Personalize!$E$18+1),$G7,((AE7-AD7)/6),TRUE))),"") -> 0 | AB7: =IFERROR(IF(ISTEXT($A7),"",(1-NORMDIST((COUNTA($A$6:$A$745))+((Personalize!$E$18+1)*2),$G7,((AE7-AD7)/6),TRUE))),"") -> 0 | AD7: =IF(Personalize!$E$34=1,VLOOKUP($B7,'ADP-Rank'!$A$2:$J$700,5,FALSE),(IF(Personalize!$E$34=2,VLOOKUP($B7,'ADP-Rank'!$A$2:$J$700,8,FALSE),(IF(Personalize!$E$34=3,VLOOKUP($B7,'ADP-Rank'!$A$2:$O$700,11,FALSE),(IF(Personalize!$E$31=4,VLOOKUP($B7,'ADP-Rank'!$A$2:$AZ$700,25,FALSE),(IF(Personalize!$E$31=5,VLOOKUP($B7,'ADP-Rank'!$A$2:$AZ$700,28,FALSE),(IF(Personalize!$E$31=6,VLOOKUP($B7,'ADP-Rank'!$A$2:$AZ$700,32,FALSE),""))))))))))) -> 2 | AE7: =IF(Personalize!$E$34=1,VLOOKUP($B7,'ADP-Rank'!$A$2:$J$700,6,FALSE),(IF(Personalize!$E$34=2,VLOOKUP($B7,'ADP-Rank'!$A$2:$J$700,9,FALSE),(IF(Personalize!$E$34=3,VLOOKUP($B7,'ADP-Rank'!$A$2:$O$700,12,FALSE),(IF(Personalize!$E$31=4,VLOOKUP($B7,'ADP-Rank'!$A$2:$AZ$700,26,FALSE),(IF(Personalize!$E$31=5,VLOOKUP($B7,'ADP-Rank'!$A$2:$AZ$700,29,FALSE),(IF(Personalize!$E$31=6,VLOOKUP($B7,'ADP-Rank'!$A$2:$AZ$700,33,FALSE),""))))))))))) -> 3 | AF7: =IF(ISBLANK(A7),0,1) -> 0 | AG7: =IF(K7="",0,1) -> 1 | AH7: =A7 -> 0 | AI7: =IF(C7="C",1,IF(C7="1B",2,IF(C7="2B",3,IF(C7="3B",4,IF(C7="SS",5,IF(C7="CI",6,IF(C7="MI",7,IF(C7="OF",11,IF(C7="LF",8,IF(C7="CF",9,IF(C7="RF",10,IF(C7="DH",12,IF(C7="SP",13,IF(C7="RP",14,IF(C7="P",15,16))))))))))))))) -> 4 | AJ7: =VLOOKUP(B7,'Starter Calc'!$B$2:$BN$700,65,FALSE) -> Starter | AK7: =IFERROR(VLOOKUP($B7,'ADP-Rank'!$A$2:$AH$964,34,FALSE),TRUE) -> TRUE | AL7: 0
B8: Clayton Kershaw | C8: SP | D8: =IFERROR(IF(VLOOKUP(B8,'Starter Calc'!$B$2:$E$700,4,FALSE)="","",VLOOKUP(B8,'Starter Calc'!$B$2:$E$700,4,FALSE)),"") -> ,, | E8: =IFERROR(VLOOKUP($B8,'ADP-Rank'!$A$2:$D$700,3,FALSE),"") -> LAD | F8: =IFERROR(VLOOKUP($B8,'ADP-Rank'!$A$2:$W$700,23,FALSE),"") -> 26 | G8: =IFERROR((IF(Personalize!$E$38=1,VLOOKUP($B8,'ADP-Rank'!$A$2:$J$700,4,FALSE),(IF(Personalize!$E$38=2,VLOOKUP($B8,'ADP-Rank'!$A$2:$J$700,7,FALSE),(IF(Personalize!$E$38=3,VLOOKUP($B8,'ADP-Rank'!$A$2:$J$700,10,FALSE),(IF(Personalize!$E$38=4,VLOOKUP($B8,'ADP-Rank'!$A$2:$AD$700,24,FALSE),(IF(Personalize!$E$38=5,VLOOKUP($B8,'ADP-Rank'!$A$2:$AD$700,27,FALSE),(IF(Personalize!$E$38=6,VLOOKUP($B8,'ADP-Rank'!$A$2:$AZ$700,30,FALSE),(IF(Personalize!$E$38=7,VLOOKUP($B8,'ADP-Rank'!$A$2:$AZ$700,39,FALSE))))))))))))))),"") -> 2.82 | H8: =IFERROR(ROUNDDOWN(VLOOKUP($B8,'ADP-Rank'!$A$2:$AY$1064,38,FALSE),0),"") -> 1 | I8: =VLOOKUP($B8,'ADP-Rank'!$A$2:$AJ$1064,36,FALSE) -> 2 | J8: =IFERROR(RANK($M8,$M$6:$M$745,0),"") -> 4 | K8: =IFERROR(IF((OR($C8="RP",$C8="SP")),VLOOKUP($B8,Pitcher!$A$1:$Z$700,20,FALSE),(VLOOKUP($B8,Hitter!$A$1:$Z$700,26,FALSE))),"") -> 595.798367 | L8: =IFERROR(IF((OR($C8="RP",$C8="SP")),VLOOKUP($C8,'Filtered-P'!$M$3:$P$4,4,FALSE), VLOOKUP($C8,Filtered!$Q$3:$T$14,4,FALSE)),"") -> 411.2053549 | M8: =IFERROR(($K8-$L8)/IF(OR($C8="SP",$C8="RP"),VLOOKUP($C8,'Filtered-P'!$M$3:$T$4,8,FALSE),VLOOKUP($C8,Filtered!$Q$3:$X$10,8,FALSE)),"") -> 2.454710807 | N8: =IFERROR(IF((OR($C8="RP",$C8="SP")),"",(VLOOKUP($B8,Hitter!$A$1:$Z$700,26,FALSE)/VLOOKUP($B8,Hitter!$A$1:$Z$700,2,FALSE))),"") ->  | O8: =IFERROR(IF((OR($C8="RP",$C8="SP")),VLOOKUP($B8,Pitcher!$A$1:$Z$700,20,FALSE)/VLOOKUP($B8,Pitcher!$A$1:$Z$700,4,FALSE),""),"") -> 2.557074537 | P8: =IFERROR(IF((OR($C8="RP",$C8="SP")),VLOOKUP($B8,Pitcher!$A$1:$V$700,2,FALSE),""),"") -> 17.64774927 | Q8: =IFERROR(IF((OR($C8="RP",$C8="SP")),VLOOKUP($B8,Pitcher!$A$1:$V$700,9,FALSE),""),"") -> 0 | R8: =IFERROR(IF((OR($C8="RP",$C8="SP")),VLOOKUP($B8,Pitcher!$A$1:$V$700,7,FALSE),""),"") -> 241.2081322 | S8: =IFERROR(IF((OR($C8="RP",$C8="SP")),VLOOKUP($B8,Pitcher!$A$1:$AB$700,21,FALSE),""),"") -> 2.768171942 | T8: =IFERROR(IF((OR($C8="RP",$C8="SP")),VLOOKUP($B8,Pitcher!$A$1:$V$700,22,FALSE),""),"") -> 1.054370306 | U8: =IFERROR(IF((OR($C8="RP",$C8="SP")),"",VLOOKUP($B8,Hitter!$A$1:$AH$700,27,FALSE)),"") ->  | V8: =IFERROR(IF((OR($C8="RP",$C8="SP")),"",VLOOKUP($B8,Hitter!$A$1:$AH$700,9,FALSE)),"") ->  | W8: =IFERROR(IF((OR($C8="RP",$C8="SP")),"",VLOOKUP($B8,Hitter!$A$1:$AH$700,10,FALSE)),"") ->  | X8: =IFERROR(IF((OR($C8="RP",$C8="SP")),"",VLOOKUP($B8,Hitter!$A$1:$AH$700,4,FALSE)),"") ->  | Y8: =IFERROR(IF((OR($C8="RP",$C8="SP")),"",VLOOKUP($B8,Hitter!$A$1:$AH$700,11,FALSE)),"") ->  | Z8: =IFERROR(IF(ISTEXT($A8),"",(1-NORMDIST((COUNTA($A$6:$A$745)),($G8),((AE8-AD8)/6),TRUE))),"") -> 0.9975988175 | AA8: =IFERROR(IF(ISTEXT($A8),"",(1-NORMDIST((COUNTA($A$6:$A$745))+(Personalize!$E$18+1),$G8,((AE8-AD8)/6),TRUE))),"") -> 0.2482522305 | AB8: =IFERROR(IF(ISTEXT($A8),"",(1-NORMDIST((COUNTA($A$6:$A$745))+((Personalize!$E$18+1)*2),$G8,((AE8-AD8)/6),TRUE))),"") -> 1.457545479e-05 | AD8: =IF(Personalize!$E$34=1,VLOOKUP($B8,'ADP-Rank'!$A$2:$J$700,5,FALSE),(IF(Personalize!$E$34=2,VLOOKUP($B8,'ADP-Rank'!$A$2:$J$700,8,FALSE),(IF(Personalize!$E$34=3,VLOOKUP($B8,'ADP-Rank'!$A$2:$O$700,11,FALSE),(IF(Personalize!$E$31=4,VLOOKUP($B8,'ADP-Rank'!$A$2:$AZ$700,25,FALSE),(IF(Personalize!$E$31=5,VLOOKUP($B8,'ADP-Rank'!$A$2:$AZ$700,28,FALSE),(IF(Personalize!$E$31=6,VLOOKUP($B8,'ADP-Rank'!$A$2:$AZ$700,32,FALSE),""))))))))))) -> 5 | AE8: =IF(Personalize!$E$34=1,VLOOKUP($B8,'ADP-Rank'!$A$2:$J$700,6,FALSE),(IF(Personalize!$E$34=2,VLOOKUP($B8,'ADP-Rank'!$A$2:$J$700,9,FALSE),(IF(Personalize!$E$34=3,VLOOKUP($B8,'ADP-Rank'!$A$2:$O$700,12,FALSE),(IF(Personalize!$E$31=4,VLOOKUP($B8,'ADP-Rank'!$A$2:$AZ$700,26,FALSE),(IF(Personalize!$E$31=5,VLOOKUP($B8,'ADP-Rank'!$A$2:$AZ$700,29,FALSE),(IF(Personalize!$E$31=6,VLOOKUP($B8,'ADP-Rank'!$A$2:$AZ$700,33,FALSE),""))))))))))) -> 11 | AF8: =IF(ISBLANK(A8),0,1) -> 0 | AG8: =IF(K8="",0,1) -> 1 | AH8: =A8 -> 0 | AI8: =IF(C8="C",1,IF(C8="1B",2,IF(C8="2B",3,IF(C8="3B",4,IF(C8="SS",5,IF(C8="CI",6,IF(C8="MI",7,IF(C8="OF",11,IF(C8="LF",8,IF(C8="CF",9,IF(C8="RF",10,IF(C8="DH",12,IF(C8="SP",13,IF(C8="RP",14,IF(C8="P",15,16))))))))))))))) -> 13 | AJ8: =VLOOKUP(B8,'Starter Calc'!$B$2:$BN$700,65,FALSE) -> Starter | AK8: =IFERROR(VLOOKUP($B8,'ADP-Rank'!$A$2:$AH$964,34,FALSE),TRUE) -> TRUE | AL8: 1
B9: Paul Goldschmidt | C9: 1B | D9: =IFERROR(IF(VLOOKUP(B9,'Starter Calc'!$B$2:$E$700,4,FALSE)="","",VLOOKUP(B9,'Starter Calc'!$B$2:$E$700,4,FALSE)),"") -> ,, | E9: =IFERROR(VLOOKUP($B9,'ADP-Rank'!$A$2:$D$700,3,FALSE),"") -> ARI | F9: =IFERROR(VLOOKUP($B9,'ADP-Rank'!$A$2:$W$700,23,FALSE),"") -> 26 | G9: =IFERROR((IF(Personalize!$E$38=1,VLOOKUP($B9,'ADP-Rank'!$A$2:$J$700,4,FALSE),(IF(Personalize!$E$38=2,VLOOKUP($B9,'ADP-Rank'!$A$2:$J$700,7,FALSE),(IF(Personalize!$E$38=3,VLOOKUP($B9,'ADP-Rank'!$A$2:$J$700,10,FALSE),(IF(Personalize!$E$38=4,VLOOKUP($B9,'ADP-Rank'!$A$2:$AD$700,24,FALSE),(IF(Personalize!$E$38=5,VLOOKUP($B9,'ADP-Rank'!$A$2:$AD$700,27,FALSE),(IF(Personalize!$E$38=6,VLOOKUP($B9,'ADP-Rank'!$A$2:$AZ$700,30,FALSE),(IF(Personalize!$E$38=7,VLOOKUP($B9,'ADP-Rank'!$A$2:$AZ$700,39,FALSE))))))))))))))),"") -> 5.26 | H9: =IFERROR(ROUNDDOWN(VLOOKUP($B9,'ADP-Rank'!$A$2:$AY$1064,38,FALSE),0),"") -> 1 | I9: =VLOOKUP($B9,'ADP-Rank'!$A$2:$AJ$1064,36,FALSE) -> 7 | J9: =IFERROR(RANK($M9,$M$6:$M$745,0),"") -> 25 | K9: =IFERROR(IF((OR($C9="RP",$C9="SP")),VLOOKUP($B9,Pitcher!$A$1:$Z$700,20,FALSE),(VLOOKUP($B9,Hitter!$A$1:$Z$700,26,FALSE))),"") -> 432.775339 | L9: =IFERROR(IF((OR($C9="RP",$C9="SP")),VLOOKUP($C9,'Filtered-P'!$M$3:$P$4,4,FALSE), VLOOKUP($C9,Filtered!$Q$3:$T$14,4,FALSE)),"") -> 372.669335 | M9: =IFERROR(($K9-$L9)/IF(OR($C9="SP",$C9="RP"),VLOOKUP($C9,'Filtered-P'!$M$3:$T$4,8,FALSE),VLOOKUP($C9,Filtered!$Q$3:$X$10,8,FALSE)),"") -> 1.151940765 | N9: =IFERROR(IF((OR($C9="RP",$C9="SP")),"",(VLOOKUP($B9,Hitter!$A$1:$Z$700,26,FALSE)/VLOOKUP($B9,Hitter!$A$1:$Z$700,2,FALSE))),"") -> 0.6628032932 | O9: =IFERROR(IF((OR($C9="RP",$C9="SP")),VLOOKUP($B9,Pitcher!$A$1:$Z$700,20,FALSE)/VLOOKUP($B9,Pitcher!$A$1:$Z$700,4,FALSE),""),"") ->  | P9: =IFERROR(IF((OR($C9="RP",$C9="SP")),VLOOKUP($B9,Pitcher!$A$1:$V$700,2,FALSE),""),"") ->  | Q9: =IFERROR(IF((OR($C9="RP",$C9="SP")),VLOOKUP($B9,Pitcher!$A$1:$V$700,9,FALSE),""),"") ->  | R9: =IFERROR(IF((OR($C9="RP",$C9="SP")),VLOOKUP($B9,Pitcher!$A$1:$V$700,7,FALSE),""),"") ->  | S9: =IFERROR(IF((OR($C9="RP",$C9="SP")),VLOOKUP($B9,Pitcher!$A$1:$AB$700,21,FALSE),""),"") ->  | T9: =IFERROR(IF((OR($C9="RP",$C9="SP")),VLOOKUP($B9,Pitcher!$A$1:$V$700,22,FALSE),""),"") ->  | U9: =IFERROR(IF((OR($C9="RP",$C9="SP")),"",VLOOKUP($B9,Hitter!$A$1:$AH$700,27,FALSE)),"") -> 0.2817735379 | V9: =IFERROR(IF((OR($C9="RP",$C9="SP")),"",VLOOKUP($B9,Hitter!$A$1:$AH$700,9,FALSE)),"") -> 32.03255467 | W9: =IFERROR(IF((OR($C9="RP",$C9="SP")),"",VLOOKUP($B9,Hitter!$A$1:$AH$700,10,FALSE)),"") -> 99.59302661 | X9: =IFERROR(IF((OR($C9="RP",$C9="SP")),"",VLOOKUP($B9,Hitter!$A$1:$AH$700,4,FALSE)),"") -> 94.85510252 | Y9: =IFERROR(IF((OR($C9="RP",$C9="SP")),"",VLOOKUP($B9,Hitter!$A$1:$AH$700,11,FALSE)),"") -> 13.27328681 | Z9: =IFERROR(IF(ISTEXT($A9),"",(1-NORMDIST((COUNTA($A$6:$A$745)),($G9),((AE9-AD9)/6),TRUE))),"") -> 1 | AA9: =IFERROR(IF(ISTEXT($A9),"",(1-NORMDIST((COUNTA($A$6:$A$745))+(Personalize!$E$18+1),$G9,((AE9-AD9)/6),TRUE))),"") -> 0.9997842266 | AB9: =IFERROR(IF(ISTEXT($A9),"",(1-NORMDIST((COUNTA($A$6:$A$745))+((Personalize!$E$18+1)*2),$G9,((AE9-AD9)/6),TRUE))),"") -> 0.0002507068913 | AD9: =IF(Personalize!$E$34=1,VLOOKUP($B9,'ADP-Rank'!$A$2:$J$700,5,FALSE),(IF(Personalize!$E$34=2,VLOOKUP($B9,'ADP-Rank'!$A$2:$J$700,8,FALSE),(IF(Personalize!$E$34=3,VLOOKUP($B9,'ADP-Rank'!$A$2:$O$700,11,FALSE),(IF(Personalize!$E$31=4,VLOOKUP($B9,'ADP-Rank'!$A$2:$AZ$700,25,FALSE),(IF(Personalize!$E$31=5,VLOOKUP($B9,'ADP-Rank'!$A$2:$AZ$700,28,FALSE),(IF(Personalize!$E$31=6,VLOOKUP($B9,'ADP-Rank'!$A$2:$AZ$700,32,FALSE),""))))))))))) -> 3 | AE9: =IF(Personalize!$E$34=1,VLOOKUP($B9,'ADP-Rank'!$A$2:$J$700,6,FALSE),(IF(Personalize!$E$34=2,VLOOKUP($B9,'ADP-Rank'!$A$2:$J$700,9,FALSE),(IF(Personalize!$E$34=3,VLOOKUP($B9,'ADP-Rank'!$A$2:$O$700,12,FALSE),(IF(Personalize!$E$31=4,VLOOKUP($B9,'ADP-Rank'!$A$2:$AZ$700,26,FALSE),(IF(Personalize!$E$31=5,VLOOKUP($B9,'ADP-Rank'!$A$2:$AZ$700,29,FALSE),(IF(Personalize!$E$31=6,VLOOKUP($B9,'ADP-Rank'!$A$2:$AZ$700,33,FALSE),""))))))))))) -> 6 | AF9: =IF(ISBLANK(A9),0,1) -> 0 | AG9: =IF(K9="",0,1) -> 1 | AH9: =A9 -> 0 | AI9: =IF(C9="C",1,IF(C9="1B",2,IF(C9="2B",3,IF(C9="3B",4,IF(C9="SS",5,IF(C9="CI",6,IF(C9="MI",7,IF(C9="OF",11,IF(C9="LF",8,IF(C9="CF",9,IF(C9="RF",10,IF(C9="DH",12,IF(C9="SP",13,IF(C9="RP",14,IF(C9="P",15,16))))))))))))))) -> 2 | AJ9: =VLOOKUP(B9,'Starter Calc'!$B$2:$BN$700,65,FALSE) -> Bench | AK9: =IFERROR(VLOOKUP($B9,'ADP-Rank'!$A$2:$AH$964,34,FALSE),TRUE) -> TRUE | AL9: 0
B10: Andrew McCutchen | C10: OF | D10: =IFERROR(IF(VLOOKUP(B10,'Starter Calc'!$B$2:$E$700,4,FALSE)="","",VLOOKUP(B10,'Starter Calc'!$B$2:$E$700,4,FALSE)),"") -> ,,CF | E10: =IFERROR(VLOOKUP($B10,'ADP-Rank'!$A$2:$D$700,3,FALSE),"") -> PIT | F10: =IFERROR(VLOOKUP($B10,'ADP-Rank'!$A$2:$W$700,23,FALSE),"") -> 27 | G10: =IFERROR((IF(Personalize!$E$38=1,VLOOKUP($B10,'ADP-Rank'!$A$2:$J$700,4,FALSE),(IF(Personalize!$E$38=2,VLOOKUP($B10,'ADP-Rank'!$A$2:$J$700,7,FALSE),(IF(Personalize!$E$38=3,VLOOKUP($B10,'ADP-Rank'!$A$2:$J$700,10,FALSE),(IF(Personalize!$E$38=4,VLOOKUP($B10,'ADP-Rank'!$A$2:$AD$700,24,FALSE),(IF(Personalize!$E$38=5,VLOOKUP($B10,'ADP-Rank'!$A$2:$AD$700,27,FALSE),(IF(Personalize!$E$38=6,VLOOKUP($B10,'ADP-Rank'!$A$2:$AZ$700,30,FALSE),(IF(Personalize!$E$38=7,VLOOKUP($B10,'ADP-Rank'!$A$2:$AZ$700,39,FALSE))))))))))))))),"") -> 7.33 | H10: =IFERROR(ROUNDDOWN(VLOOKUP($B10,'ADP-Rank'!$A$2:$AY$1064,38,FALSE),0),"") -> 1 | I10: =VLOOKUP($B10,'ADP-Rank'!$A$2:$AJ$1064,36,FALSE) -> 5 | J10: =IFERROR(RANK($M10,$M$6:$M$745,0),"") -> 8 | K10: =IFERROR(IF((OR($C10="RP",$C10="SP")),VLOOKUP($B10,Pitcher!$A$1:$Z$700,20,FALSE),(VLOOKUP($B10,Hitter!$A$1:$Z$700,26,FALSE))),"") -> 441.9075679 | L10: =IFERROR(IF((OR($C10="RP",$C10="SP")),VLOOKUP($C10,'Filtered-P'!$M$3:$P$4,4,FALSE), VLOOKUP($C10,Filtered!$Q$3:$T$14,4,FALSE)),"") -> 350.7983075 | M10: =IFERROR(($K10-$L10)/IF(OR($C10="SP",$C10="RP"),VLOOKUP($C10,'Filtered-P'!$M$3:$T$4,8,FALSE),VLOOKUP($C10,Filtered!$Q$3:$X$10,8,FALSE)),"") -> 2.231887117 | N10: =IFERROR(IF((OR($C10="RP",$C10="SP")),"",(VLOOKUP($B10,Hitter!$A$1:$Z$700,26,FALSE)/VLOOKUP($B10,Hitter!$A$1:$Z$700,2,FALSE))),"") -> 0.6706577482 | O10: =IFERROR(IF((OR($C10="RP",$C10="SP")),VLOOKUP($B10,Pitcher!$A$1:$Z$700,20,FALSE)/VLOOKUP($B10,Pitcher!$A$1:$Z$700,4,FALSE),""),"") ->  | P10: =IFERROR(IF((OR($C10="RP",$C10="SP")),VLOOKUP($B10,Pitcher!$A$1:$V$700,2,FALSE),""),"") ->  | Q10: =IFERROR(IF((OR($C10="RP",$C10="SP")),VLOOKUP($B10,Pitcher!$A$1:$V$700,9,FALSE),""),"") ->  | R10: =IFERROR(IF((OR($C10="RP",$C10="SP")),VLOOKUP($B10,Pitcher!$A$1:$V$700,7,FALSE),""),"") ->  | S10: =IFERROR(IF((OR($C10="RP",$C10="SP")),VLOOKUP($B10,Pitcher!$A$1:$AB$700,21,FALSE),""),"") ->  | T10: =IFERROR(IF((OR($C10="RP",$C10="SP")),VLOOKUP($B10,Pitcher!$A$1:$V$700,22,FALSE),""),"") ->  | U10: =IFERROR(IF((OR($C10="RP",$C10="SP")),"",VLOOKUP($B10,Hitter!$A$1:$AH$700,27,FALSE)),"") -> 0.2948932058 | V10: =IFERROR(IF((OR($C10="RP",$C10="SP")),"",VLOOKUP($B10,Hitter!$A$1:$AH$700,9,FALSE)),"") -> 23.76887822 | W10: =IFERROR(IF((OR($C10="RP",$C10="SP")),"",VLOOKUP($B10,Hitter!$A$1:$AH$700,10,FALSE)),"") -> 86.15486618 | X10: =IFERROR(IF((OR($C10="RP",$C10="SP")),"",VLOOKUP($B10,Hitter!$A$1:$AH$700,4,FALSE)),"") -> 97.89307364 | Y10: =IFERROR(IF((OR($C10="RP",$C10="SP")),"",VLOOKUP($B10,Hitter!$A$1:$AH$700,11,FALSE)),"") -> 23.0171474 | Z10: =IFERROR(IF(ISTEXT($A10),"",(1-NORMDIST((COUNTA($A$6:$A$745)),($G10),((AE10-AD10)/6),TRUE))),"") -> 1 | AA10: =IFERROR(IF(ISTEXT($A10),"",(1-NORMDIST((COUNTA($A$6:$A$745))+(Personalize!$E$18+1),$G10,((AE10-AD10)/6),TRUE))),"") -> 1 | AB10: =IFERROR(IF(ISTEXT($A10),"",(1-NORMDIST((COUNTA($A$6:$A$745))+((Personalize!$E$18+1)*2),$G10,((AE10-AD10)/6),TRUE))),"") -> 0.7453730853 | AD10: =IF(Personalize!$E$34=1,VLOOKUP($B10,'ADP-Rank'!$A$2:$J$700,5,FALSE),(IF(Personalize!$E$34=2,VLOOKUP($B10,'ADP-Rank'!$A$2:$J$700,8,FALSE),(IF(Personalize!$E$34=3,VLOOKUP($B10,'ADP-Rank'!$A$2:$O$700,11,FALSE),(IF(Personalize!$E$31=4,VLOOKUP($B10,'ADP-Rank'!$A$2:$AZ$700,25,FALSE),(IF(Personalize!$E$31=5,VLOOKUP($B10,'ADP-Rank'!$A$2:$AZ$700,28,FALSE),(IF(Personalize!$E$31=6,VLOOKUP($B10,'ADP-Rank'!$A$2:$AZ$700,32,FALSE),""))))))))))) -> 3 | AE10: =IF(Personalize!$E$34=1,VLOOKUP($B10,'ADP-Rank'!$A$2:$J$700,6,FALSE),(IF(Personalize!$E$34=2,VLOOKUP($B10,'ADP-Rank'!$A$2:$J$700,9,FALSE),(IF(Personalize!$E$34=3,VLOOKUP($B10,'ADP-Rank'!$A$2:$O$700,12,FALSE),(IF(Personalize!$E$31=4,VLOOKUP($B10,'ADP-Rank'!$A$2:$AZ$700,26,FALSE),(IF(Personalize!$E$31=5,VLOOKUP($B10,'ADP-Rank'!$A$2:$AZ$700,29,FALSE),(IF(Personalize!$E$31=6,VLOOKUP($B10,'ADP-Rank'!$A$2:$AZ$700,33,FALSE),""))))))))))) -> 6 | AF10: =IF(ISBLANK(A10),0,1) -> 0 | AG10: =IF(K10="",0,1) -> 1 | AH10: =A10 -> 0 | AI10: =IF(C10="C",1,IF(C10="1B",2,IF(C10="2B",3,IF(C10="3B",4,IF(C10="SS",5,IF(C10="CI",6,IF(C10="MI",7,IF(C10="OF",11,IF(C10="LF",8,IF(C10="CF",9,IF(C10="RF",10,IF(C10="DH",12,IF(C10="SP",13,IF(C10="RP",14,IF(C10="P",15,16))))))))))))))) -> 11 | AJ10: =VLOOKUP(B10,'Starter Calc'!$B$2:$BN$700,65,FALSE) -> Starter | AK10: =IFERROR(VLOOKUP($B10,'ADP-Rank'!$A$2:$AH$964,34,FALSE),TRUE) -> TRUE | AL10: 0
B11: Adam Wainwright | C11: SP | D11: =IFERROR(IF(VLOOKUP(B11,'Starter Calc'!$B$2:$E$700,4,FALSE)="","",VLOOKUP(B11,'Starter Calc'!$B$2:$E$700,4,FALSE)),"") -> ,, | E11: =IFERROR(VLOOKUP($B11,'ADP-Rank'!$A$2:$D$700,3,FALSE),"") -> STL | F11: =IFERROR(VLOOKUP($B11,'ADP-Rank'!$A$2:$W$700,23,FALSE),"") -> 32 | G11: =IFERROR((IF(Personalize!$E$38=1,VLOOKUP($B11,'ADP-Rank'!$A$2:$J$700,4,FALSE),(IF(Personalize!$E$38=2,VLOOKUP($B11,'ADP-Rank'!$A$2:$J$700,7,FALSE),(IF(Personalize!$E$38=3,VLOOKUP($B11,'ADP-Rank'!$A$2:$J$700,10,FALSE),(IF(Personalize!$E$38=4,VLOOKUP($B11,'ADP-Rank'!$A$2:$AD$700,24,FALSE),(IF(Personalize!$E$38=5,VLOOKUP($B11,'ADP-Rank'!$A$2:$AD$700,27,FALSE),(IF(Personalize!$E$38=6,VLOOKUP($B11,'ADP-Rank'!$A$2:$AZ$700,30,FALSE),(IF(Personalize!$E$38=7,VLOOKUP($B11,'ADP-Rank'!$A$2:$AZ$700,39,FALSE))))))))))))))),"") -> 8.8 | H11: =IFERROR(ROUNDDOWN(VLOOKUP($B11,'ADP-Rank'!$A$2:$AY$1064,38,FALSE),0),"") -> 1 | I11: =VLOOKUP($B11,'ADP-Rank'!$A$2:$AJ$1064,36,FALSE) -> 18 | J11: =IFERROR(RANK($M11,$M$6:$M$745,0),"") -> 29 | K11: =IFERROR(IF((OR($C11="RP",$C11="SP")),VLOOKUP($B11,Pitcher!$A$1:$Z$700,20,FALSE),(VLOOKUP($B11,Hitter!$A$1:$Z$700,26,FALSE))),"") -> 488.0055993 | L11: =IFERROR(IF((OR($C11="RP",$C11="SP")),VLOOKUP($C11,'Filtered-P'!$M$3:$P$4,4,FALSE), VLOOKUP($C11,Filtered!$Q$3:$T$14,4,FALSE)),"") -> 411.2053549 | M11: =IFERROR(($K11-$L11)/IF(OR($C11="SP",$C11="RP"),VLOOKUP($C11,'Filtered-P'!$M$3:$T$4,8,FALSE),VLOOKUP($C11,Filtered!$Q$3:$X$10,8,FALSE)),"") -> 1.021286709 | N11: =IFERROR(IF((OR($C11="RP",$C11="SP")),"",(VLOOKUP($B11,Hitter!$A$1:$Z$700,26,FALSE)/VLOOKUP($B11,Hitter!$A$1:$Z$700,2,FALSE))),"") ->  | O11: =IFERROR(IF((OR($C11="RP",$C11="SP")),VLOOKUP($B11,Pitcher!$A$1:$Z$700,20,FALSE)/VLOOKUP($B11,Pitcher!$A$1:$Z$700,4,FALSE),""),"") -> 2.19822342 | P11: =IFERROR(IF((OR($C11="RP",$C11="SP")),VLOOKUP($B11,Pitcher!$A$1:$V$700,2,FALSE),""),"") -> 17.19818828 | Q11: =IFERROR(IF((OR($C11="RP",$C11="SP")),VLOOKUP($B11,Pitcher!$A$1:$V$700,9,FALSE),""),"") -> 0 | R11: =IFERROR(IF((OR($C11="RP",$C11="SP")),VLOOKUP($B11,Pitcher!$A$1:$V$700,7,FALSE),""),"") -> 205.6443186 | S11: =IFERROR(IF((OR($C11="RP",$C11="SP")),VLOOKUP($B11,Pitcher!$A$1:$AB$700,21,FALSE),""),"") -> 3.174378782 | T11: =IFERROR(IF((OR($C11="RP",$C11="SP")),VLOOKUP($B11,Pitcher!$A$1:$V$700,22,FALSE),""),"") -> 1.125800726 | U11: =IFERROR(IF((OR($C11="RP",$C11="SP")),"",VLOOKUP($B11,Hitter!$A$1:$AH$700,27,FALSE)),"") ->  | V11: =IFERROR(IF((OR($C11="RP",$C11="SP")),"",VLOOKUP($B11,Hitter!$A$1:$AH$700,9,FALSE)),"") ->  | W11: =IFERROR(IF((OR($C11="RP",$C11="SP")),"",VLOOKUP($B11,Hitter!$A$1:$AH$700,10,FALSE)),"") ->  | X11: =IFERROR(IF((OR($C11="RP",$C11="SP")),"",VLOOKUP($B11,Hitter!$A$1:$AH$700,4,FALSE)),"") ->  | Y11: =IFERROR(IF((OR($C11="RP",$C11="SP")),"",VLOOKUP($B11,Hitter!$A$1:$AH$700,11,FALSE)),"") ->  | Z11: =IFERROR(IF(ISTEXT($A11),"",(1-NORMDIST((COUNTA($A$6:$A$745)),($G11),((AE11-AD11)/6),TRUE))),"") -> 0.9557370905 | AA11: =IFERROR(IF(ISTEXT($A11),"",(1-NORMDIST((COUNTA($A$6:$A$745))+(Personalize!$E$18+1),$G11,((AE11-AD11)/6),TRUE))),"") -> 0.8475085878 | AB11: =IFERROR(IF(ISTEXT($A11),"",(1-NORMDIST((COUNTA($A$6:$A$745))+((Personalize!$E$18+1)*2),$G11,((AE11-AD11)/6),TRUE))),"") -> 0.6362252542 | AD11: =IF(Personalize!$E$34=1,VLOOKUP($B11,'ADP-Rank'!$A$2:$J$700,5,FALSE),(IF(Personalize!$E$34=2,VLOOKUP($B11,'ADP-Rank'!$A$2:$J$700,8,FALSE),(IF(Personalize!$E$34=3,VLOOKUP($B11,'ADP-Rank'!$A$2:$O$700,11,FALSE),(IF(Personalize!$E$31=4,VLOOKUP($B11,'ADP-Rank'!$A$2:$AZ$700,25,FALSE),(IF(Personalize!$E$31=5,VLOOKUP($B11,'ADP-Rank'!$A$2:$AZ$700,28,FALSE),(IF(Personalize!$E$31=6,VLOOKUP($B11,'ADP-Rank'!$A$2:$AZ$700,32,FALSE),""))))))))))) -> 36 | AE11: =IF(Personalize!$E$34=1,VLOOKUP($B11,'ADP-Rank'!$A$2:$J$700,6,FALSE),(IF(Personalize!$E$34=2,VLOOKUP($B11,'ADP-Rank'!$A$2:$J$700,9,FALSE),(IF(Personalize!$E$34=3,VLOOKUP($B11,'ADP-Rank'!$A$2:$O$700,12,FALSE),(IF(Personalize!$E$31=4,VLOOKUP($B11,'ADP-Rank'!$A$2:$AZ$700,26,FALSE),(IF(Personalize!$E$31=5,VLOOKUP($B11,'ADP-Rank'!$A$2:$AZ$700,29,FALSE),(IF(Personalize!$E$31=6,VLOOKUP($B11,'ADP-Rank'!$A$2:$AZ$700,33,FALSE),""))))))))))) -> 67 | AF11: =IF(ISBLANK(A11),0,1) -> 0 | AG11: =IF(K11="",0,1) -> 1 | AH11: =A11 -> 0 | AI11: =IF(C11="C",1,IF(C11="1B",2,IF(C11="2B",3,IF(C11="3B",4,IF(C11="SS",5,IF(C11="CI",6,IF(C11="MI",7,IF(C11="OF",11,IF(C11="LF",8,IF(C11="CF",9,IF(C11="RF",10,IF(C11="DH",12,IF(C11="SP",13,IF(C11="RP",14,IF(C11="P",15,16))))))))))))))) -> 13 | AJ11: =VLOOKUP(B11,'Starter Calc'!$B$2:$BN$700,65,FALSE) -> Bench | AK11: =IFERROR(VLOOKUP($B11,'ADP-Rank'!$A$2:$AH$964,34,FALSE),TRUE) -> TRUE | AL11: 1
B12: Robinson Cano | C12: 2B | D12: =IFERROR(IF(VLOOKUP(B12,'Starter Calc'!$B$2:$E$700,4,FALSE)="","",VLOOKUP(B12,'Starter Calc'!$B$2:$E$700,4,FALSE)),"") -> ,, | E12: =IFERROR(VLOOKUP($B12,'ADP-Rank'!$A$2:$D$700,3,FALSE),"") -> SEA | F12: =IFERROR(VLOOKUP($B12,'ADP-Rank'!$A$2:$W$700,23,FALSE),"") -> 31 | G12: =IFERROR((IF(Personalize!$E$38=1,VLOOKUP($B12,'ADP-Rank'!$A$2:$J$700,4,FALSE),(IF(Personalize!$E$38=2,VLOOKUP($B12,'ADP-Rank'!$A$2:$J$700,7,FALSE),(IF(Personalize!$E$38=3,VLOOKUP($B12,'ADP-Rank'!$A$2:$J$700,10,FALSE),(IF(Personalize!$E$38=4,VLOOKUP($B12,'ADP-Rank'!$A$2:$AD$700,24,FALSE),(IF(Personalize!$E$38=5,VLOOKUP($B12,'ADP-Rank'!$A$2:$AD$700,27,FALSE),(IF(Personalize!$E$38=6,VLOOKUP($B12,'ADP-Rank'!$A$2:$AZ$700,30,FALSE),(IF(Personalize!$E$38=7,VLOOKUP($B12,'ADP-Rank'!$A$2:$AZ$700,39,FALSE))))))))))))))),"") -> 9.09 | H12: =IFERROR(ROUNDDOWN(VLOOKUP($B12,'ADP-Rank'!$A$2:$AY$1064,38,FALSE),0),"") -> 1 | I12: =VLOOKUP($B12,'ADP-Rank'!$A$2:$AJ$1064,36,FALSE) -> 9 | J12: =IFERROR(RANK($M12,$M$6:$M$745,0),"") -> 9 | K12: =IFERROR(IF((OR($C12="RP",$C12="SP")),VLOOKUP($B12,Pitcher!$A$1:$Z$700,20,FALSE),(VLOOKUP($B12,Hitter!$A$1:$Z$700,26,FALSE))),"") -> 427.4866 | L12: =IFERROR(IF((OR($C12="RP",$C12="SP")),VLOOKUP($C12,'Filtered-P'!$M$3:$P$4,4,FALSE), VLOOKUP($C12,Filtered!$Q$3:$T$14,4,FALSE)),"") -> 351.1652574 | M12: =IFERROR(($K12-$L12)/IF(OR($C12="SP",$C12="RP"),VLOOKUP($C12,'Filtered-P'!$M$3:$T$4,8,FALSE),VLOOKUP($C12,Filtered!$Q$3:$X$10,8,FALSE)),"") -> 1.859710517 | N12: =IFERROR(IF((OR($C12="RP",$C12="SP")),"",(VLOOKUP($B12,Hitter!$A$1:$Z$700,26,FALSE)/VLOOKUP($B12,Hitter!$A$1:$Z$700,2,FALSE))),"") -> 0.6500543884 | O12: =IFERROR(IF((OR($C12="RP",$C12="SP")),VLOOKUP($B12,Pitcher!$A$1:$Z$700,20,FALSE)/VLOOKUP($B12,Pitcher!$A$1:$Z$700,4,FALSE),""),"") ->  | P12: =IFERROR(IF((OR($C12="RP",$C12="SP")),VLOOKUP($B12,Pitcher!$A$1:$V$700,2,FALSE),""),"") ->  | Q12: =IFERROR(IF((OR($C12="RP",$C12="SP")),VLOOKUP($B12,Pitcher!$A$1:$V$700,9,FALSE),""),"") ->  | R12: =IFERROR(IF((OR($C12="RP",$C12="SP")),VLOOKUP($B12,Pitcher!$A$1:$V$700,7,FALSE),""),"") ->  | S12: =IFERROR(IF((OR($C12="RP",$C12="SP")),VLOOKUP($B12,Pitcher!$A$1:$AB$700,21,FALSE),""),"") ->  | T12: =IFERROR(IF((OR($C12="RP",$C12="SP")),VLOOKUP($B12,Pitcher!$A$1:$V$700,22,FALSE),""),"") ->  | U12: =IFERROR(IF((OR($C12="RP",$C12="SP")),"",VLOOKUP($B12,Hitter!$A$1:$AH$700,27,FALSE)),"") -> 0.2938109428 | V12: =IFERROR(IF((OR($C12="RP",$C12="SP")),"",VLOOKUP($B12,Hitter!$A$1:$AH$700,9,FALSE)),"") -> 22.83996665 | W12: =IFERROR(IF((OR($C12="RP",$C12="SP")),"",VLOOKUP($B12,Hitter!$A$1:$AH$700,10,FALSE)),"") -> 88.1848054 | X12: =IFERROR(IF((OR($C12="RP",$C12="SP")),"",VLOOKUP($B12,Hitter!$A$1:$AH$700,4,FALSE)),"") -> 87.49802971 | Y12: =IFERROR(IF((OR($C12="RP",$C12="SP")),"",VLOOKUP($B12,Hitter!$A$1:$AH$700,11,FALSE)),"") -> 5.225214147 | Z12: =IFERROR(IF(ISTEXT($A12),"",(1-NORMDIST((COUNTA($A$6:$A$745)),($G12),((AE12-AD12)/6),TRUE))),"") -> 0.9999999993 | AA12: =IFERROR(IF(ISTEXT($A12),"",(1-NORMDIST((COUNTA($A$6:$A$745))+(Personalize!$E$18+1),$G12,((AE12-AD12)/6),TRUE))),"") -> 0.9999029856 | AB12: =IFERROR(IF(ISTEXT($A12),"",(1-NORMDIST((COUNTA($A$6:$A$745))+((Personalize!$E$18+1)*2),$G12,((AE12-AD12)/6),TRUE))),"") -> 0.9182404924 | AD12: =IF(Personalize!$E$34=1,VLOOKUP($B12,'ADP-Rank'!$A$2:$J$700,5,FALSE),(IF(Personalize!$E$34=2,VLOOKUP($B12,'ADP-Rank'!$A$2:$J$700,8,FALSE),(IF(Personalize!$E$34=3,VLOOKUP($B12,'ADP-Rank'!$A$2:$O$700,11,FALSE),(IF(Personalize!$E$31=4,VLOOKUP($B12,'ADP-Rank'!$A$2:$AZ$700,25,FALSE),(IF(Personalize!$E$31=5,VLOOKUP($B12,'ADP-Rank'!$A$2:$AZ$700,28,FALSE),(IF(Personalize!$E$31=6,VLOOKUP($B12,'ADP-Rank'!$A$2:$AZ$700,32,FALSE),""))))))))))) -> 14 | AE12: =IF(Personalize!$E$34=1,VLOOKUP($B12,'ADP-Rank'!$A$2:$J$700,6,FALSE),(IF(Personalize!$E$34=2,VLOOKUP($B12,'ADP-Rank'!$A$2:$J$700,9,FALSE),(IF(Personalize!$E$34=3,VLOOKUP($B12,'ADP-Rank'!$A$2:$O$700,12,FALSE),(IF(Personalize!$E$31=4,VLOOKUP($B12,'ADP-Rank'!$A$2:$AZ$700,26,FALSE),(IF(Personalize!$E$31=5,VLOOKUP($B12,'ADP-Rank'!$A$2:$AZ$700,29,FALSE),(IF(Personalize!$E$31=6,VLOOKUP($B12,'ADP-Rank'!$A$2:$AZ$700,33,FALSE),""))))))))))) -> 23 | AF12: =IF(ISBLANK(A12),0,1) -> 0 | AG12: =IF(K12="",0,1) -> 1 | AH12: =A12 -> 0 | AI12: =IF(C12="C",1,IF(C12="1B",2,IF(C12="2B",3,IF(C12="3B",4,IF(C12="SS",5,IF(C12="CI",6,IF(C12="MI",7,IF(C12="OF",11,IF(C12="LF",8,IF(C12="CF",9,IF(C12="RF",10,IF(C12="DH",12,IF(C12="SP",13,IF(C12="RP",14,IF(C12="P",15,16))))))))))))))) -> 3 | AJ12: =VLOOKUP(B12,'Starter Calc'!$B$2:$BN$700,65,FALSE) -> Starter | AK12: =IFERROR(VLOOKUP($B12,'ADP-Rank'!$A$2:$AH$964,34,FALSE),TRUE) -> TRUE | AL12: 0
B13: Justin Verlander | C13: SP | D13: =IFERROR(IF(VLOOKUP(B13,'Starter Calc'!$B$2:$E$700,4,FALSE)="","",VLOOKUP(B13,'Starter Calc'!$B$2:$E$700,4,FALSE)),"") -> ,, | E13: =IFERROR(VLOOKUP($B13,'ADP-Rank'!$A$2:$D$700,3,FALSE),"") -> DET | F13: =IFERROR(VLOOKUP($B13,'ADP-Rank'!$A$2:$W$700,23,FALSE),"") -> 31 | G13: =IFERROR((IF(Personalize!$E$38=1,VLOOKUP($B13,'ADP-Rank'!$A$2:$J$700,4,FALSE),(IF(Personalize!$E$38=2,VLOOKUP($B13,'ADP-Rank'!$A$2:$J$700,7,FALSE),(IF(Personalize!$E$38=3,VLOOKUP($B13,'ADP-Rank'!$A$2:$J$700,10,FALSE),(IF(Personalize!$E$38=4,VLOOKUP($B13,'ADP-Rank'!$A$2:$AD$700,24,FALSE),(IF(Personalize!$E$38=5,VLOOKUP($B13,'ADP-Rank'!$A$2:$AD$700,27,FALSE),(IF(Personalize!$E$38=6,VLOOKUP($B13,'ADP-Rank'!$A$2:$AZ$700,30,FALSE),(IF(Personalize!$E$38=7,VLOOKUP($B13,'ADP-Rank'!$A$2:$AZ$700,39,FALSE))))))))))))))),"") -> 10.48 | H13: =IFERROR(ROUNDDOWN(VLOOKUP($B13,'ADP-Rank'!$A$2:$AY$1064,38,FALSE),0),"") -> 1 | I13: =VLOOKUP($B13,'ADP-Rank'!$A$2:$AJ$1064,36,FALSE) -> 66 | J13: =IFERROR(RANK($M13,$M$6:$M$745,0),"") -> 30 | K13: =IFERROR(IF((OR($C13="RP",$C13="SP")),VLOOKUP($B13,Pitcher!$A$1:$Z$700,20,FALSE),(VLOOKUP($B13,Hitter!$A$1:$Z$700,26,FALSE))),"") -> 485.6228702 | L13: =IFERROR(IF((OR($C13="RP",$C13="SP")),VLOOKUP($C13,'Filtered-P'!$M$3:$P$4,4,FALSE), VLOOKUP($C13,Filtered!$Q$3:$T$14,4,FALSE)),"") -> 411.2053549 | M13: =IFERROR(($K13-$L13)/IF(OR($C13="SP",$C13="RP"),VLOOKUP($C13,'Filtered-P'!$M$3:$T$4,8,FALSE),VLOOKUP($C13,Filtered!$Q$3:$X$10,8,FALSE)),"") -> 0.9896012692 | N13: =IFERROR(IF((OR($C13="RP",$C13="SP")),"",(VLOOKUP($B13,Hitter!$A$1:$Z$700,26,FALSE)/VLOOKUP($B13,Hitter!$A$1:$Z$700,2,FALSE))),"") ->  | O13: =IFERROR(IF((OR($C13="RP",$C13="SP")),VLOOKUP($B13,Pitcher!$A$1:$Z$700,20,FALSE)/VLOOKUP($B13,Pitcher!$A$1:$Z$700,4,FALSE),""),"") -> 2.148773762 | P13: =IFERROR(IF((OR($C13="RP",$C13="SP")),VLOOKUP($B13,Pitcher!$A$1:$V$700,2,FALSE),""),"") -> 17.84496588 | Q13: =IFERROR(IF((OR($C13="RP",$C13="SP")),VLOOKUP($B13,Pitcher!$A$1:$V$700,9,FALSE),""),"") -> 0 | R13: =IFERROR(IF((OR($C13="RP",$C13="SP")),VLOOKUP($B13,Pitcher!$A$1:$V$700,7,FALSE),""),"") -> 213.5161579 | S13: =IFERROR(IF((OR($C13="RP",$C13="SP")),VLOOKUP($B13,Pitcher!$A$1:$AB$700,21,FALSE),""),"") -> 3.360107854 | T13: =IFERROR(IF((OR($C13="RP",$C13="SP")),VLOOKUP($B13,Pitcher!$A$1:$V$700,22,FALSE),""),"") -> 1.165812131 | U13: =IFERROR(IF((OR($C13="RP",$C13="SP")),"",VLOOKUP($B13,Hitter!$A$1:$AH$700,27,FALSE)),"") ->  | V13: =IFERROR(IF((OR($C13="RP",$C13="SP")),"",VLOOKUP($B13,Hitter!$A$1:$AH$700,9,FALSE)),"") ->  | W13: =IFERROR(IF((OR($C13="RP",$C13="SP")),"",VLOOKUP($B13,Hitter!$A$1:$AH$700,10,FALSE)),"") ->  | X13: =IFERROR(IF((OR($C13="RP",$C13="SP")),"",VLOOKUP($B13,Hitter!$A$1:$AH$700,4,FALSE)),"") ->  | Y13: =IFERROR(IF((OR($C13="RP",$C13="SP")),"",VLOOKUP($B13,Hitter!$A$1:$AH$700,11,FALSE)),"") ->  | Z13: =IFERROR(IF(ISTEXT($A13),"",(1-NORMDIST((COUNTA($A$6:$A$745)),($G13),((AE13-AD13)/6),TRUE))),"") -> 0.8608481765 | AA13: =IFERROR(IF(ISTEXT($A13),"",(1-NORMDIST((COUNTA($A$6:$A$745))+(Personalize!$E$18+1),$G13,((AE13-AD13)/6),TRUE))),"") -> 0.7648739612 | AB13: =IFERROR(IF(ISTEXT($A13),"",(1-NORMDIST((COUNTA($A$6:$A$745))+((Personalize!$E$18+1)*2),$G13,((AE13-AD13)/6),TRUE))),"") -> 0.6405764332 | AD13: =IF(Personalize!$E$34=1,VLOOKUP($B13,'ADP-Rank'!$A$2:$J$700,5,FALSE),(IF(Personalize!$E$34=2,VLOOKUP($B13,'ADP-Rank'!$A$2:$J$700,8,FALSE),(IF(Personalize!$E$34=3,VLOOKUP($B13,'ADP-Rank'!$A$2:$O$700,11,FALSE),(IF(Personalize!$E$31=4,VLOOKUP($B13,'ADP-Rank'!$A$2:$AZ$700,25,FALSE),(IF(Personalize!$E$31=5,VLOOKUP($B13,'ADP-Rank'!$A$2:$AZ$700,28,FALSE),(IF(Personalize!$E$31=6,VLOOKUP($B13,'ADP-Rank'!$A$2:$AZ$700,32,FALSE),""))))))))))) -> 61 | AE13: =IF(Personalize!$E$34=1,VLOOKUP($B13,'ADP-Rank'!$A$2:$J$700,6,FALSE),(IF(Personalize!$E$34=2,VLOOKUP($B13,'ADP-Rank'!$A$2:$J$700,9,FALSE),(IF(Personalize!$E$34=3,VLOOKUP($B13,'ADP-Rank'!$A$2:$O$700,12,FALSE),(IF(Personalize!$E$31=4,VLOOKUP($B13,'ADP-Rank'!$A$2:$AZ$700,26,FALSE),(IF(Personalize!$E$31=5,VLOOKUP($B13,'ADP-Rank'!$A$2:$AZ$700,29,FALSE),(IF(Personalize!$E$31=6,VLOOKUP($B13,'ADP-Rank'!$A$2:$AZ$700,33,FALSE),""))))))))))) -> 119 | AF13: =IF(ISBLANK(A13),0,1) -> 0 | AG13: =IF(K13="",0,1) -> 1 | AH13: =A13 -> 0 | AI13: =IF(C13="C",1,IF(C13="1B",2,IF(C13="2B",3,IF(C13="3B",4,IF(C13="SS",5,IF(C13="CI",6,IF(C13="MI",7,IF(C13="OF",11,IF(C13="LF",8,IF(C13="CF",9,IF(C13="RF",10,IF(C13="DH",12,IF(C13="SP",13,IF(C13="RP",14,IF(C13="P",15,16))))))))))))))) -> 13 | AJ13: =VLOOKUP(B13,'Starter Calc'!$B$2:$BN$700,65,FALSE) -> Bench | AK13: =IFERROR(VLOOKUP($B13,'ADP-Rank'!$A$2:$AH$964,34,FALSE),TRUE) -> TRUE | AL13: 1
B14: Yu Darvish | C14: SP | D14: =IFERROR(IF(VLOOKUP(B14,'Starter Calc'!$B$2:$E$700,4,FALSE)="","",VLOOKUP(B14,'Starter Calc'!$B$2:$E$700,4,FALSE)),"") -> ,, | E14: =IFERROR(VLOOKUP($B14,'ADP-Rank'!$A$2:$D$700,3,FALSE),"") -> TEX | F14: =IFERROR(VLOOKUP($B14,'ADP-Rank'!$A$2:$W$700,23,FALSE),"") -> 27 | G14: =IFERROR((IF(Personalize!$E$38=1,VLOOKUP($B14,'ADP-Rank'!$A$2:$J$700,4,FALSE),(IF(Personalize!$E$38=2,VLOOKUP($B14,'ADP-Rank'!$A$2:$J$700,7,FALSE),(IF(Personalize!$E$38=3,VLOOKUP($B14,'ADP-Rank'!$A$2:$J$700,10,FALSE),(IF(Personalize!$E$38=4,VLOOKUP($B14,'ADP-Rank'!$A$2:$AD$700,24,FALSE),(IF(Personalize!$E$38=5,VLOOKUP($B14,'ADP-Rank'!$A$2:$AD$700,27,FALSE),(IF(Personalize!$E$38=6,VLOOKUP($B14,'ADP-Rank'!$A$2:$AZ$700,30,FALSE),(IF(Personalize!$E$38=7,VLOOKUP($B14,'ADP-Rank'!$A$2:$AZ$700,39,FALSE))))))))))))))),"") -> 11 | H14: =IFERROR(ROUNDDOWN(VLOOKUP($B14,'ADP-Rank'!$A$2:$AY$1064,38,FALSE),0),"") -> 1 | I14: =VLOOKUP($B14,'ADP-Rank'!$A$2:$AJ$1064,36,FALSE) -> 8 | J14: =IFERROR(RANK($M14,$M$6:$M$745,0),"") -> 3 | K14: =IFERROR(IF((OR($C14="RP",$C14="SP")),VLOOKUP($B14,Pitcher!$A$1:$Z$700,20,FALSE),(VLOOKUP($B14,Hitter!$A$1:$Z$700,26,FALSE))),"") -> 614.6550103 | L14: =IFERROR(IF((OR($C14="RP",$C14="SP")),VLOOKUP($C14,'Filtered-P'!$M$3:$P$4,4,FALSE), VLOOKUP($C14,Filtered!$Q$3:$T$14,4,FALSE)),"") -> 411.2053549 | M14: =IFERROR(($K14-$L14)/IF(OR($C14="SP",$C14="RP"),VLOOKUP($C14,'Filtered-P'!$M$3:$T$4,8,FALSE),VLOOKUP($C14,Filtered!$Q$3:$X$10,8,FALSE)),"") -> 2.705465727 | N14: =IFERROR(IF((OR($C14="RP",$C14="SP")),"",(VLOOKUP($B14,Hitter!$A$1:$Z$700,26,FALSE)/VLOOKUP($B14,Hitter!$A$1:$Z$700,2,FALSE))),"") ->  | O14: =IFERROR(IF((OR($C14="RP",$C14="SP")),VLOOKUP($B14,Pitcher!$A$1:$Z$700,20,FALSE)/VLOOKUP($B14,Pitcher!$A$1:$Z$700,4,FALSE),""),"") -> 2.819518396 | P14: =IFERROR(IF((OR($C14="RP",$C14="SP")),VLOOKUP($B14,Pitcher!$A$1:$V$700,2,FALSE),""),"") -> 17.19697864 | Q14: =IFERROR(IF((OR($C14="RP",$C14="SP")),VLOOKUP($B14,Pitcher!$A$1:$V$700,9,FALSE),""),"") -> 0 | R14: =IFERROR(IF((OR($C14="RP",$C14="SP")),VLOOKUP($B14,Pitcher!$A$1:$V$700,7,FALSE),""),"") -> 270.5913079 | S14: =IFERROR(IF((OR($C14="RP",$C14="SP")),VLOOKUP($B14,Pitcher!$A$1:$AB$700,21,FALSE),""),"") -> 3.186734518 | T14: =IFERROR(IF((OR($C14="RP",$C14="SP")),VLOOKUP($B14,Pitcher!$A$1:$V$700,22,FALSE),""),"") -> 1.1545862 | U14: =IFERROR(IF((OR($C14="RP",$C14="SP")),"",VLOOKUP($B14,Hitter!$A$1:$AH$700,27,FALSE)),"") ->  | V14: =IFERROR(IF((OR($C14="RP",$C14="SP")),"",VLOOKUP($B14,Hitter!$A$1:$AH$700,9,FALSE)),"") ->  | W14: =IFERROR(IF((OR($C14="RP",$C14="SP")),"",VLOOKUP($B14,Hitter!$A$1:$AH$700,10,FALSE)),"") ->  | X14: =IFERROR(IF((OR($C14="RP",$C14="SP")),"",VLOOKUP($B14,Hitter!$A$1:$AH$700,4,FALSE)),"") ->  | Y14: =IFERROR(IF((OR($C14="RP",$C14="SP")),"",VLOOKUP($B14,Hitter!$A$1:$AH$700,11,FALSE)),"") ->  | Z14: =IFERROR(IF(ISTEXT($A14),"",(1-NORMDIST((COUNTA($A$6:$A$745)),($G14),((AE14-AD14)/6),TRUE))),"") -> 0.9997433176 | AA14: =IFERROR(IF(ISTEXT($A14),"",(1-NORMDIST((COUNTA($A$6:$A$745))+(Personalize!$E$18+1),$G14,((AE14-AD14)/6),TRUE))),"") -> 0.9910679037 | AB14: =IFERROR(IF(ISTEXT($A14),"",(1-NORMDIST((COUNTA($A$6:$A$745))+((Personalize!$E$18+1)*2),$G14,((AE14-AD14)/6),TRUE))),"") -> 0.8967337794 | AD14: =IF(Personalize!$E$34=1,VLOOKUP($B14,'ADP-Rank'!$A$2:$J$700,5,FALSE),(IF(Personalize!$E$34=2,VLOOKUP($B14,'ADP-Rank'!$A$2:$J$700,8,FALSE),(IF(Personalize!$E$34=3,VLOOKUP($B14,'ADP-Rank'!$A$2:$O$700,11,FALSE),(IF(Personalize!$E$31=4,VLOOKUP($B14,'ADP-Rank'!$A$2:$AZ$700,25,FALSE),(IF(Personalize!$E$31=5,VLOOKUP($B14,'ADP-Rank'!$A$2:$AZ$700,28,FALSE),(IF(Personalize!$E$31=6,VLOOKUP($B14,'ADP-Rank'!$A$2:$AZ$700,32,FALSE),""))))))))))) -> 19 | AE14: =IF(Personalize!$E$34=1,VLOOKUP($B14,'ADP-Rank'!$A$2:$J$700,6,FALSE),(IF(Personalize!$E$34=2,VLOOKUP($B14,'ADP-Rank'!$A$2:$J$700,9,FALSE),(IF(Personalize!$E$34=3,VLOOKUP($B14,'ADP-Rank'!$A$2:$O$700,12,FALSE),(IF(Personalize!$E$31=4,VLOOKUP($B14,'ADP-Rank'!$A$2:$AZ$700,26,FALSE),(IF(Personalize!$E$31=5,VLOOKUP($B14,'ADP-Rank'!$A$2:$AZ$700,29,FALSE),(IF(Personalize!$E$31=6,VLOOKUP($B14,'ADP-Rank'!$A$2:$AZ$700,33,FALSE),""))))))))))) -> 38 | AF14: =IF(ISBLANK(A14),0,1) -> 0 | AG14: =IF(K14="",0,1) -> 1 | AH14: =A14 -> 0 | AI14: =IF(C14="C",1,IF(C14="1B",2,IF(C14="2B",3,IF(C14="3B",4,IF(C14="SS",5,IF(C14="CI",6,IF(C14="MI",7,IF(C14="OF",11,IF(C14="LF",8,IF(C14="CF",9,IF(C14="RF",10,IF(C14="DH",12,IF(C14="SP",13,IF(C14="RP",14,IF(C14="P",15,16))))))))))))))) -> 13 | AJ14: =VLOOKUP(B14,'Starter Calc'!$B$2:$BN$700,65,FALSE) -> Starter | AK14: =IFERROR(VLOOKUP($B14,'ADP-Rank'!$A$2:$AH$964,34,FALSE),TRUE) -> TRUE | AL14: 1
B15: Joey Votto | C15: 1B | D15: =IFERROR(IF(VLOOKUP(B15,'Starter Calc'!$B$2:$E$700,4,FALSE)="","",VLOOKUP(B15,'Starter Calc'!$B$2:$E$700,4,FALSE)),"") -> ,, | E15: =IFERROR(VLOOKUP($B15,'ADP-Rank'!$A$2:$D$700,3,FALSE),"") -> CIN | F15: =IFERROR(VLOOKUP($B15,'ADP-Rank'!$A$2:$W$700,23,FALSE),"") -> 30 | G15: =IFERROR((IF(Personalize!$E$38=1,VLOOKUP($B15,'ADP-Rank'!$A$2:$J$700,4,FALSE),(IF(Personalize!$E$38=2,VLOOKUP($B15,'ADP-Rank'!$A$2:$J$700,7,FALSE),(IF(Personalize!$E$38=3,VLOOKUP($B15,'ADP-Rank'!$A$2:$J$700,10,FALSE),(IF(Personalize!$E$38=4,VLOOKUP($B15,'ADP-Rank'!$A$2:$AD$700,24,FALSE),(IF(Personalize!$E$38=5,VLOOKUP($B15,'ADP-Rank'!$A$2:$AD$700,27,FALSE),(IF(Personalize!$E$38=6,VLOOKUP($B15,'ADP-Rank'!$A$2:$AZ$700,30,FALSE),(IF(Personalize!$E$38=7,VLOOKUP($B15,'ADP-Rank'!$A$2:$AZ$700,39,FALSE))))))))))))))),"") -> 13.28 | H15: =IFERROR(ROUNDDOWN(VLOOKUP($B15,'ADP-Rank'!$A$2:$AY$1064,38,FALSE),0),"") -> 1 | I15: =VLOOKUP($B15,'ADP-Rank'!$A$2:$AJ$1064,36,FALSE) -> 12 | J15: =IFERROR(RANK($M15,$M$6:$M$745,0),"") -> 38 | K15: =IFERROR(IF((OR($C15="RP",$C15="SP")),VLOOKUP($B15,Pitcher!$A$1:$Z$700,20,FALSE),(VLOOKUP($B15,Hitter!$A$1:$Z$700,26,FALSE))),"") -> 411.3853745 | L15: =IFERROR(IF((OR($C15="RP",$C15="SP")),VLOOKUP($C15,'Filtered-P'!$M$3:$P$4,4,FALSE), VLOOKUP($C15,Filtered!$Q$3:$T$14,4,FALSE)),"") -> 372.669335 | M15: =IFERROR(($K15-$L15)/IF(OR($C15="SP",$C15="RP"),VLOOKUP($C15,'Filtered-P'!$M$3:$T$4,8,FALSE),VLOOKUP($C15,Filtered!$Q$3:$X$10,8,FALSE)),"") -> 0.7419988217 | N15: =IFERROR(IF((OR($C15="RP",$C15="SP")),"",(VLOOKUP($B15,Hitter!$A$1:$Z$700,26,FALSE)/VLOOKUP($B15,Hitter!$A$1:$Z$700,2,FALSE))),"") -> 0.6598353954 | O15: =IFERROR(IF((OR($C15="RP",$C15="SP")),VLOOKUP($B15,Pitcher!$A$1:$Z$700,20,FALSE)/VLOOKUP($B15,Pitcher!$A$1:$Z$700,4,FALSE),""),"") ->  | P15: =IFERROR(IF((OR($C15="RP",$C15="SP")),VLOOKUP($B15,Pitcher!$A$1:$V$700,2,FALSE),""),"") ->  | Q15: =IFERROR(IF((OR($C15="RP",$C15="SP")),VLOOKUP($B15,Pitcher!$A$1:$V$700,9,FALSE),""),"") ->  | R15: =IFERROR(IF((OR($C15="RP",$C15="SP")),VLOOKUP($B15,Pitcher!$A$1:$V$700,7,FALSE),""),"") ->  | S15: =IFERROR(IF((OR($C15="RP",$C15="SP")),VLOOKUP($B15,Pitcher!$A$1:$AB$700,21,FALSE),""),"") ->  | T15: =IFERROR(IF((OR($C15="RP",$C15="SP")),VLOOKUP($B15,Pitcher!$A$1:$V$700,22,FALSE),""),"") ->  | U15: =IFERROR(IF((OR($C15="RP",$C15="SP")),"",VLOOKUP($B15,Hitter!$A$1:$AH$700,27,FALSE)),"") -> 0.291202027 | V15: =IFERROR(IF((OR($C15="RP",$C15="SP")),"",VLOOKUP($B15,Hitter!$A$1:$AH$700,9,FALSE)),"") -> 23.06459116 | W15: =IFERROR(IF((OR($C15="RP",$C15="SP")),"",VLOOKUP($B15,Hitter!$A$1:$AH$700,10,FALSE)),"") -> 78.36958002 | X15: =IFERROR(IF((OR($C15="RP",$C15="SP")),"",VLOOKUP($B15,Hitter!$A$1:$AH$700,4,FALSE)),"") -> 88.95988824 | Y15: =IFERROR(IF((OR($C15="RP",$C15="SP")),"",VLOOKUP($B15,Hitter!$A$1:$AH$700,11,FALSE)),"") -> 5.84796656 | Z15: =IFERROR(IF(ISTEXT($A15),"",(1-NORMDIST((COUNTA($A$6:$A$745)),($G15),((AE15-AD15)/6),TRUE))),"") -> 1 | AA15: =IFERROR(IF(ISTEXT($A15),"",(1-NORMDIST((COUNTA($A$6:$A$745))+(Personalize!$E$18+1),$G15,((AE15-AD15)/6),TRUE))),"") -> 0.9999999978 | AB15: =IFERROR(IF(ISTEXT($A15),"",(1-NORMDIST((COUNTA($A$6:$A$745))+((Personalize!$E$18+1)*2),$G15,((AE15-AD15)/6),TRUE))),"") -> 0.9999177196 | AD15: =IF(Personalize!$E$34=1,VLOOKUP($B15,'ADP-Rank'!$A$2:$J$700,5,FALSE),(IF(Personalize!$E$34=2,VLOOKUP($B15,'ADP-Rank'!$A$2:$J$700,8,FALSE),(IF(Personalize!$E$34=3,VLOOKUP($B15,'ADP-Rank'!$A$2:$O$700,11,FALSE),(IF(Personalize!$E$31=4,VLOOKUP($B15,'ADP-Rank'!$A$2:$AZ$700,25,FALSE),(IF(Personalize!$E$31=5,VLOOKUP($B15,'ADP-Rank'!$A$2:$AZ$700,28,FALSE),(IF(Personalize!$E$31=6,VLOOKUP($B15,'ADP-Rank'!$A$2:$AZ$700,32,FALSE),""))))))))))) -> 11 | AE15: =IF(Personalize!$E$34=1,VLOOKUP($B15,'ADP-Rank'!$A$2:$J$700,6,FALSE),(IF(Personalize!$E$34=2,VLOOKUP($B15,'ADP-Rank'!$A$2:$J$700,9,FALSE),(IF(Personalize!$E$34=3,VLOOKUP($B15,'ADP-Rank'!$A$2:$O$700,12,FALSE),(IF(Personalize!$E$31=4,VLOOKUP($B15,'ADP-Rank'!$A$2:$AZ$700,26,FALSE),(IF(Personalize!$E$31=5,VLOOKUP($B15,'ADP-Rank'!$A$2:$AZ$700,29,FALSE),(IF(Personalize!$E$31=6,VLOOKUP($B15,'ADP-Rank'!$A$2:$AZ$700,33,FALSE),""))))))))))) -> 21 | AF15: =IF(ISBLANK(A15),0,1) -> 0 | AG15: =IF(K15="",0,1) -> 1 | AH15: =A15 -> 0 | AI15: =IF(C15="C",1,IF(C15="1B",2,IF(C15="2B",3,IF(C15="3B",4,IF(C15="SS",5,IF(C15="CI",6,IF(C15="MI",7,IF(C15="OF",11,IF(C15="LF",8,IF(C15="CF",9,IF(C15="RF",10,IF(C15="DH",12,IF(C15="SP",13,IF(C15="RP",14,IF(C15="P",15,16))))))))))))))) -> 2 | AJ15: =VLOOKUP(B15,'Starter Calc'!$B$2:$BN$700,65,FALSE) -> Bench | AK15: =IFERROR(VLOOKUP($B15,'ADP-Rank'!$A$2:$AH$964,34,FALSE),TRUE) -> TRUE | AL15: 0
B16: Max Scherzer | C16: SP | D16: =IFERROR(IF(VLOOKUP(B16,'Starter Calc'!$B$2:$E$700,4,FALSE)="","",VLOOKUP(B16,'Starter Calc'!$B$2:$E$700,4,FALSE)),"") -> ,, | E16: =IFERROR(VLOOKUP($B16,'ADP-Rank'!$A$2:$D$700,3,FALSE),"") -> DET | F16: =IFERROR(VLOOKUP($B16,'ADP-Rank'!$A$2:$W$700,23,FALSE),"") -> 29 | G16: =IFERROR((IF(Personalize!$E$38=1,VLOOKUP($B16,'ADP-Rank'!$A$2:$J$700,4,FALSE),(IF(Personalize!$E$38=2,VLOOKUP($B16,'ADP-Rank'!$A$2:$J$700,7,FALSE),(IF(Personalize!$E$38=3,VLOOKUP($B16,'ADP-Rank'!$A$2:$J$700,10,FALSE),(IF(Personalize!$E$38=4,VLOOKUP($B16,'ADP-Rank'!$A$2:$AD$700,24,FALSE),(IF(Personalize!$E$38=5,VLOOKUP($B16,'ADP-Rank'!$A$2:$AD$700,27,FALSE),(IF(Personalize!$E$38=6,VLOOKUP($B16,'ADP-Rank'!$A$2:$AZ$700,30,FALSE),(IF(Personalize!$E$38=7,VLOOKUP($B16,'ADP-Rank'!$A$2:$AZ$700,39,FALSE))))))))))))))),"") -> 13.43 | H16: =IFERROR(ROUNDDOWN(VLOOKUP($B16,'ADP-Rank'!$A$2:$AY$1064,38,FALSE),0),"") -> 1 | I16: =VLOOKUP($B16,'ADP-Rank'!$A$2:$AJ$1064,36,FALSE) -> 24 | J16: =IFERROR(RANK($M16,$M$6:$M$745,0),"") -> 10 | K16: =IFERROR(IF((OR($C16="RP",$C16="SP")),VLOOKUP($B16,Pitcher!$A$1:$Z$700,20,FALSE),(VLOOKUP($B16,Hitter!$A$1:$Z$700,26,FALSE))),"") -> 548.276446 | L16: =IFERROR(IF((OR($C16="RP",$C16="SP")),VLOOKUP($C16,'Filtered-P'!$M$3:$P$4,4,FALSE), VLOOKUP($C16,Filtered!$Q$3:$T$14,4,FALSE)),"") -> 411.2053549 | M16: =IFERROR(($K16-$L16)/IF(OR($C16="SP",$C16="RP"),VLOOKUP($C16,'Filtered-P'!$M$3:$T$4,8,FALSE),VLOOKUP($C16,Filtered!$Q$3:$X$10,8,FALSE)),"") -> 1.82276612 | N16: =IFERROR(IF((OR($C16="RP",$C16="SP")),"",(VLOOKUP($B16,Hitter!$A$1:$Z$700,26,FALSE)/VLOOKUP($B16,Hitter!$A$1:$Z$700,2,FALSE))),"") ->  | O16: =IFERROR(IF((OR($C16="RP",$C16="SP")),VLOOKUP($B16,Pitcher!$A$1:$Z$700,20,FALSE)/VLOOKUP($B16,Pitcher!$A$1:$Z$700,4,FALSE),""),"") -> 2.610840219 | P16: =IFERROR(IF((OR($C16="RP",$C16="SP")),VLOOKUP($B16,Pitcher!$A$1:$V$700,2,FALSE),""),"") -> 15.89700334 | Q16: =IFERROR(IF((OR($C16="RP",$C16="SP")),VLOOKUP($B16,Pitcher!$A$1:$V$700,9,FALSE),""),"") -> 0 | R16: =IFERROR(IF((OR($C16="RP",$C16="SP")),VLOOKUP($B16,Pitcher!$A$1:$V$700,7,FALSE),""),"") -> 237.3239765 | S16: =IFERROR(IF((OR($C16="RP",$C16="SP")),VLOOKUP($B16,Pitcher!$A$1:$AB$700,21,FALSE),""),"") -> 3.263169643 | T16: =IFERROR(IF((OR($C16="RP",$C16="SP")),VLOOKUP($B16,Pitcher!$A$1:$V$700,22,FALSE),""),"") -> 1.138233631 | U16: =IFERROR(IF((OR($C16="RP",$C16="SP")),"",VLOOKUP($B16,Hitter!$A$1:$AH$700,27,FALSE)),"") ->  | V16: =IFERROR(IF((OR($C16="RP",$C16="SP")),"",VLOOKUP($B16,Hitter!$A$1:$AH$700,9,FALSE)),"") ->  | W16: =IFERROR(IF((OR($C16="RP",$C16="SP")),"",VLOOKUP($B16,Hitter!$A$1:$AH$700,10,FALSE)),"") ->  | X16: =IFERROR(IF((OR($C16="RP",$C16="SP")),"",VLOOKUP($B16,Hitter!$A$1:$AH$700,4,FALSE)),"") ->  | Y16: =IFERROR(IF((OR($C16="RP",$C16="SP")),"",VLOOKUP($B16,Hitter!$A$1:$AH$700,11,FALSE)),"") ->  | Z16: =IFERROR(IF(ISTEXT($A16),"",(1-NORMDIST((COUNTA($A$6:$A$745)),($G16),((AE16-AD16)/6),TRUE))),"") -> 0.9996067463 | AA16: =IFERROR(IF(ISTEXT($A16),"",(1-NORMDIST((COUNTA($A$6:$A$745))+(Personalize!$E$18+1),$G16,((AE16-AD16)/6),TRUE))),"") -> 0.9934767966 | AB16: =IFERROR(IF(ISTEXT($A16),"",(1-NORMDIST((COUNTA($A$6:$A$745))+((Personalize!$E$18+1)*2),$G16,((AE16-AD16)/6),TRUE))),"") -> 0.9460276353 | AD16: =IF(Personalize!$E$34=1,VLOOKUP($B16,'ADP-Rank'!$A$2:$J$700,5,FALSE),(IF(Personalize!$E$34=2,VLOOKUP($B16,'ADP-Rank'!$A$2:$J$700,8,FALSE),(IF(Personalize!$E$34=3,VLOOKUP($B16,'ADP-Rank'!$A$2:$O$700,11,FALSE),(IF(Personalize!$E$31=4,VLOOKUP($B16,'ADP-Rank'!$A$2:$AZ$700,25,FALSE),(IF(Personalize!$E$31=5,VLOOKUP($B16,'ADP-Rank'!$A$2:$AZ$700,28,FALSE),(IF(Personalize!$E$31=6,VLOOKUP($B16,'ADP-Rank'!$A$2:$AZ$700,32,FALSE),""))))))))))) -> 41 | AE16: =IF(Personalize!$E$34=1,VLOOKUP($B16,'ADP-Rank'!$A$2:$J$700,6,FALSE),(IF(Personalize!$E$34=2,VLOOKUP($B16,'ADP-Rank'!$A$2:$J$700,9,FALSE),(IF(Personalize!$E$34=3,VLOOKUP($B16,'ADP-Rank'!$A$2:$O$700,12,FALSE),(IF(Personalize!$E$31=4,VLOOKUP($B16,'ADP-Rank'!$A$2:$AZ$700,26,FALSE),(IF(Personalize!$E$31=5,VLOOKUP($B16,'ADP-Rank'!$A$2:$AZ$700,29,FALSE),(IF(Personalize!$E$31=6,VLOOKUP($B16,'ADP-Rank'!$A$2:$AZ$700,33,FALSE),""))))))))))) -> 65 | AF16: =IF(ISBLANK(A16),0,1) -> 0 | AG16: =IF(K16="",0,1) -> 1 | AH16: =A16 -> 0 | AI16: =IF(C16="C",1,IF(C16="1B",2,IF(C16="2B",3,IF(C16="3B",4,IF(C16="SS",5,IF(C16="CI",6,IF(C16="MI",7,IF(C16="OF",11,IF(C16="LF",8,IF(C16="CF",9,IF(C16="RF",10,IF(C16="DH",12,IF(C16="SP",13,IF(C16="RP",14,IF(C16="P",15,16))))))))))))))) -> 13 | AJ16: =VLOOKUP(B16,'Starter Calc'!$B$2:$BN$700,65,FALSE) -> Starter | AK16: =IFERROR(VLOOKUP($B16,'ADP-Rank'!$A$2:$AH$964,34,FALSE),TRUE) -> TRUE | AL16: 1
B17: Felix Hernandez | C17: SP | D17: =IFERROR(IF(VLOOKUP(B17,'Starter Calc'!$B$2:$E$700,4,FALSE)="","",VLOOKUP(B17,'Starter Calc'!$B$2:$E$700,4,FALSE)),"") -> ,, | E17: =IFERROR(VLOOKUP($B17,'ADP-Rank'!$A$2:$D$700,3,FALSE),"") -> SEA | F17: =IFERROR(VLOOKUP($B17,'ADP-Rank'!$A$2:$W$700,23,FALSE),"") -> 28 | G17: =IFERROR((IF(Personalize!$E$38=1,VLOOKUP($B17,'ADP-Rank'!$A$2:$J$700,4,FALSE),(IF(Personalize!$E$38=2,VLOOKUP($B17,'ADP-Rank'!$A$2:$J$700,7,FALSE),(IF(Personalize!$E$38=3,VLOOKUP($B17,'ADP-Rank'!$A$2:$J$700,10,FALSE),(IF(Personalize!$E$38=4,VLOOKUP($B17,'ADP-Rank'!$A$2:$AD$700,24,FALSE),(IF(Personalize!$E$38=5,VLOOKUP($B17,'ADP-Rank'!$A$2:$AD$700,27,FALSE),(IF(Personalize!$E$38=6,VLOOKUP($B17,'ADP-Rank'!$A$2:$AZ$700,30,FALSE),(IF(Personalize!$E$38=7,VLOOKUP($B17,'ADP-Rank'!$A$2:$AZ$700,39,FALSE))))))))))))))),"") -> 14.56 | H17: =IFERROR(ROUNDDOWN(VLOOKUP($B17,'ADP-Rank'!$A$2:$AY$1064,38,FALSE),0),"") -> 1 | I17: =VLOOKUP($B17,'ADP-Rank'!$A$2:$AJ$1064,36,FALSE) -> 17 | J17: =IFERROR(RANK($M17,$M$6:$M$745,0),"") -> 14 | K17: =IFERROR(IF((OR($C17="RP",$C17="SP")),VLOOKUP($B17,Pitcher!$A$1:$Z$700,20,FALSE),(VLOOKUP($B17,Hitter!$A$1:$Z$700,26,FALSE))),"") -> 529.217999 | L17: =IFERROR(IF((OR($C17="RP",$C17="SP")),VLOOKUP($C17,'Filtered-P'!$M$3:$P$4,4,FALSE), VLOOKUP($C17,Filtered!$Q$3:$T$14,4,FALSE)),"") -> 411.2053549 | M17: =IFERROR(($K17-$L17)/IF(OR($C17="SP",$C17="RP"),VLOOKUP($C17,'Filtered-P'!$M$3:$T$4,8,FALSE),VLOOKUP($C17,Filtered!$Q$3:$X$10,8,FALSE)),"") -> 1.569327622 | N17: =IFERROR(IF((OR($C17="RP",$C17="SP")),"",(VLOOKUP($B17,Hitter!$A$1:$Z$700,26,FALSE)/VLOOKUP($B17,Hitter!$A$1:$Z$700,2,FALSE))),"") ->  | O17: =IFERROR(IF((OR($C17="RP",$C17="SP")),VLOOKUP($B17,Pitcher!$A$1:$Z$700,20,FALSE)/VLOOKUP($B17,Pitcher!$A$1:$Z$700,4,FALSE),""),"") -> 2.321131575 | P17: =IFERROR(IF((OR($C17="RP",$C17="SP")),VLOOKUP($B17,Pitcher!$A$1:$V$700,2,FALSE),""),"") -> 16.21272023 | Q17: =IFERROR(IF((OR($C17="RP",$C17="SP")),VLOOKUP($B17,Pitcher!$A$1:$V$700,9,FALSE),""),"") -> 0 | R17: =IFERROR(IF((OR($C17="RP",$C17="SP")),VLOOKUP($B17,Pitcher!$A$1:$V$700,7,FALSE),""),"") -> 225.5462253 | S17: =IFERROR(IF((OR($C17="RP",$C17="SP")),VLOOKUP($B17,Pitcher!$A$1:$AB$700,21,FALSE),""),"") -> 3.160435855 | T17: =IFERROR(IF((OR($C17="RP",$C17="SP")),VLOOKUP($B17,Pitcher!$A$1:$V$700,22,FALSE),""),"") -> 1.130208333 | U17: =IFERROR(IF((OR($C17="RP",$C17="SP")),"",VLOOKUP($B17,Hitter!$A$1:$AH$700,27,FALSE)),"") ->  | V17: =IFERROR(IF((OR($C17="RP",$C17="SP")),"",VLOOKUP($B17,Hitter!$A$1:$AH$700,9,FALSE)),"") ->  | W17: =IFERROR(IF((OR($C17="RP",$C17="SP")),"",VLOOKUP($B17,Hitter!$A$1:$AH$700,10,FALSE)),"") ->  | X17: =IFERROR(IF((OR($C17="RP",$C17="SP")),"",VLOOKUP($B17,Hitter!$A$1:$AH$700,4,FALSE)),"") ->  | Y17: =IFERROR(IF((OR($C17="RP",$C17="SP")),"",VLOOKUP($B17,Hitter!$A$1:$AH$700,11,FALSE)),"") ->  | Z17: =IFERROR(IF(ISTEXT($A17),"",(1-NORMDIST((COUNTA($A$6:$A$745)),($G17),((AE17-AD17)/6),TRUE))),"") -> 0.9999999971 | AA17: =IFERROR(IF(ISTEXT($A17),"",(1-NORMDIST((COUNTA($A$6:$A$745))+(Personalize!$E$18+1),$G17,((AE17-AD17)/6),TRUE))),"") -> 0.9999951555 | AB17: =IFERROR(IF(ISTEXT($A17),"",(1-NORMDIST((COUNTA($A$6:$A$745))+((Personalize!$E$18+1)*2),$G17,((AE17-AD17)/6),TRUE))),"") -> 0.9987527178 | AD17: =IF(Personalize!$E$34=1,VLOOKUP($B17,'ADP-Rank'!$A$2:$J$700,5,FALSE),(IF(Personalize!$E$34=2,VLOOKUP($B17,'ADP-Rank'!$A$2:$J$700,8,FALSE),(IF(Personalize!$E$34=3,VLOOKUP($B17,'ADP-Rank'!$A$2:$O$700,11,FALSE),(IF(Personalize!$E$31=4,VLOOKUP($B17,'ADP-Rank'!$A$2:$AZ$700,25,FALSE),(IF(Personalize!$E$31=5,VLOOKUP($B17,'ADP-Rank'!$A$2:$AZ$700,28,FALSE),(IF(Personalize!$E$31=6,VLOOKUP($B17,'ADP-Rank'!$A$2:$AZ$700,32,FALSE),""))))))))))) -> 46 | AE17: =IF(Personalize!$E$34=1,VLOOKUP($B17,'ADP-Rank'!$A$2:$J$700,6,FALSE),(IF(Personalize!$E$34=2,VLOOKUP($B17,'ADP-Rank'!$A$2:$J$700,9,FALSE),(IF(Personalize!$E$34=3,VLOOKUP($B17,'ADP-Rank'!$A$2:$O$700,12,FALSE),(IF(Personalize!$E$31=4,VLOOKUP($B17,'ADP-Rank'!$A$2:$AZ$700,26,FALSE),(IF(Personalize!$E$31=5,VLOOKUP($B17,'ADP-Rank'!$A$2:$AZ$700,29,FALSE),(IF(Personalize!$E$31=6,VLOOKUP($B17,'ADP-Rank'!$A$2:$AZ$700,33,FALSE),""))))))))))) -> 61 | AF17: =IF(ISBLANK(A17),0,1) -> 0 | AG17: =IF(K17="",0,1) -> 1 | AH17: =A17 -> 0 | AI17: =IF(C17="C",1,IF(C17="1B",2,IF(C17="2B",3,IF(C17="3B",4,IF(C17="SS",5,IF(C17="CI",6,IF(C17="MI",7,IF(C17="OF",11,IF(C17="LF",8,IF(C17="CF",9,IF(C17="RF",10,IF(C17="DH",12,IF(C17="SP",13,IF(C17="RP",14,IF(C17="P",15,16))))))))))))))) -> 13 | AJ17: =VLOOKUP(B17,'Starter Calc'!$B$2:$BN$700,65,FALSE) -> Bench | AK17: =IFERROR(VLOOKUP($B17,'ADP-Rank'!$A$2:$AH$964,34,FALSE),TRUE) -> TRUE | AL17: 1
B18: Prince Fielder | C18: 1B | D18: =IFERROR(IF(VLOOKUP(B18,'Starter Calc'!$B$2:$E$700,4,FALSE)="","",VLOOKUP(B18,'Starter Calc'!$B$2:$E$700,4,FALSE)),"") -> ,, | E18: =IFERROR(VLOOKUP($B18,'ADP-Rank'!$A$2:$D$700,3,FALSE),"") -> TEX | F18: =IFERROR(VLOOKUP($B18,'ADP-Rank'!$A$2:$W$700,23,FALSE),"") -> 30 | G18: =IFERROR((IF(Personalize!$E$38=1,VLOOKUP($B18,'ADP-Rank'!$A$2:$J$700,4,FALSE),(IF(Personalize!$E$38=2,VLOOKUP($B18,'ADP-Rank'!$A$2:$J$700,7,FALSE),(IF(Personalize!$E$38=3,VLOOKUP($B18,'ADP-Rank'!$A$2:$J$700,10,FALSE),(IF(Personalize!$E$38=4,VLOOKUP($B18,'ADP-Rank'!$A$2:$AD$700,24,FALSE),(IF(Personalize!$E$38=5,VLOOKUP($B18,'ADP-Rank'!$A$2:$AD$700,27,FALSE),(IF(Personalize!$E$38=6,VLOOKUP($B18,'ADP-Rank'!$A$2:$AZ$700,30,FALSE),(IF(Personalize!$E$38=7,VLOOKUP($B18,'ADP-Rank'!$A$2:$AZ$700,39,FALSE))))))))))))))),"") -> 15.65 | H18: =IFERROR(ROUNDDOWN(VLOOKUP($B18,'ADP-Rank'!$A$2:$AY$1064,38,FALSE),0),"") -> 2 | I18: =VLOOKUP($B18,'ADP-Rank'!$A$2:$AJ$1064,36,FALSE) -> 6 | J18: =IFERROR(RANK($M18,$M$6:$M$745,0),"") -> 12 | K18: =IFERROR(IF((OR($C18="RP",$C18="SP")),VLOOKUP($B18,Pitcher!$A$1:$Z$700,20,FALSE),(VLOOKUP($B18,Hitter!$A$1:$Z$700,26,FALSE))),"") -> 461.3240591 | L18: =IFERROR(IF((OR($C18="RP",$C18="SP")),VLOOKUP($C18,'Filtered-P'!$M$3:$P$4,4,FALSE), VLOOKUP($C18,Filtered!$Q$3:$T$14,4,FALSE)),"") -> 372.669335 | M18: =IFERROR(($K18-$L18)/IF(OR($C18="SP",$C18="RP"),VLOOKUP($C18,'Filtered-P'!$M$3:$T$4,8,FALSE),VLOOKUP($C18,Filtered!$Q$3:$X$10,8,FALSE)),"") -> 1.699081354 | N18: =IFERROR(IF((OR($C18="RP",$C18="SP")),"",(VLOOKUP($B18,Hitter!$A$1:$Z$700,26,FALSE)/VLOOKUP($B18,Hitter!$A$1:$Z$700,2,FALSE))),"") -> 0.705424424 | O18: =IFERROR(IF((OR($C18="RP",$C18="SP")),VLOOKUP($B18,Pitcher!$A$1:$Z$700,20,FALSE)/VLOOKUP($B18,Pitcher!$A$1:$Z$700,4,FALSE),""),"") ->  | P18: =IFERROR(IF((OR($C18="RP",$C18="SP")),VLOOKUP($B18,Pitcher!$A$1:$V$700,2,FALSE),""),"") ->  | Q18: =IFERROR(IF((OR($C18="RP",$C18="SP")),VLOOKUP($B18,Pitcher!$A$1:$V$700,9,FALSE),""),"") ->  | R18: =IFERROR(IF((OR($C18="RP",$C18="SP")),VLOOKUP($B18,Pitcher!$A$1:$V$700,7,FALSE),""),"") ->  | S18: =IFERROR(IF((OR($C18="RP",$C18="SP")),VLOOKUP($B18,Pitcher!$A$1:$AB$700,21,FALSE),""),"") ->  | T18: =IFERROR(IF((OR($C18="RP",$C18="SP")),VLOOKUP($B18,Pitcher!$A$1:$V$700,22,FALSE),""),"") ->  | U18: =IFERROR(IF((OR($C18="RP",$C18="SP")),"",VLOOKUP($B18,Hitter!$A$1:$AH$700,27,FALSE)),"") -> 0.2903198466 | V18: =IFERROR(IF((OR($C18="RP",$C18="SP")),"",VLOOKUP($B18,Hitter!$A$1:$AH$700,9,FALSE)),"") -> 31.78626821 | W18: =IFERROR(IF((OR($C18="RP",$C18="SP")),"",VLOOKUP($B18,Hitter!$A$1:$AH$700,10,FALSE)),"") -> 100.3932554 | X18: =IFERROR(IF((OR($C18="RP",$C18="SP")),"",VLOOKUP($B18,Hitter!$A$1:$AH$700,4,FALSE)),"") -> 91.32123253 | Y18: =IFERROR(IF((OR($C18="RP",$C18="SP")),"",VLOOKUP($B18,Hitter!$A$1:$AH$700,11,FALSE)),"") -> 1.016280279 | Z18: =IFERROR(IF(ISTEXT($A18),"",(1-NORMDIST((COUNTA($A$6:$A$745)),($G18),((AE18-AD18)/6),TRUE))),"") -> 1 | AA18: =IFERROR(IF(ISTEXT($A18),"",(1-NORMDIST((COUNTA($A$6:$A$745))+(Personalize!$E$18+1),$G18,((AE18-AD18)/6),TRUE))),"") -> 1 | AB18: =IFERROR(IF(ISTEXT($A18),"",(1-NORMDIST((COUNTA($A$6:$A$745))+((Personalize!$E$18+1)*2),$G18,((AE18-AD18)/6),TRUE))),"") -> 1 | AD18: =IF(Personalize!$E$34=1,VLOOKUP($B18,'ADP-Rank'!$A$2:$J$700,5,FALSE),(IF(Personalize!$E$34=2,VLOOKUP($B18,'ADP-Rank'!$A$2:$J$700,8,FALSE),(IF(Personalize!$E$34=3,VLOOKUP($B18,'ADP-Rank'!$A$2:$O$700,11,FALSE),(IF(Personalize!$E$31=4,VLOOKUP($B18,'ADP-Rank'!$A$2:$AZ$700,25,FALSE),(IF(Personalize!$E$31=5,VLOOKUP($B18,'ADP-Rank'!$A$2:$AZ$700,28,FALSE),(IF(Personalize!$E$31=6,VLOOKUP($B18,'ADP-Rank'!$A$2:$AZ$700,32,FALSE),""))))))))))) -> 10 | AE18: =IF(Personalize!$E$34=1,VLOOKUP($B18,'ADP-Rank'!$A$2:$J$700,6,FALSE),(IF(Personalize!$E$34=2,VLOOKUP($B18,'ADP-Rank'!$A$2:$J$700,9,FALSE),(IF(Personalize!$E$34=3,VLOOKUP($B18,'ADP-Rank'!$A$2:$O$700,12,FALSE),(IF(Personalize!$E$31=4,VLOOKUP($B18,'ADP-Rank'!$A$2:$AZ$700,26,FALSE),(IF(Personalize!$E$31=5,VLOOKUP($B18,'ADP-Rank'!$A$2:$AZ$700,29,FALSE),(IF(Personalize!$E$31=6,VLOOKUP($B18,'ADP-Rank'!$A$2:$AZ$700,33,FALSE),""))))))))))) -> 18 | AF18: =IF(ISBLANK(A18),0,1) -> 0 | AG18: =IF(K18="",0,1) -> 1 | AH18: =A18 -> 0 | AI18: =IF(C18="C",1,IF(C18="1B",2,IF(C18="2B",3,IF(C18="3B",4,IF(C18="SS",5,IF(C18="CI",6,IF(C18="MI",7,IF(C18="OF",11,IF(C18="LF",8,IF(C18="CF",9,IF(C18="RF",10,IF(C18="DH",12,IF(C18="SP",13,IF(C18="RP",14,IF(C18="P",15,16))))))))))))))) -> 2 | AJ18: =VLOOKUP(B18,'Starter Calc'!$B$2:$BN$700,65,FALSE) -> Starter | AK18: =IFERROR(VLOOKUP($B18,'ADP-Rank'!$A$2:$AH$964,34,FALSE),TRUE) -> TRUE | AL18: 0
B19: Troy Tulowitzki | C19: SS | D19: =IFERROR(IF(VLOOKUP(B19,'Starter Calc'!$B$2:$E$700,4,FALSE)="","",VLOOKUP(B19,'Starter Calc'!$B$2:$E$700,4,FALSE)),"") -> ,, | E19: =IFERROR(VLOOKUP($B19,'ADP-Rank'!$A$2:$D$700,3,FALSE),"") -> COL | F19: =IFERROR(VLOOKUP($B19,'ADP-Rank'!$A$2:$W$700,23,FALSE),"") -> 29 | G19: =IFERROR((IF(Personalize!$E$38=1,VLOOKUP($B19,'ADP-Rank'!$A$2:$J$700,4,FALSE),(IF(Personalize!$E$38=2,VLOOKUP($B19,'ADP-Rank'!$A$2:$J$700,7,FALSE),(IF(Personalize!$E$38=3,VLOOKUP($B19,'ADP-Rank'!$A$2:$J$700,10,FALSE),(IF(Personalize!$E$38=4,VLOOKUP($B19,'ADP-Rank'!$A$2:$AD$700,24,FALSE),(IF(Personalize!$E$38=5,VLOOKUP($B19,'ADP-Rank'!$A$2:$AD$700,27,FALSE),(IF(Personalize!$E$38=6,VLOOKUP($B19,'ADP-Rank'!$A$2:$AZ$700,30,FALSE),(IF(Personalize!$E$38=7,VLOOKUP($B19,'ADP-Rank'!$A$2:$AZ$700,39,FALSE))))))))))))))),"") -> 18.82 | H19: =IFERROR(ROUNDDOWN(VLOOKUP($B19,'ADP-Rank'!$A$2:$AY$1064,38,FALSE),0),"") -> 2 | I19: =VLOOKUP($B19,'ADP-Rank'!$A$2:$AJ$1064,36,FALSE) -> 13 | J19: =IFERROR(RANK($M19,$M$6:$M$745,0),"") -> 5 | K19: =IFERROR(IF((OR($C19="RP",$C19="SP")),VLOOKUP($B19,Pitcher!$A$1:$Z$700,20,FALSE),(VLOOKUP($B19,Hitter!$A$1:$Z$700,26,FALSE))),"") -> 402.7758962 | L19: =IFERROR(IF((OR($C19="RP",$C19="SP")),VLOOKUP($C19,'Filtered-P'!$M$3:$P$4,4,FALSE), VLOOKUP($C19,Filtered!$Q$3:$T$14,4,FALSE)),"") -> 333.8973548 | M19: =IFERROR(($K19-$L19)/IF(OR($C19="SP",$C19="RP"),VLOOKUP($C19,'Filtered-P'!$M$3:$T$4,8,FALSE),VLOOKUP($C19,Filtered!$Q$3:$X$10,8,FALSE)),"") -> 2.439153725 | N19: =IFERROR(IF((OR($C19="RP",$C19="SP")),"",(VLOOKUP($B19,Hitter!$A$1:$Z$700,26,FALSE)/VLOOKUP($B19,Hitter!$A$1:$Z$700,2,FALSE))),"") -> 0.7176088302 | O19: =IFERROR(IF((OR($C19="RP",$C19="SP")),VLOOKUP($B19,Pitcher!$A$1:$Z$700,20,FALSE)/VLOOKUP($B19,Pitcher!$A$1:$Z$700,4,FALSE),""),"") ->  | P19: =IFERROR(IF((OR($C19="RP",$C19="SP")),VLOOKUP($B19,Pitcher!$A$1:$V$700,2,FALSE),""),"") ->  | Q19: =IFERROR(IF((OR($C19="RP",$C19="SP")),VLOOKUP($B19,Pitcher!$A$1:$V$700,9,FALSE),""),"") ->  | R19: =IFERROR(IF((OR($C19="RP",$C19="SP")),VLOOKUP($B19,Pitcher!$A$1:$V$700,7,FALSE),""),"") ->  | S19: =IFERROR(IF((OR($C19="RP",$C19="SP")),VLOOKUP($B19,Pitcher!$A$1:$AB$700,21,FALSE),""),"") ->  | T19: =IFERROR(IF((OR($C19="RP",$C19="SP")),VLOOKUP($B19,Pitcher!$A$1:$V$700,22,FALSE),""),"") ->  | U19: =IFERROR(IF((OR($C19="RP",$C19="SP")),"",VLOOKUP($B19,Hitter!$A$1:$AH$700,27,FALSE)),"") -> 0.3017508065 | V19: =IFERROR(IF((OR($C19="RP",$C19="SP")),"",VLOOKUP($B19,Hitter!$A$1:$AH$700,9,FALSE)),"") -> 25.89139022 | W19: =IFERROR(IF((OR($C19="RP",$C19="SP")),"",VLOOKUP($B19,Hitter!$A$1:$AH$700,10,FALSE)),"") -> 86.15902589 | X19: =IFERROR(IF((OR($C19="RP",$C19="SP")),"",VLOOKUP($B19,Hitter!$A$1:$AH$700,4,FALSE)),"") -> 80.34136769 | Y19: =IFERROR(IF((OR($C19="RP",$C19="SP")),"",VLOOKUP($B19,Hitter!$A$1:$AH$700,11,FALSE)),"") -> 4.61678233 | Z19: =IFERROR(IF(ISTEXT($A19),"",(1-NORMDIST((COUNTA($A$6:$A$745)),($G19),((AE19-AD19)/6),TRUE))),"") -> 0.9999999622 | AA19: =IFERROR(IF(ISTEXT($A19),"",(1-NORMDIST((COUNTA($A$6:$A$745))+(Personalize!$E$18+1),$G19,((AE19-AD19)/6),TRUE))),"") -> 0.9999939877 | AB19: =IFERROR(IF(ISTEXT($A19),"",(1-NORMDIST((COUNTA($A$6:$A$745))+((Personalize!$E$18+1)*2),$G19,((AE19-AD19)/6),TRUE))),"") -> 0.999633785 | AD19: =IF(Personalize!$E$34=1,VLOOKUP($B19,'ADP-Rank'!$A$2:$J$700,5,FALSE),(IF(Personalize!$E$34=2,VLOOKUP($B19,'ADP-Rank'!$A$2:$J$700,8,FALSE),(IF(Personalize!$E$34=3,VLOOKUP($B19,'ADP-Rank'!$A$2:$O$700,11,FALSE),(IF(Personalize!$E$31=4,VLOOKUP($B19,'ADP-Rank'!$A$2:$AZ$700,25,FALSE),(IF(Personalize!$E$31=5,VLOOKUP($B19,'ADP-Rank'!$A$2:$AZ$700,28,FALSE),(IF(Personalize!$E$31=6,VLOOKUP($B19,'ADP-Rank'!$A$2:$AZ$700,32,FALSE),""))))))))))) -> 19 | AE19: =IF(Personalize!$E$34=1,VLOOKUP($B19,'ADP-Rank'!$A$2:$J$700,6,FALSE),(IF(Personalize!$E$34=2,VLOOKUP($B19,'ADP-Rank'!$A$2:$J$700,9,FALSE),(IF(Personalize!$E$34=3,VLOOKUP($B19,'ADP-Rank'!$A$2:$O$700,12,FALSE),(IF(Personalize!$E$31=4,VLOOKUP($B19,'ADP-Rank'!$A$2:$AZ$700,26,FALSE),(IF(Personalize!$E$31=5,VLOOKUP($B19,'ADP-Rank'!$A$2:$AZ$700,29,FALSE),(IF(Personalize!$E$31=6,VLOOKUP($B19,'ADP-Rank'!$A$2:$AZ$700,33,FALSE),""))))))))))) -> 40 | AF19: =IF(ISBLANK(A19),0,1) -> 0 | AG19: =IF(K19="",0,1) -> 1 | AH19: =A19 -> 0 | AI19: =IF(C19="C",1,IF(C19="1B",2,IF(C19="2B",3,IF(C19="3B",4,IF(C19="SS",5,IF(C19="CI",6,IF(C19="MI",7,IF(C19="OF",11,IF(C19="LF",8,IF(C19="CF",9,IF(C19="RF",10,IF(C19="DH",12,IF(C19="SP",13,IF(C19="RP",14,IF(C19="P",15,16))))))))))))))) -> 5 | AJ19: =VLOOKUP(B19,'Starter Calc'!$B$2:$BN$700,65,FALSE) -> Starter | AK19: =IFERROR(VLOOKUP($B19,'ADP-Rank'!$A$2:$AH$964,34,FALSE),TRUE) -> TRUE | AL19: 0
B20: Stephen Strasburg | C20: SP | D20: =IFERROR(IF(VLOOKUP(B20,'Starter Calc'!$B$2:$E$700,4,FALSE)="","",VLOOKUP(B20,'Starter Calc'!$B$2:$E$700,4,FALSE)),"") -> ,, | E20: =IFERROR(VLOOKUP($B20,'ADP-Rank'!$A$2:$D$700,3,FALSE),"") -> WAS | F20: =IFERROR(VLOOKUP($B20,'ADP-Rank'!$A$2:$W$700,23,FALSE),"") -> 25 | G20: =IFERROR((IF(Personalize!$E$38=1,VLOOKUP($B20,'ADP-Rank'!$A$2:$J$700,4,FALSE),(IF(Personalize!$E$38=2,VLOOKUP($B20,'ADP-Rank'!$A$2:$J$700,7,FALSE),(IF(Personalize!$E$38=3,VLOOKUP($B20,'ADP-Rank'!$A$2:$J$700,10,FALSE),(IF(Personalize!$E$38=4,VLOOKUP($B20,'ADP-Rank'!$A$2:$AD$700,24,FALSE),(IF(Personalize!$E$38=5,VLOOKUP($B20,'ADP-Rank'!$A$2:$AD$700,27,FALSE),(IF(Personalize!$E$38=6,VLOOKUP($B20,'ADP-Rank'!$A$2:$AZ$700,30,FALSE),(IF(Personalize!$E$38=7,VLOOKUP($B20,'ADP-Rank'!$A$2:$AZ$700,39,FALSE))))))))))))))),"") -> 19.87 | H20: =IFERROR(ROUNDDOWN(VLOOKUP($B20,'ADP-Rank'!$A$2:$AY$1064,38,FALSE),0),"") -> 2 | I20: =VLOOKUP($B20,'ADP-Rank'!$A$2:$AJ$1064,36,FALSE) -> 43 | J20: =IFERROR(RANK($M20,$M$6:$M$745,0),"") -> 11 | K20: =IFERROR(IF((OR($C20="RP",$C20="SP")),VLOOKUP($B20,Pitcher!$A$1:$Z$700,20,FALSE),(VLOOKUP($B20,Hitter!$A$1:$Z$700,26,FALSE))),"") -> 541.6828208 | L20: =IFERROR(IF((OR($C20="RP",$C20="SP")),VLOOKUP($C20,'Filtered-P'!$M$3:$P$4,4,FALSE), VLOOKUP($C20,Filtered!$Q$3:$T$14,4,FALSE)),"") -> 411.2053549 | M20: =IFERROR(($K20-$L20)/IF(OR($C20="SP",$C20="RP"),VLOOKUP($C20,'Filtered-P'!$M$3:$T$4,8,FALSE),VLOOKUP($C20,Filtered!$Q$3:$X$10,8,FALSE)),"") -> 1.735084345 | N20: =IFERROR(IF((OR($C20="RP",$C20="SP")),"",(VLOOKUP($B20,Hitter!$A$1:$Z$700,26,FALSE)/VLOOKUP($B20,Hitter!$A$1:$Z$700,2,FALSE))),"") ->  | O20: =IFERROR(IF((OR($C20="RP",$C20="SP")),VLOOKUP($B20,Pitcher!$A$1:$Z$700,20,FALSE)/VLOOKUP($B20,Pitcher!$A$1:$Z$700,4,FALSE),""),"") -> 2.66838828 | P20: =IFERROR(IF((OR($C20="RP",$C20="SP")),VLOOKUP($B20,Pitcher!$A$1:$V$700,2,FALSE),""),"") -> 16.31462621 | Q20: =IFERROR(IF((OR($C20="RP",$C20="SP")),VLOOKUP($B20,Pitcher!$A$1:$V$700,9,FALSE),""),"") -> 0 | R20: =IFERROR(IF((OR($C20="RP",$C20="SP")),VLOOKUP($B20,Pitcher!$A$1:$V$700,7,FALSE),""),"") -> 227.717683 | S20: =IFERROR(IF((OR($C20="RP",$C20="SP")),VLOOKUP($B20,Pitcher!$A$1:$AB$700,21,FALSE),""),"") -> 3.127202124 | T20: =IFERROR(IF((OR($C20="RP",$C20="SP")),VLOOKUP($B20,Pitcher!$A$1:$V$700,22,FALSE),""),"") -> 1.123913434 | U20: =IFERROR(IF((OR($C20="RP",$C20="SP")),"",VLOOKUP($B20,Hitter!$A$1:$AH$700,27,FALSE)),"") ->  | V20: =IFERROR(IF((OR($C20="RP",$C20="SP")),"",VLOOKUP($B20,Hitter!$A$1:$AH$700,9,FALSE)),"") ->  | W20: =IFERROR(IF((OR($C20="RP",$C20="SP")),"",VLOOKUP($B20,Hitter!$A$1:$AH$700,10,FALSE)),"") ->  | X20: =IFERROR(IF((OR($C20="RP",$C20="SP")),"",VLOOKUP($B20,Hitter!$A$1:$AH$700,4,FALSE)),"") ->  | Y20: =IFERROR(IF((OR($C20="RP",$C20="SP")),"",VLOOKUP($B20,Hitter!$A$1:$AH$700,11,FALSE)),"") ->  | Z20: =IFERROR(IF(ISTEXT($A20),"",(1-NORMDIST((COUNTA($A$6:$A$745)),($G20),((AE20-AD20)/6),TRUE))),"") -> 0.99999997 | AA20: =IFERROR(IF(ISTEXT($A20),"",(1-NORMDIST((COUNTA($A$6:$A$745))+(Personalize!$E$18+1),$G20,((AE20-AD20)/6),TRUE))),"") -> 0.9999959881 | AB20: =IFERROR(IF(ISTEXT($A20),"",(1-NORMDIST((COUNTA($A$6:$A$745))+((Personalize!$E$18+1)*2),$G20,((AE20-AD20)/6),TRUE))),"") -> 0.9997759467 | AD20: =IF(Personalize!$E$34=1,VLOOKUP($B20,'ADP-Rank'!$A$2:$J$700,5,FALSE),(IF(Personalize!$E$34=2,VLOOKUP($B20,'ADP-Rank'!$A$2:$J$700,8,FALSE),(IF(Personalize!$E$34=3,VLOOKUP($B20,'ADP-Rank'!$A$2:$O$700,11,FALSE),(IF(Personalize!$E$31=4,VLOOKUP($B20,'ADP-Rank'!$A$2:$AZ$700,25,FALSE),(IF(Personalize!$E$31=5,VLOOKUP($B20,'ADP-Rank'!$A$2:$AZ$700,28,FALSE),(IF(Personalize!$E$31=6,VLOOKUP($B20,'ADP-Rank'!$A$2:$AZ$700,32,FALSE),""))))))))))) -> 30 | AE20: =IF(Personalize!$E$34=1,VLOOKUP($B20,'ADP-Rank'!$A$2:$J$700,6,FALSE),(IF(Personalize!$E$34=2,VLOOKUP($B20,'ADP-Rank'!$A$2:$J$700,9,FALSE),(IF(Personalize!$E$34=3,VLOOKUP($B20,'ADP-Rank'!$A$2:$O$700,12,FALSE),(IF(Personalize!$E$31=4,VLOOKUP($B20,'ADP-Rank'!$A$2:$AZ$700,26,FALSE),(IF(Personalize!$E$31=5,VLOOKUP($B20,'ADP-Rank'!$A$2:$AZ$700,29,FALSE),(IF(Personalize!$E$31=6,VLOOKUP($B20,'ADP-Rank'!$A$2:$AZ$700,33,FALSE),""))))))))))) -> 52 | AF20: =IF(ISBLANK(A20),0,1) -> 0 | AG20: =IF(K20="",0,1) -> 1 | AH20: =A20 -> 0 | AI20: =IF(C20="C",1,IF(C20="1B",2,IF(C20="2B",3,IF(C20="3B",4,IF(C20="SS",5,IF(C20="CI",6,IF(C20="MI",7,IF(C20="OF",11,IF(C20="LF",8,IF(C20="CF",9,IF(C20="RF",10,IF(C20="DH",12,IF(C20="SP",13,IF(C20="RP",14,IF(C20="P",15,16))))))))))))))) -> 13 | AJ20: =VLOOKUP(B20,'Starter Calc'!$B$2:$BN$700,65,FALSE) -> Starter | AK20: =IFERROR(VLOOKUP($B20,'ADP-Rank'!$A$2:$AH$964,34,FALSE),TRUE) -> TRUE | AL20: 1
B21: Cliff Lee | C21: SP | D21: =IFERROR(IF(VLOOKUP(B21,'Starter Calc'!$B$2:$E$700,4,FALSE)="","",VLOOKUP(B21,'Starter Calc'!$B$2:$E$700,4,FALSE)),"") -> ,, | E21: =IFERROR(VLOOKUP($B21,'ADP-Rank'!$A$2:$D$700,3,FALSE),"") -> PHI | F21: =IFERROR(VLOOKUP($B21,'ADP-Rank'!$A$2:$W$700,23,FALSE),"") -> 35 | G21: =IFERROR((IF(Personalize!$E$38=1,VLOOKUP($B21,'ADP-Rank'!$A$2:$J$700,4,FALSE),(IF(Personalize!$E$38=2,VLOOKUP($B21,'ADP-Rank'!$A$2:$J$700,7,FALSE),(IF(Personalize!$E$38=3,VLOOKUP($B21,'ADP-Rank'!$A$2:$J$700,10,FALSE),(IF(Personalize!$E$38=4,VLOOKUP($B21,'ADP-Rank'!$A$2:$AD$700,24,FALSE),(IF(Personalize!$E$38=5,VLOOKUP($B21,'ADP-Rank'!$A$2:$AD$700,27,FALSE),(IF(Personalize!$E$38=6,VLOOKUP($B21,'ADP-Rank'!$A$2:$AZ$700,30,FALSE),(IF(Personalize!$E$38=7,VLOOKUP($B21,'ADP-Rank'!$A$2:$AZ$700,39,FALSE))))))))))))))),"") -> 20.09 | H21: =IFERROR(ROUNDDOWN(VLOOKUP($B21,'ADP-Rank'!$A$2:$AY$1064,38,FALSE),0),"") -> 2 | I21: =VLOOKUP($B21,'ADP-Rank'!$A$2:$AJ$1064,36,FALSE) -> 15 | J21: =IFERROR(RANK($M21,$M$6:$M$745,0),"") -> 23 | K21: =IFERROR(IF((OR($C21="RP",$C21="SP")),VLOOKUP($B21,Pitcher!$A$1:$Z$700,20,FALSE),(VLOOKUP($B21,Hitter!$A$1:$Z$700,26,FALSE))),"") -> 503.84637 | L21: =IFERROR(IF((OR($C21="RP",$C21="SP")),VLOOKUP($C21,'Filtered-P'!$M$3:$P$4,4,FALSE), VLOOKUP($C21,Filtered!$Q$3:$T$14,4,FALSE)),"") -> 411.2053549 | M21: =IFERROR(($K21-$L21)/IF(OR($C21="SP",$C21="RP"),VLOOKUP($C21,'Filtered-P'!$M$3:$T$4,8,FALSE),VLOOKUP($C21,Filtered!$Q$3:$X$10,8,FALSE)),"") -> 1.231936671 | N21: =IFERROR(IF((OR($C21="RP",$C21="SP")),"",(VLOOKUP($B21,Hitter!$A$1:$Z$700,26,FALSE)/VLOOKUP($B21,Hitter!$A$1:$Z$700,2,FALSE))),"") ->  | O21: =IFERROR(IF((OR($C21="RP",$C21="SP")),VLOOKUP($B21,Pitcher!$A$1:$Z$700,20,FALSE)/VLOOKUP($B21,Pitcher!$A$1:$Z$700,4,FALSE),""),"") -> 2.219587533 | P21: =IFERROR(IF((OR($C21="RP",$C21="SP")),VLOOKUP($B21,Pitcher!$A$1:$V$700,2,FALSE),""),"") -> 15.51967729 | Q21: =IFERROR(IF((OR($C21="RP",$C21="SP")),VLOOKUP($B21,Pitcher!$A$1:$V$700,9,FALSE),""),"") -> 0 | R21: =IFERROR(IF((OR($C21="RP",$C21="SP")),VLOOKUP($B21,Pitcher!$A$1:$V$700,7,FALSE),""),"") -> 216.0269944 | S21: =IFERROR(IF((OR($C21="RP",$C21="SP")),VLOOKUP($B21,Pitcher!$A$1:$AB$700,21,FALSE),""),"") -> 3.131842649 | T21: =IFERROR(IF((OR($C21="RP",$C21="SP")),VLOOKUP($B21,Pitcher!$A$1:$V$700,22,FALSE),""),"") -> 1.072684242 | U21: =IFERROR(IF((OR($C21="RP",$C21="SP")),"",VLOOKUP($B21,Hitter!$A$1:$AH$700,27,FALSE)),"") ->  | V21: =IFERROR(IF((OR($C21="RP",$C21="SP")),"",VLOOKUP($B21,Hitter!$A$1:$AH$700,9,FALSE)),"") ->  | W21: =IFERROR(IF((OR($C21="RP",$C21="SP")),"",VLOOKUP($B21,Hitter!$A$1:$AH$700,10,FALSE)),"") ->  | X21: =IFERROR(IF((OR($C21="RP",$C21="SP")),"",VLOOKUP($B21,Hitter!$A$1:$AH$700,4,FALSE)),"") ->  | Y21: =IFERROR(IF((OR($C21="RP",$C21="SP")),"",VLOOKUP($B21,Hitter!$A$1:$AH$700,11,FALSE)),"") ->  | Z21: =IFERROR(IF(ISTEXT($A21),"",(1-NORMDIST((COUNTA($A$6:$A$745)),($G21),((AE21-AD21)/6),TRUE))),"") -> 0.9999982252 | AA21: =IFERROR(IF(ISTEXT($A21),"",(1-NORMDIST((COUNTA($A$6:$A$745))+(Personalize!$E$18+1),$G21,((AE21-AD21)/6),TRUE))),"") -> 0.9999355266 | AB21: =IFERROR(IF(ISTEXT($A21),"",(1-NORMDIST((COUNTA($A$6:$A$745))+((Personalize!$E$18+1)*2),$G21,((AE21-AD21)/6),TRUE))),"") -> 0.9987393328 | AD21: =IF(Personalize!$E$34=1,VLOOKUP($B21,'ADP-Rank'!$A$2:$J$700,5,FALSE),(IF(Personalize!$E$34=2,VLOOKUP($B21,'ADP-Rank'!$A$2:$J$700,8,FALSE),(IF(Personalize!$E$34=3,VLOOKUP($B21,'ADP-Rank'!$A$2:$O$700,11,FALSE),(IF(Personalize!$E$31=4,VLOOKUP($B21,'ADP-Rank'!$A$2:$AZ$700,25,FALSE),(IF(Personalize!$E$31=5,VLOOKUP($B21,'ADP-Rank'!$A$2:$AZ$700,28,FALSE),(IF(Personalize!$E$31=6,VLOOKUP($B21,'ADP-Rank'!$A$2:$AZ$700,32,FALSE),""))))))))))) -> 21 | AE21: =IF(Personalize!$E$34=1,VLOOKUP($B21,'ADP-Rank'!$A$2:$J$700,6,FALSE),(IF(Personalize!$E$34=2,VLOOKUP($B21,'ADP-Rank'!$A$2:$J$700,9,FALSE),(IF(Personalize!$E$34=3,VLOOKUP($B21,'ADP-Rank'!$A$2:$O$700,12,FALSE),(IF(Personalize!$E$31=4,VLOOKUP($B21,'ADP-Rank'!$A$2:$AZ$700,26,FALSE),(IF(Personalize!$E$31=5,VLOOKUP($B21,'ADP-Rank'!$A$2:$AZ$700,29,FALSE),(IF(Personalize!$E$31=6,VLOOKUP($B21,'ADP-Rank'!$A$2:$AZ$700,33,FALSE),""))))))))))) -> 47 | AF21: =IF(ISBLANK(A21),0,1) -> 0 | AG21: =IF(K21="",0,1) -> 1 | AH21: =A21 -> 0 | AI21: =IF(C21="C",1,IF(C21="1B",2,IF(C21="2B",3,IF(C21="3B",4,IF(C21="SS",5,IF(C21="CI",6,IF(C21="MI",7,IF(C21="OF",11,IF(C21="LF",8,IF(C21="CF",9,IF(C21="RF",10,IF(C21="DH",12,IF(C21="SP",13,IF(C21="RP",14,IF(C21="P",15,16))))))))))))))) -> 13 | AJ21: =VLOOKUP(B21,'Starter Calc'!$B$2:$BN$700,65,FALSE) -> Bench | AK21: =IFERROR(VLOOKUP($B21,'ADP-Rank'!$A$2:$AH$964,34,FALSE),TRUE) -> TRUE | AL21: 1
B22: Carlos Gonzalez | C22: OF | D22: =IFERROR(IF(VLOOKUP(B22,'Starter Calc'!$B$2:$E$700,4,FALSE)="","",VLOOKUP(B22,'Starter Calc'!$B$2:$E$700,4,FALSE)),"") -> LF,, | E22: =IFERROR(VLOOKUP($B22,'ADP-Rank'!$A$2:$D$700,3,FALSE),"") -> COL | F22: =IFERROR(VLOOKUP($B22,'ADP-Rank'!$A$2:$W$700,23,FALSE),"") -> 28 | G22: =IFERROR((IF(Personalize!$E$38=1,VLOOKUP($B22,'ADP-Rank'!$A$2:$J$700,4,FALSE),(IF(Personalize!$E$38=2,VLOOKUP($B22,'ADP-Rank'!$A$2:$J$700,7,FALSE),(IF(Personalize!$E$38=3,VLOOKUP($B22,'ADP-Rank'!$A$2:$J$700,10,FALSE),(IF(Personalize!$E$38=4,VLOOKUP($B22,'ADP-Rank'!$A$2:$AD$700,24,FALSE),(IF(Personalize!$E$38=5,VLOOKUP($B22,'ADP-Rank'!$A$2:$AD$700,27,FALSE),(IF(Personalize!$E$38=6,VLOOKUP($B22,'ADP-Rank'!$A$2:$AZ$700,30,FALSE),(IF(Personalize!$E$38=7,VLOOKUP($B22,'ADP-Rank'!$A$2:$AZ$700,39,FALSE))))))))))))))),"") -> 20.13 | H22: =IFERROR(ROUNDDOWN(VLOOKUP($B22,'ADP-Rank'!$A$2:$AY$1064,38,FALSE),0),"") -> 2 | I22: =VLOOKUP($B22,'ADP-Rank'!$A$2:$AJ$1064,36,FALSE) -> 34 | J22: =IFERROR(RANK($M22,$M$6:$M$745,0),"") -> 33 | K22: =IFERROR(IF((OR($C22="RP",$C22="SP")),VLOOKUP($B22,Pitcher!$A$1:$Z$700,20,FALSE),(VLOOKUP($B22,Hitter!$A$1:$Z$700,26,FALSE))),"") -> 389.8850419 | L22: =IFERROR(IF((OR($C22="RP",$C22="SP")),VLOOKUP($C22,'Filtered-P'!$M$3:$P$4,4,FALSE), VLOOKUP($C22,Filtered!$Q$3:$T$14,4,FALSE)),"") -> 350.7983075 | M22: =IFERROR(($K22-$L22)/IF(OR($C22="SP",$C22="RP"),VLOOKUP($C22,'Filtered-P'!$M$3:$T$4,8,FALSE),VLOOKUP($C22,Filtered!$Q$3:$X$10,8,FALSE)),"") -> 0.9575006826 | N22: =IFERROR(IF((OR($C22="RP",$C22="SP")),"",(VLOOKUP($B22,Hitter!$A$1:$Z$700,26,FALSE)/VLOOKUP($B22,Hitter!$A$1:$Z$700,2,FALSE))),"") -> 0.6733959675 | O22: =IFERROR(IF((OR($C22="RP",$C22="SP")),VLOOKUP($B22,Pitcher!$A$1:$Z$700,20,FALSE)/VLOOKUP($B22,Pitcher!$A$1:$Z$700,4,FALSE),""),"") ->  | P22: =IFERROR(IF((OR($C22="RP",$C22="SP")),VLOOKUP($B22,Pitcher!$A$1:$V$700,2,FALSE),""),"") ->  | Q22: =IFERROR(IF((OR($C22="RP",$C22="SP")),VLOOKUP($B22,Pitcher!$A$1:$V$700,9,FALSE),""),"") ->  | R22: =IFERROR(IF((OR($C22="RP",$C22="SP")),VLOOKUP($B22,Pitcher!$A$1:$V$700,7,FALSE),""),"") ->  | S22: =IFERROR(IF((OR($C22="RP",$C22="SP")),VLOOKUP($B22,Pitcher!$A$1:$AB$700,21,FALSE),""),"") ->  | T22: =IFERROR(IF((OR($C22="RP",$C22="SP")),VLOOKUP($B22,Pitcher!$A$1:$V$700,22,FALSE),""),"") ->  | U22: =IFERROR(IF((OR($C22="RP",$C22="SP")),"",VLOOKUP($B22,Hitter!$A$1:$AH$700,27,FALSE)),"") -> 0.2926784172 | V22: =IFERROR(IF((OR($C22="RP",$C22="SP")),"",VLOOKUP($B22,Hitter!$A$1:$AH$700,9,FALSE)),"") -> 28.14770131 | W22: =IFERROR(IF((OR($C22="RP",$C22="SP")),"",VLOOKUP($B22,Hitter!$A$1:$AH$700,10,FALSE)),"") -> 87.53831884 | X22: =IFERROR(IF((OR($C22="RP",$C22="SP")),"",VLOOKUP($B22,Hitter!$A$1:$AH$700,4,FALSE)),"") -> 89.66534094 | Y22: =IFERROR(IF((OR($C22="RP",$C22="SP")),"",VLOOKUP($B22,Hitter!$A$1:$AH$700,11,FALSE)),"") -> 21.85255172 | Z22: =IFERROR(IF(ISTEXT($A22),"",(1-NORMDIST((COUNTA($A$6:$A$745)),($G22),((AE22-AD22)/6),TRUE))),"") -> 1 | AA22: =IFERROR(IF(ISTEXT($A22),"",(1-NORMDIST((COUNTA($A$6:$A$745))+(Personalize!$E$18+1),$G22,((AE22-AD22)/6),TRUE))),"") -> 1 | AB22: =IFERROR(IF(ISTEXT($A22),"",(1-NORMDIST((COUNTA($A$6:$A$745))+((Personalize!$E$18+1)*2),$G22,((AE22-AD22)/6),TRUE))),"") -> 1 | AD22: =IF(Personalize!$E$34=1,VLOOKUP($B22,'ADP-Rank'!$A$2:$J$700,5,FALSE),(IF(Personalize!$E$34=2,VLOOKUP($B22,'ADP-Rank'!$A$2:$J$700,8,FALSE),(IF(Personalize!$E$34=3,VLOOKUP($B22,'ADP-Rank'!$A$2:$O$700,11,FALSE),(IF(Personalize!$E$31=4,VLOOKUP($B22,'ADP-Rank'!$A$2:$AZ$700,25,FALSE),(IF(Personalize!$E$31=5,VLOOKUP($B22,'ADP-Rank'!$A$2:$AZ$700,28,FALSE),(IF(Personalize!$E$31=6,VLOOKUP($B22,'ADP-Rank'!$A$2:$AZ$700,32,FALSE),""))))))))))) -> 4 | AE22: =IF(Personalize!$E$34=1,VLOOKUP($B22,'ADP-Rank'!$A$2:$J$700,6,FALSE),(IF(Personalize!$E$34=2,VLOOKUP($B22,'ADP-Rank'!$A$2:$J$700,9,FALSE),(IF(Personalize!$E$34=3,VLOOKUP($B22,'ADP-Rank'!$A$2:$O$700,12,FALSE),(IF(Personalize!$E$31=4,VLOOKUP($B22,'ADP-Rank'!$A$2:$AZ$700,26,FALSE),(IF(Personalize!$E$31=5,VLOOKUP($B22,'ADP-Rank'!$A$2:$AZ$700,29,FALSE),(IF(Personalize!$E$31=6,VLOOKUP($B22,'ADP-Rank'!$A$2:$AZ$700,33,FALSE),""))))))))))) -> 8 | AF22: =IF(ISBLANK(A22),0,1) -> 0 | AG22: =IF(K22="",0,1) -> 1 | AH22: =A22 -> 0 | AI22: =IF(C22="C",1,IF(C22="1B",2,IF(C22="2B",3,IF(C22="3B",4,IF(C22="SS",5,IF(C22="CI",6,IF(C22="MI",7,IF(C22="OF",11,IF(C22="LF",8,IF(C22="CF",9,IF(C22="RF",10,IF(C22="DH",12,IF(C22="SP",13,IF(C22="RP",14,IF(C22="P",15,16))))))))))))))) -> 11 | AJ22: =VLOOKUP(B22,'Starter Calc'!$B$2:$BN$700,65,FALSE) -> Bench | AK22: =IFERROR(VLOOKUP($B22,'ADP-Rank'!$A$2:$AH$964,34,FALSE),TRUE) -> TRUE | AL22: 0
B23: Ryan Braun | C23: OF | D23: =IFERROR(IF(VLOOKUP(B23,'Starter Calc'!$B$2:$E$700,4,FALSE)="","",VLOOKUP(B23,'Starter Calc'!$B$2:$E$700,4,FALSE)),"") -> LF,, | E23: =IFERROR(VLOOKUP($B23,'ADP-Rank'!$A$2:$D$700,3,FALSE),"") -> MIL | F23: =IFERROR(VLOOKUP($B23,'ADP-Rank'!$A$2:$W$700,23,FALSE),"") -> 30 | G23: =IFERROR((IF(Personalize!$E$38=1,VLOOKUP($B23,'ADP-Rank'!$A$2:$J$700,4,FALSE),(IF(Personalize!$E$38=2,VLOOKUP($B23,'ADP-Rank'!$A$2:$J$700,7,FALSE),(IF(Personalize!$E$38=3,VLOOKUP($B23,'ADP-Rank'!$A$2:$J$700,10,FALSE),(IF(Personalize!$E$38=4,VLOOKUP($B23,'ADP-Rank'!$A$2:$AD$700,24,FALSE),(IF(Personalize!$E$38=5,VLOOKUP($B23,'ADP-Rank'!$A$2:$AD$700,27,FALSE),(IF(Personalize!$E$38=6,VLOOKUP($B23,'ADP-Rank'!$A$2:$AZ$700,30,FALSE),(IF(Personalize!$E$38=7,VLOOKUP($B23,'ADP-Rank'!$A$2:$AZ$700,39,FALSE))))))))))))))),"") -> 21.08 | H23: =IFERROR(ROUNDDOWN(VLOOKUP($B23,'ADP-Rank'!$A$2:$AY$1064,38,FALSE),0),"") -> 2 | I23: =VLOOKUP($B23,'ADP-Rank'!$A$2:$AJ$1064,36,FALSE) -> 35 | J23: =IFERROR(RANK($M23,$M$6:$M$745,0),"") -> 19 | K23: =IFERROR(IF((OR($C23="RP",$C23="SP")),VLOOKUP($B23,Pitcher!$A$1:$Z$700,20,FALSE),(VLOOKUP($B23,Hitter!$A$1:$Z$700,26,FALSE))),"") -> 405.6880515 | L23: =IFERROR(IF((OR($C23="RP",$C23="SP")),VLOOKUP($C23,'Filtered-P'!$M$3:$P$4,4,FALSE), VLOOKUP($C23,Filtered!$Q$3:$T$14,4,FALSE)),"") -> 350.7983075 | M23: =IFERROR(($K23-$L23)/IF(OR($C23="SP",$C23="RP"),VLOOKUP($C23,'Filtered-P'!$M$3:$T$4,8,FALSE),VLOOKUP($C23,Filtered!$Q$3:$X$10,8,FALSE)),"") -> 1.344624156 | N23: =IFERROR(IF((OR($C23="RP",$C23="SP")),"",(VLOOKUP($B23,Hitter!$A$1:$Z$700,26,FALSE)/VLOOKUP($B23,Hitter!$A$1:$Z$700,2,FALSE))),"") -> 0.6860951319 | O23: =IFERROR(IF((OR($C23="RP",$C23="SP")),VLOOKUP($B23,Pitcher!$A$1:$Z$700,20,FALSE)/VLOOKUP($B23,Pitcher!$A$1:$Z$700,4,FALSE),""),"") ->  | P23: =IFERROR(IF((OR($C23="RP",$C23="SP")),VLOOKUP($B23,Pitcher!$A$1:$V$700,2,FALSE),""),"") ->  | Q23: =IFERROR(IF((OR($C23="RP",$C23="SP")),VLOOKUP($B23,Pitcher!$A$1:$V$700,9,FALSE),""),"") ->  | R23: =IFERROR(IF((OR($C23="RP",$C23="SP")),VLOOKUP($B23,Pitcher!$A$1:$V$700,7,FALSE),""),"") ->  | S23: =IFERROR(IF((OR($C23="RP",$C23="SP")),VLOOKUP($B23,Pitcher!$A$1:$AB$700,21,FALSE),""),"") ->  | T23: =IFERROR(IF((OR($C23="RP",$C23="SP")),VLOOKUP($B23,Pitcher!$A$1:$V$700,22,FALSE),""),"") ->  | U23: =IFERROR(IF((OR($C23="RP",$C23="SP")),"",VLOOKUP($B23,Hitter!$A$1:$AH$700,27,FALSE)),"") -> 0.2918663916 | V23: =IFERROR(IF((OR($C23="RP",$C23="SP")),"",VLOOKUP($B23,Hitter!$A$1:$AH$700,9,FALSE)),"") -> 26.12787086 | W23: =IFERROR(IF((OR($C23="RP",$C23="SP")),"",VLOOKUP($B23,Hitter!$A$1:$AH$700,10,FALSE)),"") -> 88.85884392 | X23: =IFERROR(IF((OR($C23="RP",$C23="SP")),"",VLOOKUP($B23,Hitter!$A$1:$AH$700,4,FALSE)),"") -> 88.27371018 | Y23: =IFERROR(IF((OR($C23="RP",$C23="SP")),"",VLOOKUP($B23,Hitter!$A$1:$AH$700,11,FALSE)),"") -> 18.57683498 | Z23: =IFERROR(IF(ISTEXT($A23),"",(1-NORMDIST((COUNTA($A$6:$A$745)),($G23),((AE23-AD23)/6),TRUE))),"") -> 1 | AA23: =IFERROR(IF(ISTEXT($A23),"",(1-NORMDIST((COUNTA($A$6:$A$745))+(Personalize!$E$18+1),$G23,((AE23-AD23)/6),TRUE))),"") -> 1 | AB23: =IFERROR(IF(ISTEXT($A23),"",(1-NORMDIST((COUNTA($A$6:$A$745))+((Personalize!$E$18+1)*2),$G23,((AE23-AD23)/6),TRUE))),"") -> 0.9999999911 | AD23: =IF(Personalize!$E$34=1,VLOOKUP($B23,'ADP-Rank'!$A$2:$J$700,5,FALSE),(IF(Personalize!$E$34=2,VLOOKUP($B23,'ADP-Rank'!$A$2:$J$700,8,FALSE),(IF(Personalize!$E$34=3,VLOOKUP($B23,'ADP-Rank'!$A$2:$O$700,11,FALSE),(IF(Personalize!$E$31=4,VLOOKUP($B23,'ADP-Rank'!$A$2:$AZ$700,25,FALSE),(IF(Personalize!$E$31=5,VLOOKUP($B23,'ADP-Rank'!$A$2:$AZ$700,28,FALSE),(IF(Personalize!$E$31=6,VLOOKUP($B23,'ADP-Rank'!$A$2:$AZ$700,32,FALSE),""))))))))))) -> 7 | AE23: =IF(Personalize!$E$34=1,VLOOKUP($B23,'ADP-Rank'!$A$2:$J$700,6,FALSE),(IF(Personalize!$E$34=2,VLOOKUP($B23,'ADP-Rank'!$A$2:$J$700,9,FALSE),(IF(Personalize!$E$34=3,VLOOKUP($B23,'ADP-Rank'!$A$2:$O$700,12,FALSE),(IF(Personalize!$E$31=4,VLOOKUP($B23,'ADP-Rank'!$A$2:$AZ$700,26,FALSE),(IF(Personalize!$E$31=5,VLOOKUP($B23,'ADP-Rank'!$A$2:$AZ$700,29,FALSE),(IF(Personalize!$E$31=6,VLOOKUP($B23,'ADP-Rank'!$A$2:$AZ$700,33,FALSE),""))))))))))) -> 22 | AF23: =IF(ISBLANK(A23),0,1) -> 0 | AG23: =IF(K23="",0,1) -> 1 | AH23: =A23 -> 0 | AI23: =IF(C23="C",1,IF(C23="1B",2,IF(C23="2B",3,IF(C23="3B",4,IF(C23="SS",5,IF(C23="CI",6,IF(C23="MI",7,IF(C23="OF",11,IF(C23="LF",8,IF(C23="CF",9,IF(C23="RF",10,IF(C23="DH",12,IF(C23="SP",13,IF(C23="RP",14,IF(C23="P",15,16))))))))))))))) -> 11 | AJ23: =VLOOKUP(B23,'Starter Calc'!$B$2:$BN$700,65,FALSE) -> Starter | AK23: =IFERROR(VLOOKUP($B23,'ADP-Rank'!$A$2:$AH$964,34,FALSE),TRUE) -> TRUE | AL23: 0
B24: Hanley Ramirez | C24: SS | D24: =IFERROR(IF(VLOOKUP(B24,'Starter Calc'!$B$2:$E$700,4,FALSE)="","",VLOOKUP(B24,'Starter Calc'!$B$2:$E$700,4,FALSE)),"") -> ,, | E24: =IFERROR(VLOOKUP($B24,'ADP-Rank'!$A$2:$D$700,3,FALSE),"") -> LAD | F24: =IFERROR(VLOOKUP($B24,'ADP-Rank'!$A$2:$W$700,23,FALSE),"") -> 30 | G24: =IFERROR((IF(Personalize!$E$38=1,VLOOKUP($B24,'ADP-Rank'!$A$2:$J$700,4,FALSE),(IF(Personalize!$E$38=2,VLOOKUP($B24,'ADP-Rank'!$A$2:$J$700,7,FALSE),(IF(Personalize!$E$38=3,VLOOKUP($B24,'ADP-Rank'!$A$2:$J$700,10,FALSE),(IF(Personalize!$E$38=4,VLOOKUP($B24,'ADP-Rank'!$A$2:$AD$700,24,FALSE),(IF(Personalize!$E$38=5,VLOOKUP($B24,'ADP-Rank'!$A$2:$AD$700,27,FALSE),(IF(Personalize!$E$38=6,VLOOKUP($B24,'ADP-Rank'!$A$2:$AZ$700,30,FALSE),(IF(Personalize!$E$38=7,VLOOKUP($B24,'ADP-Rank'!$A$2:$AZ$700,39,FALSE))))))))))))))),"") -> 21.71 | H24: =IFERROR(ROUNDDOWN(VLOOKUP($B24,'ADP-Rank'!$A$2:$AY$1064,38,FALSE),0),"") -> 2 | I24: =VLOOKUP($B24,'ADP-Rank'!$A$2:$AJ$1064,36,FALSE) -> 36 | J24: =IFERROR(RANK($M24,$M$6:$M$745,0),"") -> 73 | K24: =IFERROR(IF((OR($C24="RP",$C24="SP")),VLOOKUP($B24,Pitcher!$A$1:$Z$700,20,FALSE),(VLOOKUP($B24,Hitter!$A$1:$Z$700,26,FALSE))),"") -> 331.7365099 | L24: =IFERROR(IF((OR($C24="RP",$C24="SP")),VLOOKUP($C24,'Filtered-P'!$M$3:$P$4,4,FALSE), VLOOKUP($C24,Filtered!$Q$3:$T$14,4,FALSE)),"") -> 333.8973548 | M24: =IFERROR(($K24-$L24)/IF(OR($C24="SP",$C24="RP"),VLOOKUP($C24,'Filtered-P'!$M$3:$T$4,8,FALSE),VLOOKUP($C24,Filtered!$Q$3:$X$10,8,FALSE)),"") -> -0.07652068301 | N24: =IFERROR(IF((OR($C24="RP",$C24="SP")),"",(VLOOKUP($B24,Hitter!$A$1:$Z$700,26,FALSE)/VLOOKUP($B24,Hitter!$A$1:$Z$700,2,FALSE))),"") -> 0.6235551007 | O24: =IFERROR(IF((OR($C24="RP",$C24="SP")),VLOOKUP($B24,Pitcher!$A$1:$Z$700,20,FALSE)/VLOOKUP($B24,Pitcher!$A$1:$Z$700,4,FALSE),""),"") ->  | P24: =IFERROR(IF((OR($C24="RP",$C24="SP")),VLOOKUP($B24,Pitcher!$A$1:$V$700,2,FALSE),""),"") ->  | Q24: =IFERROR(IF((OR($C24="RP",$C24="SP")),VLOOKUP($B24,Pitcher!$A$1:$V$700,9,FALSE),""),"") ->  | R24: =IFERROR(IF((OR($C24="RP",$C24="SP")),VLOOKUP($B24,Pitcher!$A$1:$V$700,7,FALSE),""),"") ->  | S24: =IFERROR(IF((OR($C24="RP",$C24="SP")),VLOOKUP($B24,Pitcher!$A$1:$AB$700,21,FALSE),""),"") ->  | T24: =IFERROR(IF((OR($C24="RP",$C24="SP")),VLOOKUP($B24,Pitcher!$A$1:$V$700,22,FALSE),""),"") ->  | U24: =IFERROR(IF((OR($C24="RP",$C24="SP")),"",VLOOKUP($B24,Hitter!$A$1:$AH$700,27,FALSE)),"") -> 0.2749963329 | V24: =IFERROR(IF((OR($C24="RP",$C24="SP")),"",VLOOKUP($B24,Hitter!$A$1:$AH$700,9,FALSE)),"") -> 20.00360543 | W24: =IFERROR(IF((OR($C24="RP",$C24="SP")),"",VLOOKUP($B24,Hitter!$A$1:$AH$700,10,FALSE)),"") -> 72.58942228 | X24: =IFERROR(IF((OR($C24="RP",$C24="SP")),"",VLOOKUP($B24,Hitter!$A$1:$AH$700,4,FALSE)),"") -> 74.32506665 | Y24: =IFERROR(IF((OR($C24="RP",$C24="SP")),"",VLOOKUP($B24,Hitter!$A$1:$AH$700,11,FALSE)),"") -> 17.01328961 | Z24: =IFERROR(IF(ISTEXT($A24),"",(1-NORMDIST((COUNTA($A$6:$A$745)),($G24),((AE24-AD24)/6),TRUE))),"") -> 1 | AA24: =IFERROR(IF(ISTEXT($A24),"",(1-NORMDIST((COUNTA($A$6:$A$745))+(Personalize!$E$18+1),$G24,((AE24-AD24)/6),TRUE))),"") -> 1 | AB24: =IFERROR(IF(ISTEXT($A24),"",(1-NORMDIST((COUNTA($A$6:$A$745))+((Personalize!$E$18+1)*2),$G24,((AE24-AD24)/6),TRUE))),"") -> 1 | AD24: =IF(Personalize!$E$34=1,VLOOKUP($B24,'ADP-Rank'!$A$2:$J$700,5,FALSE),(IF(Personalize!$E$34=2,VLOOKUP($B24,'ADP-Rank'!$A$2:$J$700,8,FALSE),(IF(Personalize!$E$34=3,VLOOKUP($B24,'ADP-Rank'!$A$2:$O$700,11,FALSE),(IF(Personalize!$E$31=4,VLOOKUP($B24,'ADP-Rank'!$A$2:$AZ$700,25,FALSE),(IF(Personalize!$E$31=5,VLOOKUP($B24,'ADP-Rank'!$A$2:$AZ$700,28,FALSE),(IF(Personalize!$E$31=6,VLOOKUP($B24,'ADP-Rank'!$A$2:$AZ$700,32,FALSE),""))))))))))) -> 8 | AE24: =IF(Personalize!$E$34=1,VLOOKUP($B24,'ADP-Rank'!$A$2:$J$700,6,FALSE),(IF(Personalize!$E$34=2,VLOOKUP($B24,'ADP-Rank'!$A$2:$J$700,9,FALSE),(IF(Personalize!$E$34=3,VLOOKUP($B24,'ADP-Rank'!$A$2:$O$700,12,FALSE),(IF(Personalize!$E$31=4,VLOOKUP($B24,'ADP-Rank'!$A$2:$AZ$700,26,FALSE),(IF(Personalize!$E$31=5,VLOOKUP($B24,'ADP-Rank'!$A$2:$AZ$700,29,FALSE),(IF(Personalize!$E$31=6,VLOOKUP($B24,'ADP-Rank'!$A$2:$AZ$700,33,FALSE),""))))))))))) -> 17 | AF24: =IF(ISBLANK(A24),0,1) -> 0 | AG24: =IF(K24="",0,1) -> 1 | AH24: =A24 -> 0 | AI24: =IF(C24="C",1,IF(C24="1B",2,IF(C24="2B",3,IF(C24="3B",4,IF(C24="SS",5,IF(C24="CI",6,IF(C24="MI",7,IF(C24="OF",11,IF(C24="LF",8,IF(C24="CF",9,IF(C24="RF",10,IF(C24="DH",12,IF(C24="SP",13,IF(C24="RP",14,IF(C24="P",15,16))))))))))))))) -> 5 | AJ24: =VLOOKUP(B24,'Starter Calc'!$B$2:$BN$700,65,FALSE) -> Bench | AK24: =IFERROR(VLOOKUP($B24,'ADP-Rank'!$A$2:$AH$964,34,FALSE),TRUE) -> TRUE | AL24: 0
B25: David Price | C25: SP | D25: =IFERROR(IF(VLOOKUP(B25,'Starter Calc'!$B$2:$E$700,4,FALSE)="","",VLOOKUP(B25,'Starter Calc'!$B$2:$E$700,4,FALSE)),"") -> ,, | E25: =IFERROR(VLOOKUP($B25,'ADP-Rank'!$A$2:$D$700,3,FALSE),"") -> TB | F25: =IFERROR(VLOOKUP($B25,'ADP-Rank'!$A$2:$W$700,23,FALSE),"") -> 28 | G25: =IFERROR((IF(Personalize!$E$38=1,VLOOKUP($B25,'ADP-Rank'!$A$2:$J$700,4,FALSE),(IF(Personalize!$E$38=2,VLOOKUP($B25,'ADP-Rank'!$A$2:$J$700,7,FALSE),(IF(Personalize!$E$38=3,VLOOKUP($B25,'ADP-Rank'!$A$2:$J$700,10,FALSE),(IF(Personalize!$E$38=4,VLOOKUP($B25,'ADP-Rank'!$A$2:$AD$700,24,FALSE),(IF(Personalize!$E$38=5,VLOOKUP($B25,'ADP-Rank'!$A$2:$AD$700,27,FALSE),(IF(Personalize!$E$38=6,VLOOKUP($B25,'ADP-Rank'!$A$2:$AZ$700,30,FALSE),(IF(Personalize!$E$38=7,VLOOKUP($B25,'ADP-Rank'!$A$2:$AZ$700,39,FALSE))))))))))))))),"") -> 22.04 | H25: =IFERROR(ROUNDDOWN(VLOOKUP($B25,'ADP-Rank'!$A$2:$AY$1064,38,FALSE),0),"") -> 2 | I25: =VLOOKUP($B25,'ADP-Rank'!$A$2:$AJ$1064,36,FALSE) -> 29 | J25: =IFERROR(RANK($M25,$M$6:$M$745,0),"") -> 40 | K25: =IFERROR(IF((OR($C25="RP",$C25="SP")),VLOOKUP($B25,Pitcher!$A$1:$Z$700,20,FALSE),(VLOOKUP($B25,Hitter!$A$1:$Z$700,26,FALSE))),"") -> 465.0664548 | L25: =IFERROR(IF((OR($C25="RP",$C25="SP")),VLOOKUP($C25,'Filtered-P'!$M$3:$P$4,4,FALSE), VLOOKUP($C25,Filtered!$Q$3:$T$14,4,FALSE)),"") -> 411.2053549 | M25: =IFERROR(($K25-$L25)/IF(OR($C25="SP",$C25="RP"),VLOOKUP($C25,'Filtered-P'!$M$3:$T$4,8,FALSE),VLOOKUP($C25,Filtered!$Q$3:$X$10,8,FALSE)),"") -> 0.7162428436 | N25: =IFERROR(IF((OR($C25="RP",$C25="SP")),"",(VLOOKUP($B25,Hitter!$A$1:$Z$700,26,FALSE)/VLOOKUP($B25,Hitter!$A$1:$Z$700,2,FALSE))),"") ->  | O25: =IFERROR(IF((OR($C25="RP",$C25="SP")),VLOOKUP($B25,Pitcher!$A$1:$Z$700,20,FALSE)/VLOOKUP($B25,Pitcher!$A$1:$Z$700,4,FALSE),""),"") -> 2.066962021 | P25: =IFERROR(IF((OR($C25="RP",$C25="SP")),VLOOKUP($B25,Pitcher!$A$1:$V$700,2,FALSE),""),"") -> 16.29058917 | Q25: =IFERROR(IF((OR($C25="RP",$C25="SP")),VLOOKUP($B25,Pitcher!$A$1:$V$700,9,FALSE),""),"") -> 0 | R25: =IFERROR(IF((OR($C25="RP",$C25="SP")),VLOOKUP($B25,Pitcher!$A$1:$V$700,7,FALSE),""),"") -> 201.547265 | S25: =IFERROR(IF((OR($C25="RP",$C25="SP")),VLOOKUP($B25,Pitcher!$A$1:$AB$700,21,FALSE),""),"") -> 3.158475 | T25: =IFERROR(IF((OR($C25="RP",$C25="SP")),VLOOKUP($B25,Pitcher!$A$1:$V$700,22,FALSE),""),"") -> 1.128575 | U25: =IFERROR(IF((OR($C25="RP",$C25="SP")),"",VLOOKUP($B25,Hitter!$A$1:$AH$700,27,FALSE)),"") ->  | V25: =IFERROR(IF((OR($C25="RP",$C25="SP")),"",VLOOKUP($B25,Hitter!$A$1:$AH$700,9,FALSE)),"") ->  | W25: =IFERROR(IF((OR($C25="RP",$C25="SP")),"",VLOOKUP($B25,Hitter!$A$1:$AH$700,10,FALSE)),"") ->  | X25: =IFERROR(IF((OR($C25="RP",$C25="SP")),"",VLOOKUP($B25,Hitter!$A$1:$AH$700,4,FALSE)),"") ->  | Y25: =IFERROR(IF((OR($C25="RP",$C25="SP")),"",VLOOKUP($B25,Hitter!$A$1:$AH$700,11,FALSE)),"") ->  | Z25: =IFERROR(IF(ISTEXT($A25),"",(1-NORMDIST((COUNTA($A$6:$A$745)),($G25),((AE25-AD25)/6),TRUE))),"") -> 0.9529272366 | AA25: =IFERROR(IF(ISTEXT($A25),"",(1-NORMDIST((COUNTA($A$6:$A$745))+(Personalize!$E$18+1),$G25,((AE25-AD25)/6),TRUE))),"") -> 0.9204494569 | AB25: =IFERROR(IF(ISTEXT($A25),"",(1-NORMDIST((COUNTA($A$6:$A$745))+((Personalize!$E$18+1)*2),$G25,((AE25-AD25)/6),TRUE))),"") -> 0.8733308585 | AD25: =IF(Personalize!$E$34=1,VLOOKUP($B25,'ADP-Rank'!$A$2:$J$700,5,FALSE),(IF(Personalize!$E$34=2,VLOOKUP($B25,'ADP-Rank'!$A$2:$J$700,8,FALSE),(IF(Personalize!$E$34=3,VLOOKUP($B25,'ADP-Rank'!$A$2:$O$700,11,FALSE),(IF(Personalize!$E$31=4,VLOOKUP($B25,'ADP-Rank'!$A$2:$AZ$700,25,FALSE),(IF(Personalize!$E$31=5,VLOOKUP($B25,'ADP-Rank'!$A$2:$AZ$700,28,FALSE),(IF(Personalize!$E$31=6,VLOOKUP($B25,'ADP-Rank'!$A$2:$AZ$700,32,FALSE),""))))))))))) -> 66 | AE25: =IF(Personalize!$E$34=1,VLOOKUP($B25,'ADP-Rank'!$A$2:$J$700,6,FALSE),(IF(Personalize!$E$34=2,VLOOKUP($B25,'ADP-Rank'!$A$2:$J$700,9,FALSE),(IF(Personalize!$E$34=3,VLOOKUP($B25,'ADP-Rank'!$A$2:$O$700,12,FALSE),(IF(Personalize!$E$31=4,VLOOKUP($B25,'ADP-Rank'!$A$2:$AZ$700,26,FALSE),(IF(Personalize!$E$31=5,VLOOKUP($B25,'ADP-Rank'!$A$2:$AZ$700,29,FALSE),(IF(Personalize!$E$31=6,VLOOKUP($B25,'ADP-Rank'!$A$2:$AZ$700,33,FALSE),""))))))))))) -> 145 | AF25: =IF(ISBLANK(A25),0,1) -> 0 | AG25: =IF(K25="",0,1) -> 1 | AH25: =A25 -> 0 | AI25: =IF(C25="C",1,IF(C25="1B",2,IF(C25="2B",3,IF(C25="3B",4,IF(C25="SS",5,IF(C25="CI",6,IF(C25="MI",7,IF(C25="OF",11,IF(C25="LF",8,IF(C25="CF",9,IF(C25="RF",10,IF(C25="DH",12,IF(C25="SP",13,IF(C25="RP",14,IF(C25="P",15,16))))))))))))))) -> 13 | AJ25: =VLOOKUP(B25,'Starter Calc'!$B$2:$BN$700,65,FALSE) -> Bench | AK25: =IFERROR(VLOOKUP($B25,'ADP-Rank'!$A$2:$AH$964,34,FALSE),TRUE) -> TRUE | AL25: 1
B26: Evan Longoria | C26: 3B | D26: =IFERROR(IF(VLOOKUP(B26,'Starter Calc'!$B$2:$E$700,4,FALSE)="","",VLOOKUP(B26,'Starter Calc'!$B$2:$E$700,4,FALSE)),"") -> ,, | E26: =IFERROR(VLOOKUP($B26,'ADP-Rank'!$A$2:$D$700,3,FALSE),"") -> TB | F26: =IFERROR(VLOOKUP($B26,'ADP-Rank'!$A$2:$W$700,23,FALSE),"") -> 28 | G26: =IFERROR((IF(Personalize!$E$38=1,VLOOKUP($B26,'ADP-Rank'!$A$2:$J$700,4,FALSE),(IF(Personalize!$E$38=2,VLOOKUP($B26,'ADP-Rank'!$A$2:$J$700,7,FALSE),(IF(Personalize!$E$38=3,VLOOKUP($B26,'ADP-Rank'!$A$2:$J$700,10,FALSE),(IF(Personalize!$E$38=4,VLOOKUP($B26,'ADP-Rank'!$A$2:$AD$700,24,FALSE),(IF(Personalize!$E$38=5,VLOOKUP($B26,'ADP-Rank'!$A$2:$AD$700,27,FALSE),(IF(Personalize!$E$38=6,VLOOKUP($B26,'ADP-Rank'!$A$2:$AZ$700,30,FALSE),(IF(Personalize!$E$38=7,VLOOKUP($B26,'ADP-Rank'!$A$2:$AZ$700,39,FALSE))))))))))))))),"") -> 22.17 | H26: =IFERROR(ROUNDDOWN(VLOOKUP($B26,'ADP-Rank'!$A$2:$AY$1064,38,FALSE),0),"") -> 2 | I26: =VLOOKUP($B26,'ADP-Rank'!$A$2:$AJ$1064,36,FALSE) -> 21 | J26: =IFERROR(RANK($M26,$M$6:$M$745,0),"") -> 56 | K26: =IFERROR(IF((OR($C26="RP",$C26="SP")),VLOOKUP($B26,Pitcher!$A$1:$Z$700,20,FALSE),(VLOOKUP($B26,Hitter!$A$1:$Z$700,26,FALSE))),"") -> 379.0918826 | L26: =IFERROR(IF((OR($C26="RP",$C26="SP")),VLOOKUP($C26,'Filtered-P'!$M$3:$P$4,4,FALSE), VLOOKUP($C26,Filtered!$Q$3:$T$14,4,FALSE)),"") -> 361.8942626 | M26: =IFERROR(($K26-$L26)/IF(OR($C26="SP",$C26="RP"),VLOOKUP($C26,'Filtered-P'!$M$3:$T$4,8,FALSE),VLOOKUP($C26,Filtered!$Q$3:$X$10,8,FALSE)),"") -> 0.2595546502 | N26: =IFERROR(IF((OR($C26="RP",$C26="SP")),"",(VLOOKUP($B26,Hitter!$A$1:$Z$700,26,FALSE)/VLOOKUP($B26,Hitter!$A$1:$Z$700,2,FALSE))),"") -> 0.6142870287 | O26: =IFERROR(IF((OR($C26="RP",$C26="SP")),VLOOKUP($B26,Pitcher!$A$1:$Z$700,20,FALSE)/VLOOKUP($B26,Pitcher!$A$1:$Z$700,4,FALSE),""),"") ->  | P26: =IFERROR(IF((OR($C26="RP",$C26="SP")),VLOOKUP($B26,Pitcher!$A$1:$V$700,2,FALSE),""),"") ->  | Q26: =IFERROR(IF((OR($C26="RP",$C26="SP")),VLOOKUP($B26,Pitcher!$A$1:$V$700,9,FALSE),""),"") ->  | R26: =IFERROR(IF((OR($C26="RP",$C26="SP")),VLOOKUP($B26,Pitcher!$A$1:$V$700,7,FALSE),""),"") ->  | S26: =IFERROR(IF((OR($C26="RP",$C26="SP")),VLOOKUP($B26,Pitcher!$A$1:$AB$700,21,FALSE),""),"") ->  | T26: =IFERROR(IF((OR($C26="RP",$C26="SP")),VLOOKUP($B26,Pitcher!$A$1:$V$700,22,FALSE),""),"") ->  | U26: =IFERROR(IF((OR($C26="RP",$C26="SP")),"",VLOOKUP($B26,Hitter!$A$1:$AH$700,27,FALSE)),"") -> 0.2640785093 | V26: =IFERROR(IF((OR($C26="RP",$C26="SP")),"",VLOOKUP($B26,Hitter!$A$1:$AH$700,9,FALSE)),"") -> 29.09632976 | W26: =IFERROR(IF((OR($C26="RP",$C26="SP")),"",VLOOKUP($B26,Hitter!$A$1:$AH$700,10,FALSE)),"") -> 90.14135783 | X26: =IFERROR(IF((OR($C26="RP",$C26="SP")),"",VLOOKUP($B26,Hitter!$A$1:$AH$700,4,FALSE)),"") -> 85.06896284 | Y26: =IFERROR(IF((OR($C26="RP",$C26="SP")),"",VLOOKUP($B26,Hitter!$A$1:$AH$700,11,FALSE)),"") -> 3.627126366 | Z26: =IFERROR(IF(ISTEXT($A26),"",(1-NORMDIST((COUNTA($A$6:$A$745)),($G26),((AE26-AD26)/6),TRUE))),"") -> 1 | AA26: =IFERROR(IF(ISTEXT($A26),"",(1-NORMDIST((COUNTA($A$6:$A$745))+(Personalize!$E$18+1),$G26,((AE26-AD26)/6),TRUE))),"") -> 1 | AB26: =IFERROR(IF(ISTEXT($A26),"",(1-NORMDIST((COUNTA($A$6:$A$745))+((Personalize!$E$18+1)*2),$G26,((AE26-AD26)/6),TRUE))),"") -> 1 | AD26: =IF(Personalize!$E$34=1,VLOOKUP($B26,'ADP-Rank'!$A$2:$J$700,5,FALSE),(IF(Personalize!$E$34=2,VLOOKUP($B26,'ADP-Rank'!$A$2:$J$700,8,FALSE),(IF(Personalize!$E$34=3,VLOOKUP($B26,'ADP-Rank'!$A$2:$O$700,11,FALSE),(IF(Personalize!$E$31=4,VLOOKUP($B26,'ADP-Rank'!$A$2:$AZ$700,25,FALSE),(IF(Personalize!$E$31=5,VLOOKUP($B26,'ADP-Rank'!$A$2:$AZ$700,28,FALSE),(IF(Personalize!$E$31=6,VLOOKUP($B26,'ADP-Rank'!$A$2:$AZ$700,32,FALSE),""))))))))))) -> 15 | AE26: =IF(Personalize!$E$34=1,VLOOKUP($B26,'ADP-Rank'!$A$2:$J$700,6,FALSE),(IF(Personalize!$E$34=2,VLOOKUP($B26,'ADP-Rank'!$A$2:$J$700,9,FALSE),(IF(Personalize!$E$34=3,VLOOKUP($B26,'ADP-Rank'!$A$2:$O$700,12,FALSE),(IF(Personalize!$E$31=4,VLOOKUP($B26,'ADP-Rank'!$A$2:$AZ$700,26,FALSE),(IF(Personalize!$E$31=5,VLOOKUP($B26,'ADP-Rank'!$A$2:$AZ$700,29,FALSE),(IF(Personalize!$E$31=6,VLOOKUP($B26,'ADP-Rank'!$A$2:$AZ$700,33,FALSE),""))))))))))) -> 22 | AF26: =IF(ISBLANK(A26),0,1) -> 0 | AG26: =IF(K26="",0,1) -> 1 | AH26: =A26 -> 0 | AI26: =IF(C26="C",1,IF(C26="1B",2,IF(C26="2B",3,IF(C26="3B",4,IF(C26="SS",5,IF(C26="CI",6,IF(C26="MI",7,IF(C26="OF",11,IF(C26="LF",8,IF(C26="CF",9,IF(C26="RF",10,IF(C26="DH",12,IF(C26="SP",13,IF(C26="RP",14,IF(C26="P",15,16))))))))))))))) -> 4 | AJ26: =VLOOKUP(B26,'Starter Calc'!$B$2:$BN$700,65,FALSE) -> Bench | AK26: =IFERROR(VLOOKUP($B26,'ADP-Rank'!$A$2:$AH$964,34,FALSE),TRUE) -> TRUE | AL26: 0
B27: Chris Davis | C27: 1B | D27: =IFERROR(IF(VLOOKUP(B27,'Starter Calc'!$B$2:$E$700,4,FALSE)="","",VLOOKUP(B27,'Starter Calc'!$B$2:$E$700,4,FALSE)),"") -> ,, | E27: =IFERROR(VLOOKUP($B27,'ADP-Rank'!$A$2:$D$700,3,FALSE),"") -> BAL | F27: =IFERROR(VLOOKUP($B27,'ADP-Rank'!$A$2:$W$700,23,FALSE),"") -> 28 | G27: =IFERROR((IF(Personalize!$E$38=1,VLOOKUP($B27,'ADP-Rank'!$A$2:$J$700,4,FALSE),(IF(Personalize!$E$38=2,VLOOKUP($B27,'ADP-Rank'!$A$2:$J$700,7,FALSE),(IF(Personalize!$E$38=3,VLOOKUP($B27,'ADP-Rank'!$A$2:$J$700,10,FALSE),(IF(Personalize!$E$38=4,VLOOKUP($B27,'ADP-Rank'!$A$2:$AD$700,24,FALSE),(IF(Personalize!$E$38=5,VLOOKUP($B27,'ADP-Rank'!$A$2:$AD$700,27,FALSE),(IF(Personalize!$E$38=6,VLOOKUP($B27,'ADP-Rank'!$A$2:$AZ$700,30,FALSE),(IF(Personalize!$E$38=7,VLOOKUP($B27,'ADP-Rank'!$A$2:$AZ$700,39,FALSE))))))))))))))),"") -> 23.84 | H27: =IFERROR(ROUNDDOWN(VLOOKUP($B27,'ADP-Rank'!$A$2:$AY$1064,38,FALSE),0),"") -> 2 | I27: =VLOOKUP($B27,'ADP-Rank'!$A$2:$AJ$1064,36,FALSE) -> 25 | J27: =IFERROR(RANK($M27,$M$6:$M$745,0),"") -> 112 | K27: =IFERROR(IF((OR($C27="RP",$C27="SP")),VLOOKUP($B27,Pitcher!$A$1:$Z$700,20,FALSE),(VLOOKUP($B27,Hitter!$A$1:$Z$700,26,FALSE))),"") -> 350.1217419 | L27: =IFERROR(IF((OR($C27="RP",$C27="SP")),VLOOKUP($C27,'Filtered-P'!$M$3:$P$4,4,FALSE), VLOOKUP($C27,Filtered!$Q$3:$T$14,4,FALSE)),"") -> 372.669335 | M27: =IFERROR(($K27-$L27)/IF(OR($C27="SP",$C27="RP"),VLOOKUP($C27,'Filtered-P'!$M$3:$T$4,8,FALSE),VLOOKUP($C27,Filtered!$Q$3:$X$10,8,FALSE)),"") -> -0.4321280718 | N27: =IFERROR(IF((OR($C27="RP",$C27="SP")),"",(VLOOKUP($B27,Hitter!$A$1:$Z$700,26,FALSE)/VLOOKUP($B27,Hitter!$A$1:$Z$700,2,FALSE))),"") -> 0.5777904316 | O27: =IFERROR(IF((OR($C27="RP",$C27="SP")),VLOOKUP($B27,Pitcher!$A$1:$Z$700,20,FALSE)/VLOOKUP($B27,Pitcher!$A$1:$Z$700,4,FALSE),""),"") ->  | P27: =IFERROR(IF((OR($C27="RP",$C27="SP")),VLOOKUP($B27,Pitcher!$A$1:$V$700,2,FALSE),""),"") ->  | Q27: =IFERROR(IF((OR($C27="RP",$C27="SP")),VLOOKUP($B27,Pitcher!$A$1:$V$700,9,FALSE),""),"") ->  | R27: =IFERROR(IF((OR($C27="RP",$C27="SP")),VLOOKUP($B27,Pitcher!$A$1:$V$700,7,FALSE),""),"") ->  | S27: =IFERROR(IF((OR($C27="RP",$C27="SP")),VLOOKUP($B27,Pitcher!$A$1:$AB$700,21,FALSE),""),"") ->  | T27: =IFERROR(IF((OR($C27="RP",$C27="SP")),VLOOKUP($B27,Pitcher!$A$1:$V$700,22,FALSE),""),"") ->  | U27: =IFERROR(IF((OR($C27="RP",$C27="SP")),"",VLOOKUP($B27,Hitter!$A$1:$AH$700,27,FALSE)),"") -> 0.26705578 | V27: =IFERROR(IF((OR($C27="RP",$C27="SP")),"",VLOOKUP($B27,Hitter!$A$1:$AH$700,9,FALSE)),"") -> 37.4216898 | W27: =IFERROR(IF((OR($C27="RP",$C27="SP")),"",VLOOKUP($B27,Hitter!$A$1:$AH$700,10,FALSE)),"") -> 99.35281976 | X27: =IFERROR(IF((OR($C27="RP",$C27="SP")),"",VLOOKUP($B27,Hitter!$A$1:$AH$700,4,FALSE)),"") -> 87.54918592 | Y27: =IFERROR(IF((OR($C27="RP",$C27="SP")),"",VLOOKUP($B27,Hitter!$A$1:$AH$700,11,FALSE)),"") -> 3.475296195 | Z27: =IFERROR(IF(ISTEXT($A27),"",(1-NORMDIST((COUNTA($A$6:$A$745)),($G27),((AE27-AD27)/6),TRUE))),"") -> 1 | AA27: =IFERROR(IF(ISTEXT($A27),"",(1-NORMDIST((COUNTA($A$6:$A$745))+(Personalize!$E$18+1),$G27,((AE27-AD27)/6),TRUE))),"") -> 1 | AB27: =IFERROR(IF(ISTEXT($A27),"",(1-NORMDIST((COUNTA($A$6:$A$745))+((Personalize!$E$18+1)*2),$G27,((AE27-AD27)/6),TRUE))),"") -> 1 | AD27: =IF(Personalize!$E$34=1,VLOOKUP($B27,'ADP-Rank'!$A$2:$J$700,5,FALSE),(IF(Personalize!$E$34=2,VLOOKUP($B27,'ADP-Rank'!$A$2:$J$700,8,FALSE),(IF(Personalize!$E$34=3,VLOOKUP($B27,'ADP-Rank'!$A$2:$O$700,11,FALSE),(IF(Personalize!$E$31=4,VLOOKUP($B27,'ADP-Rank'!$A$2:$AZ$700,25,FALSE),(IF(Personalize!$E$31=5,VLOOKUP($B27,'ADP-Rank'!$A$2:$AZ$700,28,FALSE),(IF(Personalize!$E$31=6,VLOOKUP($B27,'ADP-Rank'!$A$2:$AZ$700,32,FALSE),""))))))))))) -> 4 | AE27: =IF(Personalize!$E$34=1,VLOOKUP($B27,'ADP-Rank'!$A$2:$J$700,6,FALSE),(IF(Personalize!$E$34=2,VLOOKUP($B27,'ADP-Rank'!$A$2:$J$700,9,FALSE),(IF(Personalize!$E$34=3,VLOOKUP($B27,'ADP-Rank'!$A$2:$O$700,12,FALSE),(IF(Personalize!$E$31=4,VLOOKUP($B27,'ADP-Rank'!$A$2:$AZ$700,26,FALSE),(IF(Personalize!$E$31=5,VLOOKUP($B27,'ADP-Rank'!$A$2:$AZ$700,29,FALSE),(IF(Personalize!$E$31=6,VLOOKUP($B27,'ADP-Rank'!$A$2:$AZ$700,33,FALSE),""))))))))))) -> 9 | AF27: =IF(ISBLANK(A27),0,1) -> 0 | AG27: =IF(K27="",0,1) -> 1 | AH27: =A27 -> 0 | AI27: =IF(C27="C",1,IF(C27="1B",2,IF(C27="2B",3,IF(C27="3B",4,IF(C27="SS",5,IF(C27="CI",6,IF(C27="MI",7,IF(C27="OF",11,IF(C27="LF",8,IF(C27="CF",9,IF(C27="RF",10,IF(C27="DH",12,IF(C27="SP",13,IF(C27="RP",14,IF(C27="P",15,16))))))))))))))) -> 2 | AJ27: =VLOOKUP(B27,'Starter Calc'!$B$2:$BN$700,65,FALSE) -> Bench | AK27: =IFERROR(VLOOKUP($B27,'ADP-Rank'!$A$2:$AH$964,34,FALSE),TRUE) -> TRUE | AL27: 0
B28: Jacoby Ellsbury | C28: OF | D28: =IFERROR(IF(VLOOKUP(B28,'Starter Calc'!$B$2:$E$700,4,FALSE)="","",VLOOKUP(B28,'Starter Calc'!$B$2:$E$700,4,FALSE)),"") -> ,,CF | E28: =IFERROR(VLOOKUP($B28,'ADP-Rank'!$A$2:$D$700,3,FALSE),"") -> NYY | F28: =IFERROR(VLOOKUP($B28,'ADP-Rank'!$A$2:$W$700,23,FALSE),"") -> 30 | G28: =IFERROR((IF(Personalize!$E$38=1,VLOOKUP($B28,'ADP-Rank'!$A$2:$J$700,4,FALSE),(IF(Personalize!$E$38=2,VLOOKUP($B28,'ADP-Rank'!$A$2:$J$700,7,FALSE),(IF(Personalize!$E$38=3,VLOOKUP($B28,'ADP-Rank'!$A$2:$J$700,10,FALSE),(IF(Personalize!$E$38=4,VLOOKUP($B28,'ADP-Rank'!$A$2:$AD$700,24,FALSE),(IF(Personalize!$E$38=5,VLOOKUP($B28,'ADP-Rank'!$A$2:$AD$700,27,FALSE),(IF(Personalize!$E$38=6,VLOOKUP($B28,'ADP-Rank'!$A$2:$AZ$700,30,FALSE),(IF(Personalize!$E$38=7,VLOOKUP($B28,'ADP-Rank'!$A$2:$AZ$700,39,FALSE))))))))))))))),"") -> 24.37 | H28: =IFERROR(ROUNDDOWN(VLOOKUP($B28,'ADP-Rank'!$A$2:$AY$1064,38,FALSE),0),"") -> 2 | I28: =VLOOKUP($B28,'ADP-Rank'!$A$2:$AJ$1064,36,FALSE) -> 45 | J28: =IFERROR(RANK($M28,$M$6:$M$745,0),"") -> 49 | K28: =IFERROR(IF((OR($C28="RP",$C28="SP")),VLOOKUP($B28,Pitcher!$A$1:$Z$700,20,FALSE),(VLOOKUP($B28,Hitter!$A$1:$Z$700,26,FALSE))),"") -> 368.7521606 | L28: =IFERROR(IF((OR($C28="RP",$C28="SP")),VLOOKUP($C28,'Filtered-P'!$M$3:$P$4,4,FALSE), VLOOKUP($C28,Filtered!$Q$3:$T$14,4,FALSE)),"") -> 350.7983075 | M28: =IFERROR(($K28-$L28)/IF(OR($C28="SP",$C28="RP"),VLOOKUP($C28,'Filtered-P'!$M$3:$T$4,8,FALSE),VLOOKUP($C28,Filtered!$Q$3:$X$10,8,FALSE)),"") -> 0.4398123018 | N28: =IFERROR(IF((OR($C28="RP",$C28="SP")),"",(VLOOKUP($B28,Hitter!$A$1:$Z$700,26,FALSE)/VLOOKUP($B28,Hitter!$A$1:$Z$700,2,FALSE))),"") -> 0.5994995296 | O28: =IFERROR(IF((OR($C28="RP",$C28="SP")),VLOOKUP($B28,Pitcher!$A$1:$Z$700,20,FALSE)/VLOOKUP($B28,Pitcher!$A$1:$Z$700,4,FALSE),""),"") ->  | P28: =IFERROR(IF((OR($C28="RP",$C28="SP")),VLOOKUP($B28,Pitcher!$A$1:$V$700,2,FALSE),""),"") ->  | Q28: =IFERROR(IF((OR($C28="RP",$C28="SP")),VLOOKUP($B28,Pitcher!$A$1:$V$700,9,FALSE),""),"") ->  | R28: =IFERROR(IF((OR($C28="RP",$C28="SP")),VLOOKUP($B28,Pitcher!$A$1:$V$700,7,FALSE),""),"") ->  | S28: =IFERROR(IF((OR($C28="RP",$C28="SP")),VLOOKUP($B28,Pitcher!$A$1:$AB$700,21,FALSE),""),"") ->  | T28: =IFERROR(IF((OR($C28="RP",$C28="SP")),VLOOKUP($B28,Pitcher!$A$1:$V$700,22,FALSE),""),"") ->  | U28: =IFERROR(IF((OR($C28="RP",$C28="SP")),"",VLOOKUP($B28,Hitter!$A$1:$AH$700,27,FALSE)),"") -> 0.2819990645 | V28: =IFERROR(IF((OR($C28="RP",$C28="SP")),"",VLOOKUP($B28,Hitter!$A$1:$AH$700,9,FALSE)),"") -> 14.04383237 | W28: =IFERROR(IF((OR($C28="RP",$C28="SP")),"",VLOOKUP($B28,Hitter!$A$1:$AH$700,10,FALSE)),"") -> 58.64910077 | X28: =IFERROR(IF((OR($C28="RP",$C28="SP")),"",VLOOKUP($B28,Hitter!$A$1:$AH$700,4,FALSE)),"") -> 86.76744249 | Y28: =IFERROR(IF((OR($C28="RP",$C28="SP")),"",VLOOKUP($B28,Hitter!$A$1:$AH$700,11,FALSE)),"") -> 36.71736601 | Z28: =IFERROR(IF(ISTEXT($A28),"",(1-NORMDIST((COUNTA($A$6:$A$745)),($G28),((AE28-AD28)/6),TRUE))),"") -> 1 | AA28: =IFERROR(IF(ISTEXT($A28),"",(1-NORMDIST((COUNTA($A$6:$A$745))+(Personalize!$E$18+1),$G28,((AE28-AD28)/6),TRUE))),"") -> 1 | AB28: =IFERROR(IF(ISTEXT($A28),"",(1-NORMDIST((COUNTA($A$6:$A$745))+((Personalize!$E$18+1)*2),$G28,((AE28-AD28)/6),TRUE))),"") -> 1 | AD28: =IF(Personalize!$E$34=1,VLOOKUP($B28,'ADP-Rank'!$A$2:$J$700,5,FALSE),(IF(Personalize!$E$34=2,VLOOKUP($B28,'ADP-Rank'!$A$2:$J$700,8,FALSE),(IF(Personalize!$E$34=3,VLOOKUP($B28,'ADP-Rank'!$A$2:$O$700,11,FALSE),(IF(Personalize!$E$31=4,VLOOKUP($B28,'ADP-Rank'!$A$2:$AZ$700,25,FALSE),(IF(Personalize!$E$31=5,VLOOKUP($B28,'ADP-Rank'!$A$2:$AZ$700,28,FALSE),(IF(Personalize!$E$31=6,VLOOKUP($B28,'ADP-Rank'!$A$2:$AZ$700,32,FALSE),""))))))))))) -> 11 | AE28: =IF(Personalize!$E$34=1,VLOOKUP($B28,'ADP-Rank'!$A$2:$J$700,6,FALSE),(IF(Personalize!$E$34=2,VLOOKUP($B28,'ADP-Rank'!$A$2:$J$700,9,FALSE),(IF(Personalize!$E$34=3,VLOOKUP($B28,'ADP-Rank'!$A$2:$O$700,12,FALSE),(IF(Personalize!$E$31=4,VLOOKUP($B28,'ADP-Rank'!$A$2:$AZ$700,26,FALSE),(IF(Personalize!$E$31=5,VLOOKUP($B28,'ADP-Rank'!$A$2:$AZ$700,29,FALSE),(IF(Personalize!$E$31=6,VLOOKUP($B28,'ADP-Rank'!$A$2:$AZ$700,33,FALSE),""))))))))))) -> 17 | AF28: =IF(ISBLANK(A28),0,1) -> 0 | AG28: =IF(K28="",0,1) -> 1 | AH28: =A28 -> 0 | AI28: =IF(C28="C",1,IF(C28="1B",2,IF(C28="2B",3,IF(C28="3B",4,IF(C28="SS",5,IF(C28="CI",6,IF(C28="MI",7,IF(C28="OF",11,IF(C28="LF",8,IF(C28="CF",9,IF(C28="RF",10,IF(C28="DH",12,IF(C28="SP",13,IF(C28="RP",14,IF(C28="P",15,16))))))))))))))) -> 11 | AJ28: =VLOOKUP(B28,'Starter Calc'!$B$2:$BN$700,65,FALSE) -> Bench | AK28: =IFERROR(VLOOKUP($B28,'ADP-Rank'!$A$2:$AH$964,34,FALSE),TRUE) -> TRUE | AL28: 0
B29: Jose Fernandez | C29: SP | D29: =IFERROR(IF(VLOOKUP(B29,'Starter Calc'!$B$2:$E$700,4,FALSE)="","",VLOOKUP(B29,'Starter Calc'!$B$2:$E$700,4,FALSE)),"") -> ,, | E29: =IFERROR(VLOOKUP($B29,'ADP-Rank'!$A$2:$D$700,3,FALSE),"") -> MIA | F29: =IFERROR(VLOOKUP($B29,'ADP-Rank'!$A$2:$W$700,23,FALSE),"") -> 21 | G29: =IFERROR((IF(Personalize!$E$38=1,VLOOKUP($B29,'ADP-Rank'!$A$2:$J$700,4,FALSE),(IF(Personalize!$E$38=2,VLOOKUP($B29,'ADP-Rank'!$A$2:$J$700,7,FALSE),(IF(Personalize!$E$38=3,VLOOKUP($B29,'ADP-Rank'!$A$2:$J$700,10,FALSE),(IF(Personalize!$E$38=4,VLOOKUP($B29,'ADP-Rank'!$A$2:$AD$700,24,FALSE),(IF(Personalize!$E$38=5,VLOOKUP($B29,'ADP-Rank'!$A$2:$AD$700,27,FALSE),(IF(Personalize!$E$38=6,VLOOKUP($B29,'ADP-Rank'!$A$2:$AZ$700,30,FALSE),(IF(Personalize!$E$38=7,VLOOKUP($B29,'ADP-Rank'!$A$2:$AZ$700,39,FALSE))))))))))))))),"") -> 25.13 | H29: =IFERROR(ROUNDDOWN(VLOOKUP($B29,'ADP-Rank'!$A$2:$AY$1064,38,FALSE),0),"") -> 2 | I29: =VLOOKUP($B29,'ADP-Rank'!$A$2:$AJ$1064,36,FALSE) -> 94 | J29: =IFERROR(RANK($M29,$M$6:$M$745,0),"") -> 28 | K29: =IFERROR(IF((OR($C29="RP",$C29="SP")),VLOOKUP($B29,Pitcher!$A$1:$Z$700,20,FALSE),(VLOOKUP($B29,Hitter!$A$1:$Z$700,26,FALSE))),"") -> 489.7267517 | L29: =IFERROR(IF((OR($C29="RP",$C29="SP")),VLOOKUP($C29,'Filtered-P'!$M$3:$P$4,4,FALSE), VLOOKUP($C29,Filtered!$Q$3:$T$14,4,FALSE)),"") -> 411.2053549 | M29: =IFERROR(($K29-$L29)/IF(OR($C29="SP",$C29="RP"),VLOOKUP($C29,'Filtered-P'!$M$3:$T$4,8,FALSE),VLOOKUP($C29,Filtered!$Q$3:$X$10,8,FALSE)),"") -> 1.044174527 | N29: =IFERROR(IF((OR($C29="RP",$C29="SP")),"",(VLOOKUP($B29,Hitter!$A$1:$Z$700,26,FALSE)/VLOOKUP($B29,Hitter!$A$1:$Z$700,2,FALSE))),"") ->  | O29: =IFERROR(IF((OR($C29="RP",$C29="SP")),VLOOKUP($B29,Pitcher!$A$1:$Z$700,20,FALSE)/VLOOKUP($B29,Pitcher!$A$1:$Z$700,4,FALSE),""),"") -> 2.473367433 | P29: =IFERROR(IF((OR($C29="RP",$C29="SP")),VLOOKUP($B29,Pitcher!$A$1:$V$700,2,FALSE),""),"") -> 14.04418756 | Q29: =IFERROR(IF((OR($C29="RP",$C29="SP")),VLOOKUP($B29,Pitcher!$A$1:$V$700,9,FALSE),""),"") -> 0 | R29: =IFERROR(IF((OR($C29="RP",$C29="SP")),VLOOKUP($B29,Pitcher!$A$1:$V$700,7,FALSE),""),"") -> 216.3176181 | S29: =IFERROR(IF((OR($C29="RP",$C29="SP")),VLOOKUP($B29,Pitcher!$A$1:$AB$700,21,FALSE),""),"") -> 3.156221591 | T29: =IFERROR(IF((OR($C29="RP",$C29="SP")),VLOOKUP($B29,Pitcher!$A$1:$V$700,22,FALSE),""),"") -> 1.170828598 | U29: =IFERROR(IF((OR($C29="RP",$C29="SP")),"",VLOOKUP($B29,Hitter!$A$1:$AH$700,27,FALSE)),"") ->  | V29: =IFERROR(IF((OR($C29="RP",$C29="SP")),"",VLOOKUP($B29,Hitter!$A$1:$AH$700,9,FALSE)),"") ->  | W29: =IFERROR(IF((OR($C29="RP",$C29="SP")),"",VLOOKUP($B29,Hitter!$A$1:$AH$700,10,FALSE)),"") ->  | X29: =IFERROR(IF((OR($C29="RP",$C29="SP")),"",VLOOKUP($B29,Hitter!$A$1:$AH$700,4,FALSE)),"") ->  | Y29: =IFERROR(IF((OR($C29="RP",$C29="SP")),"",VLOOKUP($B29,Hitter!$A$1:$AH$700,11,FALSE)),"") ->  | Z29: =IFERROR(IF(ISTEXT($A29),"",(1-NORMDIST((COUNTA($A$6:$A$745)),($G29),((AE29-AD29)/6),TRUE))),"") -> 1 | AA29: =IFERROR(IF(ISTEXT($A29),"",(1-NORMDIST((COUNTA($A$6:$A$745))+(Personalize!$E$18+1),$G29,((AE29-AD29)/6),TRUE))),"") -> 1 | AB29: =IFERROR(IF(ISTEXT($A29),"",(1-NORMDIST((COUNTA($A$6:$A$745))+((Personalize!$E$18+1)*2),$G29,((AE29-AD29)/6),TRUE))),"") -> 1 | AD29: =IF(Personalize!$E$34=1,VLOOKUP($B29,'ADP-Rank'!$A$2:$J$700,5,FALSE),(IF(Personalize!$E$34=2,VLOOKUP($B29,'ADP-Rank'!$A$2:$J$700,8,FALSE),(IF(Personalize!$E$34=3,VLOOKUP($B29,'ADP-Rank'!$A$2:$O$700,11,FALSE),(IF(Personalize!$E$31=4,VLOOKUP($B29,'ADP-Rank'!$A$2:$AZ$700,25,FALSE),(IF(Personalize!$E$31=5,VLOOKUP($B29,'ADP-Rank'!$A$2:$AZ$700,28,FALSE),(IF(Personalize!$E$31=6,VLOOKUP($B29,'ADP-Rank'!$A$2:$AZ$700,32,FALSE),""))))))))))) -> 51 | AE29: =IF(Personalize!$E$34=1,VLOOKUP($B29,'ADP-Rank'!$A$2:$J$700,6,FALSE),(IF(Personalize!$E$34=2,VLOOKUP($B29,'ADP-Rank'!$A$2:$J$700,9,FALSE),(IF(Personalize!$E$34=3,VLOOKUP($B29,'ADP-Rank'!$A$2:$O$700,12,FALSE),(IF(Personalize!$E$31=4,VLOOKUP($B29,'ADP-Rank'!$A$2:$AZ$700,26,FALSE),(IF(Personalize!$E$31=5,VLOOKUP($B29,'ADP-Rank'!$A$2:$AZ$700,29,FALSE),(IF(Personalize!$E$31=6,VLOOKUP($B29,'ADP-Rank'!$A$2:$AZ$700,33,FALSE),""))))))))))) -> 67 | AF29: =IF(ISBLANK(A29),0,1) -> 0 | AG29: =IF(K29="",0,1) -> 1 | AH29: =A29 -> 0 | AI29: =IF(C29="C",1,IF(C29="1B",2,IF(C29="2B",3,IF(C29="3B",4,IF(C29="SS",5,IF(C29="CI",6,IF(C29="MI",7,IF(C29="OF",11,IF(C29="LF",8,IF(C29="CF",9,IF(C29="RF",10,IF(C29="DH",12,IF(C29="SP",13,IF(C29="RP",14,IF(C29="P",15,16))))))))))))))) -> 13 | AJ29: =VLOOKUP(B29,'Starter Calc'!$B$2:$BN$700,65,FALSE) -> Bench | AK29: =IFERROR(VLOOKUP($B29,'ADP-Rank'!$A$2:$AH$964,34,FALSE),TRUE) -> TRUE | AL29: 1
B30: Chris Sale | C30: SP | D30: =IFERROR(IF(VLOOKUP(B30,'Starter Calc'!$B$2:$E$700,4,FALSE)="","",VLOOKUP(B30,'Starter Calc'!$B$2:$E$700,4,FALSE)),"") -> ,, | E30: =IFERROR(VLOOKUP($B30,'ADP-Rank'!$A$2:$D$700,3,FALSE),"") -> CHW | F30: =IFERROR(VLOOKUP($B30,'ADP-Rank'!$A$2:$W$700,23,FALSE),"") -> 25 | G30: =IFERROR((IF(Personalize!$E$38=1,VLOOKUP($B30,'ADP-Rank'!$A$2:$J$700,4,FALSE),(IF(Personalize!$E$38=2,VLOOKUP($B30,'ADP-Rank'!$A$2:$J$700,7,FALSE),(IF(Personalize!$E$38=3,VLOOKUP($B30,'ADP-Rank'!$A$2:$J$700,10,FALSE),(IF(Personalize!$E$38=4,VLOOKUP($B30,'ADP-Rank'!$A$2:$AD$700,24,FALSE),(IF(Personalize!$E$38=5,VLOOKUP($B30,'ADP-Rank'!$A$2:$AD$700,27,FALSE),(IF(Personalize!$E$38=6,VLOOKUP($B30,'ADP-Rank'!$A$2:$AZ$700,30,FALSE),(IF(Personalize!$E$38=7,VLOOKUP($B30,'ADP-Rank'!$A$2:$AZ$700,39,FALSE))))))))))))))),"") -> 25.3 | H30: =IFERROR(ROUNDDOWN(VLOOKUP($B30,'ADP-Rank'!$A$2:$AY$1064,38,FALSE),0),"") -> 2 | I30: =VLOOKUP($B30,'ADP-Rank'!$A$2:$AJ$1064,36,FALSE) -> 37 | J30: =IFERROR(RANK($M30,$M$6:$M$745,0),"") -> 16 | K30: =IFERROR(IF((OR($C30="RP",$C30="SP")),VLOOKUP($B30,Pitcher!$A$1:$Z$700,20,FALSE),(VLOOKUP($B30,Hitter!$A$1:$Z$700,26,FALSE))),"") -> 522.5688501 | L30: =IFERROR(IF((OR($C30="RP",$C30="SP")),VLOOKUP($C30,'Filtered-P'!$M$3:$P$4,4,FALSE), VLOOKUP($C30,Filtered!$Q$3:$T$14,4,FALSE)),"") -> 411.2053549 | M30: =IFERROR(($K30-$L30)/IF(OR($C30="SP",$C30="RP"),VLOOKUP($C30,'Filtered-P'!$M$3:$T$4,8,FALSE),VLOOKUP($C30,Filtered!$Q$3:$X$10,8,FALSE)),"") -> 1.480907495 | N30: =IFERROR(IF((OR($C30="RP",$C30="SP")),"",(VLOOKUP($B30,Hitter!$A$1:$Z$700,26,FALSE)/VLOOKUP($B30,Hitter!$A$1:$Z$700,2,FALSE))),"") ->  | O30: =IFERROR(IF((OR($C30="RP",$C30="SP")),VLOOKUP($B30,Pitcher!$A$1:$Z$700,20,FALSE)/VLOOKUP($B30,Pitcher!$A$1:$Z$700,4,FALSE),""),"") -> 2.464947406 | P30: =IFERROR(IF((OR($C30="RP",$C30="SP")),VLOOKUP($B30,Pitcher!$A$1:$V$700,2,FALSE),""),"") -> 14.61238852 | Q30: =IFERROR(IF((OR($C30="RP",$C30="SP")),VLOOKUP($B30,Pitcher!$A$1:$V$700,9,FALSE),""),"") -> 0 | R30: =IFERROR(IF((OR($C30="RP",$C30="SP")),VLOOKUP($B30,Pitcher!$A$1:$V$700,7,FALSE),""),"") -> 228.6058249 | S30: =IFERROR(IF((OR($C30="RP",$C30="SP")),VLOOKUP($B30,Pitcher!$A$1:$AB$700,21,FALSE),""),"") -> 3.346176297 | T30: =IFERROR(IF((OR($C30="RP",$C30="SP")),VLOOKUP($B30,Pitcher!$A$1:$V$700,22,FALSE),""),"") -> 1.125440252 | U30: =IFERROR(IF((OR($C30="RP",$C30="SP")),"",VLOOKUP($B30,Hitter!$A$1:$AH$700,27,FALSE)),"") ->  | V30: =IFERROR(IF((OR($C30="RP",$C30="SP")),"",VLOOKUP($B30,Hitter!$A$1:$AH$700,9,FALSE)),"") ->  | W30: =IFERROR(IF((OR($C30="RP",$C30="SP")),"",VLOOKUP($B30,Hitter!$A$1:$AH$700,10,FALSE)),"") ->  | X30: =IFERROR(IF((OR($C30="RP",$C30="SP")),"",VLOOKUP($B30,Hitter!$A$1:$AH$700,4,FALSE)),"") ->  | Y30: =IFERROR(IF((OR($C30="RP",$C30="SP")),"",VLOOKUP($B30,Hitter!$A$1:$AH$700,11,FALSE)),"") ->  | Z30: =IFERROR(IF(ISTEXT($A30),"",(1-NORMDIST((COUNTA($A$6:$A$745)),($G30),((AE30-AD30)/6),TRUE))),"") -> 1 | AA30: =IFERROR(IF(ISTEXT($A30),"",(1-NORMDIST((COUNTA($A$6:$A$745))+(Personalize!$E$18+1),$G30,((AE30-AD30)/6),TRUE))),"") -> 1 | AB30: =IFERROR(IF(ISTEXT($A30),"",(1-NORMDIST((COUNTA($A$6:$A$745))+((Personalize!$E$18+1)*2),$G30,((AE30-AD30)/6),TRUE))),"") -> 0.9999999962 | AD30: =IF(Personalize!$E$34=1,VLOOKUP($B30,'ADP-Rank'!$A$2:$J$700,5,FALSE),(IF(Personalize!$E$34=2,VLOOKUP($B30,'ADP-Rank'!$A$2:$J$700,8,FALSE),(IF(Personalize!$E$34=3,VLOOKUP($B30,'ADP-Rank'!$A$2:$O$700,11,FALSE),(IF(Personalize!$E$31=4,VLOOKUP($B30,'ADP-Rank'!$A$2:$AZ$700,25,FALSE),(IF(Personalize!$E$31=5,VLOOKUP($B30,'ADP-Rank'!$A$2:$AZ$700,28,FALSE),(IF(Personalize!$E$31=6,VLOOKUP($B30,'ADP-Rank'!$A$2:$AZ$700,32,FALSE),""))))))))))) -> 51 | AE30: =IF(Personalize!$E$34=1,VLOOKUP($B30,'ADP-Rank'!$A$2:$J$700,6,FALSE),(IF(Personalize!$E$34=2,VLOOKUP($B30,'ADP-Rank'!$A$2:$J$700,9,FALSE),(IF(Personalize!$E$34=3,VLOOKUP($B30,'ADP-Rank'!$A$2:$O$700,12,FALSE),(IF(Personalize!$E$31=4,VLOOKUP($B30,'ADP-Rank'!$A$2:$AZ$700,26,FALSE),(IF(Personalize!$E$31=5,VLOOKUP($B30,'ADP-Rank'!$A$2:$AZ$700,29,FALSE),(IF(Personalize!$E$31=6,VLOOKUP($B30,'ADP-Rank'!$A$2:$AZ$700,33,FALSE),""))))))))))) -> 70 | AF30: =IF(ISBLANK(A30),0,1) -> 0 | AG30: =IF(K30="",0,1) -> 1 | AH30: =A30 -> 0 | AI30: =IF(C30="C",1,IF(C30="1B",2,IF(C30="2B",3,IF(C30="3B",4,IF(C30="SS",5,IF(C30="CI",6,IF(C30="MI",7,IF(C30="OF",11,IF(C30="LF",8,IF(C30="CF",9,IF(C30="RF",10,IF(C30="DH",12,IF(C30="SP",13,IF(C30="RP",14,IF(C30="P",15,16))))))))))))))) -> 13 | AJ30: =VLOOKUP(B30,'Starter Calc'!$B$2:$BN$700,65,FALSE) -> Bench | AK30: =IFERROR(VLOOKUP($B30,'ADP-Rank'!$A$2:$AH$964,34,FALSE),TRUE) -> TRUE | AL30: 1
B31: Edwin Encarnacion | C31: 1B | D31: =IFERROR(IF(VLOOKUP(B31,'Starter Calc'!$B$2:$E$700,4,FALSE)="","",VLOOKUP(B31,'Starter Calc'!$B$2:$E$700,4,FALSE)),"") -> ,, | E31: =IFERROR(VLOOKUP($B31,'ADP-Rank'!$A$2:$D$700,3,FALSE),"") -> TOR | F31: =IFERROR(VLOOKUP($B31,'ADP-Rank'!$A$2:$W$700,23,FALSE),"") -> 31 | G31: =IFERROR((IF(Personalize!$E$38=1,VLOOKUP($B31,'ADP-Rank'!$A$2:$J$700,4,FALSE),(IF(Personalize!$E$38=2,VLOOKUP($B31,'ADP-Rank'!$A$2:$J$700,7,FALSE),(IF(Personalize!$E$38=3,VLOOKUP($B31,'ADP-Rank'!$A$2:$J$700,10,FALSE),(IF(Personalize!$E$38=4,VLOOKUP($B31,'ADP-Rank'!$A$2:$AD$700,24,FALSE),(IF(Personalize!$E$38=5,VLOOKUP($B31,'ADP-Rank'!$A$2:$AD$700,27,FALSE),(IF(Personalize!$E$38=6,VLOOKUP($B31,'ADP-Rank'!$A$2:$AZ$700,30,FALSE),(IF(Personalize!$E$38=7,VLOOKUP($B31,'ADP-Rank'!$A$2:$AZ$700,39,FALSE))))))))))))))),"") -> 25.95 | H31: =IFERROR(ROUNDDOWN(VLOOKUP($B31,'ADP-Rank'!$A$2:$AY$1064,38,FALSE),0),"") -> 3 | I31: =VLOOKUP($B31,'ADP-Rank'!$A$2:$AJ$1064,36,FALSE) -> 3 | J31: =IFERROR(RANK($M31,$M$6:$M$745,0),"") -> 15 | K31: =IFERROR(IF((OR($C31="RP",$C31="SP")),VLOOKUP($B31,Pitcher!$A$1:$Z$700,20,FALSE),(VLOOKUP($B31,Hitter!$A$1:$Z$700,26,FALSE))),"") -> 454.4201385 | L31: =IFERROR(IF((OR($C31="RP",$C31="SP")),VLOOKUP($C31,'Filtered-P'!$M$3:$P$4,4,FALSE), VLOOKUP($C31,Filtered!$Q$3:$T$14,4,FALSE)),"") -> 372.669335 | M31: =IFERROR(($K31-$L31)/IF(OR($C31="SP",$C31="RP"),VLOOKUP($C31,'Filtered-P'!$M$3:$T$4,8,FALSE),VLOOKUP($C31,Filtered!$Q$3:$X$10,8,FALSE)),"") -> 1.56676666 | N31: =IFERROR(IF((OR($C31="RP",$C31="SP")),"",(VLOOKUP($B31,Hitter!$A$1:$Z$700,26,FALSE)/VLOOKUP($B31,Hitter!$A$1:$Z$700,2,FALSE))),"") -> 0.7427087158 | O31: =IFERROR(IF((OR($C31="RP",$C31="SP")),VLOOKUP($B31,Pitcher!$A$1:$Z$700,20,FALSE)/VLOOKUP($B31,Pitcher!$A$1:$Z$700,4,FALSE),""),"") ->  | P31: =IFERROR(IF((OR($C31="RP",$C31="SP")),VLOOKUP($B31,Pitcher!$A$1:$V$700,2,FALSE),""),"") ->  | Q31: =IFERROR(IF((OR($C31="RP",$C31="SP")),VLOOKUP($B31,Pitcher!$A$1:$V$700,9,FALSE),""),"") ->  | R31: =IFERROR(IF((OR($C31="RP",$C31="SP")),VLOOKUP($B31,Pitcher!$A$1:$V$700,7,FALSE),""),"") ->  | S31: =IFERROR(IF((OR($C31="RP",$C31="SP")),VLOOKUP($B31,Pitcher!$A$1:$AB$700,21,FALSE),""),"") ->  | T31: =IFERROR(IF((OR($C31="RP",$C31="SP")),VLOOKUP($B31,Pitcher!$A$1:$V$700,22,FALSE),""),"") ->  | U31: =IFERROR(IF((OR($C31="RP",$C31="SP")),"",VLOOKUP($B31,Hitter!$A$1:$AH$700,27,FALSE)),"") -> 0.2734996048 | V31: =IFERROR(IF((OR($C31="RP",$C31="SP")),"",VLOOKUP($B31,Hitter!$A$1:$AH$700,9,FALSE)),"") -> 33.22727116 | W31: =IFERROR(IF((OR($C31="RP",$C31="SP")),"",VLOOKUP($B31,Hitter!$A$1:$AH$700,10,FALSE)),"") -> 93.70485066 | X31: =IFERROR(IF((OR($C31="RP",$C31="SP")),"",VLOOKUP($B31,Hitter!$A$1:$AH$700,4,FALSE)),"") -> 89.57332074 | Y31: =IFERROR(IF((OR($C31="RP",$C31="SP")),"",VLOOKUP($B31,Hitter!$A$1:$AH$700,11,FALSE)),"") -> 6.920859561 | Z31: =IFERROR(IF(ISTEXT($A31),"",(1-NORMDIST((COUNTA($A$6:$A$745)),($G31),((AE31-AD31)/6),TRUE))),"") -> 1 | AA31: =IFERROR(IF(ISTEXT($A31),"",(1-NORMDIST((COUNTA($A$6:$A$745))+(Personalize!$E$18+1),$G31,((AE31-AD31)/6),TRUE))),"") -> 1 | AB31: =IFERROR(IF(ISTEXT($A31),"",(1-NORMDIST((COUNTA($A$6:$A$745))+((Personalize!$E$18+1)*2),$G31,((AE31-AD31)/6),TRUE))),"") -> 1 | AD31: =IF(Personalize!$E$34=1,VLOOKUP($B31,'ADP-Rank'!$A$2:$J$700,5,FALSE),(IF(Personalize!$E$34=2,VLOOKUP($B31,'ADP-Rank'!$A$2:$J$700,8,FALSE),(IF(Personalize!$E$34=3,VLOOKUP($B31,'ADP-Rank'!$A$2:$O$700,11,FALSE),(IF(Personalize!$E$31=4,VLOOKUP($B31,'ADP-Rank'!$A$2:$AZ$700,25,FALSE),(IF(Personalize!$E$31=5,VLOOKUP($B31,'ADP-Rank'!$A$2:$AZ$700,28,FALSE),(IF(Personalize!$E$31=6,VLOOKUP($B31,'ADP-Rank'!$A$2:$AZ$700,32,FALSE),""))))))))))) -> 7 | AE31: =IF(Personalize!$E$34=1,VLOOKUP($B31,'ADP-Rank'!$A$2:$J$700,6,FALSE),(IF(Personalize!$E$34=2,VLOOKUP($B31,'ADP-Rank'!$A$2:$J$700,9,FALSE),(IF(Personalize!$E$34=3,VLOOKUP($B31,'ADP-Rank'!$A$2:$O$700,12,FALSE),(IF(Personalize!$E$31=4,VLOOKUP($B31,'ADP-Rank'!$A$2:$AZ$700,26,FALSE),(IF(Personalize!$E$31=5,VLOOKUP($B31,'ADP-Rank'!$A$2:$AZ$700,29,FALSE),(IF(Personalize!$E$31=6,VLOOKUP($B31,'ADP-Rank'!$A$2:$AZ$700,33,FALSE),""))))))))))) -> 11 | AF31: =IF(ISBLANK(A31),0,1) -> 0 | AG31: =IF(K31="",0,1) -> 1 | AH31: =A31 -> 0 | AI31: =IF(C31="C",1,IF(C31="1B",2,IF(C31="2B",3,IF(C31="3B",4,IF(C31="SS",5,IF(C31="CI",6,IF(C31="MI",7,IF(C31="OF",11,IF(C31="LF",8,IF(C31="CF",9,IF(C31="RF",10,IF(C31="DH",12,IF(C31="SP",13,IF(C31="RP",14,IF(C31="P",15,16))))))))))))))) -> 2 | AJ31: =VLOOKUP(B31,'Starter Calc'!$B$2:$BN$700,65,FALSE) -> Starter | AK31: =IFERROR(VLOOKUP($B31,'ADP-Rank'!$A$2:$AH$964,34,FALSE),TRUE) -> TRUE | AL31: 0
B32: Madison Bumgarner | C32: SP | D32: =IFERROR(IF(VLOOKUP(B32,'Starter Calc'!$B$2:$E$700,4,FALSE)="","",VLOOKUP(B32,'Starter Calc'!$B$2:$E$700,4,FALSE)),"") -> ,, | E32: =IFERROR(VLOOKUP($B32,'ADP-Rank'!$A$2:$D$700,3,FALSE),"") -> SF | F32: =IFERROR(VLOOKUP($B32,'ADP-Rank'!$A$2:$W$700,23,FALSE),"") -> 24 | G32: =IFERROR((IF(Personalize!$E$38=1,VLOOKUP($B32,'ADP-Rank'!$A$2:$J$700,4,FALSE),(IF(Personalize!$E$38=2,VLOOKUP($B32,'ADP-Rank'!$A$2:$J$700,7,FALSE),(IF(Personalize!$E$38=3,VLOOKUP($B32,'ADP-Rank'!$A$2:$J$700,10,FALSE),(IF(Personalize!$E$38=4,VLOOKUP($B32,'ADP-Rank'!$A$2:$AD$700,24,FALSE),(IF(Personalize!$E$38=5,VLOOKUP($B32,'ADP-Rank'!$A$2:$AD$700,27,FALSE),(IF(Personalize!$E$38=6,VLOOKUP($B32,'ADP-Rank'!$A$2:$AZ$700,30,FALSE),(IF(Personalize!$E$38=7,VLOOKUP($B32,'ADP-Rank'!$A$2:$AZ$700,39,FALSE))))))))))))))),"") -> 27.63 | H32: =IFERROR(ROUNDDOWN(VLOOKUP($B32,'ADP-Rank'!$A$2:$AY$1064,38,FALSE),0),"") -> 3 | I32: =VLOOKUP($B32,'ADP-Rank'!$A$2:$AJ$1064,36,FALSE) -> 62 | J32: =IFERROR(RANK($M32,$M$6:$M$745,0),"") -> 34 | K32: =IFERROR(IF((OR($C32="RP",$C32="SP")),VLOOKUP($B32,Pitcher!$A$1:$Z$700,20,FALSE),(VLOOKUP($B32,Hitter!$A$1:$Z$700,26,FALSE))),"") -> 473.3601605 | L32: =IFERROR(IF((OR($C32="RP",$C32="SP")),VLOOKUP($C32,'Filtered-P'!$M$3:$P$4,4,FALSE), VLOOKUP($C32,Filtered!$Q$3:$T$14,4,FALSE)),"") -> 411.2053549 | M32: =IFERROR(($K32-$L32)/IF(OR($C32="SP",$C32="RP"),VLOOKUP($C32,'Filtered-P'!$M$3:$T$4,8,FALSE),VLOOKUP($C32,Filtered!$Q$3:$X$10,8,FALSE)),"") -> 0.826532225 | N32: =IFERROR(IF((OR($C32="RP",$C32="SP")),"",(VLOOKUP($B32,Hitter!$A$1:$Z$700,26,FALSE)/VLOOKUP($B32,Hitter!$A$1:$Z$700,2,FALSE))),"") ->  | O32: =IFERROR(IF((OR($C32="RP",$C32="SP")),VLOOKUP($B32,Pitcher!$A$1:$Z$700,20,FALSE)/VLOOKUP($B32,Pitcher!$A$1:$Z$700,4,FALSE),""),"") -> 2.211963367 | P32: =IFERROR(IF((OR($C32="RP",$C32="SP")),VLOOKUP($B32,Pitcher!$A$1:$V$700,2,FALSE),""),"") -> 15.4730511 | Q32: =IFERROR(IF((OR($C32="RP",$C32="SP")),VLOOKUP($B32,Pitcher!$A$1:$V$700,9,FALSE),""),"") -> 0 | R32: =IFERROR(IF((OR($C32="RP",$C32="SP")),VLOOKUP($B32,Pitcher!$A$1:$V$700,7,FALSE),""),"") -> 208.7877139 | S32: =IFERROR(IF((OR($C32="RP",$C32="SP")),VLOOKUP($B32,Pitcher!$A$1:$AB$700,21,FALSE),""),"") -> 3.144598423 | T32: =IFERROR(IF((OR($C32="RP",$C32="SP")),VLOOKUP($B32,Pitcher!$A$1:$V$700,22,FALSE),""),"") -> 1.142734618 | U32: =IFERROR(IF((OR($C32="RP",$C32="SP")),"",VLOOKUP($B32,Hitter!$A$1:$AH$700,27,FALSE)),"") ->  | V32: =IFERROR(IF((OR($C32="RP",$C32="SP")),"",VLOOKUP($B32,Hitter!$A$1:$AH$700,9,FALSE)),"") ->  | W32: =IFERROR(IF((OR($C32="RP",$C32="SP")),"",VLOOKUP($B32,Hitter!$A$1:$AH$700,10,FALSE)),"") ->  | X32: =IFERROR(IF((OR($C32="RP",$C32="SP")),"",VLOOKUP($B32,Hitter!$A$1:$AH$700,4,FALSE)),"") ->  | Y32: =IFERROR(IF((OR($C32="RP",$C32="SP")),"",VLOOKUP($B32,Hitter!$A$1:$AH$700,11,FALSE)),"") ->  | Z32: =IFERROR(IF(ISTEXT($A32),"",(1-NORMDIST((COUNTA($A$6:$A$745)),($G32),((AE32-AD32)/6),TRUE))),"") -> 0.9999999984 | AA32: =IFERROR(IF(ISTEXT($A32),"",(1-NORMDIST((COUNTA($A$6:$A$745))+(Personalize!$E$18+1),$G32,((AE32-AD32)/6),TRUE))),"") -> 0.9999998834 | AB32: =IFERROR(IF(ISTEXT($A32),"",(1-NORMDIST((COUNTA($A$6:$A$745))+((Personalize!$E$18+1)*2),$G32,((AE32-AD32)/6),TRUE))),"") -> 0.9999950812 | AD32: =IF(Personalize!$E$34=1,VLOOKUP($B32,'ADP-Rank'!$A$2:$J$700,5,FALSE),(IF(Personalize!$E$34=2,VLOOKUP($B32,'ADP-Rank'!$A$2:$J$700,8,FALSE),(IF(Personalize!$E$34=3,VLOOKUP($B32,'ADP-Rank'!$A$2:$O$700,11,FALSE),(IF(Personalize!$E$31=4,VLOOKUP($B32,'ADP-Rank'!$A$2:$AZ$700,25,FALSE),(IF(Personalize!$E$31=5,VLOOKUP($B32,'ADP-Rank'!$A$2:$AZ$700,28,FALSE),(IF(Personalize!$E$31=6,VLOOKUP($B32,'ADP-Rank'!$A$2:$AZ$700,32,FALSE),""))))))))))) -> 50 | AE32: =IF(Personalize!$E$34=1,VLOOKUP($B32,'ADP-Rank'!$A$2:$J$700,6,FALSE),(IF(Personalize!$E$34=2,VLOOKUP($B32,'ADP-Rank'!$A$2:$J$700,9,FALSE),(IF(Personalize!$E$34=3,VLOOKUP($B32,'ADP-Rank'!$A$2:$O$700,12,FALSE),(IF(Personalize!$E$31=4,VLOOKUP($B32,'ADP-Rank'!$A$2:$AZ$700,26,FALSE),(IF(Personalize!$E$31=5,VLOOKUP($B32,'ADP-Rank'!$A$2:$AZ$700,29,FALSE),(IF(Personalize!$E$31=6,VLOOKUP($B32,'ADP-Rank'!$A$2:$AZ$700,33,FALSE),""))))))))))) -> 78 | AF32: =IF(ISBLANK(A32),0,1) -> 0 | AG32: =IF(K32="",0,1) -> 1 | AH32: =A32 -> 0 | AI32: =IF(C32="C",1,IF(C32="1B",2,IF(C32="2B",3,IF(C32="3B",4,IF(C32="SS",5,IF(C32="CI",6,IF(C32="MI",7,IF(C32="OF",11,IF(C32="LF",8,IF(C32="CF",9,IF(C32="RF",10,IF(C32="DH",12,IF(C32="SP",13,IF(C32="RP",14,IF(C32="P",15,16))))))))))))))) -> 13 | AJ32: =VLOOKUP(B32,'Starter Calc'!$B$2:$BN$700,65,FALSE) -> Bench | AK32: =IFERROR(VLOOKUP($B32,'ADP-Rank'!$A$2:$AH$964,34,FALSE),TRUE) -> TRUE | AL32: 1
B33: Adrian Beltre | C33: 3B | D33: =IFERROR(IF(VLOOKUP(B33,'Starter Calc'!$B$2:$E$700,4,FALSE)="","",VLOOKUP(B33,'Starter Calc'!$B$2:$E$700,4,FALSE)),"") -> ,, | E33: =IFERROR(VLOOKUP($B33,'ADP-Rank'!$A$2:$D$700,3,FALSE),"") -> TEX | F33: =IFERROR(VLOOKUP($B33,'ADP-Rank'!$A$2:$W$700,23,FALSE),"") -> 35 | G33: =IFERROR((IF(Personalize!$E$38=1,VLOOKUP($B33,'ADP-Rank'!$A$2:$J$700,4,FALSE),(IF(Personalize!$E$38=2,VLOOKUP($B33,'ADP-Rank'!$A$2:$J$700,7,FALSE),(IF(Personalize!$E$38=3,VLOOKUP($B33,'ADP-Rank'!$A$2:$J$700,10,FALSE),(IF(Personalize!$E$38=4,VLOOKUP($B33,'ADP-Rank'!$A$2:$AD$700,24,FALSE),(IF(Personalize!$E$38=5,VLOOKUP($B33,'ADP-Rank'!$A$2:$AD$700,27,FALSE),(IF(Personalize!$E$38=6,VLOOKUP($B33,'ADP-Rank'!$A$2:$AZ$700,30,FALSE),(IF(Personalize!$E$38=7,VLOOKUP($B33,'ADP-Rank'!$A$2:$AZ$700,39,FALSE))))))))))))))),"") -> 28.28 | H33: =IFERROR(ROUNDDOWN(VLOOKUP($B33,'ADP-Rank'!$A$2:$AY$1064,38,FALSE),0),"") -> 3 | I33: =VLOOKUP($B33,'ADP-Rank'!$A$2:$AJ$1064,36,FALSE) -> 4 | J33: =IFERROR(RANK($M33,$M$6:$M$745,0),"") -> 27 | K33: =IFERROR(IF((OR($C33="RP",$C33="SP")),VLOOKUP($B33,Pitcher!$A$1:$Z$700,20,FALSE),(VLOOKUP($B33,Hitter!$A$1:$Z$700,26,FALSE))),"") -> 431.2196073 | L33: =IFERROR(IF((OR($C33="RP",$C33="SP")),VLOOKUP($C33,'Filtered-P'!$M$3:$P$4,4,FALSE), VLOOKUP($C33,Filtered!$Q$3:$T$14,4,FALSE)),"") -> 361.8942626 | M33: =IFERROR(($K33-$L33)/IF(OR($C33="SP",$C33="RP"),VLOOKUP($C33,'Filtered-P'!$M$3:$T$4,8,FALSE),VLOOKUP($C33,Filtered!$Q$3:$X$10,8,FALSE)),"") -> 1.046291034 | N33: =IFERROR(IF((OR($C33="RP",$C33="SP")),"",(VLOOKUP($B33,Hitter!$A$1:$Z$700,26,FALSE)/VLOOKUP($B33,Hitter!$A$1:$Z$700,2,FALSE))),"") -> 0.6905774953 | O33: =IFERROR(IF((OR($C33="RP",$C33="SP")),VLOOKUP($B33,Pitcher!$A$1:$Z$700,20,FALSE)/VLOOKUP($B33,Pitcher!$A$1:$Z$700,4,FALSE),""),"") ->  | P33: =IFERROR(IF((OR($C33="RP",$C33="SP")),VLOOKUP($B33,Pitcher!$A$1:$V$700,2,FALSE),""),"") ->  | Q33: =IFERROR(IF((OR($C33="RP",$C33="SP")),VLOOKUP($B33,Pitcher!$A$1:$V$700,9,FALSE),""),"") ->  | R33: =IFERROR(IF((OR($C33="RP",$C33="SP")),VLOOKUP($B33,Pitcher!$A$1:$V$700,7,FALSE),""),"") ->  | S33: =IFERROR(IF((OR($C33="RP",$C33="SP")),VLOOKUP($B33,Pitcher!$A$1:$AB$700,21,FALSE),""),"") ->  | T33: =IFERROR(IF((OR($C33="RP",$C33="SP")),VLOOKUP($B33,Pitcher!$A$1:$V$700,22,FALSE),""),"") ->  | U33: =IFERROR(IF((OR($C33="RP",$C33="SP")),"",VLOOKUP($B33,Hitter!$A$1:$AH$700,27,FALSE)),"") -> 0.2971970005 | V33: =IFERROR(IF((OR($C33="RP",$C33="SP")),"",VLOOKUP($B33,Hitter!$A$1:$AH$700,9,FALSE)),"") -> 28.00159089 | W33: =IFERROR(IF((OR($C33="RP",$C33="SP")),"",VLOOKUP($B33,Hitter!$A$1:$AH$700,10,FALSE)),"") -> 95.09394095 | X33: =IFERROR(IF((OR($C33="RP",$C33="SP")),"",VLOOKUP($B33,Hitter!$A$1:$AH$700,4,FALSE)),"") -> 85.11411954 | Y33: =IFERROR(IF((OR($C33="RP",$C33="SP")),"",VLOOKUP($B33,Hitter!$A$1:$AH$700,11,FALSE)),"") -> 1.045163451 | Z33: =IFERROR(IF(ISTEXT($A33),"",(1-NORMDIST((COUNTA($A$6:$A$745)),($G33),((AE33-AD33)/6),TRUE))),"") -> 1 | AA33: =IFERROR(IF(ISTEXT($A33),"",(1-NORMDIST((COUNTA($A$6:$A$745))+(Personalize!$E$18+1),$G33,((AE33-AD33)/6),TRUE))),"") -> 1 | AB33: =IFERROR(IF(ISTEXT($A33),"",(1-NORMDIST((COUNTA($A$6:$A$745))+((Personalize!$E$18+1)*2),$G33,((AE33-AD33)/6),TRUE))),"") -> 1 | AD33: =IF(Personalize!$E$34=1,VLOOKUP($B33,'ADP-Rank'!$A$2:$J$700,5,FALSE),(IF(Personalize!$E$34=2,VLOOKUP($B33,'ADP-Rank'!$A$2:$J$700,8,FALSE),(IF(Personalize!$E$34=3,VLOOKUP($B33,'ADP-Rank'!$A$2:$O$700,11,FALSE),(IF(Personalize!$E$31=4,VLOOKUP($B33,'ADP-Rank'!$A$2:$AZ$700,25,FALSE),(IF(Personalize!$E$31=5,VLOOKUP($B33,'ADP-Rank'!$A$2:$AZ$700,28,FALSE),(IF(Personalize!$E$31=6,VLOOKUP($B33,'ADP-Rank'!$A$2:$AZ$700,32,FALSE),""))))))))))) -> 10 | AE33: =IF(Personalize!$E$34=1,VLOOKUP($B33,'ADP-Rank'!$A$2:$J$700,6,FALSE),(IF(Personalize!$E$34=2,VLOOKUP($B33,'ADP-Rank'!$A$2:$J$700,9,FALSE),(IF(Personalize!$E$34=3,VLOOKUP($B33,'ADP-Rank'!$A$2:$O$700,12,FALSE),(IF(Personalize!$E$31=4,VLOOKUP($B33,'ADP-Rank'!$A$2:$AZ$700,26,FALSE),(IF(Personalize!$E$31=5,VLOOKUP($B33,'ADP-Rank'!$A$2:$AZ$700,29,FALSE),(IF(Personalize!$E$31=6,VLOOKUP($B33,'ADP-Rank'!$A$2:$AZ$700,33,FALSE),""))))))))))) -> 16 | AF33: =IF(ISBLANK(A33),0,1) -> 0 | AG33: =IF(K33="",0,1) -> 1 | AH33: =A33 -> 0 | AI33: =IF(C33="C",1,IF(C33="1B",2,IF(C33="2B",3,IF(C33="3B",4,IF(C33="SS",5,IF(C33="CI",6,IF(C33="MI",7,IF(C33="OF",11,IF(C33="LF",8,IF(C33="CF",9,IF(C33="RF",10,IF(C33="DH",12,IF(C33="SP",13,IF(C33="RP",14,IF(C33="P",15,16))))))))))))))) -> 4 | AJ33: =VLOOKUP(B33,'Starter Calc'!$B$2:$BN$700,65,FALSE) -> Bench | AK33: =IFERROR(VLOOKUP($B33,'ADP-Rank'!$A$2:$AH$964,34,FALSE),TRUE) -> TRUE | AL33: 0
B34: Adam Jones | C34: OF | D34: =IFERROR(IF(VLOOKUP(B34,'Starter Calc'!$B$2:$E$700,4,FALSE)="","",VLOOKUP(B34,'Starter Calc'!$B$2:$E$700,4,FALSE)),"") -> ,,CF | E34: =IFERROR(VLOOKUP($B34,'ADP-Rank'!$A$2:$D$700,3,FALSE),"") -> BAL | F34: =IFERROR(VLOOKUP($B34,'ADP-Rank'!$A$2:$W$700,23,FALSE),"") -> 28 | G34: =IFERROR((IF(Personalize!$E$38=1,VLOOKUP($B34,'ADP-Rank'!$A$2:$J$700,4,FALSE),(IF(Personalize!$E$38=2,VLOOKUP($B34,'ADP-Rank'!$A$2:$J$700,7,FALSE),(IF(Personalize!$E$38=3,VLOOKUP($B34,'ADP-Rank'!$A$2:$J$700,10,FALSE),(IF(Personalize!$E$38=4,VLOOKUP($B34,'ADP-Rank'!$A$2:$AD$700,24,FALSE),(IF(Personalize!$E$38=5,VLOOKUP($B34,'ADP-Rank'!$A$2:$AD$700,27,FALSE),(IF(Personalize!$E$38=6,VLOOKUP($B34,'ADP-Rank'!$A$2:$AZ$700,30,FALSE),(IF(Personalize!$E$38=7,VLOOKUP($B34,'ADP-Rank'!$A$2:$AZ$700,39,FALSE))))))))))))))),"") -> 30.19 | H34: =IFERROR(ROUNDDOWN(VLOOKUP($B34,'ADP-Rank'!$A$2:$AY$1064,38,FALSE),0),"") -> 3 | I34: =VLOOKUP($B34,'ADP-Rank'!$A$2:$AJ$1064,36,FALSE) -> 42 | J34: =IFERROR(RANK($M34,$M$6:$M$745,0),"") -> 48 | K34: =IFERROR(IF((OR($C34="RP",$C34="SP")),VLOOKUP($B34,Pitcher!$A$1:$Z$700,20,FALSE),(VLOOKUP($B34,Hitter!$A$1:$Z$700,26,FALSE))),"") -> 372.1873594 | L34: =IFERROR(IF((OR($C34="RP",$C34="SP")),VLOOKUP($C34,'Filtered-P'!$M$3:$P$4,4,FALSE), VLOOKUP($C34,Filtered!$Q$3:$T$14,4,FALSE)),"") -> 350.7983075 | M34: =IFERROR(($K34-$L34)/IF(OR($C34="SP",$C34="RP"),VLOOKUP($C34,'Filtered-P'!$M$3:$T$4,8,FALSE),VLOOKUP($C34,Filtered!$Q$3:$X$10,8,FALSE)),"") -> 0.5239637468 | N34: =IFERROR(IF((OR($C34="RP",$C34="SP")),"",(VLOOKUP($B34,Hitter!$A$1:$Z$700,26,FALSE)/VLOOKUP($B34,Hitter!$A$1:$Z$700,2,FALSE))),"") -> 0.5915168947 | O34: =IFERROR(IF((OR($C34="RP",$C34="SP")),VLOOKUP($B34,Pitcher!$A$1:$Z$700,20,FALSE)/VLOOKUP($B34,Pitcher!$A$1:$Z$700,4,FALSE),""),"") ->  | P34: =IFERROR(IF((OR($C34="RP",$C34="SP")),VLOOKUP($B34,Pitcher!$A$1:$V$700,2,FALSE),""),"") ->  | Q34: =IFERROR(IF((OR($C34="RP",$C34="SP")),VLOOKUP($B34,Pitcher!$A$1:$V$700,9,FALSE),""),"") ->  | R34: =IFERROR(IF((OR($C34="RP",$C34="SP")),VLOOKUP($B34,Pitcher!$A$1:$V$700,7,FALSE),""),"") ->  | S34: =IFERROR(IF((OR($C34="RP",$C34="SP")),VLOOKUP($B34,Pitcher!$A$1:$AB$700,21,FALSE),""),"") ->  | T34: =IFERROR(IF((OR($C34="RP",$C34="SP")),VLOOKUP($B34,Pitcher!$A$1:$V$700,22,FALSE),""),"") ->  | U34: =IFERROR(IF((OR($C34="RP",$C34="SP")),"",VLOOKUP($B34,Hitter!$A$1:$AH$700,27,FALSE)),"") -> 0.279042518 | V34: =IFERROR(IF((OR($C34="RP",$C34="SP")),"",VLOOKUP($B34,Hitter!$A$1:$AH$700,9,FALSE)),"") -> 28.25465946 | W34: =IFERROR(IF((OR($C34="RP",$C34="SP")),"",VLOOKUP($B34,Hitter!$A$1:$AH$700,10,FALSE)),"") -> 89.31383854 | X34: =IFERROR(IF((OR($C34="RP",$C34="SP")),"",VLOOKUP($B34,Hitter!$A$1:$AH$700,4,FALSE)),"") -> 85.28113687 | Y34: =IFERROR(IF((OR($C34="RP",$C34="SP")),"",VLOOKUP($B34,Hitter!$A$1:$AH$700,11,FALSE)),"") -> 12.41820465 | Z34: =IFERROR(IF(ISTEXT($A34),"",(1-NORMDIST((COUNTA($A$6:$A$745)),($G34),((AE34-AD34)/6),TRUE))),"") -> 1 | AA34: =IFERROR(IF(ISTEXT($A34),"",(1-NORMDIST((COUNTA($A$6:$A$745))+(Personalize!$E$18+1),$G34,((AE34-AD34)/6),TRUE))),"") -> 1 | AB34: =IFERROR(IF(ISTEXT($A34),"",(1-NORMDIST((COUNTA($A$6:$A$745))+((Personalize!$E$18+1)*2),$G34,((AE34-AD34)/6),TRUE))),"") -> 1 | AD34: =IF(Personalize!$E$34=1,VLOOKUP($B34,'ADP-Rank'!$A$2:$J$700,5,FALSE),(IF(Personalize!$E$34=2,VLOOKUP($B34,'ADP-Rank'!$A$2:$J$700,8,FALSE),(IF(Personalize!$E$34=3,VLOOKUP($B34,'ADP-Rank'!$A$2:$O$700,11,FALSE),(IF(Personalize!$E$31=4,VLOOKUP($B34,'ADP-Rank'!$A$2:$AZ$700,25,FALSE),(IF(Personalize!$E$31=5,VLOOKUP($B34,'ADP-Rank'!$A$2:$AZ$700,28,FALSE),(IF(Personalize!$E$31=6,VLOOKUP($B34,'ADP-Rank'!$A$2:$AZ$700,32,FALSE),""))))))))))) -> 9 | AE34: =IF(Personalize!$E$34=1,VLOOKUP($B34,'ADP-Rank'!$A$2:$J$700,6,FALSE),(IF(Personalize!$E$34=2,VLOOKUP($B34,'ADP-Rank'!$A$2:$J$700,9,FALSE),(IF(Personalize!$E$34=3,VLOOKUP($B34,'ADP-Rank'!$A$2:$O$700,12,FALSE),(IF(Personalize!$E$31=4,VLOOKUP($B34,'ADP-Rank'!$A$2:$AZ$700,26,FALSE),(IF(Personalize!$E$31=5,VLOOKUP($B34,'ADP-Rank'!$A$2:$AZ$700,29,FALSE),(IF(Personalize!$E$31=6,VLOOKUP($B34,'ADP-Rank'!$A$2:$AZ$700,33,FALSE),""))))))))))) -> 14 | AF34: =IF(ISBLANK(A34),0,1) -> 0 | AG34: =IF(K34="",0,1) -> 1 | AH34: =A34 -> 0 | AI34: =IF(C34="C",1,IF(C34="1B",2,IF(C34="2B",3,IF(C34="3B",4,IF(C34="SS",5,IF(C34="CI",6,IF(C34="MI",7,IF(C34="OF",11,IF(C34="LF",8,IF(C34="CF",9,IF(C34="RF",10,IF(C34="DH",12,IF(C34="SP",13,IF(C34="RP",14,IF(C34="P",15,16))))))))))))))) -> 11 | AJ34: =VLOOKUP(B34,'Starter Calc'!$B$2:$BN$700,65,FALSE) -> Bench | AK34: =IFERROR(VLOOKUP($B34,'ADP-Rank'!$A$2:$AH$964,34,FALSE),TRUE) -> TRUE | AL34: 0
B35: Dustin Pedroia | C35: 2B | D35: =IFERROR(IF(VLOOKUP(B35,'Starter Calc'!$B$2:$E$700,4,FALSE)="","",VLOOKUP(B35,'Starter Calc'!$B$2:$E$700,4,FALSE)),"") -> ,, | E35: =IFERROR(VLOOKUP($B35,'ADP-Rank'!$A$2:$D$700,3,FALSE),"") -> BOS | F35: =IFERROR(VLOOKUP($B35,'ADP-Rank'!$A$2:$W$700,23,FALSE),"") -> 30 | G35: =IFERROR((IF(Personalize!$E$38=1,VLOOKUP($B35,'ADP-Rank'!$A$2:$J$700,4,FALSE),(IF(Personalize!$E$38=2,VLOOKUP($B35,'ADP-Rank'!$A$2:$J$700,7,FALSE),(IF(Personalize!$E$38=3,VLOOKUP($B35,'ADP-Rank'!$A$2:$J$700,10,FALSE),(IF(Personalize!$E$38=4,VLOOKUP($B35,'ADP-Rank'!$A$2:$AD$700,24,FALSE),(IF(Personalize!$E$38=5,VLOOKUP($B35,'ADP-Rank'!$A$2:$AD$700,27,FALSE),(IF(Personalize!$E$38=6,VLOOKUP($B35,'ADP-Rank'!$A$2:$AZ$700,30,FALSE),(IF(Personalize!$E$38=7,VLOOKUP($B35,'ADP-Rank'!$A$2:$AZ$700,39,FALSE))))))))))))))),"") -> 31.3 | H35: =IFERROR(ROUNDDOWN(VLOOKUP($B35,'ADP-Rank'!$A$2:$AY$1064,38,FALSE),0),"") -> 3 | I35: =VLOOKUP($B35,'ADP-Rank'!$A$2:$AJ$1064,36,FALSE) -> 16 | J35: =IFERROR(RANK($M35,$M$6:$M$745,0),"") -> 24 | K35: =IFERROR(IF((OR($C35="RP",$C35="SP")),VLOOKUP($B35,Pitcher!$A$1:$Z$700,20,FALSE),(VLOOKUP($B35,Hitter!$A$1:$Z$700,26,FALSE))),"") -> 400.3892179 | L35: =IFERROR(IF((OR($C35="RP",$C35="SP")),VLOOKUP($C35,'Filtered-P'!$M$3:$P$4,4,FALSE), VLOOKUP($C35,Filtered!$Q$3:$T$14,4,FALSE)),"") -> 351.1652574 | M35: =IFERROR(($K35-$L35)/IF(OR($C35="SP",$C35="RP"),VLOOKUP($C35,'Filtered-P'!$M$3:$T$4,8,FALSE),VLOOKUP($C35,Filtered!$Q$3:$X$10,8,FALSE)),"") -> 1.199432738 | N35: =IFERROR(IF((OR($C35="RP",$C35="SP")),"",(VLOOKUP($B35,Hitter!$A$1:$Z$700,26,FALSE)/VLOOKUP($B35,Hitter!$A$1:$Z$700,2,FALSE))),"") -> 0.6311719999 | O35: =IFERROR(IF((OR($C35="RP",$C35="SP")),VLOOKUP($B35,Pitcher!$A$1:$Z$700,20,FALSE)/VLOOKUP($B35,Pitcher!$A$1:$Z$700,4,FALSE),""),"") ->  | P35: =IFERROR(IF((OR($C35="RP",$C35="SP")),VLOOKUP($B35,Pitcher!$A$1:$V$700,2,FALSE),""),"") ->  | Q35: =IFERROR(IF((OR($C35="RP",$C35="SP")),VLOOKUP($B35,Pitcher!$A$1:$V$700,9,FALSE),""),"") ->  | R35: =IFERROR(IF((OR($C35="RP",$C35="SP")),VLOOKUP($B35,Pitcher!$A$1:$V$700,7,FALSE),""),"") ->  | S35: =IFERROR(IF((OR($C35="RP",$C35="SP")),VLOOKUP($B35,Pitcher!$A$1:$AB$700,21,FALSE),""),"") ->  | T35: =IFERROR(IF((OR($C35="RP",$C35="SP")),VLOOKUP($B35,Pitcher!$A$1:$V$700,22,FALSE),""),"") ->  | U35: =IFERROR(IF((OR($C35="RP",$C35="SP")),"",VLOOKUP($B35,Hitter!$A$1:$AH$700,27,FALSE)),"") -> 0.2887107692 | V35: =IFERROR(IF((OR($C35="RP",$C35="SP")),"",VLOOKUP($B35,Hitter!$A$1:$AH$700,9,FALSE)),"") -> 12.73841523 | W35: =IFERROR(IF((OR($C35="RP",$C35="SP")),"",VLOOKUP($B35,Hitter!$A$1:$AH$700,10,FALSE)),"") -> 72.38224641 | X35: =IFERROR(IF((OR($C35="RP",$C35="SP")),"",VLOOKUP($B35,Hitter!$A$1:$AH$700,4,FALSE)),"") -> 83.3747357 | Y35: =IFERROR(IF((OR($C35="RP",$C35="SP")),"",VLOOKUP($B35,Hitter!$A$1:$AH$700,11,FALSE)),"") -> 15.99894743 | Z35: =IFERROR(IF(ISTEXT($A35),"",(1-NORMDIST((COUNTA($A$6:$A$745)),($G35),((AE35-AD35)/6),TRUE))),"") -> 1 | AA35: =IFERROR(IF(ISTEXT($A35),"",(1-NORMDIST((COUNTA($A$6:$A$745))+(Personalize!$E$18+1),$G35,((AE35-AD35)/6),TRUE))),"") -> 1 | AB35: =IFERROR(IF(ISTEXT($A35),"",(1-NORMDIST((COUNTA($A$6:$A$745))+((Personalize!$E$18+1)*2),$G35,((AE35-AD35)/6),TRUE))),"") -> 1 | AD35: =IF(Personalize!$E$34=1,VLOOKUP($B35,'ADP-Rank'!$A$2:$J$700,5,FALSE),(IF(Personalize!$E$34=2,VLOOKUP($B35,'ADP-Rank'!$A$2:$J$700,8,FALSE),(IF(Personalize!$E$34=3,VLOOKUP($B35,'ADP-Rank'!$A$2:$O$700,11,FALSE),(IF(Personalize!$E$31=4,VLOOKUP($B35,'ADP-Rank'!$A$2:$AZ$700,25,FALSE),(IF(Personalize!$E$31=5,VLOOKUP($B35,'ADP-Rank'!$A$2:$AZ$700,28,FALSE),(IF(Personalize!$E$31=6,VLOOKUP($B35,'ADP-Rank'!$A$2:$AZ$700,32,FALSE),""))))))))))) -> 27 | AE35: =IF(Personalize!$E$34=1,VLOOKUP($B35,'ADP-Rank'!$A$2:$J$700,6,FALSE),(IF(Personalize!$E$34=2,VLOOKUP($B35,'ADP-Rank'!$A$2:$J$700,9,FALSE),(IF(Personalize!$E$34=3,VLOOKUP($B35,'ADP-Rank'!$A$2:$O$700,12,FALSE),(IF(Personalize!$E$31=4,VLOOKUP($B35,'ADP-Rank'!$A$2:$AZ$700,26,FALSE),(IF(Personalize!$E$31=5,VLOOKUP($B35,'ADP-Rank'!$A$2:$AZ$700,29,FALSE),(IF(Personalize!$E$31=6,VLOOKUP($B35,'ADP-Rank'!$A$2:$AZ$700,33,FALSE),""))))))))))) -> 49 | AF35: =IF(ISBLANK(A35),0,1) -> 0 | AG35: =IF(K35="",0,1) -> 1 | AH35: =A35 -> 0 | AI35: =IF(C35="C",1,IF(C35="1B",2,IF(C35="2B",3,IF(C35="3B",4,IF(C35="SS",5,IF(C35="CI",6,IF(C35="MI",7,IF(C35="OF",11,IF(C35="LF",8,IF(C35="CF",9,IF(C35="RF",10,IF(C35="DH",12,IF(C35="SP",13,IF(C35="RP",14,IF(C35="P",15,16))))))))))))))) -> 3 | AJ35: =VLOOKUP(B35,'Starter Calc'!$B$2:$BN$700,65,FALSE) -> Bench | AK35: =IFERROR(VLOOKUP($B35,'ADP-Rank'!$A$2:$AH$964,34,FALSE),TRUE) -> TRUE | AL35: 0
B36: Bryce Harper | C36: OF | D36: =IFERROR(IF(VLOOKUP(B36,'Starter Calc'!$B$2:$E$700,4,FALSE)="","",VLOOKUP(B36,'Starter Calc'!$B$2:$E$700,4,FALSE)),"") -> LF,RF,CF | E36: =IFERROR(VLOOKUP($B36,'ADP-Rank'!$A$2:$D$700,3,FALSE),"") -> WAS | F36: =IFERROR(VLOOKUP($B36,'ADP-Rank'!$A$2:$W$700,23,FALSE),"") -> 21 | G36: =IFERROR((IF(Personalize!$E$38=1,VLOOKUP($B36,'ADP-Rank'!$A$2:$J$700,4,FALSE),(IF(Personalize!$E$38=2,VLOOKUP($B36,'ADP-Rank'!$A$2:$J$700,7,FALSE),(IF(Personalize!$E$38=3,VLOOKUP($B36,'ADP-Rank'!$A$2:$J$700,10,FALSE),(IF(Personalize!$E$38=4,VLOOKUP($B36,'ADP-Rank'!$A$2:$AD$700,24,FALSE),(IF(Personalize!$E$38=5,VLOOKUP($B36,'ADP-Rank'!$A$2:$AD$700,27,FALSE),(IF(Personalize!$E$38=6,VLOOKUP($B36,'ADP-Rank'!$A$2:$AZ$700,30,FALSE),(IF(Personalize!$E$38=7,VLOOKUP($B36,'ADP-Rank'!$A$2:$AZ$700,39,FALSE))))))))))))))),"") -> 31.52 | H36: =IFERROR(ROUNDDOWN(VLOOKUP($B36,'ADP-Rank'!$A$2:$AY$1064,38,FALSE),0),"") -> 3 | I36: =VLOOKUP($B36,'ADP-Rank'!$A$2:$AJ$1064,36,FALSE) -> 38 | J36: =IFERROR(RANK($M36,$M$6:$M$745,0),"") -> 36 | K36: =IFERROR(IF((OR($C36="RP",$C36="SP")),VLOOKUP($B36,Pitcher!$A$1:$Z$700,20,FALSE),(VLOOKUP($B36,Hitter!$A$1:$Z$700,26,FALSE))),"") -> 381.5760183 | L36: =IFERROR(IF((OR($C36="RP",$C36="SP")),VLOOKUP($C36,'Filtered-P'!$M$3:$P$4,4,FALSE), VLOOKUP($C36,Filtered!$Q$3:$T$14,4,FALSE)),"") -> 350.7983075 | M36: =IFERROR(($K36-$L36)/IF(OR($C36="SP",$C36="RP"),VLOOKUP($C36,'Filtered-P'!$M$3:$T$4,8,FALSE),VLOOKUP($C36,Filtered!$Q$3:$X$10,8,FALSE)),"") -> 0.7539560298 | N36: =IFERROR(IF((OR($C36="RP",$C36="SP")),"",(VLOOKUP($B36,Hitter!$A$1:$Z$700,26,FALSE)/VLOOKUP($B36,Hitter!$A$1:$Z$700,2,FALSE))),"") -> 0.6531109975 | O36: =IFERROR(IF((OR($C36="RP",$C36="SP")),VLOOKUP($B36,Pitcher!$A$1:$Z$700,20,FALSE)/VLOOKUP($B36,Pitcher!$A$1:$Z$700,4,FALSE),""),"") ->  | P36: =IFERROR(IF((OR($C36="RP",$C36="SP")),VLOOKUP($B36,Pitcher!$A$1:$V$700,2,FALSE),""),"") ->  | Q36: =IFERROR(IF((OR($C36="RP",$C36="SP")),VLOOKUP($B36,Pitcher!$A$1:$V$700,9,FALSE),""),"") ->  | R36: =IFERROR(IF((OR($C36="RP",$C36="SP")),VLOOKUP($B36,Pitcher!$A$1:$V$700,7,FALSE),""),"") ->  | S36: =IFERROR(IF((OR($C36="RP",$C36="SP")),VLOOKUP($B36,Pitcher!$A$1:$AB$700,21,FALSE),""),"") ->  | T36: =IFERROR(IF((OR($C36="RP",$C36="SP")),VLOOKUP($B36,Pitcher!$A$1:$V$700,22,FALSE),""),"") ->  | U36: =IFERROR(IF((OR($C36="RP",$C36="SP")),"",VLOOKUP($B36,Hitter!$A$1:$AH$700,27,FALSE)),"") -> 0.2784090794 | V36: =IFERROR(IF((OR($C36="RP",$C36="SP")),"",VLOOKUP($B36,Hitter!$A$1:$AH$700,9,FALSE)),"") -> 25.54881709 | W36: =IFERROR(IF((OR($C36="RP",$C36="SP")),"",VLOOKUP($B36,Hitter!$A$1:$AH$700,10,FALSE)),"") -> 72.31396836 | X36: =IFERROR(IF((OR($C36="RP",$C36="SP")),"",VLOOKUP($B36,Hitter!$A$1:$AH$700,4,FALSE)),"") -> 89.3415588 | Y36: =IFERROR(IF((OR($C36="RP",$C36="SP")),"",VLOOKUP($B36,Hitter!$A$1:$AH$700,11,FALSE)),"") -> 14.37227563 | Z36: =IFERROR(IF(ISTEXT($A36),"",(1-NORMDIST((COUNTA($A$6:$A$745)),($G36),((AE36-AD36)/6),TRUE))),"") -> 1 | AA36: =IFERROR(IF(ISTEXT($A36),"",(1-NORMDIST((COUNTA($A$6:$A$745))+(Personalize!$E$18+1),$G36,((AE36-AD36)/6),TRUE))),"") -> 1 | AB36: =IFERROR(IF(ISTEXT($A36),"",(1-NORMDIST((COUNTA($A$6:$A$745))+((Personalize!$E$18+1)*2),$G36,((AE36-AD36)/6),TRUE))),"") -> 1 | AD36: =IF(Personalize!$E$34=1,VLOOKUP($B36,'ADP-Rank'!$A$2:$J$700,5,FALSE),(IF(Personalize!$E$34=2,VLOOKUP($B36,'ADP-Rank'!$A$2:$J$700,8,FALSE),(IF(Personalize!$E$34=3,VLOOKUP($B36,'ADP-Rank'!$A$2:$O$700,11,FALSE),(IF(Personalize!$E$31=4,VLOOKUP($B36,'ADP-Rank'!$A$2:$AZ$700,25,FALSE),(IF(Personalize!$E$31=5,VLOOKUP($B36,'ADP-Rank'!$A$2:$AZ$700,28,FALSE),(IF(Personalize!$E$31=6,VLOOKUP($B36,'ADP-Rank'!$A$2:$AZ$700,32,FALSE),""))))))))))) -> 8 | AE36: =IF(Personalize!$E$34=1,VLOOKUP($B36,'ADP-Rank'!$A$2:$J$700,6,FALSE),(IF(Personalize!$E$34=2,VLOOKUP($B36,'ADP-Rank'!$A$2:$J$700,9,FALSE),(IF(Personalize!$E$34=3,VLOOKUP($B36,'ADP-Rank'!$A$2:$O$700,12,FALSE),(IF(Personalize!$E$31=4,VLOOKUP($B36,'ADP-Rank'!$A$2:$AZ$700,26,FALSE),(IF(Personalize!$E$31=5,VLOOKUP($B36,'ADP-Rank'!$A$2:$AZ$700,29,FALSE),(IF(Personalize!$E$31=6,VLOOKUP($B36,'ADP-Rank'!$A$2:$AZ$700,33,FALSE),""))))))))))) -> 18 | AF36: =IF(ISBLANK(A36),0,1) -> 0 | AG36: =IF(K36="",0,1) -> 1 | AH36: =A36 -> 0 | AI36: =IF(C36="C",1,IF(C36="1B",2,IF(C36="2B",3,IF(C36="3B",4,IF(C36="SS",5,IF(C36="CI",6,IF(C36="MI",7,IF(C36="OF",11,IF(C36="LF",8,IF(C36="CF",9,IF(C36="RF",10,IF(C36="DH",12,IF(C36="SP",13,IF(C36="RP",14,IF(C36="P",15,16))))))))))))))) -> 11 | AJ36: =VLOOKUP(B36,'Starter Calc'!$B$2:$BN$700,65,FALSE) -> Bench | AK36: =IFERROR(VLOOKUP($B36,'ADP-Rank'!$A$2:$AH$964,34,FALSE),TRUE) -> TRUE | AL36: 0
B37: Yasiel Puig | C37: OF | D37: =IFERROR(IF(VLOOKUP(B37,'Starter Calc'!$B$2:$E$700,4,FALSE)="","",VLOOKUP(B37,'Starter Calc'!$B$2:$E$700,4,FALSE)),"") -> ,RF, | E37: =IFERROR(VLOOKUP($B37,'ADP-Rank'!$A$2:$D$700,3,FALSE),"") -> LAD | F37: =IFERROR(VLOOKUP($B37,'ADP-Rank'!$A$2:$W$700,23,FALSE),"") -> 23 | G37: =IFERROR((IF(Personalize!$E$38=1,VLOOKUP($B37,'ADP-Rank'!$A$2:$J$700,4,FALSE),(IF(Personalize!$E$38=2,VLOOKUP($B37,'ADP-Rank'!$A$2:$J$700,7,FALSE),(IF(Personalize!$E$38=3,VLOOKUP($B37,'ADP-Rank'!$A$2:$J$700,10,FALSE),(IF(Personalize!$E$38=4,VLOOKUP($B37,'ADP-Rank'!$A$2:$AD$700,24,FALSE),(IF(Personalize!$E$38=5,VLOOKUP($B37,'ADP-Rank'!$A$2:$AD$700,27,FALSE),(IF(Personalize!$E$38=6,VLOOKUP($B37,'ADP-Rank'!$A$2:$AZ$700,30,FALSE),(IF(Personalize!$E$38=7,VLOOKUP($B37,'ADP-Rank'!$A$2:$AZ$700,39,FALSE))))))))))))))),"") -> 32.73 | H37: =IFERROR(ROUNDDOWN(VLOOKUP($B37,'ADP-Rank'!$A$2:$AY$1064,38,FALSE),0),"") -> 3 | I37: =VLOOKUP($B37,'ADP-Rank'!$A$2:$AJ$1064,36,FALSE) -> 80 | J37: =IFERROR(RANK($M37,$M$6:$M$745,0),"") -> 51 | K37: =IFERROR(IF((OR($C37="RP",$C37="SP")),VLOOKUP($B37,Pitcher!$A$1:$Z$700,20,FALSE),(VLOOKUP($B37,Hitter!$A$1:$Z$700,26,FALSE))),"") -> 366.8043024 | L37: =IFERROR(IF((OR($C37="RP",$C37="SP")),VLOOKUP($C37,'Filtered-P'!$M$3:$P$4,4,FALSE), VLOOKUP($C37,Filtered!$Q$3:$T$14,4,FALSE)),"") -> 350.7983075 | M37: =IFERROR(($K37-$L37)/IF(OR($C37="SP",$C37="RP"),VLOOKUP($C37,'Filtered-P'!$M$3:$T$4,8,FALSE),VLOOKUP($C37,Filtered!$Q$3:$X$10,8,FALSE)),"") -> 0.3920959686 | N37: =IFERROR(IF((OR($C37="RP",$C37="SP")),"",(VLOOKUP($B37,Hitter!$A$1:$Z$700,26,FALSE)/VLOOKUP($B37,Hitter!$A$1:$Z$700,2,FALSE))),"") -> 0.6067316768 | O37: =IFERROR(IF((OR($C37="RP",$C37="SP")),VLOOKUP($B37,Pitcher!$A$1:$Z$700,20,FALSE)/VLOOKUP($B37,Pitcher!$A$1:$Z$700,4,FALSE),""),"") ->  | P37: =IFERROR(IF((OR($C37="RP",$C37="SP")),VLOOKUP($B37,Pitcher!$A$1:$V$700,2,FALSE),""),"") ->  | Q37: =IFERROR(IF((OR($C37="RP",$C37="SP")),VLOOKUP($B37,Pitcher!$A$1:$V$700,9,FALSE),""),"") ->  | R37: =IFERROR(IF((OR($C37="RP",$C37="SP")),VLOOKUP($B37,Pitcher!$A$1:$V$700,7,FALSE),""),"") ->  | S37: =IFERROR(IF((OR($C37="RP",$C37="SP")),VLOOKUP($B37,Pitcher!$A$1:$AB$700,21,FALSE),""),"") ->  | T37: =IFERROR(IF((OR($C37="RP",$C37="SP")),VLOOKUP($B37,Pitcher!$A$1:$V$700,22,FALSE),""),"") ->  | U37: =IFERROR(IF((OR($C37="RP",$C37="SP")),"",VLOOKUP($B37,Hitter!$A$1:$AH$700,27,FALSE)),"") -> 0.2858039436 | V37: =IFERROR(IF((OR($C37="RP",$C37="SP")),"",VLOOKUP($B37,Hitter!$A$1:$AH$700,9,FALSE)),"") -> 24.07991638 | W37: =IFERROR(IF((OR($C37="RP",$C37="SP")),"",VLOOKUP($B37,Hitter!$A$1:$AH$700,10,FALSE)),"") -> 74.88744993 | X37: =IFERROR(IF((OR($C37="RP",$C37="SP")),"",VLOOKUP($B37,Hitter!$A$1:$AH$700,4,FALSE)),"") -> 93.337854 | Y37: =IFERROR(IF((OR($C37="RP",$C37="SP")),"",VLOOKUP($B37,Hitter!$A$1:$AH$700,11,FALSE)),"") -> 18.11350443 | Z37: =IFERROR(IF(ISTEXT($A37),"",(1-NORMDIST((COUNTA($A$6:$A$745)),($G37),((AE37-AD37)/6),TRUE))),"") -> 0.9999999445 | AA37: =IFERROR(IF(ISTEXT($A37),"",(1-NORMDIST((COUNTA($A$6:$A$745))+(Personalize!$E$18+1),$G37,((AE37-AD37)/6),TRUE))),"") -> 0.9999989314 | AB37: =IFERROR(IF(ISTEXT($A37),"",(1-NORMDIST((COUNTA($A$6:$A$745))+((Personalize!$E$18+1)*2),$G37,((AE37-AD37)/6),TRUE))),"") -> 0.9999849318 | AD37: =IF(Personalize!$E$34=1,VLOOKUP($B37,'ADP-Rank'!$A$2:$J$700,5,FALSE),(IF(Personalize!$E$34=2,VLOOKUP($B37,'ADP-Rank'!$A$2:$J$700,8,FALSE),(IF(Personalize!$E$34=3,VLOOKUP($B37,'ADP-Rank'!$A$2:$O$700,11,FALSE),(IF(Personalize!$E$31=4,VLOOKUP($B37,'ADP-Rank'!$A$2:$AZ$700,25,FALSE),(IF(Personalize!$E$31=5,VLOOKUP($B37,'ADP-Rank'!$A$2:$AZ$700,28,FALSE),(IF(Personalize!$E$31=6,VLOOKUP($B37,'ADP-Rank'!$A$2:$AZ$700,32,FALSE),""))))))))))) -> 29 | AE37: =IF(Personalize!$E$34=1,VLOOKUP($B37,'ADP-Rank'!$A$2:$J$700,6,FALSE),(IF(Personalize!$E$34=2,VLOOKUP($B37,'ADP-Rank'!$A$2:$J$700,9,FALSE),(IF(Personalize!$E$34=3,VLOOKUP($B37,'ADP-Rank'!$A$2:$O$700,12,FALSE),(IF(Personalize!$E$31=4,VLOOKUP($B37,'ADP-Rank'!$A$2:$AZ$700,26,FALSE),(IF(Personalize!$E$31=5,VLOOKUP($B37,'ADP-Rank'!$A$2:$AZ$700,29,FALSE),(IF(Personalize!$E$31=6,VLOOKUP($B37,'ADP-Rank'!$A$2:$AZ$700,33,FALSE),""))))))))))) -> 66 | AF37: =IF(ISBLANK(A37),0,1) -> 0 | AG37: =IF(K37="",0,1) -> 1 | AH37: =A37 -> 0 | AI37: =IF(C37="C",1,IF(C37="1B",2,IF(C37="2B",3,IF(C37="3B",4,IF(C37="SS",5,IF(C37="CI",6,IF(C37="MI",7,IF(C37="OF",11,IF(C37="LF",8,IF(C37="CF",9,IF(C37="RF",10,IF(C37="DH",12,IF(C37="SP",13,IF(C37="RP",14,IF(C37="P",15,16))))))))))))))) -> 11 | AJ37: =VLOOKUP(B37,'Starter Calc'!$B$2:$BN$700,65,FALSE) -> Bench | AK37: =IFERROR(VLOOKUP($B37,'ADP-Rank'!$A$2:$AH$964,34,FALSE),TRUE) -> TRUE | AL37: 0
B38: Matt Carpenter | C38: 2B | D38: =IFERROR(IF(VLOOKUP(B38,'Starter Calc'!$B$2:$E$700,4,FALSE)="","",VLOOKUP(B38,'Starter Calc'!$B$2:$E$700,4,FALSE)),"") -> ,, | E38: =IFERROR(VLOOKUP($B38,'ADP-Rank'!$A$2:$D$700,3,FALSE),"") -> STL | F38: =IFERROR(VLOOKUP($B38,'ADP-Rank'!$A$2:$W$700,23,FALSE),"") -> 28 | G38: =IFERROR((IF(Personalize!$E$38=1,VLOOKUP($B38,'ADP-Rank'!$A$2:$J$700,4,FALSE),(IF(Personalize!$E$38=2,VLOOKUP($B38,'ADP-Rank'!$A$2:$J$700,7,FALSE),(IF(Personalize!$E$38=3,VLOOKUP($B38,'ADP-Rank'!$A$2:$J$700,10,FALSE),(IF(Personalize!$E$38=4,VLOOKUP($B38,'ADP-Rank'!$A$2:$AD$700,24,FALSE),(IF(Personalize!$E$38=5,VLOOKUP($B38,'ADP-Rank'!$A$2:$AD$700,27,FALSE),(IF(Personalize!$E$38=6,VLOOKUP($B38,'ADP-Rank'!$A$2:$AZ$700,30,FALSE),(IF(Personalize!$E$38=7,VLOOKUP($B38,'ADP-Rank'!$A$2:$AZ$700,39,FALSE))))))))))))))),"") -> 35.7 | H38: =IFERROR(ROUNDDOWN(VLOOKUP($B38,'ADP-Rank'!$A$2:$AY$1064,38,FALSE),0),"") -> 3 | I38: =VLOOKUP($B38,'ADP-Rank'!$A$2:$AJ$1064,36,FALSE) -> 22 | J38: =IFERROR(RANK($M38,$M$6:$M$745,0),"") -> 114 | K38: =IFERROR(IF((OR($C38="RP",$C38="SP")),VLOOKUP($B38,Pitcher!$A$1:$Z$700,20,FALSE),(VLOOKUP($B38,Hitter!$A$1:$Z$700,26,FALSE))),"") -> 332.5258484 | L38: =IFERROR(IF((OR($C38="RP",$C38="SP")),VLOOKUP($C38,'Filtered-P'!$M$3:$P$4,4,FALSE), VLOOKUP($C38,Filtered!$Q$3:$T$14,4,FALSE)),"") -> 351.1652574 | M38: =IFERROR(($K38-$L38)/IF(OR($C38="SP",$C38="RP"),VLOOKUP($C38,'Filtered-P'!$M$3:$T$4,8,FALSE),VLOOKUP($C38,Filtered!$Q$3:$X$10,8,FALSE)),"") -> -0.4541836387 | N38: =IFERROR(IF((OR($C38="RP",$C38="SP")),"",(VLOOKUP($B38,Hitter!$A$1:$Z$700,26,FALSE)/VLOOKUP($B38,Hitter!$A$1:$Z$700,2,FALSE))),"") -> 0.5544349865 | O38: =IFERROR(IF((OR($C38="RP",$C38="SP")),VLOOKUP($B38,Pitcher!$A$1:$Z$700,20,FALSE)/VLOOKUP($B38,Pitcher!$A$1:$Z$700,4,FALSE),""),"") ->  | P38: =IFERROR(IF((OR($C38="RP",$C38="SP")),VLOOKUP($B38,Pitcher!$A$1:$V$700,2,FALSE),""),"") ->  | Q38: =IFERROR(IF((OR($C38="RP",$C38="SP")),VLOOKUP($B38,Pitcher!$A$1:$V$700,9,FALSE),""),"") ->  | R38: =IFERROR(IF((OR($C38="RP",$C38="SP")),VLOOKUP($B38,Pitcher!$A$1:$V$700,7,FALSE),""),"") ->  | S38: =IFERROR(IF((OR($C38="RP",$C38="SP")),VLOOKUP($B38,Pitcher!$A$1:$AB$700,21,FALSE),""),"") ->  | T38: =IFERROR(IF((OR($C38="RP",$C38="SP")),VLOOKUP($B38,Pitcher!$A$1:$V$700,22,FALSE),""),"") ->  | U38: =IFERROR(IF((OR($C38="RP",$C38="SP")),"",VLOOKUP($B38,Hitter!$A$1:$AH$700,27,FALSE)),"") -> 0.2797092613 | V38: =IFERROR(IF((OR($C38="RP",$C38="SP")),"",VLOOKUP($B38,Hitter!$A$1:$AH$700,9,FALSE)),"") -> 9.785540773 | W38: =IFERROR(IF((OR($C38="RP",$C38="SP")),"",VLOOKUP($B38,Hitter!$A$1:$AH$700,10,FALSE)),"") -> 59.15745215 | X38: =IFERROR(IF((OR($C38="RP",$C38="SP")),"",VLOOKUP($B38,Hitter!$A$1:$AH$700,4,FALSE)),"") -> 83.80389063 | Y38: =IFERROR(IF((OR($C38="RP",$C38="SP")),"",VLOOKUP($B38,Hitter!$A$1:$AH$700,11,FALSE)),"") -> 4.245016129 | Z38: =IFERROR(IF(ISTEXT($A38),"",(1-NORMDIST((COUNTA($A$6:$A$745)),($G38),((AE38-AD38)/6),TRUE))),"") -> 0.9999999987 | AA38: =IFERROR(IF(ISTEXT($A38),"",(1-NORMDIST((COUNTA($A$6:$A$745))+(Personalize!$E$18+1),$G38,((AE38-AD38)/6),TRUE))),"") -> 0.9999999599 | AB38: =IFERROR(IF(ISTEXT($A38),"",(1-NORMDIST((COUNTA($A$6:$A$745))+((Personalize!$E$18+1)*2),$G38,((AE38-AD38)/6),TRUE))),"") -> 0.9999991379 | AD38: =IF(Personalize!$E$34=1,VLOOKUP($B38,'ADP-Rank'!$A$2:$J$700,5,FALSE),(IF(Personalize!$E$34=2,VLOOKUP($B38,'ADP-Rank'!$A$2:$J$700,8,FALSE),(IF(Personalize!$E$34=3,VLOOKUP($B38,'ADP-Rank'!$A$2:$O$700,11,FALSE),(IF(Personalize!$E$31=4,VLOOKUP($B38,'ADP-Rank'!$A$2:$AZ$700,25,FALSE),(IF(Personalize!$E$31=5,VLOOKUP($B38,'ADP-Rank'!$A$2:$AZ$700,28,FALSE),(IF(Personalize!$E$31=6,VLOOKUP($B38,'ADP-Rank'!$A$2:$AZ$700,32,FALSE),""))))))))))) -> 46 | AE38: =IF(Personalize!$E$34=1,VLOOKUP($B38,'ADP-Rank'!$A$2:$J$700,6,FALSE),(IF(Personalize!$E$34=2,VLOOKUP($B38,'ADP-Rank'!$A$2:$J$700,9,FALSE),(IF(Personalize!$E$34=3,VLOOKUP($B38,'ADP-Rank'!$A$2:$O$700,12,FALSE),(IF(Personalize!$E$31=4,VLOOKUP($B38,'ADP-Rank'!$A$2:$AZ$700,26,FALSE),(IF(Personalize!$E$31=5,VLOOKUP($B38,'ADP-Rank'!$A$2:$AZ$700,29,FALSE),(IF(Personalize!$E$31=6,VLOOKUP($B38,'ADP-Rank'!$A$2:$AZ$700,33,FALSE),""))))))))))) -> 82 | AF38: =IF(ISBLANK(A38),0,1) -> 0 | AG38: =IF(K38="",0,1) -> 1 | AH38: =A38 -> 0 | AI38: =IF(C38="C",1,IF(C38="1B",2,IF(C38="2B",3,IF(C38="3B",4,IF(C38="SS",5,IF(C38="CI",6,IF(C38="MI",7,IF(C38="OF",11,IF(C38="LF",8,IF(C38="CF",9,IF(C38="RF",10,IF(C38="DH",12,IF(C38="SP",13,IF(C38="RP",14,IF(C38="P",15,16))))))))))))))) -> 3 | AJ38: =VLOOKUP(B38,'Starter Calc'!$B$2:$BN$700,65,FALSE) -> Bench | AK38: =IFERROR(VLOOKUP($B38,'ADP-Rank'!$A$2:$AH$964,34,FALSE),TRUE) -> TRUE | AL38: 0
B39: David Wright | C39: 3B | D39: =IFERROR(IF(VLOOKUP(B39,'Starter Calc'!$B$2:$E$700,4,FALSE)="","",VLOOKUP(B39,'Starter Calc'!$B$2:$E$700,4,FALSE)),"") -> ,, | E39: =IFERROR(VLOOKUP($B39,'ADP-Rank'!$A$2:$D$700,3,FALSE),"") -> NYM | F39: =IFERROR(VLOOKUP($B39,'ADP-Rank'!$A$2:$W$700,23,FALSE),"") -> 31 | G39: =IFERROR((IF(Personalize!$E$38=1,VLOOKUP($B39,'ADP-Rank'!$A$2:$J$700,4,FALSE),(IF(Personalize!$E$38=2,VLOOKUP($B39,'ADP-Rank'!$A$2:$J$700,7,FALSE),(IF(Personalize!$E$38=3,VLOOKUP($B39,'ADP-Rank'!$A$2:$J$700,10,FALSE),(IF(Personalize!$E$38=4,VLOOKUP($B39,'ADP-Rank'!$A$2:$AD$700,24,FALSE),(IF(Personalize!$E$38=5,VLOOKUP($B39,'ADP-Rank'!$A$2:$AD$700,27,FALSE),(IF(Personalize!$E$38=6,VLOOKUP($B39,'ADP-Rank'!$A$2:$AZ$700,30,FALSE),(IF(Personalize!$E$38=7,VLOOKUP($B39,'ADP-Rank'!$A$2:$AZ$700,39,FALSE))))))))))))))),"") -> 37.84 | H39: =IFERROR(ROUNDDOWN(VLOOKUP($B39,'ADP-Rank'!$A$2:$AY$1064,38,FALSE),0),"") -> 3 | I39: =VLOOKUP($B39,'ADP-Rank'!$A$2:$AJ$1064,36,FALSE) -> 23 | J39: =IFERROR(RANK($M39,$M$6:$M$745,0),"") -> 66 | K39: =IFERROR(IF((OR($C39="RP",$C39="SP")),VLOOKUP($B39,Pitcher!$A$1:$Z$700,20,FALSE),(VLOOKUP($B39,Hitter!$A$1:$Z$700,26,FALSE))),"") -> 363.2570073 | L39: =IFERROR(IF((OR($C39="RP",$C39="SP")),VLOOKUP($C39,'Filtered-P'!$M$3:$P$4,4,FALSE), VLOOKUP($C39,Filtered!$Q$3:$T$14,4,FALSE)),"") -> 361.8942626 | M39: =IFERROR(($K39-$L39)/IF(OR($C39="SP",$C39="RP"),VLOOKUP($C39,'Filtered-P'!$M$3:$T$4,8,FALSE),VLOOKUP($C39,Filtered!$Q$3:$X$10,8,FALSE)),"") -> 0.02056719041 | N39: =IFERROR(IF((OR($C39="RP",$C39="SP")),"",(VLOOKUP($B39,Hitter!$A$1:$Z$700,26,FALSE)/VLOOKUP($B39,Hitter!$A$1:$Z$700,2,FALSE))),"") -> 0.619522482 | O39: =IFERROR(IF((OR($C39="RP",$C39="SP")),VLOOKUP($B39,Pitcher!$A$1:$Z$700,20,FALSE)/VLOOKUP($B39,Pitcher!$A$1:$Z$700,4,FALSE),""),"") ->  | P39: =IFERROR(IF((OR($C39="RP",$C39="SP")),VLOOKUP($B39,Pitcher!$A$1:$V$700,2,FALSE),""),"") ->  | Q39: =IFERROR(IF((OR($C39="RP",$C39="SP")),VLOOKUP($B39,Pitcher!$A$1:$V$700,9,FALSE),""),"") ->  | R39: =IFERROR(IF((OR($C39="RP",$C39="SP")),VLOOKUP($B39,Pitcher!$A$1:$V$700,7,FALSE),""),"") ->  | S39: =IFERROR(IF((OR($C39="RP",$C39="SP")),VLOOKUP($B39,Pitcher!$A$1:$AB$700,21,FALSE),""),"") ->  | T39: =IFERROR(IF((OR($C39="RP",$C39="SP")),VLOOKUP($B39,Pitcher!$A$1:$V$700,22,FALSE),""),"") ->  | U39: =IFERROR(IF((OR($C39="RP",$C39="SP")),"",VLOOKUP($B39,Hitter!$A$1:$AH$700,27,FALSE)),"") -> 0.2813839405 | V39: =IFERROR(IF((OR($C39="RP",$C39="SP")),"",VLOOKUP($B39,Hitter!$A$1:$AH$700,9,FALSE)),"") -> 19.97371417 | W39: =IFERROR(IF((OR($C39="RP",$C39="SP")),"",VLOOKUP($B39,Hitter!$A$1:$AH$700,10,FALSE)),"") -> 74.88762428 | X39: =IFERROR(IF((OR($C39="RP",$C39="SP")),"",VLOOKUP($B39,Hitter!$A$1:$AH$700,4,FALSE)),"") -> 77.95516365 | Y39: =IFERROR(IF((OR($C39="RP",$C39="SP")),"",VLOOKUP($B39,Hitter!$A$1:$AH$700,11,FALSE)),"") -> 16.42866354 | Z39: =IFERROR(IF(ISTEXT($A39),"",(1-NORMDIST((COUNTA($A$6:$A$745)),($G39),((AE39-AD39)/6),TRUE))),"") -> 1 | AA39: =IFERROR(IF(ISTEXT($A39),"",(1-NORMDIST((COUNTA($A$6:$A$745))+(Personalize!$E$18+1),$G39,((AE39-AD39)/6),TRUE))),"") -> 1 | AB39: =IFERROR(IF(ISTEXT($A39),"",(1-NORMDIST((COUNTA($A$6:$A$745))+((Personalize!$E$18+1)*2),$G39,((AE39-AD39)/6),TRUE))),"") -> 1 | AD39: =IF(Personalize!$E$34=1,VLOOKUP($B39,'ADP-Rank'!$A$2:$J$700,5,FALSE),(IF(Personalize!$E$34=2,VLOOKUP($B39,'ADP-Rank'!$A$2:$J$700,8,FALSE),(IF(Personalize!$E$34=3,VLOOKUP($B39,'ADP-Rank'!$A$2:$O$700,11,FALSE),(IF(Personalize!$E$31=4,VLOOKUP($B39,'ADP-Rank'!$A$2:$AZ$700,25,FALSE),(IF(Personalize!$E$31=5,VLOOKUP($B39,'ADP-Rank'!$A$2:$AZ$700,28,FALSE),(IF(Personalize!$E$31=6,VLOOKUP($B39,'ADP-Rank'!$A$2:$AZ$700,32,FALSE),""))))))))))) -> 23 | AE39: =IF(Personalize!$E$34=1,VLOOKUP($B39,'ADP-Rank'!$A$2:$J$700,6,FALSE),(IF(Personalize!$E$34=2,VLOOKUP($B39,'ADP-Rank'!$A$2:$J$700,9,FALSE),(IF(Personalize!$E$34=3,VLOOKUP($B39,'ADP-Rank'!$A$2:$O$700,12,FALSE),(IF(Personalize!$E$31=4,VLOOKUP($B39,'ADP-Rank'!$A$2:$AZ$700,26,FALSE),(IF(Personalize!$E$31=5,VLOOKUP($B39,'ADP-Rank'!$A$2:$AZ$700,29,FALSE),(IF(Personalize!$E$31=6,VLOOKUP($B39,'ADP-Rank'!$A$2:$AZ$700,33,FALSE),""))))))))))) -> 31 | AF39: =IF(ISBLANK(A39),0,1) -> 0 | AG39: =IF(K39="",0,1) -> 1 | AH39: =A39 -> 0 | AI39: =IF(C39="C",1,IF(C39="1B",2,IF(C39="2B",3,IF(C39="3B",4,IF(C39="SS",5,IF(C39="CI",6,IF(C39="MI",7,IF(C39="OF",11,IF(C39="LF",8,IF(C39="CF",9,IF(C39="RF",10,IF(C39="DH",12,IF(C39="SP",13,IF(C39="RP",14,IF(C39="P",15,16))))))))))))))) -> 4 | AJ39: =VLOOKUP(B39,'Starter Calc'!$B$2:$BN$700,65,FALSE) -> Bench | AK39: =IFERROR(VLOOKUP($B39,'ADP-Rank'!$A$2:$AH$964,34,FALSE),TRUE) -> TRUE | AL39: 0
B40: Craig Kimbrel | C40: RP | D40: =IFERROR(IF(VLOOKUP(B40,'Starter Calc'!$B$2:$E$700,4,FALSE)="","",VLOOKUP(B40,'Starter Calc'!$B$2:$E$700,4,FALSE)),"") -> ,, | E40: =IFERROR(VLOOKUP($B40,'ADP-Rank'!$A$2:$D$700,3,FALSE),"") -> ATL | F40: =IFERROR(VLOOKUP($B40,'ADP-Rank'!$A$2:$W$700,23,FALSE),"") -> 26 | G40: =IFERROR((IF(Personalize!$E$38=1,VLOOKUP($B40,'ADP-Rank'!$A$2:$J$700,4,FALSE),(IF(Personalize!$E$38=2,VLOOKUP($B40,'ADP-Rank'!$A$2:$J$700,7,FALSE),(IF(Personalize!$E$38=3,VLOOKUP($B40,'ADP-Rank'!$A$2:$J$700,10,FALSE),(IF(Personalize!$E$38=4,VLOOKUP($B40,'ADP-Rank'!$A$2:$AD$700,24,FALSE),(IF(Personalize!$E$38=5,VLOOKUP($B40,'ADP-Rank'!$A$2:$AD$700,27,FALSE),(IF(Personalize!$E$38=6,VLOOKUP($B40,'ADP-Rank'!$A$2:$AZ$700,30,FALSE),(IF(Personalize!$E$38=7,VLOOKUP($B40,'ADP-Rank'!$A$2:$AZ$700,39,FALSE))))))))))))))),"") -> 39.94 | H40: =IFERROR(ROUNDDOWN(VLOOKUP($B40,'ADP-Rank'!$A$2:$AY$1064,38,FALSE),0),"") -> 3 | I40: =VLOOKUP($B40,'ADP-Rank'!$A$2:$AJ$1064,36,FALSE) -> 51 | J40: =IFERROR(RANK($M40,$M$6:$M$745,0),"") -> 6 | K40: =IFERROR(IF((OR($C40="RP",$C40="SP")),VLOOKUP($B40,Pitcher!$A$1:$Z$700,20,FALSE),(VLOOKUP($B40,Hitter!$A$1:$Z$700,26,FALSE))),"") -> 695.7495237 | L40: =IFERROR(IF((OR($C40="RP",$C40="SP")),VLOOKUP($C40,'Filtered-P'!$M$3:$P$4,4,FALSE), VLOOKUP($C40,Filtered!$Q$3:$T$14,4,FALSE)),"") -> 496.2083138 | M40: =IFERROR(($K40-$L40)/IF(OR($C40="SP",$C40="RP"),VLOOKUP($C40,'Filtered-P'!$M$3:$T$4,8,FALSE),VLOOKUP($C40,Filtered!$Q$3:$X$10,8,FALSE)),"") -> 2.415117314 | N40: =IFERROR(IF((OR($C40="RP",$C40="SP")),"",(VLOOKUP($B40,Hitter!$A$1:$Z$700,26,FALSE)/VLOOKUP($B40,Hitter!$A$1:$Z$700,2,FALSE))),"") ->  | O40: =IFERROR(IF((OR($C40="RP",$C40="SP")),VLOOKUP($B40,Pitcher!$A$1:$Z$700,20,FALSE)/VLOOKUP($B40,Pitcher!$A$1:$Z$700,4,FALSE),""),"") -> 9.93927891 | P40: =IFERROR(IF((OR($C40="RP",$C40="SP")),VLOOKUP($B40,Pitcher!$A$1:$V$700,2,FALSE),""),"") -> 4.687571692 | Q40: =IFERROR(IF((OR($C40="RP",$C40="SP")),VLOOKUP($B40,Pitcher!$A$1:$V$700,9,FALSE),""),"") -> 41.68144208 | R40: =IFERROR(IF((OR($C40="RP",$C40="SP")),VLOOKUP($B40,Pitcher!$A$1:$V$700,7,FALSE),""),"") -> 109.9871172 | S40: =IFERROR(IF((OR($C40="RP",$C40="SP")),VLOOKUP($B40,Pitcher!$A$1:$AB$700,21,FALSE),""),"") -> 1.938857143 | T40: =IFERROR(IF((OR($C40="RP",$C40="SP")),VLOOKUP($B40,Pitcher!$A$1:$V$700,22,FALSE),""),"") -> 0.9083956044 | U40: =IFERROR(IF((OR($C40="RP",$C40="SP")),"",VLOOKUP($B40,Hitter!$A$1:$AH$700,27,FALSE)),"") ->  | V40: =IFERROR(IF((OR($C40="RP",$C40="SP")),"",VLOOKUP($B40,Hitter!$A$1:$AH$700,9,FALSE)),"") ->  | W40: =IFERROR(IF((OR($C40="RP",$C40="SP")),"",VLOOKUP($B40,Hitter!$A$1:$AH$700,10,FALSE)),"") ->  | X40: =IFERROR(IF((OR($C40="RP",$C40="SP")),"",VLOOKUP($B40,Hitter!$A$1:$AH$700,4,FALSE)),"") ->  | Y40: =IFERROR(IF((OR($C40="RP",$C40="SP")),"",VLOOKUP($B40,Hitter!$A$1:$AH$700,11,FALSE)),"") ->  | Z40: =IFERROR(IF(ISTEXT($A40),"",(1-NORMDIST((COUNTA($A$6:$A$745)),($G40),((AE40-AD40)/6),TRUE))),"") -> 1 | AA40: =IFERROR(IF(ISTEXT($A40),"",(1-NORMDIST((COUNTA($A$6:$A$745))+(Personalize!$E$18+1),$G40,((AE40-AD40)/6),TRUE))),"") -> 0.9999999998 | AB40: =IFERROR(IF(ISTEXT($A40),"",(1-NORMDIST((COUNTA($A$6:$A$745))+((Personalize!$E$18+1)*2),$G40,((AE40-AD40)/6),TRUE))),"") -> 0.9999999918 | AD40: =IF(Personalize!$E$34=1,VLOOKUP($B40,'ADP-Rank'!$A$2:$J$700,5,FALSE),(IF(Personalize!$E$34=2,VLOOKUP($B40,'ADP-Rank'!$A$2:$J$700,8,FALSE),(IF(Personalize!$E$34=3,VLOOKUP($B40,'ADP-Rank'!$A$2:$O$700,11,FALSE),(IF(Personalize!$E$31=4,VLOOKUP($B40,'ADP-Rank'!$A$2:$AZ$700,25,FALSE),(IF(Personalize!$E$31=5,VLOOKUP($B40,'ADP-Rank'!$A$2:$AZ$700,28,FALSE),(IF(Personalize!$E$31=6,VLOOKUP($B40,'ADP-Rank'!$A$2:$AZ$700,32,FALSE),""))))))))))) -> 35 | AE40: =IF(Personalize!$E$34=1,VLOOKUP($B40,'ADP-Rank'!$A$2:$J$700,6,FALSE),(IF(Personalize!$E$34=2,VLOOKUP($B40,'ADP-Rank'!$A$2:$J$700,9,FALSE),(IF(Personalize!$E$34=3,VLOOKUP($B40,'ADP-Rank'!$A$2:$O$700,12,FALSE),(IF(Personalize!$E$31=4,VLOOKUP($B40,'ADP-Rank'!$A$2:$AZ$700,26,FALSE),(IF(Personalize!$E$31=5,VLOOKUP($B40,'ADP-Rank'!$A$2:$AZ$700,29,FALSE),(IF(Personalize!$E$31=6,VLOOKUP($B40,'ADP-Rank'!$A$2:$AZ$700,33,FALSE),""))))))))))) -> 70 | AF40: =IF(ISBLANK(A40),0,1) -> 0 | AG40: =IF(K40="",0,1) -> 1 | AH40: =A40 -> 0 | AI40: =IF(C40="C",1,IF(C40="1B",2,IF(C40="2B",3,IF(C40="3B",4,IF(C40="SS",5,IF(C40="CI",6,IF(C40="MI",7,IF(C40="OF",11,IF(C40="LF",8,IF(C40="CF",9,IF(C40="RF",10,IF(C40="DH",12,IF(C40="SP",13,IF(C40="RP",14,IF(C40="P",15,16))))))))))))))) -> 14 | AJ40: =VLOOKUP(B40,'Starter Calc'!$B$2:$BN$700,65,FALSE) -> Starter | AK40: =IFERROR(VLOOKUP($B40,'ADP-Rank'!$A$2:$AH$964,34,FALSE),TRUE) -> TRUE | AL40: 1
B41: Jose Bautista | C41: OF | D41: =IFERROR(IF(VLOOKUP(B41,'Starter Calc'!$B$2:$E$700,4,FALSE)="","",VLOOKUP(B41,'Starter Calc'!$B$2:$E$700,4,FALSE)),"") -> ,RF, | E41: =IFERROR(VLOOKUP($B41,'ADP-Rank'!$A$2:$D$700,3,FALSE),"") -> TOR | F41: =IFERROR(VLOOKUP($B41,'ADP-Rank'!$A$2:$W$700,23,FALSE),"") -> 33 | G41: =IFERROR((IF(Personalize!$E$38=1,VLOOKUP($B41,'ADP-Rank'!$A$2:$J$700,4,FALSE),(IF(Personalize!$E$38=2,VLOOKUP($B41,'ADP-Rank'!$A$2:$J$700,7,FALSE),(IF(Personalize!$E$38=3,VLOOKUP($B41,'ADP-Rank'!$A$2:$J$700,10,FALSE),(IF(Personalize!$E$38=4,VLOOKUP($B41,'ADP-Rank'!$A$2:$AD$700,24,FALSE),(IF(Personalize!$E$38=5,VLOOKUP($B41,'ADP-Rank'!$A$2:$AD$700,27,FALSE),(IF(Personalize!$E$38=6,VLOOKUP($B41,'ADP-Rank'!$A$2:$AZ$700,30,FALSE),(IF(Personalize!$E$38=7,VLOOKUP($B41,'ADP-Rank'!$A$2:$AZ$700,39,FALSE))))))))))))))),"") -> 40.35 | H41: =IFERROR(ROUNDDOWN(VLOOKUP($B41,'ADP-Rank'!$A$2:$AY$1064,38,FALSE),0),"") -> 3 | I41: =VLOOKUP($B41,'ADP-Rank'!$A$2:$AJ$1064,36,FALSE) -> 14 | J41: =IFERROR(RANK($M41,$M$6:$M$745,0),"") -> 22 | K41: =IFERROR(IF((OR($C41="RP",$C41="SP")),VLOOKUP($B41,Pitcher!$A$1:$Z$700,20,FALSE),(VLOOKUP($B41,Hitter!$A$1:$Z$700,26,FALSE))),"") -> 401.5675803 | L41: =IFERROR(IF((OR($C41="RP",$C41="SP")),VLOOKUP($C41,'Filtered-P'!$M$3:$P$4,4,FALSE), VLOOKUP($C41,Filtered!$Q$3:$T$14,4,FALSE)),"") -> 350.7983075 | M41: =IFERROR(($K41-$L41)/IF(OR($C41="SP",$C41="RP"),VLOOKUP($C41,'Filtered-P'!$M$3:$T$4,8,FALSE),VLOOKUP($C41,Filtered!$Q$3:$X$10,8,FALSE)),"") -> 1.243685718 | N41: =IFERROR(IF((OR($C41="RP",$C41="SP")),"",(VLOOKUP($B41,Hitter!$A$1:$Z$700,26,FALSE)/VLOOKUP($B41,Hitter!$A$1:$Z$700,2,FALSE))),"") -> 0.7277631564 | O41: =IFERROR(IF((OR($C41="RP",$C41="SP")),VLOOKUP($B41,Pitcher!$A$1:$Z$700,20,FALSE)/VLOOKUP($B41,Pitcher!$A$1:$Z$700,4,FALSE),""),"") ->  | P41: =IFERROR(IF((OR($C41="RP",$C41="SP")),VLOOKUP($B41,Pitcher!$A$1:$V$700,2,FALSE),""),"") ->  | Q41: =IFERROR(IF((OR($C41="RP",$C41="SP")),VLOOKUP($B41,Pitcher!$A$1:$V$700,9,FALSE),""),"") ->  | R41: =IFERROR(IF((OR($C41="RP",$C41="SP")),VLOOKUP($B41,Pitcher!$A$1:$V$700,7,FALSE),""),"") ->  | S41: =IFERROR(IF((OR($C41="RP",$C41="SP")),VLOOKUP($B41,Pitcher!$A$1:$AB$700,21,FALSE),""),"") ->  | T41: =IFERROR(IF((OR($C41="RP",$C41="SP")),VLOOKUP($B41,Pitcher!$A$1:$V$700,22,FALSE),""),"") ->  | U41: =IFERROR(IF((OR($C41="RP",$C41="SP")),"",VLOOKUP($B41,Hitter!$A$1:$AH$700,27,FALSE)),"") -> 0.2616591854 | V41: =IFERROR(IF((OR($C41="RP",$C41="SP")),"",VLOOKUP($B41,Hitter!$A$1:$AH$700,9,FALSE)),"") -> 31.27064901 | W41: =IFERROR(IF((OR($C41="RP",$C41="SP")),"",VLOOKUP($B41,Hitter!$A$1:$AH$700,10,FALSE)),"") -> 83.17953682 | X41: =IFERROR(IF((OR($C41="RP",$C41="SP")),"",VLOOKUP($B41,Hitter!$A$1:$AH$700,4,FALSE)),"") -> 86.3953554 | Y41: =IFERROR(IF((OR($C41="RP",$C41="SP")),"",VLOOKUP($B41,Hitter!$A$1:$AH$700,11,FALSE)),"") -> 6.372060414 | Z41: =IFERROR(IF(ISTEXT($A41),"",(1-NORMDIST((COUNTA($A$6:$A$745)),($G41),((AE41-AD41)/6),TRUE))),"") -> 1 | AA41: =IFERROR(IF(ISTEXT($A41),"",(1-NORMDIST((COUNTA($A$6:$A$745))+(Personalize!$E$18+1),$G41,((AE41-AD41)/6),TRUE))),"") -> 1 | AB41: =IFERROR(IF(ISTEXT($A41),"",(1-NORMDIST((COUNTA($A$6:$A$745))+((Personalize!$E$18+1)*2),$G41,((AE41-AD41)/6),TRUE))),"") -> 1 | AD41: =IF(Personalize!$E$34=1,VLOOKUP($B41,'ADP-Rank'!$A$2:$J$700,5,FALSE),(IF(Personalize!$E$34=2,VLOOKUP($B41,'ADP-Rank'!$A$2:$J$700,8,FALSE),(IF(Personalize!$E$34=3,VLOOKUP($B41,'ADP-Rank'!$A$2:$O$700,11,FALSE),(IF(Personalize!$E$31=4,VLOOKUP($B41,'ADP-Rank'!$A$2:$AZ$700,25,FALSE),(IF(Personalize!$E$31=5,VLOOKUP($B41,'ADP-Rank'!$A$2:$AZ$700,28,FALSE),(IF(Personalize!$E$31=6,VLOOKUP($B41,'ADP-Rank'!$A$2:$AZ$700,32,FALSE),""))))))))))) -> 19 | AE41: =IF(Personalize!$E$34=1,VLOOKUP($B41,'ADP-Rank'!$A$2:$J$700,6,FALSE),(IF(Personalize!$E$34=2,VLOOKUP($B41,'ADP-Rank'!$A$2:$J$700,9,FALSE),(IF(Personalize!$E$34=3,VLOOKUP($B41,'ADP-Rank'!$A$2:$O$700,12,FALSE),(IF(Personalize!$E$31=4,VLOOKUP($B41,'ADP-Rank'!$A$2:$AZ$700,26,FALSE),(IF(Personalize!$E$31=5,VLOOKUP($B41,'ADP-Rank'!$A$2:$AZ$700,29,FALSE),(IF(Personalize!$E$31=6,VLOOKUP($B41,'ADP-Rank'!$A$2:$AZ$700,33,FALSE),""))))))))))) -> 26 | AF41: =IF(ISBLANK(A41),0,1) -> 0 | AG41: =IF(K41="",0,1) -> 1 | AH41: =A41 -> 0 | AI41: =IF(C41="C",1,IF(C41="1B",2,IF(C41="2B",3,IF(C41="3B",4,IF(C41="SS",5,IF(C41="CI",6,IF(C41="MI",7,IF(C41="OF",11,IF(C41="LF",8,IF(C41="CF",9,IF(C41="RF",10,IF(C41="DH",12,IF(C41="SP",13,IF(C41="RP",14,IF(C41="P",15,16))))))))))))))) -> 11 | AJ41: =VLOOKUP(B41,'Starter Calc'!$B$2:$BN$700,65,FALSE) -> Bench | AK41: =IFERROR(VLOOKUP($B41,'ADP-Rank'!$A$2:$AH$964,34,FALSE),TRUE) -> TRUE | AL41: 0
B42: Joe Mauer | C42: C | D42: =IFERROR(IF(VLOOKUP(B42,'Starter Calc'!$B$2:$E$700,4,FALSE)="","",VLOOKUP(B42,'Starter Calc'!$B$2:$E$700,4,FALSE)),"") -> ,, | E42: =IFERROR(VLOOKUP($B42,'ADP-Rank'!$A$2:$D$700,3,FALSE),"") -> MIN | F42: =IFERROR(VLOOKUP($B42,'ADP-Rank'!$A$2:$W$700,23,FALSE),"") -> 31 | G42: =IFERROR((IF(Personalize!$E$38=1,VLOOKUP($B42,'ADP-Rank'!$A$2:$J$700,4,FALSE),(IF(Personalize!$E$38=2,VLOOKUP($B42,'ADP-Rank'!$A$2:$J$700,7,FALSE),(IF(Personalize!$E$38=3,VLOOKUP($B42,'ADP-Rank'!$A$2:$J$700,10,FALSE),(IF(Personalize!$E$38=4,VLOOKUP($B42,'ADP-Rank'!$A$2:$AD$700,24,FALSE),(IF(Personalize!$E$38=5,VLOOKUP($B42,'ADP-Rank'!$A$2:$AD$700,27,FALSE),(IF(Personalize!$E$38=6,VLOOKUP($B42,'ADP-Rank'!$A$2:$AZ$700,30,FALSE),(IF(Personalize!$E$38=7,VLOOKUP($B42,'ADP-Rank'!$A$2:$AZ$700,39,FALSE))))))))))))))),"") -> 42.15 | H42: =IFERROR(ROUNDDOWN(VLOOKUP($B42,'ADP-Rank'!$A$2:$AY$1064,38,FALSE),0),"") -> 3 | I42: =VLOOKUP($B42,'ADP-Rank'!$A$2:$AJ$1064,36,FALSE) -> 44 | J42: =IFERROR(RANK($M42,$M$6:$M$745,0),"") -> 20 | K42: =IFERROR(IF((OR($C42="RP",$C42="SP")),VLOOKUP($B42,Pitcher!$A$1:$Z$700,20,FALSE),(VLOOKUP($B42,Hitter!$A$1:$Z$700,26,FALSE))),"") -> 363.253485 | L42: =IFERROR(IF((OR($C42="RP",$C42="SP")),VLOOKUP($C42,'Filtered-P'!$M$3:$P$4,4,FALSE), VLOOKUP($C42,Filtered!$Q$3:$T$14,4,FALSE)),"") -> 301.2205882 | M42: =IFERROR(($K42-$L42)/IF(OR($C42="SP",$C42="RP"),VLOOKUP($C42,'Filtered-P'!$M$3:$T$4,8,FALSE),VLOOKUP($C42,Filtered!$Q$3:$X$10,8,FALSE)),"") -> 1.319604381 | N42: =IFERROR(IF((OR($C42="RP",$C42="SP")),"",(VLOOKUP($B42,Hitter!$A$1:$Z$700,26,FALSE)/VLOOKUP($B42,Hitter!$A$1:$Z$700,2,FALSE))),"") -> 0.5908482189 | O42: =IFERROR(IF((OR($C42="RP",$C42="SP")),VLOOKUP($B42,Pitcher!$A$1:$Z$700,20,FALSE)/VLOOKUP($B42,Pitcher!$A$1:$Z$700,4,FALSE),""),"") ->  | P42: =IFERROR(IF((OR($C42="RP",$C42="SP")),VLOOKUP($B42,Pitcher!$A$1:$V$700,2,FALSE),""),"") ->  | Q42: =IFERROR(IF((OR($C42="RP",$C42="SP")),VLOOKUP($B42,Pitcher!$A$1:$V$700,9,FALSE),""),"") ->  | R42: =IFERROR(IF((OR($C42="RP",$C42="SP")),VLOOKUP($B42,Pitcher!$A$1:$V$700,7,FALSE),""),"") ->  | S42: =IFERROR(IF((OR($C42="RP",$C42="SP")),VLOOKUP($B42,Pitcher!$A$1:$AB$700,21,FALSE),""),"") ->  | T42: =IFERROR(IF((OR($C42="RP",$C42="SP")),VLOOKUP($B42,Pitcher!$A$1:$V$700,22,FALSE),""),"") ->  | U42: =IFERROR(IF((OR($C42="RP",$C42="SP")),"",VLOOKUP($B42,Hitter!$A$1:$AH$700,27,FALSE)),"") -> 0.3024644584 | V42: =IFERROR(IF((OR($C42="RP",$C42="SP")),"",VLOOKUP($B42,Hitter!$A$1:$AH$700,9,FALSE)),"") -> 13.8141338 | W42: =IFERROR(IF((OR($C42="RP",$C42="SP")),"",VLOOKUP($B42,Hitter!$A$1:$AH$700,10,FALSE)),"") -> 66.46734492 | X42: =IFERROR(IF((OR($C42="RP",$C42="SP")),"",VLOOKUP($B42,Hitter!$A$1:$AH$700,4,FALSE)),"") -> 79.77073138 | Y42: =IFERROR(IF((OR($C42="RP",$C42="SP")),"",VLOOKUP($B42,Hitter!$A$1:$AH$700,11,FALSE)),"") -> 3.273899095 | Z42: =IFERROR(IF(ISTEXT($A42),"",(1-NORMDIST((COUNTA($A$6:$A$745)),($G42),((AE42-AD42)/6),TRUE))),"") -> 0.999684083 | AA42: =IFERROR(IF(ISTEXT($A42),"",(1-NORMDIST((COUNTA($A$6:$A$745))+(Personalize!$E$18+1),$G42,((AE42-AD42)/6),TRUE))),"") -> 0.9991371602 | AB42: =IFERROR(IF(ISTEXT($A42),"",(1-NORMDIST((COUNTA($A$6:$A$745))+((Personalize!$E$18+1)*2),$G42,((AE42-AD42)/6),TRUE))),"") -> 0.9978140385 | AD42: =IF(Personalize!$E$34=1,VLOOKUP($B42,'ADP-Rank'!$A$2:$J$700,5,FALSE),(IF(Personalize!$E$34=2,VLOOKUP($B42,'ADP-Rank'!$A$2:$J$700,8,FALSE),(IF(Personalize!$E$34=3,VLOOKUP($B42,'ADP-Rank'!$A$2:$O$700,11,FALSE),(IF(Personalize!$E$31=4,VLOOKUP($B42,'ADP-Rank'!$A$2:$AZ$700,25,FALSE),(IF(Personalize!$E$31=5,VLOOKUP($B42,'ADP-Rank'!$A$2:$AZ$700,28,FALSE),(IF(Personalize!$E$31=6,VLOOKUP($B42,'ADP-Rank'!$A$2:$AZ$700,32,FALSE),""))))))))))) -> 84 | AE42: =IF(Personalize!$E$34=1,VLOOKUP($B42,'ADP-Rank'!$A$2:$J$700,6,FALSE),(IF(Personalize!$E$34=2,VLOOKUP($B42,'ADP-Rank'!$A$2:$J$700,9,FALSE),(IF(Personalize!$E$34=3,VLOOKUP($B42,'ADP-Rank'!$A$2:$O$700,12,FALSE),(IF(Personalize!$E$31=4,VLOOKUP($B42,'ADP-Rank'!$A$2:$AZ$700,26,FALSE),(IF(Personalize!$E$31=5,VLOOKUP($B42,'ADP-Rank'!$A$2:$AZ$700,29,FALSE),(IF(Personalize!$E$31=6,VLOOKUP($B42,'ADP-Rank'!$A$2:$AZ$700,33,FALSE),""))))))))))) -> 158 | AF42: =IF(ISBLANK(A42),0,1) -> 0 | AG42: =IF(K42="",0,1) -> 1 | AH42: =A42 -> 0 | AI42: =IF(C42="C",1,IF(C42="1B",2,IF(C42="2B",3,IF(C42="3B",4,IF(C42="SS",5,IF(C42="CI",6,IF(C42="MI",7,IF(C42="OF",11,IF(C42="LF",8,IF(C42="CF",9,IF(C42="RF",10,IF(C42="DH",12,IF(C42="SP",13,IF(C42="RP",14,IF(C42="P",15,16))))))))))))))) -> 1 | AJ42: =VLOOKUP(B42,'Starter Calc'!$B$2:$BN$700,65,FALSE) -> Bench | AK42: =IFERROR(VLOOKUP($B42,'ADP-Rank'!$A$2:$AH$964,34,FALSE),TRUE) -> TRUE | AL42: 0
B43: Jose Reyes | C43: SS | D43: =IFERROR(IF(VLOOKUP(B43,'Starter Calc'!$B$2:$E$700,4,FALSE)="","",VLOOKUP(B43,'Starter Calc'!$B$2:$E$700,4,FALSE)),"") -> ,, | E43: =IFERROR(VLOOKUP($B43,'ADP-Rank'!$A$2:$D$700,3,FALSE),"") -> TOR | F43: =IFERROR(VLOOKUP($B43,'ADP-Rank'!$A$2:$W$700,23,FALSE),"") -> 31 | G43: =IFERROR((IF(Personalize!$E$38=1,VLOOKUP($B43,'ADP-Rank'!$A$2:$J$700,4,FALSE),(IF(Personalize!$E$38=2,VLOOKUP($B43,'ADP-Rank'!$A$2:$J$700,7,FALSE),(IF(Personalize!$E$38=3,VLOOKUP($B43,'ADP-Rank'!$A$2:$J$700,10,FALSE),(IF(Personalize!$E$38=4,VLOOKUP($B43,'ADP-Rank'!$A$2:$AD$700,24,FALSE),(IF(Personalize!$E$38=5,VLOOKUP($B43,'ADP-Rank'!$A$2:$AD$700,27,FALSE),(IF(Personalize!$E$38=6,VLOOKUP($B43,'ADP-Rank'!$A$2:$AZ$700,30,FALSE),(IF(Personalize!$E$38=7,VLOOKUP($B43,'ADP-Rank'!$A$2:$AZ$700,39,FALSE))))))))))))))),"") -> 44.08 | H43: =IFERROR(ROUNDDOWN(VLOOKUP($B43,'ADP-Rank'!$A$2:$AY$1064,38,FALSE),0),"") -> 3 | I43: =VLOOKUP($B43,'ADP-Rank'!$A$2:$AJ$1064,36,FALSE) -> 46 | J43: =IFERROR(RANK($M43,$M$6:$M$745,0),"") -> 17 | K43: =IFERROR(IF((OR($C43="RP",$C43="SP")),VLOOKUP($B43,Pitcher!$A$1:$Z$700,20,FALSE),(VLOOKUP($B43,Hitter!$A$1:$Z$700,26,FALSE))),"") -> 373.189879 | L43: =IFERROR(IF((OR($C43="RP",$C43="SP")),VLOOKUP($C43,'Filtered-P'!$M$3:$P$4,4,FALSE), VLOOKUP($C43,Filtered!$Q$3:$T$14,4,FALSE)),"") -> 333.8973548 | M43: =IFERROR(($K43-$L43)/IF(OR($C43="SP",$C43="RP"),VLOOKUP($C43,'Filtered-P'!$M$3:$T$4,8,FALSE),VLOOKUP($C43,Filtered!$Q$3:$X$10,8,FALSE)),"") -> 1.391442164 | N43: =IFERROR(IF((OR($C43="RP",$C43="SP")),"",(VLOOKUP($B43,Hitter!$A$1:$Z$700,26,FALSE)/VLOOKUP($B43,Hitter!$A$1:$Z$700,2,FALSE))),"") -> 0.6347936195 | O43: =IFERROR(IF((OR($C43="RP",$C43="SP")),VLOOKUP($B43,Pitcher!$A$1:$Z$700,20,FALSE)/VLOOKUP($B43,Pitcher!$A$1:$Z$700,4,FALSE),""),"") ->  | P43: =IFERROR(IF((OR($C43="RP",$C43="SP")),VLOOKUP($B43,Pitcher!$A$1:$V$700,2,FALSE),""),"") ->  | Q43: =IFERROR(IF((OR($C43="RP",$C43="SP")),VLOOKUP($B43,Pitcher!$A$1:$V$700,9,FALSE),""),"") ->  | R43: =IFERROR(IF((OR($C43="RP",$C43="SP")),VLOOKUP($B43,Pitcher!$A$1:$V$700,7,FALSE),""),"") ->  | S43: =IFERROR(IF((OR($C43="RP",$C43="SP")),VLOOKUP($B43,Pitcher!$A$1:$AB$700,21,FALSE),""),"") ->  | T43: =IFERROR(IF((OR($C43="RP",$C43="SP")),VLOOKUP($B43,Pitcher!$A$1:$V$700,22,FALSE),""),"") ->  | U43: =IFERROR(IF((OR($C43="RP",$C43="SP")),"",VLOOKUP($B43,Hitter!$A$1:$AH$700,27,FALSE)),"") -> 0.2901309578 | V43: =IFERROR(IF((OR($C43="RP",$C43="SP")),"",VLOOKUP($B43,Hitter!$A$1:$AH$700,9,FALSE)),"") -> 11.18030971 | W43: =IFERROR(IF((OR($C43="RP",$C43="SP")),"",VLOOKUP($B43,Hitter!$A$1:$AH$700,10,FALSE)),"") -> 53.8346871 | X43: =IFERROR(IF((OR($C43="RP",$C43="SP")),"",VLOOKUP($B43,Hitter!$A$1:$AH$700,4,FALSE)),"") -> 82.55756838 | Y43: =IFERROR(IF((OR($C43="RP",$C43="SP")),"",VLOOKUP($B43,Hitter!$A$1:$AH$700,11,FALSE)),"") -> 26.13876719 | Z43: =IFERROR(IF(ISTEXT($A43),"",(1-NORMDIST((COUNTA($A$6:$A$745)),($G43),((AE43-AD43)/6),TRUE))),"") -> 1 | AA43: =IFERROR(IF(ISTEXT($A43),"",(1-NORMDIST((COUNTA($A$6:$A$745))+(Personalize!$E$18+1),$G43,((AE43-AD43)/6),TRUE))),"") -> 1 | AB43: =IFERROR(IF(ISTEXT($A43),"",(1-NORMDIST((COUNTA($A$6:$A$745))+((Personalize!$E$18+1)*2),$G43,((AE43-AD43)/6),TRUE))),"") -> 1 | AD43: =IF(Personalize!$E$34=1,VLOOKUP($B43,'ADP-Rank'!$A$2:$J$700,5,FALSE),(IF(Personalize!$E$34=2,VLOOKUP($B43,'ADP-Rank'!$A$2:$J$700,8,FALSE),(IF(Personalize!$E$34=3,VLOOKUP($B43,'ADP-Rank'!$A$2:$O$700,11,FALSE),(IF(Personalize!$E$31=4,VLOOKUP($B43,'ADP-Rank'!$A$2:$AZ$700,25,FALSE),(IF(Personalize!$E$31=5,VLOOKUP($B43,'ADP-Rank'!$A$2:$AZ$700,28,FALSE),(IF(Personalize!$E$31=6,VLOOKUP($B43,'ADP-Rank'!$A$2:$AZ$700,32,FALSE),""))))))))))) -> 42 | AE43: =IF(Personalize!$E$34=1,VLOOKUP($B43,'ADP-Rank'!$A$2:$J$700,6,FALSE),(IF(Personalize!$E$34=2,VLOOKUP($B43,'ADP-Rank'!$A$2:$J$700,9,FALSE),(IF(Personalize!$E$34=3,VLOOKUP($B43,'ADP-Rank'!$A$2:$O$700,12,FALSE),(IF(Personalize!$E$31=4,VLOOKUP($B43,'ADP-Rank'!$A$2:$AZ$700,26,FALSE),(IF(Personalize!$E$31=5,VLOOKUP($B43,'ADP-Rank'!$A$2:$AZ$700,29,FALSE),(IF(Personalize!$E$31=6,VLOOKUP($B43,'ADP-Rank'!$A$2:$AZ$700,33,FALSE),""))))))))))) -> 66 | AF43: =IF(ISBLANK(A43),0,1) -> 0 | AG43: =IF(K43="",0,1) -> 1 | AH43: =A43 -> 0 | AI43: =IF(C43="C",1,IF(C43="1B",2,IF(C43="2B",3,IF(C43="3B",4,IF(C43="SS",5,IF(C43="CI",6,IF(C43="MI",7,IF(C43="OF",11,IF(C43="LF",8,IF(C43="CF",9,IF(C43="RF",10,IF(C43="DH",12,IF(C43="SP",13,IF(C43="RP",14,IF(C43="P",15,16))))))))))))))) -> 5 | AJ43: =VLOOKUP(B43,'Starter Calc'!$B$2:$BN$700,65,FALSE) -> Bench | AK43: =IFERROR(VLOOKUP($B43,'ADP-Rank'!$A$2:$AH$964,34,FALSE),TRUE) -> TRUE | AL43: 0
B44: Zack Greinke | C44: SP | D44: =IFERROR(IF(VLOOKUP(B44,'Starter Calc'!$B$2:$E$700,4,FALSE)="","",VLOOKUP(B44,'Starter Calc'!$B$2:$E$700,4,FALSE)),"") -> ,, | E44: =IFERROR(VLOOKUP($B44,'ADP-Rank'!$A$2:$D$700,3,FALSE),"") -> LAD | F44: =IFERROR(VLOOKUP($B44,'ADP-Rank'!$A$2:$W$700,23,FALSE),"") -> 30 | G44: =IFERROR((IF(Personalize!$E$38=1,VLOOKUP($B44,'ADP-Rank'!$A$2:$J$700,4,FALSE),(IF(Personalize!$E$38=2,VLOOKUP($B44,'ADP-Rank'!$A$2:$J$700,7,FALSE),(IF(Personalize!$E$38=3,VLOOKUP($B44,'ADP-Rank'!$A$2:$J$700,10,FALSE),(IF(Personalize!$E$38=4,VLOOKUP($B44,'ADP-Rank'!$A$2:$AD$700,24,FALSE),(IF(Personalize!$E$38=5,VLOOKUP($B44,'ADP-Rank'!$A$2:$AD$700,27,FALSE),(IF(Personalize!$E$38=6,VLOOKUP($B44,'ADP-Rank'!$A$2:$AZ$700,30,FALSE),(IF(Personalize!$E$38=7,VLOOKUP($B44,'ADP-Rank'!$A$2:$AZ$700,39,FALSE))))))))))))))),"") -> 44.4 | H44: =IFERROR(ROUNDDOWN(VLOOKUP($B44,'ADP-Rank'!$A$2:$AY$1064,38,FALSE),0),"") -> 4 | I44: =VLOOKUP($B44,'ADP-Rank'!$A$2:$AJ$1064,36,FALSE) -> 63 | J44: =IFERROR(RANK($M44,$M$6:$M$745,0),"") -> 74 | K44: =IFERROR(IF((OR($C44="RP",$C44="SP")),VLOOKUP($B44,Pitcher!$A$1:$Z$700,20,FALSE),(VLOOKUP($B44,Hitter!$A$1:$Z$700,26,FALSE))),"") -> 404.2970344 | L44: =IFERROR(IF((OR($C44="RP",$C44="SP")),VLOOKUP($C44,'Filtered-P'!$M$3:$P$4,4,FALSE), VLOOKUP($C44,Filtered!$Q$3:$T$14,4,FALSE)),"") -> 411.2053549 | M44: =IFERROR(($K44-$L44)/IF(OR($C44="SP",$C44="RP"),VLOOKUP($C44,'Filtered-P'!$M$3:$T$4,8,FALSE),VLOOKUP($C44,Filtered!$Q$3:$X$10,8,FALSE)),"") -> -0.0918665821 | N44: =IFERROR(IF((OR($C44="RP",$C44="SP")),"",(VLOOKUP($B44,Hitter!$A$1:$Z$700,26,FALSE)/VLOOKUP($B44,Hitter!$A$1:$Z$700,2,FALSE))),"") ->  | O44: =IFERROR(IF((OR($C44="RP",$C44="SP")),VLOOKUP($B44,Pitcher!$A$1:$Z$700,20,FALSE)/VLOOKUP($B44,Pitcher!$A$1:$Z$700,4,FALSE),""),"") -> 1.981848208 | P44: =IFERROR(IF((OR($C44="RP",$C44="SP")),VLOOKUP($B44,Pitcher!$A$1:$V$700,2,FALSE),""),"") -> 15.40369801 | Q44: =IFERROR(IF((OR($C44="RP",$C44="SP")),VLOOKUP($B44,Pitcher!$A$1:$V$700,9,FALSE),""),"") -> 0 | R44: =IFERROR(IF((OR($C44="RP",$C44="SP")),VLOOKUP($B44,Pitcher!$A$1:$V$700,7,FALSE),""),"") -> 185.5523689 | S44: =IFERROR(IF((OR($C44="RP",$C44="SP")),VLOOKUP($B44,Pitcher!$A$1:$AB$700,21,FALSE),""),"") -> 3.297573529 | T44: =IFERROR(IF((OR($C44="RP",$C44="SP")),VLOOKUP($B44,Pitcher!$A$1:$V$700,22,FALSE),""),"") -> 1.176179534 | U44: =IFERROR(IF((OR($C44="RP",$C44="SP")),"",VLOOKUP($B44,Hitter!$A$1:$AH$700,27,FALSE)),"") ->  | V44: =IFERROR(IF((OR($C44="RP",$C44="SP")),"",VLOOKUP($B44,Hitter!$A$1:$AH$700,9,FALSE)),"") ->  | W44: =IFERROR(IF((OR($C44="RP",$C44="SP")),"",VLOOKUP($B44,Hitter!$A$1:$AH$700,10,FALSE)),"") ->  | X44: =IFERROR(IF((OR($C44="RP",$C44="SP")),"",VLOOKUP($B44,Hitter!$A$1:$AH$700,4,FALSE)),"") ->  | Y44: =IFERROR(IF((OR($C44="RP",$C44="SP")),"",VLOOKUP($B44,Hitter!$A$1:$AH$700,11,FALSE)),"") ->  | Z44: =IFERROR(IF(ISTEXT($A44),"",(1-NORMDIST((COUNTA($A$6:$A$745)),($G44),((AE44-AD44)/6),TRUE))),"") -> 1 | AA44: =IFERROR(IF(ISTEXT($A44),"",(1-NORMDIST((COUNTA($A$6:$A$745))+(Personalize!$E$18+1),$G44,((AE44-AD44)/6),TRUE))),"") -> 1 | AB44: =IFERROR(IF(ISTEXT($A44),"",(1-NORMDIST((COUNTA($A$6:$A$745))+((Personalize!$E$18+1)*2),$G44,((AE44-AD44)/6),TRUE))),"") -> 1 | AD44: =IF(Personalize!$E$34=1,VLOOKUP($B44,'ADP-Rank'!$A$2:$J$700,5,FALSE),(IF(Personalize!$E$34=2,VLOOKUP($B44,'ADP-Rank'!$A$2:$J$700,8,FALSE),(IF(Personalize!$E$34=3,VLOOKUP($B44,'ADP-Rank'!$A$2:$O$700,11,FALSE),(IF(Personalize!$E$31=4,VLOOKUP($B44,'ADP-Rank'!$A$2:$AZ$700,25,FALSE),(IF(Personalize!$E$31=5,VLOOKUP($B44,'ADP-Rank'!$A$2:$AZ$700,28,FALSE),(IF(Personalize!$E$31=6,VLOOKUP($B44,'ADP-Rank'!$A$2:$AZ$700,32,FALSE),""))))))))))) -> 74 | AE44: =IF(Personalize!$E$34=1,VLOOKUP($B44,'ADP-Rank'!$A$2:$J$700,6,FALSE),(IF(Personalize!$E$34=2,VLOOKUP($B44,'ADP-Rank'!$A$2:$J$700,9,FALSE),(IF(Personalize!$E$34=3,VLOOKUP($B44,'ADP-Rank'!$A$2:$O$700,12,FALSE),(IF(Personalize!$E$31=4,VLOOKUP($B44,'ADP-Rank'!$A$2:$AZ$700,26,FALSE),(IF(Personalize!$E$31=5,VLOOKUP($B44,'ADP-Rank'!$A$2:$AZ$700,29,FALSE),(IF(Personalize!$E$31=6,VLOOKUP($B44,'ADP-Rank'!$A$2:$AZ$700,33,FALSE),""))))))))))) -> 102 | AF44: =IF(ISBLANK(A44),0,1) -> 0 | AG44: =IF(K44="",0,1) -> 1 | AH44: =A44 -> 0 | AI44: =IF(C44="C",1,IF(C44="1B",2,IF(C44="2B",3,IF(C44="3B",4,IF(C44="SS",5,IF(C44="CI",6,IF(C44="MI",7,IF(C44="OF",11,IF(C44="LF",8,IF(C44="CF",9,IF(C44="RF",10,IF(C44="DH",12,IF(C44="SP",13,IF(C44="RP",14,IF(C44="P",15,16))))))))))))))) -> 13 | AJ44: =VLOOKUP(B44,'Starter Calc'!$B$2:$BN$700,65,FALSE) -> Bench | AK44: =IFERROR(VLOOKUP($B44,'ADP-Rank'!$A$2:$AH$964,34,FALSE),TRUE) -> TRUE | AL44: 1
B45: Freddie Freeman | C45: 1B | D45: =IFERROR(IF(VLOOKUP(B45,'Starter Calc'!$B$2:$E$700,4,FALSE)="","",VLOOKUP(B45,'Starter Calc'!$B$2:$E$700,4,FALSE)),"") -> ,, | E45: =IFERROR(VLOOKUP($B45,'ADP-Rank'!$A$2:$D$700,3,FALSE),"") -> ATL | F45: =IFERROR(VLOOKUP($B45,'ADP-Rank'!$A$2:$W$700,23,FALSE),"") -> 24 | G45: =IFERROR((IF(Personalize!$E$38=1,VLOOKUP($B45,'ADP-Rank'!$A$2:$J$700,4,FALSE),(IF(Personalize!$E$38=2,VLOOKUP($B45,'ADP-Rank'!$A$2:$J$700,7,FALSE),(IF(Personalize!$E$38=3,VLOOKUP($B45,'ADP-Rank'!$A$2:$J$700,10,FALSE),(IF(Personalize!$E$38=4,VLOOKUP($B45,'ADP-Rank'!$A$2:$AD$700,24,FALSE),(IF(Personalize!$E$38=5,VLOOKUP($B45,'ADP-Rank'!$A$2:$AD$700,27,FALSE),(IF(Personalize!$E$38=6,VLOOKUP($B45,'ADP-Rank'!$A$2:$AZ$700,30,FALSE),(IF(Personalize!$E$38=7,VLOOKUP($B45,'ADP-Rank'!$A$2:$AZ$700,39,FALSE))))))))))))))),"") -> 45.5 | H45: =IFERROR(ROUNDDOWN(VLOOKUP($B45,'ADP-Rank'!$A$2:$AY$1064,38,FALSE),0),"") -> 4 | I45: =VLOOKUP($B45,'ADP-Rank'!$A$2:$AJ$1064,36,FALSE) -> 40 | J45: =IFERROR(RANK($M45,$M$6:$M$745,0),"") -> 82 | K45: =IFERROR(IF((OR($C45="RP",$C45="SP")),VLOOKUP($B45,Pitcher!$A$1:$Z$700,20,FALSE),(VLOOKUP($B45,Hitter!$A$1:$Z$700,26,FALSE))),"") -> 363.7403303 | L45: =IFERROR(IF((OR($C45="RP",$C45="SP")),VLOOKUP($C45,'Filtered-P'!$M$3:$P$4,4,FALSE), VLOOKUP($C45,Filtered!$Q$3:$T$14,4,FALSE)),"") -> 372.669335 | M45: =IFERROR(($K45-$L45)/IF(OR($C45="SP",$C45="RP"),VLOOKUP($C45,'Filtered-P'!$M$3:$T$4,8,FALSE),VLOOKUP($C45,Filtered!$Q$3:$X$10,8,FALSE)),"") -> -0.1711257412 | N45: =IFERROR(IF((OR($C45="RP",$C45="SP")),"",(VLOOKUP($B45,Hitter!$A$1:$Z$700,26,FALSE)/VLOOKUP($B45,Hitter!$A$1:$Z$700,2,FALSE))),"") -> 0.6157697628 | O45: =IFERROR(IF((OR($C45="RP",$C45="SP")),VLOOKUP($B45,Pitcher!$A$1:$Z$700,20,FALSE)/VLOOKUP($B45,Pitcher!$A$1:$Z$700,4,FALSE),""),"") ->  | P45: =IFERROR(IF((OR($C45="RP",$C45="SP")),VLOOKUP($B45,Pitcher!$A$1:$V$700,2,FALSE),""),"") ->  | Q45: =IFERROR(IF((OR($C45="RP",$C45="SP")),VLOOKUP($B45,Pitcher!$A$1:$V$700,9,FALSE),""),"") ->  | R45: =IFERROR(IF((OR($C45="RP",$C45="SP")),VLOOKUP($B45,Pitcher!$A$1:$V$700,7,FALSE),""),"") ->  | S45: =IFERROR(IF((OR($C45="RP",$C45="SP")),VLOOKUP($B45,Pitcher!$A$1:$AB$700,21,FALSE),""),"") ->  | T45: =IFERROR(IF((OR($C45="RP",$C45="SP")),VLOOKUP($B45,Pitcher!$A$1:$V$700,22,FALSE),""),"") ->  | U45: =IFERROR(IF((OR($C45="RP",$C45="SP")),"",VLOOKUP($B45,Hitter!$A$1:$AH$700,27,FALSE)),"") -> 0.2865610959 | V45: =IFERROR(IF((OR($C45="RP",$C45="SP")),"",VLOOKUP($B45,Hitter!$A$1:$AH$700,9,FALSE)),"") -> 22.85253364 | W45: =IFERROR(IF((OR($C45="RP",$C45="SP")),"",VLOOKUP($B45,Hitter!$A$1:$AH$700,10,FALSE)),"") -> 85.55893041 | X45: =IFERROR(IF((OR($C45="RP",$C45="SP")),"",VLOOKUP($B45,Hitter!$A$1:$AH$700,4,FALSE)),"") -> 80.90143139 | Y45: =IFERROR(IF((OR($C45="RP",$C45="SP")),"",VLOOKUP($B45,Hitter!$A$1:$AH$700,11,FALSE)),"") -> 2.417128889 | Z45: =IFERROR(IF(ISTEXT($A45),"",(1-NORMDIST((COUNTA($A$6:$A$745)),($G45),((AE45-AD45)/6),TRUE))),"") -> 1 | AA45: =IFERROR(IF(ISTEXT($A45),"",(1-NORMDIST((COUNTA($A$6:$A$745))+(Personalize!$E$18+1),$G45,((AE45-AD45)/6),TRUE))),"") -> 1 | AB45: =IFERROR(IF(ISTEXT($A45),"",(1-NORMDIST((COUNTA($A$6:$A$745))+((Personalize!$E$18+1)*2),$G45,((AE45-AD45)/6),TRUE))),"") -> 1 | AD45: =IF(Personalize!$E$34=1,VLOOKUP($B45,'ADP-Rank'!$A$2:$J$700,5,FALSE),(IF(Personalize!$E$34=2,VLOOKUP($B45,'ADP-Rank'!$A$2:$J$700,8,FALSE),(IF(Personalize!$E$34=3,VLOOKUP($B45,'ADP-Rank'!$A$2:$O$700,11,FALSE),(IF(Personalize!$E$31=4,VLOOKUP($B45,'ADP-Rank'!$A$2:$AZ$700,25,FALSE),(IF(Personalize!$E$31=5,VLOOKUP($B45,'ADP-Rank'!$A$2:$AZ$700,28,FALSE),(IF(Personalize!$E$31=6,VLOOKUP($B45,'ADP-Rank'!$A$2:$AZ$700,32,FALSE),""))))))))))) -> 22 | AE45: =IF(Personalize!$E$34=1,VLOOKUP($B45,'ADP-Rank'!$A$2:$J$700,6,FALSE),(IF(Personalize!$E$34=2,VLOOKUP($B45,'ADP-Rank'!$A$2:$J$700,9,FALSE),(IF(Personalize!$E$34=3,VLOOKUP($B45,'ADP-Rank'!$A$2:$O$700,12,FALSE),(IF(Personalize!$E$31=4,VLOOKUP($B45,'ADP-Rank'!$A$2:$AZ$700,26,FALSE),(IF(Personalize!$E$31=5,VLOOKUP($B45,'ADP-Rank'!$A$2:$AZ$700,29,FALSE),(IF(Personalize!$E$31=6,VLOOKUP($B45,'ADP-Rank'!$A$2:$AZ$700,33,FALSE),""))))))))))) -> 38 | AF45: =IF(ISBLANK(A45),0,1) -> 0 | AG45: =IF(K45="",0,1) -> 1 | AH45: =A45 -> 0 | AI45: =IF(C45="C",1,IF(C45="1B",2,IF(C45="2B",3,IF(C45="3B",4,IF(C45="SS",5,IF(C45="CI",6,IF(C45="MI",7,IF(C45="OF",11,IF(C45="LF",8,IF(C45="CF",9,IF(C45="RF",10,IF(C45="DH",12,IF(C45="SP",13,IF(C45="RP",14,IF(C45="P",15,16))))))))))))))) -> 2 | AJ45: =VLOOKUP(B45,'Starter Calc'!$B$2:$BN$700,65,FALSE) -> Bench | AK45: =IFERROR(VLOOKUP($B45,'ADP-Rank'!$A$2:$AH$964,34,FALSE),TRUE) -> TRUE | AL45: 0
B46: Buster Posey | C46: C | D46: =IFERROR(IF(VLOOKUP(B46,'Starter Calc'!$B$2:$E$700,4,FALSE)="","",VLOOKUP(B46,'Starter Calc'!$B$2:$E$700,4,FALSE)),"") -> ,, | E46: =IFERROR(VLOOKUP($B46,'ADP-Rank'!$A$2:$D$700,3,FALSE),"") -> SF | F46: =IFERROR(VLOOKUP($B46,'ADP-Rank'!$A$2:$W$700,23,FALSE),"") -> 27 | G46: =IFERROR((IF(Personalize!$E$38=1,VLOOKUP($B46,'ADP-Rank'!$A$2:$J$700,4,FALSE),(IF(Personalize!$E$38=2,VLOOKUP($B46,'ADP-Rank'!$A$2:$J$700,7,FALSE),(IF(Personalize!$E$38=3,VLOOKUP($B46,'ADP-Rank'!$A$2:$J$700,10,FALSE),(IF(Personalize!$E$38=4,VLOOKUP($B46,'ADP-Rank'!$A$2:$AD$700,24,FALSE),(IF(Personalize!$E$38=5,VLOOKUP($B46,'ADP-Rank'!$A$2:$AD$700,27,FALSE),(IF(Personalize!$E$38=6,VLOOKUP($B46,'ADP-Rank'!$A$2:$AZ$700,30,FALSE),(IF(Personalize!$E$38=7,VLOOKUP($B46,'ADP-Rank'!$A$2:$AZ$700,39,FALSE))))))))))))))),"") -> 46.94 | H46: =IFERROR(ROUNDDOWN(VLOOKUP($B46,'ADP-Rank'!$A$2:$AY$1064,38,FALSE),0),"") -> 4 | I46: =VLOOKUP($B46,'ADP-Rank'!$A$2:$AJ$1064,36,FALSE) -> 28 | J46: =IFERROR(RANK($M46,$M$6:$M$745,0),"") -> 13 | K46: =IFERROR(IF((OR($C46="RP",$C46="SP")),VLOOKUP($B46,Pitcher!$A$1:$Z$700,20,FALSE),(VLOOKUP($B46,Hitter!$A$1:$Z$700,26,FALSE))),"") -> 378.4308156 | L46: =IFERROR(IF((OR($C46="RP",$C46="SP")),VLOOKUP($C46,'Filtered-P'!$M$3:$P$4,4,FALSE), VLOOKUP($C46,Filtered!$Q$3:$T$14,4,FALSE)),"") -> 301.2205882 | M46: =IFERROR(($K46-$L46)/IF(OR($C46="SP",$C46="RP"),VLOOKUP($C46,'Filtered-P'!$M$3:$T$4,8,FALSE),VLOOKUP($C46,Filtered!$Q$3:$X$10,8,FALSE)),"") -> 1.642466492 | N46: =IFERROR(IF((OR($C46="RP",$C46="SP")),"",(VLOOKUP($B46,Hitter!$A$1:$Z$700,26,FALSE)/VLOOKUP($B46,Hitter!$A$1:$Z$700,2,FALSE))),"") -> 0.6402867558 | O46: =IFERROR(IF((OR($C46="RP",$C46="SP")),VLOOKUP($B46,Pitcher!$A$1:$Z$700,20,FALSE)/VLOOKUP($B46,Pitcher!$A$1:$Z$700,4,FALSE),""),"") ->  | P46: =IFERROR(IF((OR($C46="RP",$C46="SP")),VLOOKUP($B46,Pitcher!$A$1:$V$700,2,FALSE),""),"") ->  | Q46: =IFERROR(IF((OR($C46="RP",$C46="SP")),VLOOKUP($B46,Pitcher!$A$1:$V$700,9,FALSE),""),"") ->  | R46: =IFERROR(IF((OR($C46="RP",$C46="SP")),VLOOKUP($B46,Pitcher!$A$1:$V$700,7,FALSE),""),"") ->  | S46: =IFERROR(IF((OR($C46="RP",$C46="SP")),VLOOKUP($B46,Pitcher!$A$1:$AB$700,21,FALSE),""),"") ->  | T46: =IFERROR(IF((OR($C46="RP",$C46="SP")),VLOOKUP($B46,Pitcher!$A$1:$V$700,22,FALSE),""),"") ->  | U46: =IFERROR(IF((OR($C46="RP",$C46="SP")),"",VLOOKUP($B46,Hitter!$A$1:$AH$700,27,FALSE)),"") -> 0.2943658265 | V46: =IFERROR(IF((OR($C46="RP",$C46="SP")),"",VLOOKUP($B46,Hitter!$A$1:$AH$700,9,FALSE)),"") -> 18.34920867 | W46: =IFERROR(IF((OR($C46="RP",$C46="SP")),"",VLOOKUP($B46,Hitter!$A$1:$AH$700,10,FALSE)),"") -> 80.31824427 | X46: =IFERROR(IF((OR($C46="RP",$C46="SP")),"",VLOOKUP($B46,Hitter!$A$1:$AH$700,4,FALSE)),"") -> 74.69611256 | Y46: =IFERROR(IF((OR($C46="RP",$C46="SP")),"",VLOOKUP($B46,Hitter!$A$1:$AH$700,11,FALSE)),"") -> 3.083995868 | Z46: =IFERROR(IF(ISTEXT($A46),"",(1-NORMDIST((COUNTA($A$6:$A$745)),($G46),((AE46-AD46)/6),TRUE))),"") -> 1 | AA46: =IFERROR(IF(ISTEXT($A46),"",(1-NORMDIST((COUNTA($A$6:$A$745))+(Personalize!$E$18+1),$G46,((AE46-AD46)/6),TRUE))),"") -> 0.9999999999 | AB46: =IFERROR(IF(ISTEXT($A46),"",(1-NORMDIST((COUNTA($A$6:$A$745))+((Personalize!$E$18+1)*2),$G46,((AE46-AD46)/6),TRUE))),"") -> 0.9999999975 | AD46: =IF(Personalize!$E$34=1,VLOOKUP($B46,'ADP-Rank'!$A$2:$J$700,5,FALSE),(IF(Personalize!$E$34=2,VLOOKUP($B46,'ADP-Rank'!$A$2:$J$700,8,FALSE),(IF(Personalize!$E$34=3,VLOOKUP($B46,'ADP-Rank'!$A$2:$O$700,11,FALSE),(IF(Personalize!$E$31=4,VLOOKUP($B46,'ADP-Rank'!$A$2:$AZ$700,25,FALSE),(IF(Personalize!$E$31=5,VLOOKUP($B46,'ADP-Rank'!$A$2:$AZ$700,28,FALSE),(IF(Personalize!$E$31=6,VLOOKUP($B46,'ADP-Rank'!$A$2:$AZ$700,32,FALSE),""))))))))))) -> 56 | AE46: =IF(Personalize!$E$34=1,VLOOKUP($B46,'ADP-Rank'!$A$2:$J$700,6,FALSE),(IF(Personalize!$E$34=2,VLOOKUP($B46,'ADP-Rank'!$A$2:$J$700,9,FALSE),(IF(Personalize!$E$34=3,VLOOKUP($B46,'ADP-Rank'!$A$2:$O$700,12,FALSE),(IF(Personalize!$E$31=4,VLOOKUP($B46,'ADP-Rank'!$A$2:$AZ$700,26,FALSE),(IF(Personalize!$E$31=5,VLOOKUP($B46,'ADP-Rank'!$A$2:$AZ$700,29,FALSE),(IF(Personalize!$E$31=6,VLOOKUP($B46,'ADP-Rank'!$A$2:$AZ$700,33,FALSE),""))))))))))) -> 97 | AF46: =IF(ISBLANK(A46),0,1) -> 0 | AG46: =IF(K46="",0,1) -> 1 | AH46: =A46 -> 0 | AI46: =IF(C46="C",1,IF(C46="1B",2,IF(C46="2B",3,IF(C46="3B",4,IF(C46="SS",5,IF(C46="CI",6,IF(C46="MI",7,IF(C46="OF",11,IF(C46="LF",8,IF(C46="CF",9,IF(C46="RF",10,IF(C46="DH",12,IF(C46="SP",13,IF(C46="RP",14,IF(C46="P",15,16))))))))))))))) -> 1 | AJ46: =VLOOKUP(B46,'Starter Calc'!$B$2:$BN$700,65,FALSE) -> Starter | AK46: =IFERROR(VLOOKUP($B46,'ADP-Rank'!$A$2:$AH$964,34,FALSE),TRUE) -> TRUE | AL46: 0
B47: Giancarlo Stanton | C47: OF | D47: =IFERROR(IF(VLOOKUP(B47,'Starter Calc'!$B$2:$E$700,4,FALSE)="","",VLOOKUP(B47,'Starter Calc'!$B$2:$E$700,4,FALSE)),"") -> ,RF, | E47: =IFERROR(VLOOKUP($B47,'ADP-Rank'!$A$2:$D$700,3,FALSE),"") -> MIA | F47: =IFERROR(VLOOKUP($B47,'ADP-Rank'!$A$2:$W$700,23,FALSE),"") -> 24 | G47: =IFERROR((IF(Personalize!$E$38=1,VLOOKUP($B47,'ADP-Rank'!$A$2:$J$700,4,FALSE),(IF(Personalize!$E$38=2,VLOOKUP($B47,'ADP-Rank'!$A$2:$J$700,7,FALSE),(IF(Personalize!$E$38=3,VLOOKUP($B47,'ADP-Rank'!$A$2:$J$700,10,FALSE),(IF(Personalize!$E$38=4,VLOOKUP($B47,'ADP-Rank'!$A$2:$AD$700,24,FALSE),(IF(Personalize!$E$38=5,VLOOKUP($B47,'ADP-Rank'!$A$2:$AD$700,27,FALSE),(IF(Personalize!$E$38=6,VLOOKUP($B47,'ADP-Rank'!$A$2:$AZ$700,30,FALSE),(IF(Personalize!$E$38=7,VLOOKUP($B47,'ADP-Rank'!$A$2:$AZ$700,39,FALSE))))))))))))))),"") -> 47.42 | H47: =IFERROR(ROUNDDOWN(VLOOKUP($B47,'ADP-Rank'!$A$2:$AY$1064,38,FALSE),0),"") -> 4 | I47: =VLOOKUP($B47,'ADP-Rank'!$A$2:$AJ$1064,36,FALSE) -> 56 | J47: =IFERROR(RANK($M47,$M$6:$M$745,0),"") -> 78 | K47: =IFERROR(IF((OR($C47="RP",$C47="SP")),VLOOKUP($B47,Pitcher!$A$1:$Z$700,20,FALSE),(VLOOKUP($B47,Hitter!$A$1:$Z$700,26,FALSE))),"") -> 345.5009704 | L47: =IFERROR(IF((OR($C47="RP",$C47="SP")),VLOOKUP($C47,'Filtered-P'!$M$3:$P$4,4,FALSE), VLOOKUP($C47,Filtered!$Q$3:$T$14,4,FALSE)),"") -> 350.7983075 | M47: =IFERROR(($K47-$L47)/IF(OR($C47="SP",$C47="RP"),VLOOKUP($C47,'Filtered-P'!$M$3:$T$4,8,FALSE),VLOOKUP($C47,Filtered!$Q$3:$X$10,8,FALSE)),"") -> -0.1297679119 | N47: =IFERROR(IF((OR($C47="RP",$C47="SP")),"",(VLOOKUP($B47,Hitter!$A$1:$Z$700,26,FALSE)/VLOOKUP($B47,Hitter!$A$1:$Z$700,2,FALSE))),"") -> 0.6300163574 | O47: =IFERROR(IF((OR($C47="RP",$C47="SP")),VLOOKUP($B47,Pitcher!$A$1:$Z$700,20,FALSE)/VLOOKUP($B47,Pitcher!$A$1:$Z$700,4,FALSE),""),"") ->  | P47: =IFERROR(IF((OR($C47="RP",$C47="SP")),VLOOKUP($B47,Pitcher!$A$1:$V$700,2,FALSE),""),"") ->  | Q47: =IFERROR(IF((OR($C47="RP",$C47="SP")),VLOOKUP($B47,Pitcher!$A$1:$V$700,9,FALSE),""),"") ->  | R47: =IFERROR(IF((OR($C47="RP",$C47="SP")),VLOOKUP($B47,Pitcher!$A$1:$V$700,7,FALSE),""),"") ->  | S47: =IFERROR(IF((OR($C47="RP",$C47="SP")),VLOOKUP($B47,Pitcher!$A$1:$AB$700,21,FALSE),""),"") ->  | T47: =IFERROR(IF((OR($C47="RP",$C47="SP")),VLOOKUP($B47,Pitcher!$A$1:$V$700,22,FALSE),""),"") ->  | U47: =IFERROR(IF((OR($C47="RP",$C47="SP")),"",VLOOKUP($B47,Hitter!$A$1:$AH$700,27,FALSE)),"") -> 0.2665223086 | V47: =IFERROR(IF((OR($C47="RP",$C47="SP")),"",VLOOKUP($B47,Hitter!$A$1:$AH$700,9,FALSE)),"") -> 33.07622479 | W47: =IFERROR(IF((OR($C47="RP",$C47="SP")),"",VLOOKUP($B47,Hitter!$A$1:$AH$700,10,FALSE)),"") -> 82.24315604 | X47: =IFERROR(IF((OR($C47="RP",$C47="SP")),"",VLOOKUP($B47,Hitter!$A$1:$AH$700,4,FALSE)),"") -> 79.54839351 | Y47: =IFERROR(IF((OR($C47="RP",$C47="SP")),"",VLOOKUP($B47,Hitter!$A$1:$AH$700,11,FALSE)),"") -> 3.951392017 | Z47: =IFERROR(IF(ISTEXT($A47),"",(1-NORMDIST((COUNTA($A$6:$A$745)),($G47),((AE47-AD47)/6),TRUE))),"") -> 1 | AA47: =IFERROR(IF(ISTEXT($A47),"",(1-NORMDIST((COUNTA($A$6:$A$745))+(Personalize!$E$18+1),$G47,((AE47-AD47)/6),TRUE))),"") -> 1 | AB47: =IFERROR(IF(ISTEXT($A47),"",(1-NORMDIST((COUNTA($A$6:$A$745))+((Personalize!$E$18+1)*2),$G47,((AE47-AD47)/6),TRUE))),"") -> 1 | AD47: =IF(Personalize!$E$34=1,VLOOKUP($B47,'ADP-Rank'!$A$2:$J$700,5,FALSE),(IF(Personalize!$E$34=2,VLOOKUP($B47,'ADP-Rank'!$A$2:$J$700,8,FALSE),(IF(Personalize!$E$34=3,VLOOKUP($B47,'ADP-Rank'!$A$2:$O$700,11,FALSE),(IF(Personalize!$E$31=4,VLOOKUP($B47,'ADP-Rank'!$A$2:$AZ$700,25,FALSE),(IF(Personalize!$E$31=5,VLOOKUP($B47,'ADP-Rank'!$A$2:$AZ$700,28,FALSE),(IF(Personalize!$E$31=6,VLOOKUP($B47,'ADP-Rank'!$A$2:$AZ$700,32,FALSE),""))))))))))) -> 22 | AE47: =IF(Personalize!$E$34=1,VLOOKUP($B47,'ADP-Rank'!$A$2:$J$700,6,FALSE),(IF(Personalize!$E$34=2,VLOOKUP($B47,'ADP-Rank'!$A$2:$J$700,9,FALSE),(IF(Personalize!$E$34=3,VLOOKUP($B47,'ADP-Rank'!$A$2:$O$700,12,FALSE),(IF(Personalize!$E$31=4,VLOOKUP($B47,'ADP-Rank'!$A$2:$AZ$700,26,FALSE),(IF(Personalize!$E$31=5,VLOOKUP($B47,'ADP-Rank'!$A$2:$AZ$700,29,FALSE),(IF(Personalize!$E$31=6,VLOOKUP($B47,'ADP-Rank'!$A$2:$AZ$700,33,FALSE),""))))))))))) -> 34 | AF47: =IF(ISBLANK(A47),0,1) -> 0 | AG47: =IF(K47="",0,1) -> 1 | AH47: =A47 -> 0 | AI47: =IF(C47="C",1,IF(C47="1B",2,IF(C47="2B",3,IF(C47="3B",4,IF(C47="SS",5,IF(C47="CI",6,IF(C47="MI",7,IF(C47="OF",11,IF(C47="LF",8,IF(C47="CF",9,IF(C47="RF",10,IF(C47="DH",12,IF(C47="SP",13,IF(C47="RP",14,IF(C47="P",15,16))))))))))))))) -> 11 | AJ47: =VLOOKUP(B47,'Starter Calc'!$B$2:$BN$700,65,FALSE) -> Bench | AK47: =IFERROR(VLOOKUP($B47,'ADP-Rank'!$A$2:$AH$964,34,FALSE),TRUE) -> TRUE | AL47: 0
B48: Jordan Zimmermann | C48: SP | D48: =IFERROR(IF(VLOOKUP(B48,'Starter Calc'!$B$2:$E$700,4,FALSE)="","",VLOOKUP(B48,'Starter Calc'!$B$2:$E$700,4,FALSE)),"") -> ,, | E48: =IFERROR(VLOOKUP($B48,'ADP-Rank'!$A$2:$D$700,3,FALSE),"") -> WAS | F48: =IFERROR(VLOOKUP($B48,'ADP-Rank'!$A$2:$W$700,23,FALSE),"") -> 28 | G48: =IFERROR((IF(Personalize!$E$38=1,VLOOKUP($B48,'ADP-Rank'!$A$2:$J$700,4,FALSE),(IF(Personalize!$E$38=2,VLOOKUP($B48,'ADP-Rank'!$A$2:$J$700,7,FALSE),(IF(Personalize!$E$38=3,VLOOKUP($B48,'ADP-Rank'!$A$2:$J$700,10,FALSE),(IF(Personalize!$E$38=4,VLOOKUP($B48,'ADP-Rank'!$A$2:$AD$700,24,FALSE),(IF(Personalize!$E$38=5,VLOOKUP($B48,'ADP-Rank'!$A$2:$AD$700,27,FALSE),(IF(Personalize!$E$38=6,VLOOKUP($B48,'ADP-Rank'!$A$2:$AZ$700,30,FALSE),(IF(Personalize!$E$38=7,VLOOKUP($B48,'ADP-Rank'!$A$2:$AZ$700,39,FALSE))))))))))))))),"") -> 47.44 | H48: =IFERROR(ROUNDDOWN(VLOOKUP($B48,'ADP-Rank'!$A$2:$AY$1064,38,FALSE),0),"") -> 4 | I48: =VLOOKUP($B48,'ADP-Rank'!$A$2:$AJ$1064,36,FALSE) -> 141 | J48: =IFERROR(RANK($M48,$M$6:$M$745,0),"") -> 130 | K48: =IFERROR(IF((OR($C48="RP",$C48="SP")),VLOOKUP($B48,Pitcher!$A$1:$Z$700,20,FALSE),(VLOOKUP($B48,Hitter!$A$1:$Z$700,26,FALSE))),"") -> 356.7337464 | L48: =IFERROR(IF((OR($C48="RP",$C48="SP")),VLOOKUP($C48,'Filtered-P'!$M$3:$P$4,4,FALSE), VLOOKUP($C48,Filtered!$Q$3:$T$14,4,FALSE)),"") -> 411.2053549 | M48: =IFERROR(($K48-$L48)/IF(OR($C48="SP",$C48="RP"),VLOOKUP($C48,'Filtered-P'!$M$3:$T$4,8,FALSE),VLOOKUP($C48,Filtered!$Q$3:$X$10,8,FALSE)),"") -> -0.7243613647 | N48: =IFERROR(IF((OR($C48="RP",$C48="SP")),"",(VLOOKUP($B48,Hitter!$A$1:$Z$700,26,FALSE)/VLOOKUP($B48,Hitter!$A$1:$Z$700,2,FALSE))),"") ->  | O48: =IFERROR(IF((OR($C48="RP",$C48="SP")),VLOOKUP($B48,Pitcher!$A$1:$Z$700,20,FALSE)/VLOOKUP($B48,Pitcher!$A$1:$Z$700,4,FALSE),""),"") -> 1.666980123 | P48: =IFERROR(IF((OR($C48="RP",$C48="SP")),VLOOKUP($B48,Pitcher!$A$1:$V$700,2,FALSE),""),"") -> 15.85436601 | Q48: =IFERROR(IF((OR($C48="RP",$C48="SP")),VLOOKUP($B48,Pitcher!$A$1:$V$700,9,FALSE),""),"") -> 0 | R48: =IFERROR(IF((OR($C48="RP",$C48="SP")),VLOOKUP($B48,Pitcher!$A$1:$V$700,7,FALSE),""),"") -> 165.6935445 | S48: =IFERROR(IF((OR($C48="RP",$C48="SP")),VLOOKUP($B48,Pitcher!$A$1:$AB$700,21,FALSE),""),"") -> 3.653961179 | T48: =IFERROR(IF((OR($C48="RP",$C48="SP")),VLOOKUP($B48,Pitcher!$A$1:$V$700,22,FALSE),""),"") -> 1.189791517 | U48: =IFERROR(IF((OR($C48="RP",$C48="SP")),"",VLOOKUP($B48,Hitter!$A$1:$AH$700,27,FALSE)),"") ->  | V48: =IFERROR(IF((OR($C48="RP",$C48="SP")),"",VLOOKUP($B48,Hitter!$A$1:$AH$700,9,FALSE)),"") ->  | W48: =IFERROR(IF((OR($C48="RP",$C48="SP")),"",VLOOKUP($B48,Hitter!$A$1:$AH$700,10,FALSE)),"") ->  | X48: =IFERROR(IF((OR($C48="RP",$C48="SP")),"",VLOOKUP($B48,Hitter!$A$1:$AH$700,4,FALSE)),"") ->  | Y48: =IFERROR(IF((OR($C48="RP",$C48="SP")),"",VLOOKUP($B48,Hitter!$A$1:$AH$700,11,FALSE)),"") ->  | Z48: =IFERROR(IF(ISTEXT($A48),"",(1-NORMDIST((COUNTA($A$6:$A$745)),($G48),((AE48-AD48)/6),TRUE))),"") -> 1 | AA48: =IFERROR(IF(ISTEXT($A48),"",(1-NORMDIST((COUNTA($A$6:$A$745))+(Personalize!$E$18+1),$G48,((AE48-AD48)/6),TRUE))),"") -> 1 | AB48: =IFERROR(IF(ISTEXT($A48),"",(1-NORMDIST((COUNTA($A$6:$A$745))+((Personalize!$E$18+1)*2),$G48,((AE48-AD48)/6),TRUE))),"") -> 0.9999999993 | AD48: =IF(Personalize!$E$34=1,VLOOKUP($B48,'ADP-Rank'!$A$2:$J$700,5,FALSE),(IF(Personalize!$E$34=2,VLOOKUP($B48,'ADP-Rank'!$A$2:$J$700,8,FALSE),(IF(Personalize!$E$34=3,VLOOKUP($B48,'ADP-Rank'!$A$2:$O$700,11,FALSE),(IF(Personalize!$E$31=4,VLOOKUP($B48,'ADP-Rank'!$A$2:$AZ$700,25,FALSE),(IF(Personalize!$E$31=5,VLOOKUP($B48,'ADP-Rank'!$A$2:$AZ$700,28,FALSE),(IF(Personalize!$E$31=6,VLOOKUP($B48,'ADP-Rank'!$A$2:$AZ$700,32,FALSE),""))))))))))) -> 81 | AE48: =IF(Personalize!$E$34=1,VLOOKUP($B48,'ADP-Rank'!$A$2:$J$700,6,FALSE),(IF(Personalize!$E$34=2,VLOOKUP($B48,'ADP-Rank'!$A$2:$J$700,9,FALSE),(IF(Personalize!$E$34=3,VLOOKUP($B48,'ADP-Rank'!$A$2:$O$700,12,FALSE),(IF(Personalize!$E$31=4,VLOOKUP($B48,'ADP-Rank'!$A$2:$AZ$700,26,FALSE),(IF(Personalize!$E$31=5,VLOOKUP($B48,'ADP-Rank'!$A$2:$AZ$700,29,FALSE),(IF(Personalize!$E$31=6,VLOOKUP($B48,'ADP-Rank'!$A$2:$AZ$700,33,FALSE),""))))))))))) -> 121 | AF48: =IF(ISBLANK(A48),0,1) -> 0 | AG48: =IF(K48="",0,1) -> 1 | AH48: =A48 -> 0 | AI48: =IF(C48="C",1,IF(C48="1B",2,IF(C48="2B",3,IF(C48="3B",4,IF(C48="SS",5,IF(C48="CI",6,IF(C48="MI",7,IF(C48="OF",11,IF(C48="LF",8,IF(C48="CF",9,IF(C48="RF",10,IF(C48="DH",12,IF(C48="SP",13,IF(C48="RP",14,IF(C48="P",15,16))))))))))))))) -> 13 | AJ48: =VLOOKUP(B48,'Starter Calc'!$B$2:$BN$700,65,FALSE) -> Bench | AK48: =IFERROR(VLOOKUP($B48,'ADP-Rank'!$A$2:$AH$964,34,FALSE),TRUE) -> TRUE | AL48: 1
B49: Ian Kinsler | C49: 2B | D49: =IFERROR(IF(VLOOKUP(B49,'Starter Calc'!$B$2:$E$700,4,FALSE)="","",VLOOKUP(B49,'Starter Calc'!$B$2:$E$700,4,FALSE)),"") -> ,, | E49: =IFERROR(VLOOKUP($B49,'ADP-Rank'!$A$2:$D$700,3,FALSE),"") -> DET | F49: =IFERROR(VLOOKUP($B49,'ADP-Rank'!$A$2:$W$700,23,FALSE),"") -> 32 | G49: =IFERROR((IF(Personalize!$E$38=1,VLOOKUP($B49,'ADP-Rank'!$A$2:$J$700,4,FALSE),(IF(Personalize!$E$38=2,VLOOKUP($B49,'ADP-Rank'!$A$2:$J$700,7,FALSE),(IF(Personalize!$E$38=3,VLOOKUP($B49,'ADP-Rank'!$A$2:$J$700,10,FALSE),(IF(Personalize!$E$38=4,VLOOKUP($B49,'ADP-Rank'!$A$2:$AD$700,24,FALSE),(IF(Personalize!$E$38=5,VLOOKUP($B49,'ADP-Rank'!$A$2:$AD$700,27,FALSE),(IF(Personalize!$E$38=6,VLOOKUP($B49,'ADP-Rank'!$A$2:$AZ$700,30,FALSE),(IF(Personalize!$E$38=7,VLOOKUP($B49,'ADP-Rank'!$A$2:$AZ$700,39,FALSE))))))))))))))),"") -> 51.5 | H49: =IFERROR(ROUNDDOWN(VLOOKUP($B49,'ADP-Rank'!$A$2:$AY$1064,38,FALSE),0),"") -> 4 | I49: =VLOOKUP($B49,'ADP-Rank'!$A$2:$AJ$1064,36,FALSE) -> 20 | J49: =IFERROR(RANK($M49,$M$6:$M$745,0),"") -> 26 | K49: =IFERROR(IF((OR($C49="RP",$C49="SP")),VLOOKUP($B49,Pitcher!$A$1:$Z$700,20,FALSE),(VLOOKUP($B49,Hitter!$A$1:$Z$700,26,FALSE))),"") -> 398.3656067 | L49: =IFERROR(IF((OR($C49="RP",$C49="SP")),VLOOKUP($C49,'Filtered-P'!$M$3:$P$4,4,FALSE), VLOOKUP($C49,Filtered!$Q$3:$T$14,4,FALSE)),"") -> 351.1652574 | M49: =IFERROR(($K49-$L49)/IF(OR($C49="SP",$C49="RP"),VLOOKUP($C49,'Filtered-P'!$M$3:$T$4,8,FALSE),VLOOKUP($C49,Filtered!$Q$3:$X$10,8,FALSE)),"") -> 1.150123714 | N49: =IFERROR(IF((OR($C49="RP",$C49="SP")),"",(VLOOKUP($B49,Hitter!$A$1:$Z$700,26,FALSE)/VLOOKUP($B49,Hitter!$A$1:$Z$700,2,FALSE))),"") -> 0.6056412919 | O49: =IFERROR(IF((OR($C49="RP",$C49="SP")),VLOOKUP($B49,Pitcher!$A$1:$Z$700,20,FALSE)/VLOOKUP($B49,Pitcher!$A$1:$Z$700,4,FALSE),""),"") ->  | P49: =IFERROR(IF((OR($C49="RP",$C49="SP")),VLOOKUP($B49,Pitcher!$A$1:$V$700,2,FALSE),""),"") ->  | Q49: =IFERROR(IF((OR($C49="RP",$C49="SP")),VLOOKUP($B49,Pitcher!$A$1:$V$700,9,FALSE),""),"") ->  | R49: =IFERROR(IF((OR($C49="RP",$C49="SP")),VLOOKUP($B49,Pitcher!$A$1:$V$700,7,FALSE),""),"") ->  | S49: =IFERROR(IF((OR($C49="RP",$C49="SP")),VLOOKUP($B49,Pitcher!$A$1:$AB$700,21,FALSE),""),"") ->  | T49: =IFERROR(IF((OR($C49="RP",$C49="SP")),VLOOKUP($B49,Pitcher!$A$1:$V$700,22,FALSE),""),"") ->  | U49: =IFERROR(IF((OR($C49="RP",$C49="SP")),"",VLOOKUP($B49,Hitter!$A$1:$AH$700,27,FALSE)),"") -> 0.2626976362 | V49: =IFERROR(IF((OR($C49="RP",$C49="SP")),"",VLOOKUP($B49,Hitter!$A$1:$AH$700,9,FALSE)),"") -> 15.70185265 | W49: =IFERROR(IF((OR($C49="RP",$C49="SP")),"",VLOOKUP($B49,Hitter!$A$1:$AH$700,10,FALSE)),"") -> 67.83445092 | X49: =IFERROR(IF((OR($C49="RP",$C49="SP")),"",VLOOKUP($B49,Hitter!$A$1:$AH$700,4,FALSE)),"") -> 92.76852382 | Y49: =IFERROR(IF((OR($C49="RP",$C49="SP")),"",VLOOKUP($B49,Hitter!$A$1:$AH$700,11,FALSE)),"") -> 18.010967 | Z49: =IFERROR(IF(ISTEXT($A49),"",(1-NORMDIST((COUNTA($A$6:$A$745)),($G49),((AE49-AD49)/6),TRUE))),"") -> 1 | AA49: =IFERROR(IF(ISTEXT($A49),"",(1-NORMDIST((COUNTA($A$6:$A$745))+(Personalize!$E$18+1),$G49,((AE49-AD49)/6),TRUE))),"") -> 1 | AB49: =IFERROR(IF(ISTEXT($A49),"",(1-NORMDIST((COUNTA($A$6:$A$745))+((Personalize!$E$18+1)*2),$G49,((AE49-AD49)/6),TRUE))),"") -> 1 | AD49: =IF(Personalize!$E$34=1,VLOOKUP($B49,'ADP-Rank'!$A$2:$J$700,5,FALSE),(IF(Personalize!$E$34=2,VLOOKUP($B49,'ADP-Rank'!$A$2:$J$700,8,FALSE),(IF(Personalize!$E$34=3,VLOOKUP($B49,'ADP-Rank'!$A$2:$O$700,11,FALSE),(IF(Personalize!$E$31=4,VLOOKUP($B49,'ADP-Rank'!$A$2:$AZ$700,25,FALSE),(IF(Personalize!$E$31=5,VLOOKUP($B49,'ADP-Rank'!$A$2:$AZ$700,28,FALSE),(IF(Personalize!$E$31=6,VLOOKUP($B49,'ADP-Rank'!$A$2:$AZ$700,32,FALSE),""))))))))))) -> 64 | AE49: =IF(Personalize!$E$34=1,VLOOKUP($B49,'ADP-Rank'!$A$2:$J$700,6,FALSE),(IF(Personalize!$E$34=2,VLOOKUP($B49,'ADP-Rank'!$A$2:$J$700,9,FALSE),(IF(Personalize!$E$34=3,VLOOKUP($B49,'ADP-Rank'!$A$2:$O$700,12,FALSE),(IF(Personalize!$E$31=4,VLOOKUP($B49,'ADP-Rank'!$A$2:$AZ$700,26,FALSE),(IF(Personalize!$E$31=5,VLOOKUP($B49,'ADP-Rank'!$A$2:$AZ$700,29,FALSE),(IF(Personalize!$E$31=6,VLOOKUP($B49,'ADP-Rank'!$A$2:$AZ$700,33,FALSE),""))))))))))) -> 79 | AF49: =IF(ISBLANK(A49),0,1) -> 0 | AG49: =IF(K49="",0,1) -> 1 | AH49: =A49 -> 0 | AI49: =IF(C49="C",1,IF(C49="1B",2,IF(C49="2B",3,IF(C49="3B",4,IF(C49="SS",5,IF(C49="CI",6,IF(C49="MI",7,IF(C49="OF",11,IF(C49="LF",8,IF(C49="CF",9,IF(C49="RF",10,IF(C49="DH",12,IF(C49="SP",13,IF(C49="RP",14,IF(C49="P",15,16))))))))))))))) -> 3 | AJ49: =VLOOKUP(B49,'Starter Calc'!$B$2:$BN$700,65,FALSE) -> Bench | AK49: =IFERROR(VLOOKUP($B49,'ADP-Rank'!$A$2:$AH$964,34,FALSE),TRUE) -> TRUE | AL49: 0
B50: Julio Teheran | C50: SP | D50: =IFERROR(IF(VLOOKUP(B50,'Starter Calc'!$B$2:$E$700,4,FALSE)="","",VLOOKUP(B50,'Starter Calc'!$B$2:$E$700,4,FALSE)),"") -> ,, | E50: =IFERROR(VLOOKUP($B50,'ADP-Rank'!$A$2:$D$700,3,FALSE),"") -> ATL | F50: =IFERROR(VLOOKUP($B50,'ADP-Rank'!$A$2:$W$700,23,FALSE),"") -> 23 | G50: =IFERROR((IF(Personalize!$E$38=1,VLOOKUP($B50,'ADP-Rank'!$A$2:$J$700,4,FALSE),(IF(Personalize!$E$38=2,VLOOKUP($B50,'ADP-Rank'!$A$2:$J$700,7,FALSE),(IF(Personalize!$E$38=3,VLOOKUP($B50,'ADP-Rank'!$A$2:$J$700,10,FALSE),(IF(Personalize!$E$38=4,VLOOKUP($B50,'ADP-Rank'!$A$2:$AD$700,24,FALSE),(IF(Personalize!$E$38=5,VLOOKUP($B50,'ADP-Rank'!$A$2:$AD$700,27,FALSE),(IF(Personalize!$E$38=6,VLOOKUP($B50,'ADP-Rank'!$A$2:$AZ$700,30,FALSE),(IF(Personalize!$E$38=7,VLOOKUP($B50,'ADP-Rank'!$A$2:$AZ$700,39,FALSE))))))))))))))),"") -> 51.76 | H50: =IFERROR(ROUNDDOWN(VLOOKUP($B50,'ADP-Rank'!$A$2:$AY$1064,38,FALSE),0),"") -> 4 | I50: =VLOOKUP($B50,'ADP-Rank'!$A$2:$AJ$1064,36,FALSE) -> 189 | J50: =IFERROR(RANK($M50,$M$6:$M$745,0),"") -> 90 | K50: =IFERROR(IF((OR($C50="RP",$C50="SP")),VLOOKUP($B50,Pitcher!$A$1:$Z$700,20,FALSE),(VLOOKUP($B50,Hitter!$A$1:$Z$700,26,FALSE))),"") -> 394.8605646 | L50: =IFERROR(IF((OR($C50="RP",$C50="SP")),VLOOKUP($C50,'Filtered-P'!$M$3:$P$4,4,FALSE), VLOOKUP($C50,Filtered!$Q$3:$T$14,4,FALSE)),"") -> 411.2053549 | M50: =IFERROR(($K50-$L50)/IF(OR($C50="SP",$C50="RP"),VLOOKUP($C50,'Filtered-P'!$M$3:$T$4,8,FALSE),VLOOKUP($C50,Filtered!$Q$3:$X$10,8,FALSE)),"") -> -0.2173523958 | N50: =IFERROR(IF((OR($C50="RP",$C50="SP")),"",(VLOOKUP($B50,Hitter!$A$1:$Z$700,26,FALSE)/VLOOKUP($B50,Hitter!$A$1:$Z$700,2,FALSE))),"") ->  | O50: =IFERROR(IF((OR($C50="RP",$C50="SP")),VLOOKUP($B50,Pitcher!$A$1:$Z$700,20,FALSE)/VLOOKUP($B50,Pitcher!$A$1:$Z$700,4,FALSE),""),"") -> 1.916798857 | P50: =IFERROR(IF((OR($C50="RP",$C50="SP")),VLOOKUP($B50,Pitcher!$A$1:$V$700,2,FALSE),""),"") -> 14.92144221 | Q50: =IFERROR(IF((OR($C50="RP",$C50="SP")),VLOOKUP($B50,Pitcher!$A$1:$V$700,9,FALSE),""),"") -> 0 | R50: =IFERROR(IF((OR($C50="RP",$C50="SP")),VLOOKUP($B50,Pitcher!$A$1:$V$700,7,FALSE),""),"") -> 187.7935224 | S50: =IFERROR(IF((OR($C50="RP",$C50="SP")),VLOOKUP($B50,Pitcher!$A$1:$AB$700,21,FALSE),""),"") -> 3.652528006 | T50: =IFERROR(IF((OR($C50="RP",$C50="SP")),VLOOKUP($B50,Pitcher!$A$1:$V$700,22,FALSE),""),"") -> 1.209846901 | U50: =IFERROR(IF((OR($C50="RP",$C50="SP")),"",VLOOKUP($B50,Hitter!$A$1:$AH$700,27,FALSE)),"") ->  | V50: =IFERROR(IF((OR($C50="RP",$C50="SP")),"",VLOOKUP($B50,Hitter!$A$1:$AH$700,9,FALSE)),"") ->  | W50: =IFERROR(IF((OR($C50="RP",$C50="SP")),"",VLOOKUP($B50,Hitter!$A$1:$AH$700,10,FALSE)),"") ->  | X50: =IFERROR(IF((OR($C50="RP",$C50="SP")),"",VLOOKUP($B50,Hitter!$A$1:$AH$700,4,FALSE)),"") ->  | Y50: =IFERROR(IF((OR($C50="RP",$C50="SP")),"",VLOOKUP($B50,Hitter!$A$1:$AH$700,11,FALSE)),"") ->  | Z50: =IFERROR(IF(ISTEXT($A50),"",(1-NORMDIST((COUNTA($A$6:$A$745)),($G50),((AE50-AD50)/6),TRUE))),"") -> 1 | AA50: =IFERROR(IF(ISTEXT($A50),"",(1-NORMDIST((COUNTA($A$6:$A$745))+(Personalize!$E$18+1),$G50,((AE50-AD50)/6),TRUE))),"") -> 1 | AB50: =IFERROR(IF(ISTEXT($A50),"",(1-NORMDIST((COUNTA($A$6:$A$745))+((Personalize!$E$18+1)*2),$G50,((AE50-AD50)/6),TRUE))),"") -> 1 | AC50: Mr. Cheatsheet Pitcher to Target | AD50: =IF(Personalize!$E$34=1,VLOOKUP($B50,'ADP-Rank'!$A$2:$J$700,5,FALSE),(IF(Personalize!$E$34=2,VLOOKUP($B50,'ADP-Rank'!$A$2:$J$700,8,FALSE),(IF(Personalize!$E$34=3,VLOOKUP($B50,'ADP-Rank'!$A$2:$O$700,11,FALSE),(IF(Personalize!$E$31=4,VLOOKUP($B50,'ADP-Rank'!$A$2:$AZ$700,25,FALSE),(IF(Personalize!$E$31=5,VLOOKUP($B50,'ADP-Rank'!$A$2:$AZ$700,28,FALSE),(IF(Personalize!$E$31=6,VLOOKUP($B50,'ADP-Rank'!$A$2:$AZ$700,32,FALSE),""))))))))))) -> 117 | AE50: =IF(Personalize!$E$34=1,VLOOKUP($B50,'ADP-Rank'!$A$2:$J$700,6,FALSE),(IF(Personalize!$E$34=2,VLOOKUP($B50,'ADP-Rank'!$A$2:$J$700,9,FALSE),(IF(Personalize!$E$34=3,VLOOKUP($B50,'ADP-Rank'!$A$2:$O$700,12,FALSE),(IF(Personalize!$E$31=4,VLOOKUP($B50,'ADP-Rank'!$A$2:$AZ$700,26,FALSE),(IF(Personalize!$E$31=5,VLOOKUP($B50,'ADP-Rank'!$A$2:$AZ$700,29,FALSE),(IF(Personalize!$E$31=6,VLOOKUP($B50,'ADP-Rank'!$A$2:$AZ$700,33,FALSE),""))))))))))) -> 157 | AF50: =IF(ISBLANK(A50),0,1) -> 0 | AG50: =IF(K50="",0,1) -> 1 | AH50: =A50 -> 0 | AI50: =IF(C50="C",1,IF(C50="1B",2,IF(C50="2B",3,IF(C50="3B",4,IF(C50="SS",5,IF(C50="CI",6,IF(C50="MI",7,IF(C50="OF",11,IF(C50="LF",8,IF(C50="CF",9,IF(C50="RF",10,IF(C50="DH",12,IF(C50="SP",13,IF(C50="RP",14,IF(C50="P",15,16))))))))))))))) -> 13 | AJ50: =VLOOKUP(B50,'Starter Calc'!$B$2:$BN$700,65,FALSE) -> Bench | AK50: =IFERROR(VLOOKUP($B50,'ADP-Rank'!$A$2:$AH$964,34,FALSE),TRUE) -> TRUE | AL50: 1
B51: Jason Kipnis | C51: 2B | D51: =IFERROR(IF(VLOOKUP(B51,'Starter Calc'!$B$2:$E$700,4,FALSE)="","",VLOOKUP(B51,'Starter Calc'!$B$2:$E$700,4,FALSE)),"") -> ,, | E51: =IFERROR(VLOOKUP($B51,'ADP-Rank'!$A$2:$D$700,3,FALSE),"") -> CLE | F51: =IFERROR(VLOOKUP($B51,'ADP-Rank'!$A$2:$W$700,23,FALSE),"") -> 27 | G51: =IFERROR((IF(Personalize!$E$38=1,VLOOKUP($B51,'ADP-Rank'!$A$2:$J$700,4,FALSE),(IF(Personalize!$E$38=2,VLOOKUP($B51,'ADP-Rank'!$A$2:$J$700,7,FALSE),(IF(Personalize!$E$38=3,VLOOKUP($B51,'ADP-Rank'!$A$2:$J$700,10,FALSE),(IF(Personalize!$E$38=4,VLOOKUP($B51,'ADP-Rank'!$A$2:$AD$700,24,FALSE),(IF(Personalize!$E$38=5,VLOOKUP($B51,'ADP-Rank'!$A$2:$AD$700,27,FALSE),(IF(Personalize!$E$38=6,VLOOKUP($B51,'ADP-Rank'!$A$2:$AZ$700,30,FALSE),(IF(Personalize!$E$38=7,VLOOKUP($B51,'ADP-Rank'!$A$2:$AZ$700,39,FALSE))))))))))))))),"") -> 52.85 | H51: =IFERROR(ROUNDDOWN(VLOOKUP($B51,'ADP-Rank'!$A$2:$AY$1064,38,FALSE),0),"") -> 4 | I51: =VLOOKUP($B51,'ADP-Rank'!$A$2:$AJ$1064,36,FALSE) -> 67 | J51: =IFERROR(RANK($M51,$M$6:$M$745,0),"") -> 76 | K51: =IFERROR(IF((OR($C51="RP",$C51="SP")),VLOOKUP($B51,Pitcher!$A$1:$Z$700,20,FALSE),(VLOOKUP($B51,Hitter!$A$1:$Z$700,26,FALSE))),"") -> 346.9080214 | L51: =IFERROR(IF((OR($C51="RP",$C51="SP")),VLOOKUP($C51,'Filtered-P'!$M$3:$P$4,4,FALSE), VLOOKUP($C51,Filtered!$Q$3:$T$14,4,FALSE)),"") -> 351.1652574 | M51: =IFERROR(($K51-$L51)/IF(OR($C51="SP",$C51="RP"),VLOOKUP($C51,'Filtered-P'!$M$3:$T$4,8,FALSE),VLOOKUP($C51,Filtered!$Q$3:$X$10,8,FALSE)),"") -> -0.1037354211 | N51: =IFERROR(IF((OR($C51="RP",$C51="SP")),"",(VLOOKUP($B51,Hitter!$A$1:$Z$700,26,FALSE)/VLOOKUP($B51,Hitter!$A$1:$Z$700,2,FALSE))),"") -> 0.5482896811 | O51: =IFERROR(IF((OR($C51="RP",$C51="SP")),VLOOKUP($B51,Pitcher!$A$1:$Z$700,20,FALSE)/VLOOKUP($B51,Pitcher!$A$1:$Z$700,4,FALSE),""),"") ->  | P51: =IFERROR(IF((OR($C51="RP",$C51="SP")),VLOOKUP($B51,Pitcher!$A$1:$V$700,2,FALSE),""),"") ->  | Q51: =IFERROR(IF((OR($C51="RP",$C51="SP")),VLOOKUP($B51,Pitcher!$A$1:$V$700,9,FALSE),""),"") ->  | R51: =IFERROR(IF((OR($C51="RP",$C51="SP")),VLOOKUP($B51,Pitcher!$A$1:$V$700,7,FALSE),""),"") ->  | S51: =IFERROR(IF((OR($C51="RP",$C51="SP")),VLOOKUP($B51,Pitcher!$A$1:$AB$700,21,FALSE),""),"") ->  | T51: =IFERROR(IF((OR($C51="RP",$C51="SP")),VLOOKUP($B51,Pitcher!$A$1:$V$700,22,FALSE),""),"") ->  | U51: =IFERROR(IF((OR($C51="RP",$C51="SP")),"",VLOOKUP($B51,Hitter!$A$1:$AH$700,27,FALSE)),"") -> 0.263276393 | V51: =IFERROR(IF((OR($C51="RP",$C51="SP")),"",VLOOKUP($B51,Hitter!$A$1:$AH$700,9,FALSE)),"") -> 16.76557167 | W51: =IFERROR(IF((OR($C51="RP",$C51="SP")),"",VLOOKUP($B51,Hitter!$A$1:$AH$700,10,FALSE)),"") -> 72.90715815 | X51: =IFERROR(IF((OR($C51="RP",$C51="SP")),"",VLOOKUP($B51,Hitter!$A$1:$AH$700,4,FALSE)),"") -> 84.8253882 | Y51: =IFERROR(IF((OR($C51="RP",$C51="SP")),"",VLOOKUP($B51,Hitter!$A$1:$AH$700,11,FALSE)),"") -> 25.14447815 | Z51: =IFERROR(IF(ISTEXT($A51),"",(1-NORMDIST((COUNTA($A$6:$A$745)),($G51),((AE51-AD51)/6),TRUE))),"") -> 1 | AA51: =IFERROR(IF(ISTEXT($A51),"",(1-NORMDIST((COUNTA($A$6:$A$745))+(Personalize!$E$18+1),$G51,((AE51-AD51)/6),TRUE))),"") -> 1 | AB51: =IFERROR(IF(ISTEXT($A51),"",(1-NORMDIST((COUNTA($A$6:$A$745))+((Personalize!$E$18+1)*2),$G51,((AE51-AD51)/6),TRUE))),"") -> 1 | AD51: =IF(Personalize!$E$34=1,VLOOKUP($B51,'ADP-Rank'!$A$2:$J$700,5,FALSE),(IF(Personalize!$E$34=2,VLOOKUP($B51,'ADP-Rank'!$A$2:$J$700,8,FALSE),(IF(Personalize!$E$34=3,VLOOKUP($B51,'ADP-Rank'!$A$2:$O$700,11,FALSE),(IF(Personalize!$E$31=4,VLOOKUP($B51,'ADP-Rank'!$A$2:$AZ$700,25,FALSE),(IF(Personalize!$E$31=5,VLOOKUP($B51,'ADP-Rank'!$A$2:$AZ$700,28,FALSE),(IF(Personalize!$E$31=6,VLOOKUP($B51,'ADP-Rank'!$A$2:$AZ$700,32,FALSE),""))))))))))) -> 17 | AE51: =IF(Personalize!$E$34=1,VLOOKUP($B51,'ADP-Rank'!$A$2:$J$700,6,FALSE),(IF(Personalize!$E$34=2,VLOOKUP($B51,'ADP-Rank'!$A$2:$J$700,9,FALSE),(IF(Personalize!$E$34=3,VLOOKUP($B51,'ADP-Rank'!$A$2:$O$700,12,FALSE),(IF(Personalize!$E$31=4,VLOOKUP($B51,'ADP-Rank'!$A$2:$AZ$700,26,FALSE),(IF(Personalize!$E$31=5,VLOOKUP($B51,'ADP-Rank'!$A$2:$AZ$700,29,FALSE),(IF(Personalize!$E$31=6,VLOOKUP($B51,'ADP-Rank'!$A$2:$AZ$700,33,FALSE),""))))))))))) -> 25 | AF51: =IF(ISBLANK(A51),0,1) -> 0 | AG51: =IF(K51="",0,1) -> 1 | AH51: =A51 -> 0 | AI51: =IF(C51="C",1,IF(C51="1B",2,IF(C51="2B",3,IF(C51="3B",4,IF(C51="SS",5,IF(C51="CI",6,IF(C51="MI",7,IF(C51="OF",11,IF(C51="LF",8,IF(C51="CF",9,IF(C51="RF",10,IF(C51="DH",12,IF(C51="SP",13,IF(C51="RP",14,IF(C51="P",15,16))))))))))))))) -> 3 | AJ51: =VLOOKUP(B51,'Starter Calc'!$B$2:$BN$700,65,FALSE) -> Bench | AK51: =IFERROR(VLOOKUP($B51,'ADP-Rank'!$A$2:$AH$964,34,FALSE),TRUE) -> TRUE | AL51: 0
B52: Albert Pujols | C52: 1B | D52: =IFERROR(IF(VLOOKUP(B52,'Starter Calc'!$B$2:$E$700,4,FALSE)="","",VLOOKUP(B52,'Starter Calc'!$B$2:$E$700,4,FALSE)),"") -> ,, | E52: =IFERROR(VLOOKUP($B52,'ADP-Rank'!$A$2:$D$700,3,FALSE),"") -> LAA | F52: =IFERROR(VLOOKUP($B52,'ADP-Rank'!$A$2:$W$700,23,FALSE),"") -> 34 | G52: =IFERROR((IF(Personalize!$E$38=1,VLOOKUP($B52,'ADP-Rank'!$A$2:$J$700,4,FALSE),(IF(Personalize!$E$38=2,VLOOKUP($B52,'ADP-Rank'!$A$2:$J$700,7,FALSE),(IF(Personalize!$E$38=3,VLOOKUP($B52,'ADP-Rank'!$A$2:$J$700,10,FALSE),(IF(Personalize!$E$38=4,VLOOKUP($B52,'ADP-Rank'!$A$2:$AD$700,24,FALSE),(IF(Personalize!$E$38=5,VLOOKUP($B52,'ADP-Rank'!$A$2:$AD$700,27,FALSE),(IF(Personalize!$E$38=6,VLOOKUP($B52,'ADP-Rank'!$A$2:$AZ$700,30,FALSE),(IF(Personalize!$E$38=7,VLOOKUP($B52,'ADP-Rank'!$A$2:$AZ$700,39,FALSE))))))))))))))),"") -> 53.04 | H52: =IFERROR(ROUNDDOWN(VLOOKUP($B52,'ADP-Rank'!$A$2:$AY$1064,38,FALSE),0),"") -> 4 | I52: =VLOOKUP($B52,'ADP-Rank'!$A$2:$AJ$1064,36,FALSE) -> 19 | J52: =IFERROR(RANK($M52,$M$6:$M$745,0),"") -> 35 | K52: =IFERROR(IF((OR($C52="RP",$C52="SP")),VLOOKUP($B52,Pitcher!$A$1:$Z$700,20,FALSE),(VLOOKUP($B52,Hitter!$A$1:$Z$700,26,FALSE))),"") -> 413.3687527 | L52: =IFERROR(IF((OR($C52="RP",$C52="SP")),VLOOKUP($C52,'Filtered-P'!$M$3:$P$4,4,FALSE), VLOOKUP($C52,Filtered!$Q$3:$T$14,4,FALSE)),"") -> 372.669335 | M52: =IFERROR(($K52-$L52)/IF(OR($C52="SP",$C52="RP"),VLOOKUP($C52,'Filtered-P'!$M$3:$T$4,8,FALSE),VLOOKUP($C52,Filtered!$Q$3:$X$10,8,FALSE)),"") -> 0.7800105679 | N52: =IFERROR(IF((OR($C52="RP",$C52="SP")),"",(VLOOKUP($B52,Hitter!$A$1:$Z$700,26,FALSE)/VLOOKUP($B52,Hitter!$A$1:$Z$700,2,FALSE))),"") -> 0.7060098252 | O52: =IFERROR(IF((OR($C52="RP",$C52="SP")),VLOOKUP($B52,Pitcher!$A$1:$Z$700,20,FALSE)/VLOOKUP($B52,Pitcher!$A$1:$Z$700,4,FALSE),""),"") ->  | P52: =IFERROR(IF((OR($C52="RP",$C52="SP")),VLOOKUP($B52,Pitcher!$A$1:$V$700,2,FALSE),""),"") ->  | Q52: =IFERROR(IF((OR($C52="RP",$C52="SP")),VLOOKUP($B52,Pitcher!$A$1:$V$700,9,FALSE),""),"") ->  | R52: =IFERROR(IF((OR($C52="RP",$C52="SP")),VLOOKUP($B52,Pitcher!$A$1:$V$700,7,FALSE),""),"") ->  | S52: =IFERROR(IF((OR($C52="RP",$C52="SP")),VLOOKUP($B52,Pitcher!$A$1:$AB$700,21,FALSE),""),"") ->  | T52: =IFERROR(IF((OR($C52="RP",$C52="SP")),VLOOKUP($B52,Pitcher!$A$1:$V$700,22,FALSE),""),"") ->  | U52: =IFERROR(IF((OR($C52="RP",$C52="SP")),"",VLOOKUP($B52,Hitter!$A$1:$AH$700,27,FALSE)),"") -> 0.2774468585 | V52: =IFERROR(IF((OR($C52="RP",$C52="SP")),"",VLOOKUP($B52,Hitter!$A$1:$AH$700,9,FALSE)),"") -> 27.05196317 | W52: =IFERROR(IF((OR($C52="RP",$C52="SP")),"",VLOOKUP($B52,Hitter!$A$1:$AH$700,10,FALSE)),"") -> 89.30159585 | X52: =IFERROR(IF((OR($C52="RP",$C52="SP")),"",VLOOKUP($B52,Hitter!$A$1:$AH$700,4,FALSE)),"") -> 81.52198954 | Y52: =IFERROR(IF((OR($C52="RP",$C52="SP")),"",VLOOKUP($B52,Hitter!$A$1:$AH$700,11,FALSE)),"") -> 4.676395287 | Z52: =IFERROR(IF(ISTEXT($A52),"",(1-NORMDIST((COUNTA($A$6:$A$745)),($G52),((AE52-AD52)/6),TRUE))),"") -> 1 | AA52: =IFERROR(IF(ISTEXT($A52),"",(1-NORMDIST((COUNTA($A$6:$A$745))+(Personalize!$E$18+1),$G52,((AE52-AD52)/6),TRUE))),"") -> 1 | AB52: =IFERROR(IF(ISTEXT($A52),"",(1-NORMDIST((COUNTA($A$6:$A$745))+((Personalize!$E$18+1)*2),$G52,((AE52-AD52)/6),TRUE))),"") -> 1 | AD52: =IF(Personalize!$E$34=1,VLOOKUP($B52,'ADP-Rank'!$A$2:$J$700,5,FALSE),(IF(Personalize!$E$34=2,VLOOKUP($B52,'ADP-Rank'!$A$2:$J$700,8,FALSE),(IF(Personalize!$E$34=3,VLOOKUP($B52,'ADP-Rank'!$A$2:$O$700,11,FALSE),(IF(Personalize!$E$31=4,VLOOKUP($B52,'ADP-Rank'!$A$2:$AZ$700,25,FALSE),(IF(Personalize!$E$31=5,VLOOKUP($B52,'ADP-Rank'!$A$2:$AZ$700,28,FALSE),(IF(Personalize!$E$31=6,VLOOKUP($B52,'ADP-Rank'!$A$2:$AZ$700,32,FALSE),""))))))))))) -> 34 | AE52: =IF(Personalize!$E$34=1,VLOOKUP($B52,'ADP-Rank'!$A$2:$J$700,6,FALSE),(IF(Personalize!$E$34=2,VLOOKUP($B52,'ADP-Rank'!$A$2:$J$700,9,FALSE),(IF(Personalize!$E$34=3,VLOOKUP($B52,'ADP-Rank'!$A$2:$O$700,12,FALSE),(IF(Personalize!$E$31=4,VLOOKUP($B52,'ADP-Rank'!$A$2:$AZ$700,26,FALSE),(IF(Personalize!$E$31=5,VLOOKUP($B52,'ADP-Rank'!$A$2:$AZ$700,29,FALSE),(IF(Personalize!$E$31=6,VLOOKUP($B52,'ADP-Rank'!$A$2:$AZ$700,33,FALSE),""))))))))))) -> 45 | AF52: =IF(ISBLANK(A52),0,1) -> 0 | AG52: =IF(K52="",0,1) -> 1 | AH52: =A52 -> 0 | AI52: =IF(C52="C",1,IF(C52="1B",2,IF(C52="2B",3,IF(C52="3B",4,IF(C52="SS",5,IF(C52="CI",6,IF(C52="MI",7,IF(C52="OF",11,IF(C52="LF",8,IF(C52="CF",9,IF(C52="RF",10,IF(C52="DH",12,IF(C52="SP",13,IF(C52="RP",14,IF(C52="P",15,16))))))))))))))) -> 2 | AJ52: =VLOOKUP(B52,'Starter Calc'!$B$2:$BN$700,65,FALSE) -> Bench | AK52: =IFERROR(VLOOKUP($B52,'ADP-Rank'!$A$2:$AH$964,34,FALSE),TRUE) -> TRUE | AL52: 0
B53: Matt Cain | C53: SP | D53: =IFERROR(IF(VLOOKUP(B53,'Starter Calc'!$B$2:$E$700,4,FALSE)="","",VLOOKUP(B53,'Starter Calc'!$B$2:$E$700,4,FALSE)),"") -> ,, | E53: =IFERROR(VLOOKUP($B53,'ADP-Rank'!$A$2:$D$700,3,FALSE),"") -> SF | F53: =IFERROR(VLOOKUP($B53,'ADP-Rank'!$A$2:$W$700,23,FALSE),"") -> 29 | G53: =IFERROR((IF(Personalize!$E$38=1,VLOOKUP($B53,'ADP-Rank'!$A$2:$J$700,4,FALSE),(IF(Personalize!$E$38=2,VLOOKUP($B53,'ADP-Rank'!$A$2:$J$700,7,FALSE),(IF(Personalize!$E$38=3,VLOOKUP($B53,'ADP-Rank'!$A$2:$J$700,10,FALSE),(IF(Personalize!$E$38=4,VLOOKUP($B53,'ADP-Rank'!$A$2:$AD$700,24,FALSE),(IF(Personalize!$E$38=5,VLOOKUP($B53,'ADP-Rank'!$A$2:$AD$700,27,FALSE),(IF(Personalize!$E$38=6,VLOOKUP($B53,'ADP-Rank'!$A$2:$AZ$700,30,FALSE),(IF(Personalize!$E$38=7,VLOOKUP($B53,'ADP-Rank'!$A$2:$AZ$700,39,FALSE))))))))))))))),"") -> 53.41 | H53: =IFERROR(ROUNDDOWN(VLOOKUP($B53,'ADP-Rank'!$A$2:$AY$1064,38,FALSE),0),"") -> 4 | I53: =VLOOKUP($B53,'ADP-Rank'!$A$2:$AJ$1064,36,FALSE) -> 128 | J53: =IFERROR(RANK($M53,$M$6:$M$745,0),"") -> 108 | K53: =IFERROR(IF((OR($C53="RP",$C53="SP")),VLOOKUP($B53,Pitcher!$A$1:$Z$700,20,FALSE),(VLOOKUP($B53,Hitter!$A$1:$Z$700,26,FALSE))),"") -> 381.8397054 | L53: =IFERROR(IF((OR($C53="RP",$C53="SP")),VLOOKUP($C53,'Filtered-P'!$M$3:$P$4,4,FALSE), VLOOKUP($C53,Filtered!$Q$3:$T$14,4,FALSE)),"") -> 411.2053549 | M53: =IFERROR(($K53-$L53)/IF(OR($C53="SP",$C53="RP"),VLOOKUP($C53,'Filtered-P'!$M$3:$T$4,8,FALSE),VLOOKUP($C53,Filtered!$Q$3:$X$10,8,FALSE)),"") -> -0.3905032829 | N53: =IFERROR(IF((OR($C53="RP",$C53="SP")),"",(VLOOKUP($B53,Hitter!$A$1:$Z$700,26,FALSE)/VLOOKUP($B53,Hitter!$A$1:$Z$700,2,FALSE))),"") ->  | O53: =IFERROR(IF((OR($C53="RP",$C53="SP")),VLOOKUP($B53,Pitcher!$A$1:$Z$700,20,FALSE)/VLOOKUP($B53,Pitcher!$A$1:$Z$700,4,FALSE),""),"") -> 1.801130686 | P53: =IFERROR(IF((OR($C53="RP",$C53="SP")),VLOOKUP($B53,Pitcher!$A$1:$V$700,2,FALSE),""),"") -> 14.61772354 | Q53: =IFERROR(IF((OR($C53="RP",$C53="SP")),VLOOKUP($B53,Pitcher!$A$1:$V$700,9,FALSE),""),"") -> 0 | R53: =IFERROR(IF((OR($C53="RP",$C53="SP")),VLOOKUP($B53,Pitcher!$A$1:$V$700,7,FALSE),""),"") -> 181.4382247 | S53: =IFERROR(IF((OR($C53="RP",$C53="SP")),VLOOKUP($B53,Pitcher!$A$1:$AB$700,21,FALSE),""),"") -> 3.551488797 | T53: =IFERROR(IF((OR($C53="RP",$C53="SP")),VLOOKUP($B53,Pitcher!$A$1:$V$700,22,FALSE),""),"") -> 1.197124607 | U53: =IFERROR(IF((OR($C53="RP",$C53="SP")),"",VLOOKUP($B53,Hitter!$A$1:$AH$700,27,FALSE)),"") ->  | V53: =IFERROR(IF((OR($C53="RP",$C53="SP")),"",VLOOKUP($B53,Hitter!$A$1:$AH$700,9,FALSE)),"") ->  | W53: =IFERROR(IF((OR($C53="RP",$C53="SP")),"",VLOOKUP($B53,Hitter!$A$1:$AH$700,10,FALSE)),"") ->  | X53: =IFERROR(IF((OR($C53="RP",$C53="SP")),"",VLOOKUP($B53,Hitter!$A$1:$AH$700,4,FALSE)),"") ->  | Y53: =IFERROR(IF((OR($C53="RP",$C53="SP")),"",VLOOKUP($B53,Hitter!$A$1:$AH$700,11,FALSE)),"") ->  | Z53: =IFERROR(IF(ISTEXT($A53),"",(1-NORMDIST((COUNTA($A$6:$A$745)),($G53),((AE53-AD53)/6),TRUE))),"") -> 0.9999998178 | AA53: =IFERROR(IF(ISTEXT($A53),"",(1-NORMDIST((COUNTA($A$6:$A$745))+(Personalize!$E$18+1),$G53,((AE53-AD53)/6),TRUE))),"") -> 0.9999989995 | AB53: =IFERROR(IF(ISTEXT($A53),"",(1-NORMDIST((COUNTA($A$6:$A$745))+((Personalize!$E$18+1)*2),$G53,((AE53-AD53)/6),TRUE))),"") -> 0.999995065 | AD53: =IF(Personalize!$E$34=1,VLOOKUP($B53,'ADP-Rank'!$A$2:$J$700,5,FALSE),(IF(Personalize!$E$34=2,VLOOKUP($B53,'ADP-Rank'!$A$2:$J$700,8,FALSE),(IF(Personalize!$E$34=3,VLOOKUP($B53,'ADP-Rank'!$A$2:$O$700,11,FALSE),(IF(Personalize!$E$31=4,VLOOKUP($B53,'ADP-Rank'!$A$2:$AZ$700,25,FALSE),(IF(Personalize!$E$31=5,VLOOKUP($B53,'ADP-Rank'!$A$2:$AZ$700,28,FALSE),(IF(Personalize!$E$31=6,VLOOKUP($B53,'ADP-Rank'!$A$2:$AZ$700,32,FALSE),""))))))))))) -> 86 | AE53: =IF(Personalize!$E$34=1,VLOOKUP($B53,'ADP-Rank'!$A$2:$J$700,6,FALSE),(IF(Personalize!$E$34=2,VLOOKUP($B53,'ADP-Rank'!$A$2:$J$700,9,FALSE),(IF(Personalize!$E$34=3,VLOOKUP($B53,'ADP-Rank'!$A$2:$O$700,12,FALSE),(IF(Personalize!$E$31=4,VLOOKUP($B53,'ADP-Rank'!$A$2:$AZ$700,26,FALSE),(IF(Personalize!$E$31=5,VLOOKUP($B53,'ADP-Rank'!$A$2:$AZ$700,29,FALSE),(IF(Personalize!$E$31=6,VLOOKUP($B53,'ADP-Rank'!$A$2:$AZ$700,33,FALSE),""))))))))))) -> 149 | AF53: =IF(ISBLANK(A53),0,1) -> 0 | AG53: =IF(K53="",0,1) -> 1 | AH53: =A53 -> 0 | AI53: =IF(C53="C",1,IF(C53="1B",2,IF(C53="2B",3,IF(C53="3B",4,IF(C53="SS",5,IF(C53="CI",6,IF(C53="MI",7,IF(C53="OF",11,IF(C53="LF",8,IF(C53="CF",9,IF(C53="RF",10,IF(C53="DH",12,IF(C53="SP",13,IF(C53="RP",14,IF(C53="P",15,16))))))))))))))) -> 13 | AJ53: =VLOOKUP(B53,'Starter Calc'!$B$2:$BN$700,65,FALSE) -> Bench | AK53: =IFERROR(VLOOKUP($B53,'ADP-Rank'!$A$2:$AH$964,34,FALSE),TRUE) -> TRUE | AL53: 1
B54: Shin-Soo Choo | C54: OF | D54: =IFERROR(IF(VLOOKUP(B54,'Starter Calc'!$B$2:$E$700,4,FALSE)="","",VLOOKUP(B54,'Starter Calc'!$B$2:$E$700,4,FALSE)),"") -> ,RF,CF | E54: =IFERROR(VLOOKUP($B54,'ADP-Rank'!$A$2:$D$700,3,FALSE),"") -> TEX | F54: =IFERROR(VLOOKUP($B54,'ADP-Rank'!$A$2:$W$700,23,FALSE),"") -> 31 | G54: =IFERROR((IF(Personalize!$E$38=1,VLOOKUP($B54,'ADP-Rank'!$A$2:$J$700,4,FALSE),(IF(Personalize!$E$38=2,VLOOKUP($B54,'ADP-Rank'!$A$2:$J$700,7,FALSE),(IF(Personalize!$E$38=3,VLOOKUP($B54,'ADP-Rank'!$A$2:$J$700,10,FALSE),(IF(Personalize!$E$38=4,VLOOKUP($B54,'ADP-Rank'!$A$2:$AD$700,24,FALSE),(IF(Personalize!$E$38=5,VLOOKUP($B54,'ADP-Rank'!$A$2:$AD$700,27,FALSE),(IF(Personalize!$E$38=6,VLOOKUP($B54,'ADP-Rank'!$A$2:$AZ$700,30,FALSE),(IF(Personalize!$E$38=7,VLOOKUP($B54,'ADP-Rank'!$A$2:$AZ$700,39,FALSE))))))))))))))),"") -> 54.77 | H54: =IFERROR(ROUNDDOWN(VLOOKUP($B54,'ADP-Rank'!$A$2:$AY$1064,38,FALSE),0),"") -> 4 | I54: =VLOOKUP($B54,'ADP-Rank'!$A$2:$AJ$1064,36,FALSE) -> 49 | J54: =IFERROR(RANK($M54,$M$6:$M$745,0),"") -> 53 | K54: =IFERROR(IF((OR($C54="RP",$C54="SP")),VLOOKUP($B54,Pitcher!$A$1:$Z$700,20,FALSE),(VLOOKUP($B54,Hitter!$A$1:$Z$700,26,FALSE))),"") -> 366.1337289 | L54: =IFERROR(IF((OR($C54="RP",$C54="SP")),VLOOKUP($C54,'Filtered-P'!$M$3:$P$4,4,FALSE), VLOOKUP($C54,Filtered!$Q$3:$T$14,4,FALSE)),"") -> 350.7983075 | M54: =IFERROR(($K54-$L54)/IF(OR($C54="SP",$C54="RP"),VLOOKUP($C54,'Filtered-P'!$M$3:$T$4,8,FALSE),VLOOKUP($C54,Filtered!$Q$3:$X$10,8,FALSE)),"") -> 0.3756690527 | N54: =IFERROR(IF((OR($C54="RP",$C54="SP")),"",(VLOOKUP($B54,Hitter!$A$1:$Z$700,26,FALSE)/VLOOKUP($B54,Hitter!$A$1:$Z$700,2,FALSE))),"") -> 0.5754557626 | O54: =IFERROR(IF((OR($C54="RP",$C54="SP")),VLOOKUP($B54,Pitcher!$A$1:$Z$700,20,FALSE)/VLOOKUP($B54,Pitcher!$A$1:$Z$700,4,FALSE),""),"") ->  | P54: =IFERROR(IF((OR($C54="RP",$C54="SP")),VLOOKUP($B54,Pitcher!$A$1:$V$700,2,FALSE),""),"") ->  | Q54: =IFERROR(IF((OR($C54="RP",$C54="SP")),VLOOKUP($B54,Pitcher!$A$1:$V$700,9,FALSE),""),"") ->  | R54: =IFERROR(IF((OR($C54="RP",$C54="SP")),VLOOKUP($B54,Pitcher!$A$1:$V$700,7,FALSE),""),"") ->  | S54: =IFERROR(IF((OR($C54="RP",$C54="SP")),VLOOKUP($B54,Pitcher!$A$1:$AB$700,21,FALSE),""),"") ->  | T54: =IFERROR(IF((OR($C54="RP",$C54="SP")),VLOOKUP($B54,Pitcher!$A$1:$V$700,22,FALSE),""),"") ->  | U54: =IFERROR(IF((OR($C54="RP",$C54="SP")),"",VLOOKUP($B54,Hitter!$A$1:$AH$700,27,FALSE)),"") -> 0.2767492894 | V54: =IFERROR(IF((OR($C54="RP",$C54="SP")),"",VLOOKUP($B54,Hitter!$A$1:$AH$700,9,FALSE)),"") -> 18.51100241 | W54: =IFERROR(IF((OR($C54="RP",$C54="SP")),"",VLOOKUP($B54,Hitter!$A$1:$AH$700,10,FALSE)),"") -> 65.25471324 | X54: =IFERROR(IF((OR($C54="RP",$C54="SP")),"",VLOOKUP($B54,Hitter!$A$1:$AH$700,4,FALSE)),"") -> 95.9841897 | Y54: =IFERROR(IF((OR($C54="RP",$C54="SP")),"",VLOOKUP($B54,Hitter!$A$1:$AH$700,11,FALSE)),"") -> 18.08812839 | Z54: =IFERROR(IF(ISTEXT($A54),"",(1-NORMDIST((COUNTA($A$6:$A$745)),($G54),((AE54-AD54)/6),TRUE))),"") -> 1 | AA54: =IFERROR(IF(ISTEXT($A54),"",(1-NORMDIST((COUNTA($A$6:$A$745))+(Personalize!$E$18+1),$G54,((AE54-AD54)/6),TRUE))),"") -> 1 | AB54: =IFERROR(IF(ISTEXT($A54),"",(1-NORMDIST((COUNTA($A$6:$A$745))+((Personalize!$E$18+1)*2),$G54,((AE54-AD54)/6),TRUE))),"") -> 1 | AD54: =IF(Personalize!$E$34=1,VLOOKUP($B54,'ADP-Rank'!$A$2:$J$700,5,FALSE),(IF(Personalize!$E$34=2,VLOOKUP($B54,'ADP-Rank'!$A$2:$J$700,8,FALSE),(IF(Personalize!$E$34=3,VLOOKUP($B54,'ADP-Rank'!$A$2:$O$700,11,FALSE),(IF(Personalize!$E$31=4,VLOOKUP($B54,'ADP-Rank'!$A$2:$AZ$700,25,FALSE),(IF(Personalize!$E$31=5,VLOOKUP($B54,'ADP-Rank'!$A$2:$AZ$700,28,FALSE),(IF(Personalize!$E$31=6,VLOOKUP($B54,'ADP-Rank'!$A$2:$AZ$700,32,FALSE),""))))))))))) -> 35 | AE54: =IF(Personalize!$E$34=1,VLOOKUP($B54,'ADP-Rank'!$A$2:$J$700,6,FALSE),(IF(Personalize!$E$34=2,VLOOKUP($B54,'ADP-Rank'!$A$2:$J$700,9,FALSE),(IF(Personalize!$E$34=3,VLOOKUP($B54,'ADP-Rank'!$A$2:$O$700,12,FALSE),(IF(Personalize!$E$31=4,VLOOKUP($B54,'ADP-Rank'!$A$2:$AZ$700,26,FALSE),(IF(Personalize!$E$31=5,VLOOKUP($B54,'ADP-Rank'!$A$2:$AZ$700,29,FALSE),(IF(Personalize!$E$31=6,VLOOKUP($B54,'ADP-Rank'!$A$2:$AZ$700,33,FALSE),""))))))))))) -> 55 | AF54: =IF(ISBLANK(A54),0,1) -> 0 | AG54: =IF(K54="",0,1) -> 1 | AH54: =A54 -> 0 | AI54: =IF(C54="C",1,IF(C54="1B",2,IF(C54="2B",3,IF(C54="3B",4,IF(C54="SS",5,IF(C54="CI",6,IF(C54="MI",7,IF(C54="OF",11,IF(C54="LF",8,IF(C54="CF",9,IF(C54="RF",10,IF(C54="DH",12,IF(C54="SP",13,IF(C54="RP",14,IF(C54="P",15,16))))))))))))))) -> 11 | AJ54: =VLOOKUP(B54,'Starter Calc'!$B$2:$BN$700,65,FALSE) -> Bench | AK54: =IFERROR(VLOOKUP($B54,'ADP-Rank'!$A$2:$AH$964,34,FALSE),TRUE) -> TRUE | AL54: 0
B55: Mat Latos | C55: SP | D55: =IFERROR(IF(VLOOKUP(B55,'Starter Calc'!$B$2:$E$700,4,FALSE)="","",VLOOKUP(B55,'Starter Calc'!$B$2:$E$700,4,FALSE)),"") -> ,, | E55: =IFERROR(VLOOKUP($B55,'ADP-Rank'!$A$2:$D$700,3,FALSE),"") -> CIN | F55: =IFERROR(VLOOKUP($B55,'ADP-Rank'!$A$2:$W$700,23,FALSE),"") -> 26 | G55: =IFERROR((IF(Personalize!$E$38=1,VLOOKUP($B55,'ADP-Rank'!$A$2:$J$700,4,FALSE),(IF(Personalize!$E$38=2,VLOOKUP($B55,'ADP-Rank'!$A$2:$J$700,7,FALSE),(IF(Personalize!$E$38=3,VLOOKUP($B55,'ADP-Rank'!$A$2:$J$700,10,FALSE),(IF(Personalize!$E$38=4,VLOOKUP($B55,'ADP-Rank'!$A$2:$AD$700,24,FALSE),(IF(Personalize!$E$38=5,VLOOKUP($B55,'ADP-Rank'!$A$2:$AD$700,27,FALSE),(IF(Personalize!$E$38=6,VLOOKUP($B55,'ADP-Rank'!$A$2:$AZ$700,30,FALSE),(IF(Personalize!$E$38=7,VLOOKUP($B55,'ADP-Rank'!$A$2:$AZ$700,39,FALSE))))))))))))))),"") -> 56.71 | H55: =IFERROR(ROUNDDOWN(VLOOKUP($B55,'ADP-Rank'!$A$2:$AY$1064,38,FALSE),0),"") -> 4 | I55: =VLOOKUP($B55,'ADP-Rank'!$A$2:$AJ$1064,36,FALSE) -> 102 | J55: =IFERROR(RANK($M55,$M$6:$M$745,0),"") -> 58 | K55: =IFERROR(IF((OR($C55="RP",$C55="SP")),VLOOKUP($B55,Pitcher!$A$1:$Z$700,20,FALSE),(VLOOKUP($B55,Hitter!$A$1:$Z$700,26,FALSE))),"") -> 427.3959823 | L55: =IFERROR(IF((OR($C55="RP",$C55="SP")),VLOOKUP($C55,'Filtered-P'!$M$3:$P$4,4,FALSE), VLOOKUP($C55,Filtered!$Q$3:$T$14,4,FALSE)),"") -> 411.2053549 | M55: =IFERROR(($K55-$L55)/IF(OR($C55="SP",$C55="RP"),VLOOKUP($C55,'Filtered-P'!$M$3:$T$4,8,FALSE),VLOOKUP($C55,Filtered!$Q$3:$X$10,8,FALSE)),"") -> 0.2153023431 | N55: =IFERROR(IF((OR($C55="RP",$C55="SP")),"",(VLOOKUP($B55,Hitter!$A$1:$Z$700,26,FALSE)/VLOOKUP($B55,Hitter!$A$1:$Z$700,2,FALSE))),"") ->  | O55: =IFERROR(IF((OR($C55="RP",$C55="SP")),VLOOKUP($B55,Pitcher!$A$1:$Z$700,20,FALSE)/VLOOKUP($B55,Pitcher!$A$1:$Z$700,4,FALSE),""),"") -> 1.969566739 | P55: =IFERROR(IF((OR($C55="RP",$C55="SP")),VLOOKUP($B55,Pitcher!$A$1:$V$700,2,FALSE),""),"") -> 15.00966674 | Q55: =IFERROR(IF((OR($C55="RP",$C55="SP")),VLOOKUP($B55,Pitcher!$A$1:$V$700,9,FALSE),""),"") -> 0 | R55: =IFERROR(IF((OR($C55="RP",$C55="SP")),VLOOKUP($B55,Pitcher!$A$1:$V$700,7,FALSE),""),"") -> 199.5600882 | S55: =IFERROR(IF((OR($C55="RP",$C55="SP")),VLOOKUP($B55,Pitcher!$A$1:$AB$700,21,FALSE),""),"") -> 3.656997408 | T55: =IFERROR(IF((OR($C55="RP",$C55="SP")),VLOOKUP($B55,Pitcher!$A$1:$V$700,22,FALSE),""),"") -> 1.190090006 | U55: =IFERROR(IF((OR($C55="RP",$C55="SP")),"",VLOOKUP($B55,Hitter!$A$1:$AH$700,27,FALSE)),"") ->  | V55: =IFERROR(IF((OR($C55="RP",$C55="SP")),"",VLOOKUP($B55,Hitter!$A$1:$AH$700,9,FALSE)),"") ->  | W55: =IFERROR(IF((OR($C55="RP",$C55="SP")),"",VLOOKUP($B55,Hitter!$A$1:$AH$700,10,FALSE)),"") ->  | X55: =IFERROR(IF((OR($C55="RP",$C55="SP")),"",VLOOKUP($B55,Hitter!$A$1:$AH$700,4,FALSE)),"") ->  | Y55: =IFERROR(IF((OR($C55="RP",$C55="SP")),"",VLOOKUP($B55,Hitter!$A$1:$AH$700,11,FALSE)),"") ->  | Z55: =IFERROR(IF(ISTEXT($A55),"",(1-NORMDIST((COUNTA($A$6:$A$745)),($G55),((AE55-AD55)/6),TRUE))),"") -> 1 | AA55: =IFERROR(IF(ISTEXT($A55),"",(1-NORMDIST((COUNTA($A$6:$A$745))+(Personalize!$E$18+1),$G55,((AE55-AD55)/6),TRUE))),"") -> 1 | AB55: =IFERROR(IF(ISTEXT($A55),"",(1-NORMDIST((COUNTA($A$6:$A$745))+((Personalize!$E$18+1)*2),$G55,((AE55-AD55)/6),TRUE))),"") -> 1 | AC55: Mr. Cheatsheet Pitcher to Target | AD55: =IF(Personalize!$E$34=1,VLOOKUP($B55,'ADP-Rank'!$A$2:$J$700,5,FALSE),(IF(Personalize!$E$34=2,VLOOKUP($B55,'ADP-Rank'!$A$2:$J$700,8,FALSE),(IF(Personalize!$E$34=3,VLOOKUP($B55,'ADP-Rank'!$A$2:$O$700,11,FALSE),(IF(Personalize!$E$31=4,VLOOKUP($B55,'ADP-Rank'!$A$2:$AZ$700,25,FALSE),(IF(Personalize!$E$31=5,VLOOKUP($B55,'ADP-Rank'!$A$2:$AZ$700,28,FALSE),(IF(Personalize!$E$31=6,VLOOKUP($B55,'ADP-Rank'!$A$2:$AZ$700,32,FALSE),""))))))))))) -> 120 | AE55: =IF(Personalize!$E$34=1,VLOOKUP($B55,'ADP-Rank'!$A$2:$J$700,6,FALSE),(IF(Personalize!$E$34=2,VLOOKUP($B55,'ADP-Rank'!$A$2:$J$700,9,FALSE),(IF(Personalize!$E$34=3,VLOOKUP($B55,'ADP-Rank'!$A$2:$O$700,12,FALSE),(IF(Personalize!$E$31=4,VLOOKUP($B55,'ADP-Rank'!$A$2:$AZ$700,26,FALSE),(IF(Personalize!$E$31=5,VLOOKUP($B55,'ADP-Rank'!$A$2:$AZ$700,29,FALSE),(IF(Personalize!$E$31=6,VLOOKUP($B55,'ADP-Rank'!$A$2:$AZ$700,33,FALSE),""))))))))))) -> 148 | AF55: =IF(ISBLANK(A55),0,1) -> 0 | AG55: =IF(K55="",0,1) -> 1 | AH55: =A55 -> 0 | AI55: =IF(C55="C",1,IF(C55="1B",2,IF(C55="2B",3,IF(C55="3B",4,IF(C55="SS",5,IF(C55="CI",6,IF(C55="MI",7,IF(C55="OF",11,IF(C55="LF",8,IF(C55="CF",9,IF(C55="RF",10,IF(C55="DH",12,IF(C55="SP",13,IF(C55="RP",14,IF(C55="P",15,16))))))))))))))) -> 13 | AJ55: =VLOOKUP(B55,'Starter Calc'!$B$2:$BN$700,65,FALSE) -> Bench | AK55: =IFERROR(VLOOKUP($B55,'ADP-Rank'!$A$2:$AH$964,34,FALSE),TRUE) -> TRUE | AL55: 1
B56: James Shields | C56: SP | D56: =IFERROR(IF(VLOOKUP(B56,'Starter Calc'!$B$2:$E$700,4,FALSE)="","",VLOOKUP(B56,'Starter Calc'!$B$2:$E$700,4,FALSE)),"") -> ,, | E56: =IFERROR(VLOOKUP($B56,'ADP-Rank'!$A$2:$D$700,3,FALSE),"") -> KC | F56: =IFERROR(VLOOKUP($B56,'ADP-Rank'!$A$2:$W$700,23,FALSE),"") -> 32 | G56: =IFERROR((IF(Personalize!$E$38=1,VLOOKUP($B56,'ADP-Rank'!$A$2:$J$700,4,FALSE),(IF(Personalize!$E$38=2,VLOOKUP($B56,'ADP-Rank'!$A$2:$J$700,7,FALSE),(IF(Personalize!$E$38=3,VLOOKUP($B56,'ADP-Rank'!$A$2:$J$700,10,FALSE),(IF(Personalize!$E$38=4,VLOOKUP($B56,'ADP-Rank'!$A$2:$AD$700,24,FALSE),(IF(Personalize!$E$38=5,VLOOKUP($B56,'ADP-Rank'!$A$2:$AD$700,27,FALSE),(IF(Personalize!$E$38=6,VLOOKUP($B56,'ADP-Rank'!$A$2:$AZ$700,30,FALSE),(IF(Personalize!$E$38=7,VLOOKUP($B56,'ADP-Rank'!$A$2:$AZ$700,39,FALSE))))))))))))))),"") -> 57.11 | H56: =IFERROR(ROUNDDOWN(VLOOKUP($B56,'ADP-Rank'!$A$2:$AY$1064,38,FALSE),0),"") -> 4 | I56: =VLOOKUP($B56,'ADP-Rank'!$A$2:$AJ$1064,36,FALSE) -> 77 | J56: =IFERROR(RANK($M56,$M$6:$M$745,0),"") -> 97 | K56: =IFERROR(IF((OR($C56="RP",$C56="SP")),VLOOKUP($B56,Pitcher!$A$1:$Z$700,20,FALSE),(VLOOKUP($B56,Hitter!$A$1:$Z$700,26,FALSE))),"") -> 391.1668765 | L56: =IFERROR(IF((OR($C56="RP",$C56="SP")),VLOOKUP($C56,'Filtered-P'!$M$3:$P$4,4,FALSE), VLOOKUP($C56,Filtered!$Q$3:$T$14,4,FALSE)),"") -> 411.2053549 | M56: =IFERROR(($K56-$L56)/IF(OR($C56="SP",$C56="RP"),VLOOKUP($C56,'Filtered-P'!$M$3:$T$4,8,FALSE),VLOOKUP($C56,Filtered!$Q$3:$X$10,8,FALSE)),"") -> -0.2664709187 | N56: =IFERROR(IF((OR($C56="RP",$C56="SP")),"",(VLOOKUP($B56,Hitter!$A$1:$Z$700,26,FALSE)/VLOOKUP($B56,Hitter!$A$1:$Z$700,2,FALSE))),"") ->  | O56: =IFERROR(IF((OR($C56="RP",$C56="SP")),VLOOKUP($B56,Pitcher!$A$1:$Z$700,20,FALSE)/VLOOKUP($B56,Pitcher!$A$1:$Z$700,4,FALSE),""),"") -> 1.754111554 | P56: =IFERROR(IF((OR($C56="RP",$C56="SP")),VLOOKUP($B56,Pitcher!$A$1:$V$700,2,FALSE),""),"") -> 15.00250789 | Q56: =IFERROR(IF((OR($C56="RP",$C56="SP")),VLOOKUP($B56,Pitcher!$A$1:$V$700,9,FALSE),""),"") -> 0 | R56: =IFERROR(IF((OR($C56="RP",$C56="SP")),VLOOKUP($B56,Pitcher!$A$1:$V$700,7,FALSE),""),"") -> 189.1818875 | S56: =IFERROR(IF((OR($C56="RP",$C56="SP")),VLOOKUP($B56,Pitcher!$A$1:$AB$700,21,FALSE),""),"") -> 3.618617573 | T56: =IFERROR(IF((OR($C56="RP",$C56="SP")),VLOOKUP($B56,Pitcher!$A$1:$V$700,22,FALSE),""),"") -> 1.215487201 | U56: =IFERROR(IF((OR($C56="RP",$C56="SP")),"",VLOOKUP($B56,Hitter!$A$1:$AH$700,27,FALSE)),"") ->  | V56: =IFERROR(IF((OR($C56="RP",$C56="SP")),"",VLOOKUP($B56,Hitter!$A$1:$AH$700,9,FALSE)),"") ->  | W56: =IFERROR(IF((OR($C56="RP",$C56="SP")),"",VLOOKUP($B56,Hitter!$A$1:$AH$700,10,FALSE)),"") ->  | X56: =IFERROR(IF((OR($C56="RP",$C56="SP")),"",VLOOKUP($B56,Hitter!$A$1:$AH$700,4,FALSE)),"") ->  | Y56: =IFERROR(IF((OR($C56="RP",$C56="SP")),"",VLOOKUP($B56,Hitter!$A$1:$AH$700,11,FALSE)),"") ->  | Z56: =IFERROR(IF(ISTEXT($A56),"",(1-NORMDIST((COUNTA($A$6:$A$745)),($G56),((AE56-AD56)/6),TRUE))),"") -> 1 | AA56: =IFERROR(IF(ISTEXT($A56),"",(1-NORMDIST((COUNTA($A$6:$A$745))+(Personalize!$E$18+1),$G56,((AE56-AD56)/6),TRUE))),"") -> 1 | AB56: =IFERROR(IF(ISTEXT($A56),"",(1-NORMDIST((COUNTA($A$6:$A$745))+((Personalize!$E$18+1)*2),$G56,((AE56-AD56)/6),TRUE))),"") -> 1 | AD56: =IF(Personalize!$E$34=1,VLOOKUP($B56,'ADP-Rank'!$A$2:$J$700,5,FALSE),(IF(Personalize!$E$34=2,VLOOKUP($B56,'ADP-Rank'!$A$2:$J$700,8,FALSE),(IF(Personalize!$E$34=3,VLOOKUP($B56,'ADP-Rank'!$A$2:$O$700,11,FALSE),(IF(Personalize!$E$31=4,VLOOKUP($B56,'ADP-Rank'!$A$2:$AZ$700,25,FALSE),(IF(Personalize!$E$31=5,VLOOKUP($B56,'ADP-Rank'!$A$2:$AZ$700,28,FALSE),(IF(Personalize!$E$31=6,VLOOKUP($B56,'ADP-Rank'!$A$2:$AZ$700,32,FALSE),""))))))))))) -> 77 | AE56: =IF(Personalize!$E$34=1,VLOOKUP($B56,'ADP-Rank'!$A$2:$J$700,6,FALSE),(IF(Personalize!$E$34=2,VLOOKUP($B56,'ADP-Rank'!$A$2:$J$700,9,FALSE),(IF(Personalize!$E$34=3,VLOOKUP($B56,'ADP-Rank'!$A$2:$O$700,12,FALSE),(IF(Personalize!$E$31=4,VLOOKUP($B56,'ADP-Rank'!$A$2:$AZ$700,26,FALSE),(IF(Personalize!$E$31=5,VLOOKUP($B56,'ADP-Rank'!$A$2:$AZ$700,29,FALSE),(IF(Personalize!$E$31=6,VLOOKUP($B56,'ADP-Rank'!$A$2:$AZ$700,33,FALSE),""))))))))))) -> 108 | AF56: =IF(ISBLANK(A56),0,1) -> 0 | AG56: =IF(K56="",0,1) -> 1 | AH56: =A56 -> 0 | AI56: =IF(C56="C",1,IF(C56="1B",2,IF(C56="2B",3,IF(C56="3B",4,IF(C56="SS",5,IF(C56="CI",6,IF(C56="MI",7,IF(C56="OF",11,IF(C56="LF",8,IF(C56="CF",9,IF(C56="RF",10,IF(C56="DH",12,IF(C56="SP",13,IF(C56="RP",14,IF(C56="P",15,16))))))))))))))) -> 13 | AJ56: =VLOOKUP(B56,'Starter Calc'!$B$2:$BN$700,65,FALSE) -> Bench | AK56: =IFERROR(VLOOKUP($B56,'ADP-Rank'!$A$2:$AH$964,34,FALSE),TRUE) -> TRUE | AL56: 1
B57: Mike Minor | C57: SP | D57: =IFERROR(IF(VLOOKUP(B57,'Starter Calc'!$B$2:$E$700,4,FALSE)="","",VLOOKUP(B57,'Starter Calc'!$B$2:$E$700,4,FALSE)),"") -> ,, | E57: =IFERROR(VLOOKUP($B57,'ADP-Rank'!$A$2:$D$700,3,FALSE),"") -> ATL | F57: =IFERROR(VLOOKUP($B57,'ADP-Rank'!$A$2:$W$700,23,FALSE),"") -> 26 | G57: =IFERROR((IF(Personalize!$E$38=1,VLOOKUP($B57,'ADP-Rank'!$A$2:$J$700,4,FALSE),(IF(Personalize!$E$38=2,VLOOKUP($B57,'ADP-Rank'!$A$2:$J$700,7,FALSE),(IF(Personalize!$E$38=3,VLOOKUP($B57,'ADP-Rank'!$A$2:$J$700,10,FALSE),(IF(Personalize!$E$38=4,VLOOKUP($B57,'ADP-Rank'!$A$2:$AD$700,24,FALSE),(IF(Personalize!$E$38=5,VLOOKUP($B57,'ADP-Rank'!$A$2:$AD$700,27,FALSE),(IF(Personalize!$E$38=6,VLOOKUP($B57,'ADP-Rank'!$A$2:$AZ$700,30,FALSE),(IF(Personalize!$E$38=7,VLOOKUP($B57,'ADP-Rank'!$A$2:$AZ$700,39,FALSE))))))))))))))),"") -> 58.05 | H57: =IFERROR(ROUNDDOWN(VLOOKUP($B57,'ADP-Rank'!$A$2:$AY$1064,38,FALSE),0),"") -> 5 | I57: =VLOOKUP($B57,'ADP-Rank'!$A$2:$AJ$1064,36,FALSE) -> 135 | J57: =IFERROR(RANK($M57,$M$6:$M$745,0),"") -> 80 | K57: =IFERROR(IF((OR($C57="RP",$C57="SP")),VLOOKUP($B57,Pitcher!$A$1:$Z$700,20,FALSE),(VLOOKUP($B57,Hitter!$A$1:$Z$700,26,FALSE))),"") -> 398.5476214 | L57: =IFERROR(IF((OR($C57="RP",$C57="SP")),VLOOKUP($C57,'Filtered-P'!$M$3:$P$4,4,FALSE), VLOOKUP($C57,Filtered!$Q$3:$T$14,4,FALSE)),"") -> 411.2053549 | M57: =IFERROR(($K57-$L57)/IF(OR($C57="SP",$C57="RP"),VLOOKUP($C57,'Filtered-P'!$M$3:$T$4,8,FALSE),VLOOKUP($C57,Filtered!$Q$3:$X$10,8,FALSE)),"") -> -0.1683220556 | N57: =IFERROR(IF((OR($C57="RP",$C57="SP")),"",(VLOOKUP($B57,Hitter!$A$1:$Z$700,26,FALSE)/VLOOKUP($B57,Hitter!$A$1:$Z$700,2,FALSE))),"") ->  | O57: =IFERROR(IF((OR($C57="RP",$C57="SP")),VLOOKUP($B57,Pitcher!$A$1:$Z$700,20,FALSE)/VLOOKUP($B57,Pitcher!$A$1:$Z$700,4,FALSE),""),"") -> 1.897845816 | P57: =IFERROR(IF((OR($C57="RP",$C57="SP")),VLOOKUP($B57,Pitcher!$A$1:$V$700,2,FALSE),""),"") -> 14.85556835 | Q57: =IFERROR(IF((OR($C57="RP",$C57="SP")),VLOOKUP($B57,Pitcher!$A$1:$V$700,9,FALSE),""),"") -> 0 | R57: =IFERROR(IF((OR($C57="RP",$C57="SP")),VLOOKUP($B57,Pitcher!$A$1:$V$700,7,FALSE),""),"") -> 186.9281773 | S57: =IFERROR(IF((OR($C57="RP",$C57="SP")),VLOOKUP($B57,Pitcher!$A$1:$AB$700,21,FALSE),""),"") -> 3.594446429 | T57: =IFERROR(IF((OR($C57="RP",$C57="SP")),VLOOKUP($B57,Pitcher!$A$1:$V$700,22,FALSE),""),"") -> 1.196799603 | U57: =IFERROR(IF((OR($C57="RP",$C57="SP")),"",VLOOKUP($B57,Hitter!$A$1:$AH$700,27,FALSE)),"") ->  | V57: =IFERROR(IF((OR($C57="RP",$C57="SP")),"",VLOOKUP($B57,Hitter!$A$1:$AH$700,9,FALSE)),"") ->  | W57: =IFERROR(IF((OR($C57="RP",$C57="SP")),"",VLOOKUP($B57,Hitter!$A$1:$AH$700,10,FALSE)),"") ->  | X57: =IFERROR(IF((OR($C57="RP",$C57="SP")),"",VLOOKUP($B57,Hitter!$A$1:$AH$700,4,FALSE)),"") ->  | Y57: =IFERROR(IF((OR($C57="RP",$C57="SP")),"",VLOOKUP($B57,Hitter!$A$1:$AH$700,11,FALSE)),"") ->  | Z57: =IFERROR(IF(ISTEXT($A57),"",(1-NORMDIST((COUNTA($A$6:$A$745)),($G57),((AE57-AD57)/6),TRUE))),"") -> 1 | AA57: =IFERROR(IF(ISTEXT($A57),"",(1-NORMDIST((COUNTA($A$6:$A$745))+(Personalize!$E$18+1),$G57,((AE57-AD57)/6),TRUE))),"") -> 1 | AB57: =IFERROR(IF(ISTEXT($A57),"",(1-NORMDIST((COUNTA($A$6:$A$745))+((Personalize!$E$18+1)*2),$G57,((AE57-AD57)/6),TRUE))),"") -> 1 | AC57: Mr. Cheatsheet Pitcher to Target | AD57: =IF(Personalize!$E$34=1,VLOOKUP($B57,'ADP-Rank'!$A$2:$J$700,5,FALSE),(IF(Personalize!$E$34=2,VLOOKUP($B57,'ADP-Rank'!$A$2:$J$700,8,FALSE),(IF(Personalize!$E$34=3,VLOOKUP($B57,'ADP-Rank'!$A$2:$O$700,11,FALSE),(IF(Personalize!$E$31=4,VLOOKUP($B57,'ADP-Rank'!$A$2:$AZ$700,25,FALSE),(IF(Personalize!$E$31=5,VLOOKUP($B57,'ADP-Rank'!$A$2:$AZ$700,28,FALSE),(IF(Personalize!$E$31=6,VLOOKUP($B57,'ADP-Rank'!$A$2:$AZ$700,32,FALSE),""))))))))))) -> 84 | AE57: =IF(Personalize!$E$34=1,VLOOKUP($B57,'ADP-Rank'!$A$2:$J$700,6,FALSE),(IF(Personalize!$E$34=2,VLOOKUP($B57,'ADP-Rank'!$A$2:$J$700,9,FALSE),(IF(Personalize!$E$34=3,VLOOKUP($B57,'ADP-Rank'!$A$2:$O$700,12,FALSE),(IF(Personalize!$E$31=4,VLOOKUP($B57,'ADP-Rank'!$A$2:$AZ$700,26,FALSE),(IF(Personalize!$E$31=5,VLOOKUP($B57,'ADP-Rank'!$A$2:$AZ$700,29,FALSE),(IF(Personalize!$E$31=6,VLOOKUP($B57,'ADP-Rank'!$A$2:$AZ$700,33,FALSE),""))))))))))) -> 112 | AF57: =IF(ISBLANK(A57),0,1) -> 0 | AG57: =IF(K57="",0,1) -> 1 | AH57: =A57 -> 0 | AI57: =IF(C57="C",1,IF(C57="1B",2,IF(C57="2B",3,IF(C57="3B",4,IF(C57="SS",5,IF(C57="CI",6,IF(C57="MI",7,IF(C57="OF",11,IF(C57="LF",8,IF(C57="CF",9,IF(C57="RF",10,IF(C57="DH",12,IF(C57="SP",13,IF(C57="RP",14,IF(C57="P",15,16))))))))))))))) -> 13 | AJ57: =VLOOKUP(B57,'Starter Calc'!$B$2:$BN$700,65,FALSE) -> Bench | AK57: =IFERROR(VLOOKUP($B57,'ADP-Rank'!$A$2:$AH$964,34,FALSE),TRUE) -> TRUE | AL57: 1
B58: Carlos Santana | C58: C | D58: =IFERROR(IF(VLOOKUP(B58,'Starter Calc'!$B$2:$E$700,4,FALSE)="","",VLOOKUP(B58,'Starter Calc'!$B$2:$E$700,4,FALSE)),"") -> ,, | E58: =IFERROR(VLOOKUP($B58,'ADP-Rank'!$A$2:$D$700,3,FALSE),"") -> CLE | F58: =IFERROR(VLOOKUP($B58,'ADP-Rank'!$A$2:$W$700,23,FALSE),"") -> 28 | G58: =IFERROR((IF(Personalize!$E$38=1,VLOOKUP($B58,'ADP-Rank'!$A$2:$J$700,4,FALSE),(IF(Personalize!$E$38=2,VLOOKUP($B58,'ADP-Rank'!$A$2:$J$700,7,FALSE),(IF(Personalize!$E$38=3,VLOOKUP($B58,'ADP-Rank'!$A$2:$J$700,10,FALSE),(IF(Personalize!$E$38=4,VLOOKUP($B58,'ADP-Rank'!$A$2:$AD$700,24,FALSE),(IF(Personalize!$E$38=5,VLOOKUP($B58,'ADP-Rank'!$A$2:$AD$700,27,FALSE),(IF(Personalize!$E$38=6,VLOOKUP($B58,'ADP-Rank'!$A$2:$AZ$700,30,FALSE),(IF(Personalize!$E$38=7,VLOOKUP($B58,'ADP-Rank'!$A$2:$AZ$700,39,FALSE))))))))))))))),"") -> 58.12 | H58: =IFERROR(ROUNDDOWN(VLOOKUP($B58,'ADP-Rank'!$A$2:$AY$1064,38,FALSE),0),"") -> 5 | I58: =VLOOKUP($B58,'ADP-Rank'!$A$2:$AJ$1064,36,FALSE) -> 32 | J58: =IFERROR(RANK($M58,$M$6:$M$745,0),"") -> 21 | K58: =IFERROR(IF((OR($C58="RP",$C58="SP")),VLOOKUP($B58,Pitcher!$A$1:$Z$700,20,FALSE),(VLOOKUP($B58,Hitter!$A$1:$Z$700,26,FALSE))),"") -> 361.9412058 | L58: =IFERROR(IF((OR($C58="RP",$C58="SP")),VLOOKUP($C58,'Filtered-P'!$M$3:$P$4,4,FALSE), VLOOKUP($C58,Filtered!$Q$3:$T$14,4,FALSE)),"") -> 301.2205882 | M58: =IFERROR(($K58-$L58)/IF(OR($C58="SP",$C58="RP"),VLOOKUP($C58,'Filtered-P'!$M$3:$T$4,8,FALSE),VLOOKUP($C58,Filtered!$Q$3:$X$10,8,FALSE)),"") -> 1.29168872 | N58: =IFERROR(IF((OR($C58="RP",$C58="SP")),"",(VLOOKUP($B58,Hitter!$A$1:$Z$700,26,FALSE)/VLOOKUP($B58,Hitter!$A$1:$Z$700,2,FALSE))),"") -> 0.5937761589 | O58: =IFERROR(IF((OR($C58="RP",$C58="SP")),VLOOKUP($B58,Pitcher!$A$1:$Z$700,20,FALSE)/VLOOKUP($B58,Pitcher!$A$1:$Z$700,4,FALSE),""),"") ->  | P58: =IFERROR(IF((OR($C58="RP",$C58="SP")),VLOOKUP($B58,Pitcher!$A$1:$V$700,2,FALSE),""),"") ->  | Q58: =IFERROR(IF((OR($C58="RP",$C58="SP")),VLOOKUP($B58,Pitcher!$A$1:$V$700,9,FALSE),""),"") ->  | R58: =IFERROR(IF((OR($C58="RP",$C58="SP")),VLOOKUP($B58,Pitcher!$A$1:$V$700,7,FALSE),""),"") ->  | S58: =IFERROR(IF((OR($C58="RP",$C58="SP")),VLOOKUP($B58,Pitcher!$A$1:$AB$700,21,FALSE),""),"") ->  | T58: =IFERROR(IF((OR($C58="RP",$C58="SP")),VLOOKUP($B58,Pitcher!$A$1:$V$700,22,FALSE),""),"") ->  | U58: =IFERROR(IF((OR($C58="RP",$C58="SP")),"",VLOOKUP($B58,Hitter!$A$1:$AH$700,27,FALSE)),"") -> 0.2526255902 | V58: =IFERROR(IF((OR($C58="RP",$C58="SP")),"",VLOOKUP($B58,Hitter!$A$1:$AH$700,9,FALSE)),"") -> 20.52537049 | W58: =IFERROR(IF((OR($C58="RP",$C58="SP")),"",VLOOKUP($B58,Hitter!$A$1:$AH$700,10,FALSE)),"") -> 75.45824139 | X58: =IFERROR(IF((OR($C58="RP",$C58="SP")),"",VLOOKUP($B58,Hitter!$A$1:$AH$700,4,FALSE)),"") -> 78.81293784 | Y58: =IFERROR(IF((OR($C58="RP",$C58="SP")),"",VLOOKUP($B58,Hitter!$A$1:$AH$700,11,FALSE)),"") -> 3.933726883 | Z58: =IFERROR(IF(ISTEXT($A58),"",(1-NORMDIST((COUNTA($A$6:$A$745)),($G58),((AE58-AD58)/6),TRUE))),"") -> 1 | AA58: =IFERROR(IF(ISTEXT($A58),"",(1-NORMDIST((COUNTA($A$6:$A$745))+(Personalize!$E$18+1),$G58,((AE58-AD58)/6),TRUE))),"") -> 1 | AB58: =IFERROR(IF(ISTEXT($A58),"",(1-NORMDIST((COUNTA($A$6:$A$745))+((Personalize!$E$18+1)*2),$G58,((AE58-AD58)/6),TRUE))),"") -> 1 | AD58: =IF(Personalize!$E$34=1,VLOOKUP($B58,'ADP-Rank'!$A$2:$J$700,5,FALSE),(IF(Personalize!$E$34=2,VLOOKUP($B58,'ADP-Rank'!$A$2:$J$700,8,FALSE),(IF(Personalize!$E$34=3,VLOOKUP($B58,'ADP-Rank'!$A$2:$O$700,11,FALSE),(IF(Personalize!$E$31=4,VLOOKUP($B58,'ADP-Rank'!$A$2:$AZ$700,25,FALSE),(IF(Personalize!$E$31=5,VLOOKUP($B58,'ADP-Rank'!$A$2:$AZ$700,28,FALSE),(IF(Personalize!$E$31=6,VLOOKUP($B58,'ADP-Rank'!$A$2:$AZ$700,32,FALSE),""))))))))))) -> 74 | AE58: =IF(Personalize!$E$34=1,VLOOKUP($B58,'ADP-Rank'!$A$2:$J$700,6,FALSE),(IF(Personalize!$E$34=2,VLOOKUP($B58,'ADP-Rank'!$A$2:$J$700,9,FALSE),(IF(Personalize!$E$34=3,VLOOKUP($B58,'ADP-Rank'!$A$2:$O$700,12,FALSE),(IF(Personalize!$E$31=4,VLOOKUP($B58,'ADP-Rank'!$A$2:$AZ$700,26,FALSE),(IF(Personalize!$E$31=5,VLOOKUP($B58,'ADP-Rank'!$A$2:$AZ$700,29,FALSE),(IF(Personalize!$E$31=6,VLOOKUP($B58,'ADP-Rank'!$A$2:$AZ$700,33,FALSE),""))))))))))) -> 121 | AF58: =IF(ISBLANK(A58),0,1) -> 0 | AG58: =IF(K58="",0,1) -> 1 | AH58: =A58 -> 0 | AI58: =IF(C58="C",1,IF(C58="1B",2,IF(C58="2B",3,IF(C58="3B",4,IF(C58="SS",5,IF(C58="CI",6,IF(C58="MI",7,IF(C58="OF",11,IF(C58="LF",8,IF(C58="CF",9,IF(C58="RF",10,IF(C58="DH",12,IF(C58="SP",13,IF(C58="RP",14,IF(C58="P",15,16))))))))))))))) -> 1 | AJ58: =VLOOKUP(B58,'Starter Calc'!$B$2:$BN$700,65,FALSE) -> Bench | AK58: =IFERROR(VLOOKUP($B58,'ADP-Rank'!$A$2:$AH$964,34,FALSE),TRUE) -> TRUE | AL58: 0
B59: Anibal Sanchez | C59: SP | D59: =IFERROR(IF(VLOOKUP(B59,'Starter Calc'!$B$2:$E$700,4,FALSE)="","",VLOOKUP(B59,'Starter Calc'!$B$2:$E$700,4,FALSE)),"") -> ,, | E59: =IFERROR(VLOOKUP($B59,'ADP-Rank'!$A$2:$D$700,3,FALSE),"") -> DET | F59: =IFERROR(VLOOKUP($B59,'ADP-Rank'!$A$2:$W$700,23,FALSE),"") -> 30 | G59: =IFERROR((IF(Personalize!$E$38=1,VLOOKUP($B59,'ADP-Rank'!$A$2:$J$700,4,FALSE),(IF(Personalize!$E$38=2,VLOOKUP($B59,'ADP-Rank'!$A$2:$J$700,7,FALSE),(IF(Personalize!$E$38=3,VLOOKUP($B59,'ADP-Rank'!$A$2:$J$700,10,FALSE),(IF(Personalize!$E$38=4,VLOOKUP($B59,'ADP-Rank'!$A$2:$AD$700,24,FALSE),(IF(Personalize!$E$38=5,VLOOKUP($B59,'ADP-Rank'!$A$2:$AD$700,27,FALSE),(IF(Personalize!$E$38=6,VLOOKUP($B59,'ADP-Rank'!$A$2:$AZ$700,30,FALSE),(IF(Personalize!$E$38=7,VLOOKUP($B59,'ADP-Rank'!$A$2:$AZ$700,39,FALSE))))))))))))))),"") -> 58.47 | H59: =IFERROR(ROUNDDOWN(VLOOKUP($B59,'ADP-Rank'!$A$2:$AY$1064,38,FALSE),0),"") -> 5 | I59: =VLOOKUP($B59,'ADP-Rank'!$A$2:$AJ$1064,36,FALSE) -> 83 | J59: =IFERROR(RANK($M59,$M$6:$M$745,0),"") -> 84 | K59: =IFERROR(IF((OR($C59="RP",$C59="SP")),VLOOKUP($B59,Pitcher!$A$1:$Z$700,20,FALSE),(VLOOKUP($B59,Hitter!$A$1:$Z$700,26,FALSE))),"") -> 398.1378341 | L59: =IFERROR(IF((OR($C59="RP",$C59="SP")),VLOOKUP($C59,'Filtered-P'!$M$3:$P$4,4,FALSE), VLOOKUP($C59,Filtered!$Q$3:$T$14,4,FALSE)),"") -> 411.2053549 | M59: =IFERROR(($K59-$L59)/IF(OR($C59="SP",$C59="RP"),VLOOKUP($C59,'Filtered-P'!$M$3:$T$4,8,FALSE),VLOOKUP($C59,Filtered!$Q$3:$X$10,8,FALSE)),"") -> -0.1737713919 | N59: =IFERROR(IF((OR($C59="RP",$C59="SP")),"",(VLOOKUP($B59,Hitter!$A$1:$Z$700,26,FALSE)/VLOOKUP($B59,Hitter!$A$1:$Z$700,2,FALSE))),"") ->  | O59: =IFERROR(IF((OR($C59="RP",$C59="SP")),VLOOKUP($B59,Pitcher!$A$1:$Z$700,20,FALSE)/VLOOKUP($B59,Pitcher!$A$1:$Z$700,4,FALSE),""),"") -> 2.041732482 | P59: =IFERROR(IF((OR($C59="RP",$C59="SP")),VLOOKUP($B59,Pitcher!$A$1:$V$700,2,FALSE),""),"") -> 14.38478288 | Q59: =IFERROR(IF((OR($C59="RP",$C59="SP")),VLOOKUP($B59,Pitcher!$A$1:$V$700,9,FALSE),""),"") -> 0 | R59: =IFERROR(IF((OR($C59="RP",$C59="SP")),VLOOKUP($B59,Pitcher!$A$1:$V$700,7,FALSE),""),"") -> 182.9398721 | S59: =IFERROR(IF((OR($C59="RP",$C59="SP")),VLOOKUP($B59,Pitcher!$A$1:$AB$700,21,FALSE),""),"") -> 3.501750916 | T59: =IFERROR(IF((OR($C59="RP",$C59="SP")),VLOOKUP($B59,Pitcher!$A$1:$V$700,22,FALSE),""),"") -> 1.198179894 | U59: =IFERROR(IF((OR($C59="RP",$C59="SP")),"",VLOOKUP($B59,Hitter!$A$1:$AH$700,27,FALSE)),"") ->  | V59: =IFERROR(IF((OR($C59="RP",$C59="SP")),"",VLOOKUP($B59,Hitter!$A$1:$AH$700,9,FALSE)),"") ->  | W59: =IFERROR(IF((OR($C59="RP",$C59="SP")),"",VLOOKUP($B59,Hitter!$A$1:$AH$700,10,FALSE)),"") ->  | X59: =IFERROR(IF((OR($C59="RP",$C59="SP")),"",VLOOKUP($B59,Hitter!$A$1:$AH$700,4,FALSE)),"") ->  | Y59: =IFERROR(IF((OR($C59="RP",$C59="SP")),"",VLOOKUP($B59,Hitter!$A$1:$AH$700,11,FALSE)),"") ->  | Z59: =IFERROR(IF(ISTEXT($A59),"",(1-NORMDIST((COUNTA($A$6:$A$745)),($G59),((AE59-AD59)/6),TRUE))),"") -> 1 | AA59: =IFERROR(IF(ISTEXT($A59),"",(1-NORMDIST((COUNTA($A$6:$A$745))+(Personalize!$E$18+1),$G59,((AE59-AD59)/6),TRUE))),"") -> 1 | AB59: =IFERROR(IF(ISTEXT($A59),"",(1-NORMDIST((COUNTA($A$6:$A$745))+((Personalize!$E$18+1)*2),$G59,((AE59-AD59)/6),TRUE))),"") -> 1 | AC59: Mr. Cheatsheet Pitcher to Target | AD59: =IF(Personalize!$E$34=1,VLOOKUP($B59,'ADP-Rank'!$A$2:$J$700,5,FALSE),(IF(Personalize!$E$34=2,VLOOKUP($B59,'ADP-Rank'!$A$2:$J$700,8,FALSE),(IF(Personalize!$E$34=3,VLOOKUP($B59,'ADP-Rank'!$A$2:$O$700,11,FALSE),(IF(Personalize!$E$31=4,VLOOKUP($B59,'ADP-Rank'!$A$2:$AZ$700,25,FALSE),(IF(Personalize!$E$31=5,VLOOKUP($B59,'ADP-Rank'!$A$2:$AZ$700,28,FALSE),(IF(Personalize!$E$31=6,VLOOKUP($B59,'ADP-Rank'!$A$2:$AZ$700,32,FALSE),""))))))))))) -> 104 | AE59: =IF(Personalize!$E$34=1,VLOOKUP($B59,'ADP-Rank'!$A$2:$J$700,6,FALSE),(IF(Personalize!$E$34=2,VLOOKUP($B59,'ADP-Rank'!$A$2:$J$700,9,FALSE),(IF(Personalize!$E$34=3,VLOOKUP($B59,'ADP-Rank'!$A$2:$O$700,12,FALSE),(IF(Personalize!$E$31=4,VLOOKUP($B59,'ADP-Rank'!$A$2:$AZ$700,26,FALSE),(IF(Personalize!$E$31=5,VLOOKUP($B59,'ADP-Rank'!$A$2:$AZ$700,29,FALSE),(IF(Personalize!$E$31=6,VLOOKUP($B59,'ADP-Rank'!$A$2:$AZ$700,33,FALSE),""))))))))))) -> 133 | AF59: =IF(ISBLANK(A59),0,1) -> 0 | AG59: =IF(K59="",0,1) -> 1 | AH59: =A59 -> 0 | AI59: =IF(C59="C",1,IF(C59="1B",2,IF(C59="2B",3,IF(C59="3B",4,IF(C59="SS",5,IF(C59="CI",6,IF(C59="MI",7,IF(C59="OF",11,IF(C59="LF",8,IF(C59="CF",9,IF(C59="RF",10,IF(C59="DH",12,IF(C59="SP",13,IF(C59="RP",14,IF(C59="P",15,16))))))))))))))) -> 13 | AJ59: =VLOOKUP(B59,'Starter Calc'!$B$2:$BN$700,65,FALSE) -> Bench | AK59: =IFERROR(VLOOKUP($B59,'ADP-Rank'!$A$2:$AH$964,34,FALSE),TRUE) -> TRUE | AL59: 1
B60: Gio Gonzalez | C60: SP | D60: =IFERROR(IF(VLOOKUP(B60,'Starter Calc'!$B$2:$E$700,4,FALSE)="","",VLOOKUP(B60,'Starter Calc'!$B$2:$E$700,4,FALSE)),"") -> ,, | E60: =IFERROR(VLOOKUP($B60,'ADP-Rank'!$A$2:$D$700,3,FALSE),"") -> WAS | F60: =IFERROR(VLOOKUP($B60,'ADP-Rank'!$A$2:$W$700,23,FALSE),"") -> 28 | G60: =IFERROR((IF(Personalize!$E$38=1,VLOOKUP($B60,'ADP-Rank'!$A$2:$J$700,4,FALSE),(IF(Personalize!$E$38=2,VLOOKUP($B60,'ADP-Rank'!$A$2:$J$700,7,FALSE),(IF(Personalize!$E$38=3,VLOOKUP($B60,'ADP-Rank'!$A$2:$J$700,10,FALSE),(IF(Personalize!$E$38=4,VLOOKUP($B60,'ADP-Rank'!$A$2:$AD$700,24,FALSE),(IF(Personalize!$E$38=5,VLOOKUP($B60,'ADP-Rank'!$A$2:$AD$700,27,FALSE),(IF(Personalize!$E$38=6,VLOOKUP($B60,'ADP-Rank'!$A$2:$AZ$700,30,FALSE),(IF(Personalize!$E$38=7,VLOOKUP($B60,'ADP-Rank'!$A$2:$AZ$700,39,FALSE))))))))))))))),"") -> 58.58 | H60: =IFERROR(ROUNDDOWN(VLOOKUP($B60,'ADP-Rank'!$A$2:$AY$1064,38,FALSE),0),"") -> 5 | I60: =VLOOKUP($B60,'ADP-Rank'!$A$2:$AJ$1064,36,FALSE) -> 98 | J60: =IFERROR(RANK($M60,$M$6:$M$745,0),"") -> 77 | K60: =IFERROR(IF((OR($C60="RP",$C60="SP")),VLOOKUP($B60,Pitcher!$A$1:$Z$700,20,FALSE),(VLOOKUP($B60,Hitter!$A$1:$Z$700,26,FALSE))),"") -> 403.2877889 | L60: =IFERROR(IF((OR($C60="RP",$C60="SP")),VLOOKUP($C60,'Filtered-P'!$M$3:$P$4,4,FALSE), VLOOKUP($C60,Filtered!$Q$3:$T$14,4,FALSE)),"") -> 411.2053549 | M60: =IFERROR(($K60-$L60)/IF(OR($C60="SP",$C60="RP"),VLOOKUP($C60,'Filtered-P'!$M$3:$T$4,8,FALSE),VLOOKUP($C60,Filtered!$Q$3:$X$10,8,FALSE)),"") -> -0.1052874902 | N60: =IFERROR(IF((OR($C60="RP",$C60="SP")),"",(VLOOKUP($B60,Hitter!$A$1:$Z$700,26,FALSE)/VLOOKUP($B60,Hitter!$A$1:$Z$700,2,FALSE))),"") ->  | O60: =IFERROR(IF((OR($C60="RP",$C60="SP")),VLOOKUP($B60,Pitcher!$A$1:$Z$700,20,FALSE)/VLOOKUP($B60,Pitcher!$A$1:$Z$700,4,FALSE),""),"") -> 2.036807014 | P60: =IFERROR(IF((OR($C60="RP",$C60="SP")),VLOOKUP($B60,Pitcher!$A$1:$V$700,2,FALSE),""),"") -> 14.2320742 | Q60: =IFERROR(IF((OR($C60="RP",$C60="SP")),VLOOKUP($B60,Pitcher!$A$1:$V$700,9,FALSE),""),"") -> 0 | R60: =IFERROR(IF((OR($C60="RP",$C60="SP")),VLOOKUP($B60,Pitcher!$A$1:$V$700,7,FALSE),""),"") -> 195.6180381 | S60: =IFERROR(IF((OR($C60="RP",$C60="SP")),VLOOKUP($B60,Pitcher!$A$1:$AB$700,21,FALSE),""),"") -> 3.608863636 | T60: =IFERROR(IF((OR($C60="RP",$C60="SP")),VLOOKUP($B60,Pitcher!$A$1:$V$700,22,FALSE),""),"") -> 1.268394886 | U60: =IFERROR(IF((OR($C60="RP",$C60="SP")),"",VLOOKUP($B60,Hitter!$A$1:$AH$700,27,FALSE)),"") ->  | V60: =IFERROR(IF((OR($C60="RP",$C60="SP")),"",VLOOKUP($B60,Hitter!$A$1:$AH$700,9,FALSE)),"") ->  | W60: =IFERROR(IF((OR($C60="RP",$C60="SP")),"",VLOOKUP($B60,Hitter!$A$1:$AH$700,10,FALSE)),"") ->  | X60: =IFERROR(IF((OR($C60="RP",$C60="SP")),"",VLOOKUP($B60,Hitter!$A$1:$AH$700,4,FALSE)),"") ->  | Y60: =IFERROR(IF((OR($C60="RP",$C60="SP")),"",VLOOKUP($B60,Hitter!$A$1:$AH$700,11,FALSE)),"") ->  | Z60: =IFERROR(IF(ISTEXT($A60),"",(1-NORMDIST((COUNTA($A$6:$A$745)),($G60),((AE60-AD60)/6),TRUE))),"") -> 1 | AA60: =IFERROR(IF(ISTEXT($A60),"",(1-NORMDIST((COUNTA($A$6:$A$745))+(Personalize!$E$18+1),$G60,((AE60-AD60)/6),TRUE))),"") -> 1 | AB60: =IFERROR(IF(ISTEXT($A60),"",(1-NORMDIST((COUNTA($A$6:$A$745))+((Personalize!$E$18+1)*2),$G60,((AE60-AD60)/6),TRUE))),"") -> 1 | AD60: =IF(Personalize!$E$34=1,VLOOKUP($B60,'ADP-Rank'!$A$2:$J$700,5,FALSE),(IF(Personalize!$E$34=2,VLOOKUP($B60,'ADP-Rank'!$A$2:$J$700,8,FALSE),(IF(Personalize!$E$34=3,VLOOKUP($B60,'ADP-Rank'!$A$2:$O$700,11,FALSE),(IF(Personalize!$E$31=4,VLOOKUP($B60,'ADP-Rank'!$A$2:$AZ$700,25,FALSE),(IF(Personalize!$E$31=5,VLOOKUP($B60,'ADP-Rank'!$A$2:$AZ$700,28,FALSE),(IF(Personalize!$E$31=6,VLOOKUP($B60,'ADP-Rank'!$A$2:$AZ$700,32,FALSE),""))))))))))) -> 95 | AE60: =IF(Personalize!$E$34=1,VLOOKUP($B60,'ADP-Rank'!$A$2:$J$700,6,FALSE),(IF(Personalize!$E$34=2,VLOOKUP($B60,'ADP-Rank'!$A$2:$J$700,9,FALSE),(IF(Personalize!$E$34=3,VLOOKUP($B60,'ADP-Rank'!$A$2:$O$700,12,FALSE),(IF(Personalize!$E$31=4,VLOOKUP($B60,'ADP-Rank'!$A$2:$AZ$700,26,FALSE),(IF(Personalize!$E$31=5,VLOOKUP($B60,'ADP-Rank'!$A$2:$AZ$700,29,FALSE),(IF(Personalize!$E$31=6,VLOOKUP($B60,'ADP-Rank'!$A$2:$AZ$700,33,FALSE),""))))))))))) -> 121 | AF60: =IF(ISBLANK(A60),0,1) -> 0 | AG60: =IF(K60="",0,1) -> 1 | AH60: =A60 -> 0 | AI60: =IF(C60="C",1,IF(C60="1B",2,IF(C60="2B",3,IF(C60="3B",4,IF(C60="SS",5,IF(C60="CI",6,IF(C60="MI",7,IF(C60="OF",11,IF(C60="LF",8,IF(C60="CF",9,IF(C60="RF",10,IF(C60="DH",12,IF(C60="SP",13,IF(C60="RP",14,IF(C60="P",15,16))))))))))))))) -> 13 | AJ60: =VLOOKUP(B60,'Starter Calc'!$B$2:$BN$700,65,FALSE) -> Bench | AK60: =IFERROR(VLOOKUP($B60,'ADP-Rank'!$A$2:$AH$964,34,FALSE),TRUE) -> TRUE | AL60: 1
B61: Jered Weaver | C61: SP | D61: =IFERROR(IF(VLOOKUP(B61,'Starter Calc'!$B$2:$E$700,4,FALSE)="","",VLOOKUP(B61,'Starter Calc'!$B$2:$E$700,4,FALSE)),"") -> ,, | E61: =IFERROR(VLOOKUP($B61,'ADP-Rank'!$A$2:$D$700,3,FALSE),"") -> LAA | F61: =IFERROR(VLOOKUP($B61,'ADP-Rank'!$A$2:$W$700,23,FALSE),"") -> 31 | G61: =IFERROR((IF(Personalize!$E$38=1,VLOOKUP($B61,'ADP-Rank'!$A$2:$J$700,4,FALSE),(IF(Personalize!$E$38=2,VLOOKUP($B61,'ADP-Rank'!$A$2:$J$700,7,FALSE),(IF(Personalize!$E$38=3,VLOOKUP($B61,'ADP-Rank'!$A$2:$J$700,10,FALSE),(IF(Personalize!$E$38=4,VLOOKUP($B61,'ADP-Rank'!$A$2:$AD$700,24,FALSE),(IF(Personalize!$E$38=5,VLOOKUP($B61,'ADP-Rank'!$A$2:$AD$700,27,FALSE),(IF(Personalize!$E$38=6,VLOOKUP($B61,'ADP-Rank'!$A$2:$AZ$700,30,FALSE),(IF(Personalize!$E$38=7,VLOOKUP($B61,'ADP-Rank'!$A$2:$AZ$700,39,FALSE))))))))))))))),"") -> 61.08 | H61: =IFERROR(ROUNDDOWN(VLOOKUP($B61,'ADP-Rank'!$A$2:$AY$1064,38,FALSE),0),"") -> 5 | I61: =VLOOKUP($B61,'ADP-Rank'!$A$2:$AJ$1064,36,FALSE) -> 129 | J61: =IFERROR(RANK($M61,$M$6:$M$745,0),"") -> 230 | K61: =IFERROR(IF((OR($C61="RP",$C61="SP")),VLOOKUP($B61,Pitcher!$A$1:$Z$700,20,FALSE),(VLOOKUP($B61,Hitter!$A$1:$Z$700,26,FALSE))),"") -> 266.0737916 | L61: =IFERROR(IF((OR($C61="RP",$C61="SP")),VLOOKUP($C61,'Filtered-P'!$M$3:$P$4,4,FALSE), VLOOKUP($C61,Filtered!$Q$3:$T$14,4,FALSE)),"") -> 411.2053549 | M61: =IFERROR(($K61-$L61)/IF(OR($C61="SP",$C61="RP"),VLOOKUP($C61,'Filtered-P'!$M$3:$T$4,8,FALSE),VLOOKUP($C61,Filtered!$Q$3:$X$10,8,FALSE)),"") -> -1.929953971 | N61: =IFERROR(IF((OR($C61="RP",$C61="SP")),"",(VLOOKUP($B61,Hitter!$A$1:$Z$700,26,FALSE)/VLOOKUP($B61,Hitter!$A$1:$Z$700,2,FALSE))),"") ->  | O61: =IFERROR(IF((OR($C61="RP",$C61="SP")),VLOOKUP($B61,Pitcher!$A$1:$Z$700,20,FALSE)/VLOOKUP($B61,Pitcher!$A$1:$Z$700,4,FALSE),""),"") -> 1.446053215 | P61: =IFERROR(IF((OR($C61="RP",$C61="SP")),VLOOKUP($B61,Pitcher!$A$1:$V$700,2,FALSE),""),"") -> 13.45238582 | Q61: =IFERROR(IF((OR($C61="RP",$C61="SP")),VLOOKUP($B61,Pitcher!$A$1:$V$700,9,FALSE),""),"") -> 0 | R61: =IFERROR(IF((OR($C61="RP",$C61="SP")),VLOOKUP($B61,Pitcher!$A$1:$V$700,7,FALSE),""),"") -> 132.5747642 | S61: =IFERROR(IF((OR($C61="RP",$C61="SP")),VLOOKUP($B61,Pitcher!$A$1:$AB$700,21,FALSE),""),"") -> 3.909293478 | T61: =IFERROR(IF((OR($C61="RP",$C61="SP")),VLOOKUP($B61,Pitcher!$A$1:$V$700,22,FALSE),""),"") -> 1.203197464 | U61: =IFERROR(IF((OR($C61="RP",$C61="SP")),"",VLOOKUP($B61,Hitter!$A$1:$AH$700,27,FALSE)),"") ->  | V61: =IFERROR(IF((OR($C61="RP",$C61="SP")),"",VLOOKUP($B61,Hitter!$A$1:$AH$700,9,FALSE)),"") ->  | W61: =IFERROR(IF((OR($C61="RP",$C61="SP")),"",VLOOKUP($B61,Hitter!$A$1:$AH$700,10,FALSE)),"") ->  | X61: =IFERROR(IF((OR($C61="RP",$C61="SP")),"",VLOOKUP($B61,Hitter!$A$1:$AH$700,4,FALSE)),"") ->  | Y61: =IFERROR(IF((OR($C61="RP",$C61="SP")),"",VLOOKUP($B61,Hitter!$A$1:$AH$700,11,FALSE)),"") ->  | Z61: =IFERROR(IF(ISTEXT($A61),"",(1-NORMDIST((COUNTA($A$6:$A$745)),($G61),((AE61-AD61)/6),TRUE))),"") -> 1 | AA61: =IFERROR(IF(ISTEXT($A61),"",(1-NORMDIST((COUNTA($A$6:$A$745))+(Personalize!$E$18+1),$G61,((AE61-AD61)/6),TRUE))),"") -> 1 | AB61: =IFERROR(IF(ISTEXT($A61),"",(1-NORMDIST((COUNTA($A$6:$A$745))+((Personalize!$E$18+1)*2),$G61,((AE61-AD61)/6),TRUE))),"") -> 1 | AC61: Mr. Cheatsheet Pitcher to Target | AD61: =IF(Personalize!$E$34=1,VLOOKUP($B61,'ADP-Rank'!$A$2:$J$700,5,FALSE),(IF(Personalize!$E$34=2,VLOOKUP($B61,'ADP-Rank'!$A$2:$J$700,8,FALSE),(IF(Personalize!$E$34=3,VLOOKUP($B61,'ADP-Rank'!$A$2:$O$700,11,FALSE),(IF(Personalize!$E$31=4,VLOOKUP($B61,'ADP-Rank'!$A$2:$AZ$700,25,FALSE),(IF(Personalize!$E$31=5,VLOOKUP($B61,'ADP-Rank'!$A$2:$AZ$700,28,FALSE),(IF(Personalize!$E$31=6,VLOOKUP($B61,'ADP-Rank'!$A$2:$AZ$700,32,FALSE),""))))))))))) -> 122 | AE61: =IF(Personalize!$E$34=1,VLOOKUP($B61,'ADP-Rank'!$A$2:$J$700,6,FALSE),(IF(Personalize!$E$34=2,VLOOKUP($B61,'ADP-Rank'!$A$2:$J$700,9,FALSE),(IF(Personalize!$E$34=3,VLOOKUP($B61,'ADP-Rank'!$A$2:$O$700,12,FALSE),(IF(Personalize!$E$31=4,VLOOKUP($B61,'ADP-Rank'!$A$2:$AZ$700,26,FALSE),(IF(Personalize!$E$31=5,VLOOKUP($B61,'ADP-Rank'!$A$2:$AZ$700,29,FALSE),(IF(Personalize!$E$31=6,VLOOKUP($B61,'ADP-Rank'!$A$2:$AZ$700,33,FALSE),""))))))))))) -> 145 | AF61: =IF(ISBLANK(A61),0,1) -> 0 | AG61: =IF(K61="",0,1) -> 1 | AH61: =A61 -> 0 | AI61: =IF(C61="C",1,IF(C61="1B",2,IF(C61="2B",3,IF(C61="3B",4,IF(C61="SS",5,IF(C61="CI",6,IF(C61="MI",7,IF(C61="OF",11,IF(C61="LF",8,IF(C61="CF",9,IF(C61="RF",10,IF(C61="DH",12,IF(C61="SP",13,IF(C61="RP",14,IF(C61="P",15,16))))))))))))))) -> 13 | AJ61: =VLOOKUP(B61,'Starter Calc'!$B$2:$BN$700,65,FALSE) -> Bench | AK61: =IFERROR(VLOOKUP($B61,'ADP-Rank'!$A$2:$AH$964,34,FALSE),TRUE) -> TRUE | AL61: 1
B62: Jay Bruce | C62: OF | D62: =IFERROR(IF(VLOOKUP(B62,'Starter Calc'!$B$2:$E$700,4,FALSE)="","",VLOOKUP(B62,'Starter Calc'!$B$2:$E$700,4,FALSE)),"") -> ,RF, | E62: =IFERROR(VLOOKUP($B62,'ADP-Rank'!$A$2:$D$700,3,FALSE),"") -> CIN | F62: =IFERROR(VLOOKUP($B62,'ADP-Rank'!$A$2:$W$700,23,FALSE),"") -> 27 | G62: =IFERROR((IF(Personalize!$E$38=1,VLOOKUP($B62,'ADP-Rank'!$A$2:$J$700,4,FALSE),(IF(Personalize!$E$38=2,VLOOKUP($B62,'ADP-Rank'!$A$2:$J$700,7,FALSE),(IF(Personalize!$E$38=3,VLOOKUP($B62,'ADP-Rank'!$A$2:$J$700,10,FALSE),(IF(Personalize!$E$38=4,VLOOKUP($B62,'ADP-Rank'!$A$2:$AD$700,24,FALSE),(IF(Personalize!$E$38=5,VLOOKUP($B62,'ADP-Rank'!$A$2:$AD$700,27,FALSE),(IF(Personalize!$E$38=6,VLOOKUP($B62,'ADP-Rank'!$A$2:$AZ$700,30,FALSE),(IF(Personalize!$E$38=7,VLOOKUP($B62,'ADP-Rank'!$A$2:$AZ$700,39,FALSE))))))))))))))),"") -> 61.27 | H62: =IFERROR(ROUNDDOWN(VLOOKUP($B62,'ADP-Rank'!$A$2:$AY$1064,38,FALSE),0),"") -> 5 | I62: =VLOOKUP($B62,'ADP-Rank'!$A$2:$AJ$1064,36,FALSE) -> 70 | J62: =IFERROR(RANK($M62,$M$6:$M$745,0),"") -> 93 | K62: =IFERROR(IF((OR($C62="RP",$C62="SP")),VLOOKUP($B62,Pitcher!$A$1:$Z$700,20,FALSE),(VLOOKUP($B62,Hitter!$A$1:$Z$700,26,FALSE))),"") -> 340.3047659 | L62: =IFERROR(IF((OR($C62="RP",$C62="SP")),VLOOKUP($C62,'Filtered-P'!$M$3:$P$4,4,FALSE), VLOOKUP($C62,Filtered!$Q$3:$T$14,4,FALSE)),"") -> 350.7983075 | M62: =IFERROR(($K62-$L62)/IF(OR($C62="SP",$C62="RP"),VLOOKUP($C62,'Filtered-P'!$M$3:$T$4,8,FALSE),VLOOKUP($C62,Filtered!$Q$3:$X$10,8,FALSE)),"") -> -0.2570583961 | N62: =IFERROR(IF((OR($C62="RP",$C62="SP")),"",(VLOOKUP($B62,Hitter!$A$1:$Z$700,26,FALSE)/VLOOKUP($B62,Hitter!$A$1:$Z$700,2,FALSE))),"") -> 0.567987147 | O62: =IFERROR(IF((OR($C62="RP",$C62="SP")),VLOOKUP($B62,Pitcher!$A$1:$Z$700,20,FALSE)/VLOOKUP($B62,Pitcher!$A$1:$Z$700,4,FALSE),""),"") ->  | P62: =IFERROR(IF((OR($C62="RP",$C62="SP")),VLOOKUP($B62,Pitcher!$A$1:$V$700,2,FALSE),""),"") ->  | Q62: =IFERROR(IF((OR($C62="RP",$C62="SP")),VLOOKUP($B62,Pitcher!$A$1:$V$700,9,FALSE),""),"") ->  | R62: =IFERROR(IF((OR($C62="RP",$C62="SP")),VLOOKUP($B62,Pitcher!$A$1:$V$700,7,FALSE),""),"") ->  | S62: =IFERROR(IF((OR($C62="RP",$C62="SP")),VLOOKUP($B62,Pitcher!$A$1:$AB$700,21,FALSE),""),"") ->  | T62: =IFERROR(IF((OR($C62="RP",$C62="SP")),VLOOKUP($B62,Pitcher!$A$1:$V$700,22,FALSE),""),"") ->  | U62: =IFERROR(IF((OR($C62="RP",$C62="SP")),"",VLOOKUP($B62,Hitter!$A$1:$AH$700,27,FALSE)),"") -> 0.2542311535 | V62: =IFERROR(IF((OR($C62="RP",$C62="SP")),"",VLOOKUP($B62,Hitter!$A$1:$AH$700,9,FALSE)),"") -> 30.25860199 | W62: =IFERROR(IF((OR($C62="RP",$C62="SP")),"",VLOOKUP($B62,Hitter!$A$1:$AH$700,10,FALSE)),"") -> 89.10010512 | X62: =IFERROR(IF((OR($C62="RP",$C62="SP")),"",VLOOKUP($B62,Hitter!$A$1:$AH$700,4,FALSE)),"") -> 80.71173098 | Y62: =IFERROR(IF((OR($C62="RP",$C62="SP")),"",VLOOKUP($B62,Hitter!$A$1:$AH$700,11,FALSE)),"") -> 6.555512175 | Z62: =IFERROR(IF(ISTEXT($A62),"",(1-NORMDIST((COUNTA($A$6:$A$745)),($G62),((AE62-AD62)/6),TRUE))),"") -> 1 | AA62: =IFERROR(IF(ISTEXT($A62),"",(1-NORMDIST((COUNTA($A$6:$A$745))+(Personalize!$E$18+1),$G62,((AE62-AD62)/6),TRUE))),"") -> 1 | AB62: =IFERROR(IF(ISTEXT($A62),"",(1-NORMDIST((COUNTA($A$6:$A$745))+((Personalize!$E$18+1)*2),$G62,((AE62-AD62)/6),TRUE))),"") -> 1 | AD62: =IF(Personalize!$E$34=1,VLOOKUP($B62,'ADP-Rank'!$A$2:$J$700,5,FALSE),(IF(Personalize!$E$34=2,VLOOKUP($B62,'ADP-Rank'!$A$2:$J$700,8,FALSE),(IF(Personalize!$E$34=3,VLOOKUP($B62,'ADP-Rank'!$A$2:$O$700,11,FALSE),(IF(Personalize!$E$31=4,VLOOKUP($B62,'ADP-Rank'!$A$2:$AZ$700,25,FALSE),(IF(Personalize!$E$31=5,VLOOKUP($B62,'ADP-Rank'!$A$2:$AZ$700,28,FALSE),(IF(Personalize!$E$31=6,VLOOKUP($B62,'ADP-Rank'!$A$2:$AZ$700,32,FALSE),""))))))))))) -> 12 | AE62: =IF(Personalize!$E$34=1,VLOOKUP($B62,'ADP-Rank'!$A$2:$J$700,6,FALSE),(IF(Personalize!$E$34=2,VLOOKUP($B62,'ADP-Rank'!$A$2:$J$700,9,FALSE),(IF(Personalize!$E$34=3,VLOOKUP($B62,'ADP-Rank'!$A$2:$O$700,12,FALSE),(IF(Personalize!$E$31=4,VLOOKUP($B62,'ADP-Rank'!$A$2:$AZ$700,26,FALSE),(IF(Personalize!$E$31=5,VLOOKUP($B62,'ADP-Rank'!$A$2:$AZ$700,29,FALSE),(IF(Personalize!$E$31=6,VLOOKUP($B62,'ADP-Rank'!$A$2:$AZ$700,33,FALSE),""))))))))))) -> 22 | AF62: =IF(ISBLANK(A62),0,1) -> 0 | AG62: =IF(K62="",0,1) -> 1 | AH62: =A62 -> 0 | AI62: =IF(C62="C",1,IF(C62="1B",2,IF(C62="2B",3,IF(C62="3B",4,IF(C62="SS",5,IF(C62="CI",6,IF(C62="MI",7,IF(C62="OF",11,IF(C62="LF",8,IF(C62="CF",9,IF(C62="RF",10,IF(C62="DH",12,IF(C62="SP",13,IF(C62="RP",14,IF(C62="P",15,16))))))))))))))) -> 11 | AJ62: =VLOOKUP(B62,'Starter Calc'!$B$2:$BN$700,65,FALSE) -> Bench | AK62: =IFERROR(VLOOKUP($B62,'ADP-Rank'!$A$2:$AH$964,34,FALSE),TRUE) -> TRUE | AL62: 0
B63: Matt Holliday | C63: OF | D63: =IFERROR(IF(VLOOKUP(B63,'Starter Calc'!$B$2:$E$700,4,FALSE)="","",VLOOKUP(B63,'Starter Calc'!$B$2:$E$700,4,FALSE)),"") -> LF,, | E63: =IFERROR(VLOOKUP($B63,'ADP-Rank'!$A$2:$D$700,3,FALSE),"") -> STL | F63: =IFERROR(VLOOKUP($B63,'ADP-Rank'!$A$2:$W$700,23,FALSE),"") -> 34 | G63: =IFERROR((IF(Personalize!$E$38=1,VLOOKUP($B63,'ADP-Rank'!$A$2:$J$700,4,FALSE),(IF(Personalize!$E$38=2,VLOOKUP($B63,'ADP-Rank'!$A$2:$J$700,7,FALSE),(IF(Personalize!$E$38=3,VLOOKUP($B63,'ADP-Rank'!$A$2:$J$700,10,FALSE),(IF(Personalize!$E$38=4,VLOOKUP($B63,'ADP-Rank'!$A$2:$AD$700,24,FALSE),(IF(Personalize!$E$38=5,VLOOKUP($B63,'ADP-Rank'!$A$2:$AD$700,27,FALSE),(IF(Personalize!$E$38=6,VLOOKUP($B63,'ADP-Rank'!$A$2:$AZ$700,30,FALSE),(IF(Personalize!$E$38=7,VLOOKUP($B63,'ADP-Rank'!$A$2:$AZ$700,39,FALSE))))))))))))))),"") -> 62.18 | H63: =IFERROR(ROUNDDOWN(VLOOKUP($B63,'ADP-Rank'!$A$2:$AY$1064,38,FALSE),0),"") -> 5 | I63: =VLOOKUP($B63,'ADP-Rank'!$A$2:$AJ$1064,36,FALSE) -> 31 | J63: =IFERROR(RANK($M63,$M$6:$M$745,0),"") -> 39 | K63: =IFERROR(IF((OR($C63="RP",$C63="SP")),VLOOKUP($B63,Pitcher!$A$1:$Z$700,20,FALSE),(VLOOKUP($B63,Hitter!$A$1:$Z$700,26,FALSE))),"") -> 380.6079057 | L63: =IFERROR(IF((OR($C63="RP",$C63="SP")),VLOOKUP($C63,'Filtered-P'!$M$3:$P$4,4,FALSE), VLOOKUP($C63,Filtered!$Q$3:$T$14,4,FALSE)),"") -> 350.7983075 | M63: =IFERROR(($K63-$L63)/IF(OR($C63="SP",$C63="RP"),VLOOKUP($C63,'Filtered-P'!$M$3:$T$4,8,FALSE),VLOOKUP($C63,Filtered!$Q$3:$X$10,8,FALSE)),"") -> 0.7302403498 | N63: =IFERROR(IF((OR($C63="RP",$C63="SP")),"",(VLOOKUP($B63,Hitter!$A$1:$Z$700,26,FALSE)/VLOOKUP($B63,Hitter!$A$1:$Z$700,2,FALSE))),"") -> 0.6332032259 | O63: =IFERROR(IF((OR($C63="RP",$C63="SP")),VLOOKUP($B63,Pitcher!$A$1:$Z$700,20,FALSE)/VLOOKUP($B63,Pitcher!$A$1:$Z$700,4,FALSE),""),"") ->  | P63: =IFERROR(IF((OR($C63="RP",$C63="SP")),VLOOKUP($B63,Pitcher!$A$1:$V$700,2,FALSE),""),"") ->  | Q63: =IFERROR(IF((OR($C63="RP",$C63="SP")),VLOOKUP($B63,Pitcher!$A$1:$V$700,9,FALSE),""),"") ->  | R63: =IFERROR(IF((OR($C63="RP",$C63="SP")),VLOOKUP($B63,Pitcher!$A$1:$V$700,7,FALSE),""),"") ->  | S63: =IFERROR(IF((OR($C63="RP",$C63="SP")),VLOOKUP($B63,Pitcher!$A$1:$AB$700,21,FALSE),""),"") ->  | T63: =IFERROR(IF((OR($C63="RP",$C63="SP")),VLOOKUP($B63,Pitcher!$A$1:$V$700,22,FALSE),""),"") ->  | U63: =IFERROR(IF((OR($C63="RP",$C63="SP")),"",VLOOKUP($B63,Hitter!$A$1:$AH$700,27,FALSE)),"") -> 0.2833682839 | V63: =IFERROR(IF((OR($C63="RP",$C63="SP")),"",VLOOKUP($B63,Hitter!$A$1:$AH$700,9,FALSE)),"") -> 21.80732846 | W63: =IFERROR(IF((OR($C63="RP",$C63="SP")),"",VLOOKUP($B63,Hitter!$A$1:$AH$700,10,FALSE)),"") -> 83.30147904 | X63: =IFERROR(IF((OR($C63="RP",$C63="SP")),"",VLOOKUP($B63,Hitter!$A$1:$AH$700,4,FALSE)),"") -> 85.12051547 | Y63: =IFERROR(IF((OR($C63="RP",$C63="SP")),"",VLOOKUP($B63,Hitter!$A$1:$AH$700,11,FALSE)),"") -> 4.562999963 | Z63: =IFERROR(IF(ISTEXT($A63),"",(1-NORMDIST((COUNTA($A$6:$A$745)),($G63),((AE63-AD63)/6),TRUE))),"") -> 1 | AA63: =IFERROR(IF(ISTEXT($A63),"",(1-NORMDIST((COUNTA($A$6:$A$745))+(Personalize!$E$18+1),$G63,((AE63-AD63)/6),TRUE))),"") -> 1 | AB63: =IFERROR(IF(ISTEXT($A63),"",(1-NORMDIST((COUNTA($A$6:$A$745))+((Personalize!$E$18+1)*2),$G63,((AE63-AD63)/6),TRUE))),"") -> 1 | AD63: =IF(Personalize!$E$34=1,VLOOKUP($B63,'ADP-Rank'!$A$2:$J$700,5,FALSE),(IF(Personalize!$E$34=2,VLOOKUP($B63,'ADP-Rank'!$A$2:$J$700,8,FALSE),(IF(Personalize!$E$34=3,VLOOKUP($B63,'ADP-Rank'!$A$2:$O$700,11,FALSE),(IF(Personalize!$E$31=4,VLOOKUP($B63,'ADP-Rank'!$A$2:$AZ$700,25,FALSE),(IF(Personalize!$E$31=5,VLOOKUP($B63,'ADP-Rank'!$A$2:$AZ$700,28,FALSE),(IF(Personalize!$E$31=6,VLOOKUP($B63,'ADP-Rank'!$A$2:$AZ$700,32,FALSE),""))))))))))) -> 44 | AE63: =IF(Personalize!$E$34=1,VLOOKUP($B63,'ADP-Rank'!$A$2:$J$700,6,FALSE),(IF(Personalize!$E$34=2,VLOOKUP($B63,'ADP-Rank'!$A$2:$J$700,9,FALSE),(IF(Personalize!$E$34=3,VLOOKUP($B63,'ADP-Rank'!$A$2:$O$700,12,FALSE),(IF(Personalize!$E$31=4,VLOOKUP($B63,'ADP-Rank'!$A$2:$AZ$700,26,FALSE),(IF(Personalize!$E$31=5,VLOOKUP($B63,'ADP-Rank'!$A$2:$AZ$700,29,FALSE),(IF(Personalize!$E$31=6,VLOOKUP($B63,'ADP-Rank'!$A$2:$AZ$700,33,FALSE),""))))))))))) -> 60 | AF63: =IF(ISBLANK(A63),0,1) -> 0 | AG63: =IF(K63="",0,1) -> 1 | AH63: =A63 -> 0 | AI63: =IF(C63="C",1,IF(C63="1B",2,IF(C63="2B",3,IF(C63="3B",4,IF(C63="SS",5,IF(C63="CI",6,IF(C63="MI",7,IF(C63="OF",11,IF(C63="LF",8,IF(C63="CF",9,IF(C63="RF",10,IF(C63="DH",12,IF(C63="SP",13,IF(C63="RP",14,IF(C63="P",15,16))))))))))))))) -> 11 | AJ63: =VLOOKUP(B63,'Starter Calc'!$B$2:$BN$700,65,FALSE) -> Bench | AK63: =IFERROR(VLOOKUP($B63,'ADP-Rank'!$A$2:$AH$964,34,FALSE),TRUE) -> TRUE | AL63: 0
B64: Masahiro Tanaka | C64: SP | D64: =IFERROR(IF(VLOOKUP(B64,'Starter Calc'!$B$2:$E$700,4,FALSE)="","",VLOOKUP(B64,'Starter Calc'!$B$2:$E$700,4,FALSE)),"") -> ,, | E64: =IFERROR(VLOOKUP($B64,'ADP-Rank'!$A$2:$D$700,3,FALSE),"") -> NYY | F64: =IFERROR(VLOOKUP($B64,'ADP-Rank'!$A$2:$W$700,23,FALSE),"") -> 25 | G64: =IFERROR((IF(Personalize!$E$38=1,VLOOKUP($B64,'ADP-Rank'!$A$2:$J$700,4,FALSE),(IF(Personalize!$E$38=2,VLOOKUP($B64,'ADP-Rank'!$A$2:$J$700,7,FALSE),(IF(Personalize!$E$38=3,VLOOKUP($B64,'ADP-Rank'!$A$2:$J$700,10,FALSE),(IF(Personalize!$E$38=4,VLOOKUP($B64,'ADP-Rank'!$A$2:$AD$700,24,FALSE),(IF(Personalize!$E$38=5,VLOOKUP($B64,'ADP-Rank'!$A$2:$AD$700,27,FALSE),(IF(Personalize!$E$38=6,VLOOKUP($B64,'ADP-Rank'!$A$2:$AZ$700,30,FALSE),(IF(Personalize!$E$38=7,VLOOKUP($B64,'ADP-Rank'!$A$2:$AZ$700,39,FALSE))))))))))))))),"") -> 63.72 | H64: =IFERROR(ROUNDDOWN(VLOOKUP($B64,'ADP-Rank'!$A$2:$AY$1064,38,FALSE),0),"") -> 5 | I64: =VLOOKUP($B64,'ADP-Rank'!$A$2:$AJ$1064,36,FALSE) -> 103 | J64: =IFERROR(RANK($M64,$M$6:$M$745,0),"") -> 190 | K64: =IFERROR(IF((OR($C64="RP",$C64="SP")),VLOOKUP($B64,Pitcher!$A$1:$Z$700,20,FALSE),(VLOOKUP($B64,Hitter!$A$1:$Z$700,26,FALSE))),"") -> 296.4652824 | L64: =IFERROR(IF((OR($C64="RP",$C64="SP")),VLOOKUP($C64,'Filtered-P'!$M$3:$P$4,4,FALSE), VLOOKUP($C64,Filtered!$Q$3:$T$14,4,FALSE)),"") -> 411.2053549 | M64: =IFERROR(($K64-$L64)/IF(OR($C64="SP",$C64="RP"),VLOOKUP($C64,'Filtered-P'!$M$3:$T$4,8,FALSE),VLOOKUP($C64,Filtered!$Q$3:$X$10,8,FALSE)),"") -> -1.525809091 | N64: =IFERROR(IF((OR($C64="RP",$C64="SP")),"",(VLOOKUP($B64,Hitter!$A$1:$Z$700,26,FALSE)/VLOOKUP($B64,Hitter!$A$1:$Z$700,2,FALSE))),"") ->  | O64: =IFERROR(IF((OR($C64="RP",$C64="SP")),VLOOKUP($B64,Pitcher!$A$1:$Z$700,20,FALSE)/VLOOKUP($B64,Pitcher!$A$1:$Z$700,4,FALSE),""),"") -> 1.504899911 | P64: =IFERROR(IF((OR($C64="RP",$C64="SP")),VLOOKUP($B64,Pitcher!$A$1:$V$700,2,FALSE),""),"") -> 14.0408376 | Q64: =IFERROR(IF((OR($C64="RP",$C64="SP")),VLOOKUP($B64,Pitcher!$A$1:$V$700,9,FALSE),""),"") -> 0 | R64: =IFERROR(IF((OR($C64="RP",$C64="SP")),VLOOKUP($B64,Pitcher!$A$1:$V$700,7,FALSE),""),"") -> 151.9093329 | S64: =IFERROR(IF((OR($C64="RP",$C64="SP")),VLOOKUP($B64,Pitcher!$A$1:$AB$700,21,FALSE),""),"") -> 3.789953204 | T64: =IFERROR(IF((OR($C64="RP",$C64="SP")),VLOOKUP($B64,Pitcher!$A$1:$V$700,22,FALSE),""),"") -> 1.201494025 | U64: =IFERROR(IF((OR($C64="RP",$C64="SP")),"",VLOOKUP($B64,Hitter!$A$1:$AH$700,27,FALSE)),"") ->  | V64: =IFERROR(IF((OR($C64="RP",$C64="SP")),"",VLOOKUP($B64,Hitter!$A$1:$AH$700,9,FALSE)),"") ->  | W64: =IFERROR(IF((OR($C64="RP",$C64="SP")),"",VLOOKUP($B64,Hitter!$A$1:$AH$700,10,FALSE)),"") ->  | X64: =IFERROR(IF((OR($C64="RP",$C64="SP")),"",VLOOKUP($B64,Hitter!$A$1:$AH$700,4,FALSE)),"") ->  | Y64: =IFERROR(IF((OR($C64="RP",$C64="SP")),"",VLOOKUP($B64,Hitter!$A$1:$AH$700,11,FALSE)),"") ->  | Z64: =IFERROR(IF(ISTEXT($A64),"",(1-NORMDIST((COUNTA($A$6:$A$745)),($G64),((AE64-AD64)/6),TRUE))),"") -> 1 | AA64: =IFERROR(IF(ISTEXT($A64),"",(1-NORMDIST((COUNTA($A$6:$A$745))+(Personalize!$E$18+1),$G64,((AE64-AD64)/6),TRUE))),"") -> 1 | AB64: =IFERROR(IF(ISTEXT($A64),"",(1-NORMDIST((COUNTA($A$6:$A$745))+((Personalize!$E$18+1)*2),$G64,((AE64-AD64)/6),TRUE))),"") -> 0.9999999999 | AD64: =IF(Personalize!$E$34=1,VLOOKUP($B64,'ADP-Rank'!$A$2:$J$700,5,FALSE),(IF(Personalize!$E$34=2,VLOOKUP($B64,'ADP-Rank'!$A$2:$J$700,8,FALSE),(IF(Personalize!$E$34=3,VLOOKUP($B64,'ADP-Rank'!$A$2:$O$700,11,FALSE),(IF(Personalize!$E$31=4,VLOOKUP($B64,'ADP-Rank'!$A$2:$AZ$700,25,FALSE),(IF(Personalize!$E$31=5,VLOOKUP($B64,'ADP-Rank'!$A$2:$AZ$700,28,FALSE),(IF(Personalize!$E$31=6,VLOOKUP($B64,'ADP-Rank'!$A$2:$AZ$700,32,FALSE),""))))))))))) -> 96 | AE64: =IF(Personalize!$E$34=1,VLOOKUP($B64,'ADP-Rank'!$A$2:$J$700,6,FALSE),(IF(Personalize!$E$34=2,VLOOKUP($B64,'ADP-Rank'!$A$2:$J$700,9,FALSE),(IF(Personalize!$E$34=3,VLOOKUP($B64,'ADP-Rank'!$A$2:$O$700,12,FALSE),(IF(Personalize!$E$31=4,VLOOKUP($B64,'ADP-Rank'!$A$2:$AZ$700,26,FALSE),(IF(Personalize!$E$31=5,VLOOKUP($B64,'ADP-Rank'!$A$2:$AZ$700,29,FALSE),(IF(Personalize!$E$31=6,VLOOKUP($B64,'ADP-Rank'!$A$2:$AZ$700,33,FALSE),""))))))))))) -> 149 | AF64: =IF(ISBLANK(A64),0,1) -> 0 | AG64: =IF(K64="",0,1) -> 1 | AH64: =A64 -> 0 | AI64: =IF(C64="C",1,IF(C64="1B",2,IF(C64="2B",3,IF(C64="3B",4,IF(C64="SS",5,IF(C64="CI",6,IF(C64="MI",7,IF(C64="OF",11,IF(C64="LF",8,IF(C64="CF",9,IF(C64="RF",10,IF(C64="DH",12,IF(C64="SP",13,IF(C64="RP",14,IF(C64="P",15,16))))))))))))))) -> 13 | AJ64: =VLOOKUP(B64,'Starter Calc'!$B$2:$BN$700,65,FALSE) -> Bench | AK64: =IFERROR(VLOOKUP($B64,'ADP-Rank'!$A$2:$AH$964,34,FALSE),TRUE) -> TRUE | AL64: 1
B65: Aroldis Chapman | C65: RP | D65: =IFERROR(IF(VLOOKUP(B65,'Starter Calc'!$B$2:$E$700,4,FALSE)="","",VLOOKUP(B65,'Starter Calc'!$B$2:$E$700,4,FALSE)),"") -> ,, | E65: =IFERROR(VLOOKUP($B65,'ADP-Rank'!$A$2:$D$700,3,FALSE),"") -> CIN | F65: =IFERROR(VLOOKUP($B65,'ADP-Rank'!$A$2:$W$700,23,FALSE),"") -> 26 | G65: =IFERROR((IF(Personalize!$E$38=1,VLOOKUP($B65,'ADP-Rank'!$A$2:$J$700,4,FALSE),(IF(Personalize!$E$38=2,VLOOKUP($B65,'ADP-Rank'!$A$2:$J$700,7,FALSE),(IF(Personalize!$E$38=3,VLOOKUP($B65,'ADP-Rank'!$A$2:$J$700,10,FALSE),(IF(Personalize!$E$38=4,VLOOKUP($B65,'ADP-Rank'!$A$2:$AD$700,24,FALSE),(IF(Personalize!$E$38=5,VLOOKUP($B65,'ADP-Rank'!$A$2:$AD$700,27,FALSE),(IF(Personalize!$E$38=6,VLOOKUP($B65,'ADP-Rank'!$A$2:$AZ$700,30,FALSE),(IF(Personalize!$E$38=7,VLOOKUP($B65,'ADP-Rank'!$A$2:$AZ$700,39,FALSE))))))))))))))),"") -> 64.15 | H65: =IFERROR(ROUNDDOWN(VLOOKUP($B65,'ADP-Rank'!$A$2:$AY$1064,38,FALSE),0),"") -> 5 | I65: =VLOOKUP($B65,'ADP-Rank'!$A$2:$AJ$1064,36,FALSE) -> 58 | J65: =IFERROR(RANK($M65,$M$6:$M$745,0),"") -> 7 | K65: =IFERROR(IF((OR($C65="RP",$C65="SP")),VLOOKUP($B65,Pitcher!$A$1:$Z$700,20,FALSE),(VLOOKUP($B65,Hitter!$A$1:$Z$700,26,FALSE))),"") -> 691.1033212 | L65: =IFERROR(IF((OR($C65="RP",$C65="SP")),VLOOKUP($C65,'Filtered-P'!$M$3:$P$4,4,FALSE), VLOOKUP($C65,Filtered!$Q$3:$T$14,4,FALSE)),"") -> 496.2083138 | M65: =IFERROR(($K65-$L65)/IF(OR($C65="SP",$C65="RP"),VLOOKUP($C65,'Filtered-P'!$M$3:$T$4,8,FALSE),VLOOKUP($C65,Filtered!$Q$3:$X$10,8,FALSE)),"") -> 2.358882694 | N65: =IFERROR(IF((OR($C65="RP",$C65="SP")),"",(VLOOKUP($B65,Hitter!$A$1:$Z$700,26,FALSE)/VLOOKUP($B65,Hitter!$A$1:$Z$700,2,FALSE))),"") ->  | O65: =IFERROR(IF((OR($C65="RP",$C65="SP")),VLOOKUP($B65,Pitcher!$A$1:$Z$700,20,FALSE)/VLOOKUP($B65,Pitcher!$A$1:$Z$700,4,FALSE),""),"") -> 9.093464753 | P65: =IFERROR(IF((OR($C65="RP",$C65="SP")),VLOOKUP($B65,Pitcher!$A$1:$V$700,2,FALSE),""),"") -> 6.306912244 | Q65: =IFERROR(IF((OR($C65="RP",$C65="SP")),VLOOKUP($B65,Pitcher!$A$1:$V$700,9,FALSE),""),"") -> 38.22071115 | R65: =IFERROR(IF((OR($C65="RP",$C65="SP")),VLOOKUP($B65,Pitcher!$A$1:$V$700,7,FALSE),""),"") -> 124.6096513 | S65: =IFERROR(IF((OR($C65="RP",$C65="SP")),VLOOKUP($B65,Pitcher!$A$1:$AB$700,21,FALSE),""),"") -> 2.054550607 | T65: =IFERROR(IF((OR($C65="RP",$C65="SP")),VLOOKUP($B65,Pitcher!$A$1:$V$700,22,FALSE),""),"") -> 1.0075 | U65: =IFERROR(IF((OR($C65="RP",$C65="SP")),"",VLOOKUP($B65,Hitter!$A$1:$AH$700,27,FALSE)),"") ->  | V65: =IFERROR(IF((OR($C65="RP",$C65="SP")),"",VLOOKUP($B65,Hitter!$A$1:$AH$700,9,FALSE)),"") ->  | W65: =IFERROR(IF((OR($C65="RP",$C65="SP")),"",VLOOKUP($B65,Hitter!$A$1:$AH$700,10,FALSE)),"") ->  | X65: =IFERROR(IF((OR($C65="RP",$C65="SP")),"",VLOOKUP($B65,Hitter!$A$1:$AH$700,4,FALSE)),"") ->  | Y65: =IFERROR(IF((OR($C65="RP",$C65="SP")),"",VLOOKUP($B65,Hitter!$A$1:$AH$700,11,FALSE)),"") ->  | Z65: =IFERROR(IF(ISTEXT($A65),"",(1-NORMDIST((COUNTA($A$6:$A$745)),($G65),((AE65-AD65)/6),TRUE))),"") -> 1 | AA65: =IFERROR(IF(ISTEXT($A65),"",(1-NORMDIST((COUNTA($A$6:$A$745))+(Personalize!$E$18+1),$G65,((AE65-AD65)/6),TRUE))),"") -> 1 | AB65: =IFERROR(IF(ISTEXT($A65),"",(1-NORMDIST((COUNTA($A$6:$A$745))+((Personalize!$E$18+1)*2),$G65,((AE65-AD65)/6),TRUE))),"") -> 1 | AC65: Injury on 3/20 | AD65: =IF(Personalize!$E$34=1,VLOOKUP($B65,'ADP-Rank'!$A$2:$J$700,5,FALSE),(IF(Personalize!$E$34=2,VLOOKUP($B65,'ADP-Rank'!$A$2:$J$700,8,FALSE),(IF(Personalize!$E$34=3,VLOOKUP($B65,'ADP-Rank'!$A$2:$O$700,11,FALSE),(IF(Personalize!$E$31=4,VLOOKUP($B65,'ADP-Rank'!$A$2:$AZ$700,25,FALSE),(IF(Personalize!$E$31=5,VLOOKUP($B65,'ADP-Rank'!$A$2:$AZ$700,28,FALSE),(IF(Personalize!$E$31=6,VLOOKUP($B65,'ADP-Rank'!$A$2:$AZ$700,32,FALSE),""))))))))))) -> 62 | AE65: =IF(Personalize!$E$34=1,VLOOKUP($B65,'ADP-Rank'!$A$2:$J$700,6,FALSE),(IF(Personalize!$E$34=2,VLOOKUP($B65,'ADP-Rank'!$A$2:$J$700,9,FALSE),(IF(Personalize!$E$34=3,VLOOKUP($B65,'ADP-Rank'!$A$2:$O$700,12,FALSE),(IF(Personalize!$E$31=4,VLOOKUP($B65,'ADP-Rank'!$A$2:$AZ$700,26,FALSE),(IF(Personalize!$E$31=5,VLOOKUP($B65,'ADP-Rank'!$A$2:$AZ$700,29,FALSE),(IF(Personalize!$E$31=6,VLOOKUP($B65,'ADP-Rank'!$A$2:$AZ$700,33,FALSE),""))))))))))) -> 93 | AF65: =IF(ISBLANK(A65),0,1) -> 0 | AG65: =IF(K65="",0,1) -> 1 | AH65: =A65 -> 0 | AI65: =IF(C65="C",1,IF(C65="1B",2,IF(C65="2B",3,IF(C65="3B",4,IF(C65="SS",5,IF(C65="CI",6,IF(C65="MI",7,IF(C65="OF",11,IF(C65="LF",8,IF(C65="CF",9,IF(C65="RF",10,IF(C65="DH",12,IF(C65="SP",13,IF(C65="RP",14,IF(C65="P",15,16))))))))))))))) -> 14 | AJ65: =VLOOKUP(B65,'Starter Calc'!$B$2:$BN$700,65,FALSE) -> Starter | AK65: =IFERROR(VLOOKUP($B65,'ADP-Rank'!$A$2:$AH$964,34,FALSE),TRUE) -> TRUE | AL65: 1
B66: Alex Rios | C66: OF | D66: =IFERROR(IF(VLOOKUP(B66,'Starter Calc'!$B$2:$E$700,4,FALSE)="","",VLOOKUP(B66,'Starter Calc'!$B$2:$E$700,4,FALSE)),"") -> ,RF, | E66: =IFERROR(VLOOKUP($B66,'ADP-Rank'!$A$2:$D$700,3,FALSE),"") -> TEX | F66: =IFERROR(VLOOKUP($B66,'ADP-Rank'!$A$2:$W$700,23,FALSE),"") -> 33 | G66: =IFERROR((IF(Personalize!$E$38=1,VLOOKUP($B66,'ADP-Rank'!$A$2:$J$700,4,FALSE),(IF(Personalize!$E$38=2,VLOOKUP($B66,'ADP-Rank'!$A$2:$J$700,7,FALSE),(IF(Personalize!$E$38=3,VLOOKUP($B66,'ADP-Rank'!$A$2:$J$700,10,FALSE),(IF(Personalize!$E$38=4,VLOOKUP($B66,'ADP-Rank'!$A$2:$AD$700,24,FALSE),(IF(Personalize!$E$38=5,VLOOKUP($B66,'ADP-Rank'!$A$2:$AD$700,27,FALSE),(IF(Personalize!$E$38=6,VLOOKUP($B66,'ADP-Rank'!$A$2:$AZ$700,30,FALSE),(IF(Personalize!$E$38=7,VLOOKUP($B66,'ADP-Rank'!$A$2:$AZ$700,39,FALSE))))))))))))))),"") -> 64.73 | H66: =IFERROR(ROUNDDOWN(VLOOKUP($B66,'ADP-Rank'!$A$2:$AY$1064,38,FALSE),0),"") -> 5 | I66: =VLOOKUP($B66,'ADP-Rank'!$A$2:$AJ$1064,36,FALSE) -> 87 | J66: =IFERROR(RANK($M66,$M$6:$M$745,0),"") -> 61 | K66: =IFERROR(IF((OR($C66="RP",$C66="SP")),VLOOKUP($B66,Pitcher!$A$1:$Z$700,20,FALSE),(VLOOKUP($B66,Hitter!$A$1:$Z$700,26,FALSE))),"") -> 355.9443016 | L66: =IFERROR(IF((OR($C66="RP",$C66="SP")),VLOOKUP($C66,'Filtered-P'!$M$3:$P$4,4,FALSE), VLOOKUP($C66,Filtered!$Q$3:$T$14,4,FALSE)),"") -> 350.7983075 | M66: =IFERROR(($K66-$L66)/IF(OR($C66="SP",$C66="RP"),VLOOKUP($C66,'Filtered-P'!$M$3:$T$4,8,FALSE),VLOOKUP($C66,Filtered!$Q$3:$X$10,8,FALSE)),"") -> 0.1260604891 | N66: =IFERROR(IF((OR($C66="RP",$C66="SP")),"",(VLOOKUP($B66,Hitter!$A$1:$Z$700,26,FALSE)/VLOOKUP($B66,Hitter!$A$1:$Z$700,2,FALSE))),"") -> 0.5863347819 | O66: =IFERROR(IF((OR($C66="RP",$C66="SP")),VLOOKUP($B66,Pitcher!$A$1:$Z$700,20,FALSE)/VLOOKUP($B66,Pitcher!$A$1:$Z$700,4,FALSE),""),"") ->  | P66: =IFERROR(IF((OR($C66="RP",$C66="SP")),VLOOKUP($B66,Pitcher!$A$1:$V$700,2,FALSE),""),"") ->  | Q66: =IFERROR(IF((OR($C66="RP",$C66="SP")),VLOOKUP($B66,Pitcher!$A$1:$V$700,9,FALSE),""),"") ->  | R66: =IFERROR(IF((OR($C66="RP",$C66="SP")),VLOOKUP($B66,Pitcher!$A$1:$V$700,7,FALSE),""),"") ->  | S66: =IFERROR(IF((OR($C66="RP",$C66="SP")),VLOOKUP($B66,Pitcher!$A$1:$AB$700,21,FALSE),""),"") ->  | T66: =IFERROR(IF((OR($C66="RP",$C66="SP")),VLOOKUP($B66,Pitcher!$A$1:$V$700,22,FALSE),""),"") ->  | U66: =IFERROR(IF((OR($C66="RP",$C66="SP")),"",VLOOKUP($B66,Hitter!$A$1:$AH$700,27,FALSE)),"") -> 0.2742508235 | V66: =IFERROR(IF((OR($C66="RP",$C66="SP")),"",VLOOKUP($B66,Hitter!$A$1:$AH$700,9,FALSE)),"") -> 16.29414697 | W66: =IFERROR(IF((OR($C66="RP",$C66="SP")),"",VLOOKUP($B66,Hitter!$A$1:$AH$700,10,FALSE)),"") -> 74.6961911 | X66: =IFERROR(IF((OR($C66="RP",$C66="SP")),"",VLOOKUP($B66,Hitter!$A$1:$AH$700,4,FALSE)),"") -> 77.52072052 | Y66: =IFERROR(IF((OR($C66="RP",$C66="SP")),"",VLOOKUP($B66,Hitter!$A$1:$AH$700,11,FALSE)),"") -> 27.08531365 | Z66: =IFERROR(IF(ISTEXT($A66),"",(1-NORMDIST((COUNTA($A$6:$A$745)),($G66),((AE66-AD66)/6),TRUE))),"") -> 1 | AA66: =IFERROR(IF(ISTEXT($A66),"",(1-NORMDIST((COUNTA($A$6:$A$745))+(Personalize!$E$18+1),$G66,((AE66-AD66)/6),TRUE))),"") -> 1 | AB66: =IFERROR(IF(ISTEXT($A66),"",(1-NORMDIST((COUNTA($A$6:$A$745))+((Personalize!$E$18+1)*2),$G66,((AE66-AD66)/6),TRUE))),"") -> 1 | AD66: =IF(Personalize!$E$34=1,VLOOKUP($B66,'ADP-Rank'!$A$2:$J$700,5,FALSE),(IF(Personalize!$E$34=2,VLOOKUP($B66,'ADP-Rank'!$A$2:$J$700,8,FALSE),(IF(Personalize!$E$34=3,VLOOKUP($B66,'ADP-Rank'!$A$2:$O$700,11,FALSE),(IF(Personalize!$E$31=4,VLOOKUP($B66,'ADP-Rank'!$A$2:$AZ$700,25,FALSE),(IF(Personalize!$E$31=5,VLOOKUP($B66,'ADP-Rank'!$A$2:$AZ$700,28,FALSE),(IF(Personalize!$E$31=6,VLOOKUP($B66,'ADP-Rank'!$A$2:$AZ$700,32,FALSE),""))))))))))) -> 26 | AE66: =IF(Personalize!$E$34=1,VLOOKUP($B66,'ADP-Rank'!$A$2:$J$700,6,FALSE),(IF(Personalize!$E$34=2,VLOOKUP($B66,'ADP-Rank'!$A$2:$J$700,9,FALSE),(IF(Personalize!$E$34=3,VLOOKUP($B66,'ADP-Rank'!$A$2:$O$700,12,FALSE),(IF(Personalize!$E$31=4,VLOOKUP($B66,'ADP-Rank'!$A$2:$AZ$700,26,FALSE),(IF(Personalize!$E$31=5,VLOOKUP($B66,'ADP-Rank'!$A$2:$AZ$700,29,FALSE),(IF(Personalize!$E$31=6,VLOOKUP($B66,'ADP-Rank'!$A$2:$AZ$700,33,FALSE),""))))))))))) -> 36 | AF66: =IF(ISBLANK(A66),0,1) -> 0 | AG66: =IF(K66="",0,1) -> 1 | AH66: =A66 -> 0 | AI66: =IF(C66="C",1,IF(C66="1B",2,IF(C66="2B",3,IF(C66="3B",4,IF(C66="SS",5,IF(C66="CI",6,IF(C66="MI",7,IF(C66="OF",11,IF(C66="LF",8,IF(C66="CF",9,IF(C66="RF",10,IF(C66="DH",12,IF(C66="SP",13,IF(C66="RP",14,IF(C66="P",15,16))))))))))))))) -> 11 | AJ66: =VLOOKUP(B66,'Starter Calc'!$B$2:$BN$700,65,FALSE) -> Bench | AK66: =IFERROR(VLOOKUP($B66,'ADP-Rank'!$A$2:$AH$964,34,FALSE),TRUE) -> TRUE | AL66: 0
B67: Justin Upton | C67: OF | D67: =IFERROR(IF(VLOOKUP(B67,'Starter Calc'!$B$2:$E$700,4,FALSE)="","",VLOOKUP(B67,'Starter Calc'!$B$2:$E$700,4,FALSE)),"") -> LF,RF, | E67: =IFERROR(VLOOKUP($B67,'ADP-Rank'!$A$2:$D$700,3,FALSE),"") -> ATL | F67: =IFERROR(VLOOKUP($B67,'ADP-Rank'!$A$2:$W$700,23,FALSE),"") -> 26 | G67: =IFERROR((IF(Personalize!$E$38=1,VLOOKUP($B67,'ADP-Rank'!$A$2:$J$700,4,FALSE),(IF(Personalize!$E$38=2,VLOOKUP($B67,'ADP-Rank'!$A$2:$J$700,7,FALSE),(IF(Personalize!$E$38=3,VLOOKUP($B67,'ADP-Rank'!$A$2:$J$700,10,FALSE),(IF(Personalize!$E$38=4,VLOOKUP($B67,'ADP-Rank'!$A$2:$AD$700,24,FALSE),(IF(Personalize!$E$38=5,VLOOKUP($B67,'ADP-Rank'!$A$2:$AD$700,27,FALSE),(IF(Personalize!$E$38=6,VLOOKUP($B67,'ADP-Rank'!$A$2:$AZ$700,30,FALSE),(IF(Personalize!$E$38=7,VLOOKUP($B67,'ADP-Rank'!$A$2:$AZ$700,39,FALSE))))))))))))))),"") -> 65.09 | H67: =IFERROR(ROUNDDOWN(VLOOKUP($B67,'ADP-Rank'!$A$2:$AY$1064,38,FALSE),0),"") -> 5 | I67: =VLOOKUP($B67,'ADP-Rank'!$A$2:$AJ$1064,36,FALSE) -> 79 | J67: =IFERROR(RANK($M67,$M$6:$M$745,0),"") -> 100 | K67: =IFERROR(IF((OR($C67="RP",$C67="SP")),VLOOKUP($B67,Pitcher!$A$1:$Z$700,20,FALSE),(VLOOKUP($B67,Hitter!$A$1:$Z$700,26,FALSE))),"") -> 338.6248858 | L67: =IFERROR(IF((OR($C67="RP",$C67="SP")),VLOOKUP($C67,'Filtered-P'!$M$3:$P$4,4,FALSE), VLOOKUP($C67,Filtered!$Q$3:$T$14,4,FALSE)),"") -> 350.7983075 | M67: =IFERROR(($K67-$L67)/IF(OR($C67="SP",$C67="RP"),VLOOKUP($C67,'Filtered-P'!$M$3:$T$4,8,FALSE),VLOOKUP($C67,Filtered!$Q$3:$X$10,8,FALSE)),"") -> -0.2982101142 | N67: =IFERROR(IF((OR($C67="RP",$C67="SP")),"",(VLOOKUP($B67,Hitter!$A$1:$Z$700,26,FALSE)/VLOOKUP($B67,Hitter!$A$1:$Z$700,2,FALSE))),"") -> 0.5747766709 | O67: =IFERROR(IF((OR($C67="RP",$C67="SP")),VLOOKUP($B67,Pitcher!$A$1:$Z$700,20,FALSE)/VLOOKUP($B67,Pitcher!$A$1:$Z$700,4,FALSE),""),"") ->  | P67: =IFERROR(IF((OR($C67="RP",$C67="SP")),VLOOKUP($B67,Pitcher!$A$1:$V$700,2,FALSE),""),"") ->  | Q67: =IFERROR(IF((OR($C67="RP",$C67="SP")),VLOOKUP($B67,Pitcher!$A$1:$V$700,9,FALSE),""),"") ->  | R67: =IFERROR(IF((OR($C67="RP",$C67="SP")),VLOOKUP($B67,Pitcher!$A$1:$V$700,7,FALSE),""),"") ->  | S67: =IFERROR(IF((OR($C67="RP",$C67="SP")),VLOOKUP($B67,Pitcher!$A$1:$AB$700,21,FALSE),""),"") ->  | T67: =IFERROR(IF((OR($C67="RP",$C67="SP")),VLOOKUP($B67,Pitcher!$A$1:$V$700,22,FALSE),""),"") ->  | U67: =IFERROR(IF((OR($C67="RP",$C67="SP")),"",VLOOKUP($B67,Hitter!$A$1:$AH$700,27,FALSE)),"") -> 0.2717651575 | V67: =IFERROR(IF((OR($C67="RP",$C67="SP")),"",VLOOKUP($B67,Hitter!$A$1:$AH$700,9,FALSE)),"") -> 24.16703283 | W67: =IFERROR(IF((OR($C67="RP",$C67="SP")),"",VLOOKUP($B67,Hitter!$A$1:$AH$700,10,FALSE)),"") -> 71.08346362 | X67: =IFERROR(IF((OR($C67="RP",$C67="SP")),"",VLOOKUP($B67,Hitter!$A$1:$AH$700,4,FALSE)),"") -> 85.70425625 | Y67: =IFERROR(IF((OR($C67="RP",$C67="SP")),"",VLOOKUP($B67,Hitter!$A$1:$AH$700,11,FALSE)),"") -> 11.57210296 | Z67: =IFERROR(IF(ISTEXT($A67),"",(1-NORMDIST((COUNTA($A$6:$A$745)),($G67),((AE67-AD67)/6),TRUE))),"") -> 1 | AA67: =IFERROR(IF(ISTEXT($A67),"",(1-NORMDIST((COUNTA($A$6:$A$745))+(Personalize!$E$18+1),$G67,((AE67-AD67)/6),TRUE))),"") -> 1 | AB67: =IFERROR(IF(ISTEXT($A67),"",(1-NORMDIST((COUNTA($A$6:$A$745))+((Personalize!$E$18+1)*2),$G67,((AE67-AD67)/6),TRUE))),"") -> 1 | AD67: =IF(Personalize!$E$34=1,VLOOKUP($B67,'ADP-Rank'!$A$2:$J$700,5,FALSE),(IF(Personalize!$E$34=2,VLOOKUP($B67,'ADP-Rank'!$A$2:$J$700,8,FALSE),(IF(Personalize!$E$34=3,VLOOKUP($B67,'ADP-Rank'!$A$2:$O$700,11,FALSE),(IF(Personalize!$E$31=4,VLOOKUP($B67,'ADP-Rank'!$A$2:$AZ$700,25,FALSE),(IF(Personalize!$E$31=5,VLOOKUP($B67,'ADP-Rank'!$A$2:$AZ$700,28,FALSE),(IF(Personalize!$E$31=6,VLOOKUP($B67,'ADP-Rank'!$A$2:$AZ$700,32,FALSE),""))))))))))) -> 34 | AE67: =IF(Personalize!$E$34=1,VLOOKUP($B67,'ADP-Rank'!$A$2:$J$700,6,FALSE),(IF(Personalize!$E$34=2,VLOOKUP($B67,'ADP-Rank'!$A$2:$J$700,9,FALSE),(IF(Personalize!$E$34=3,VLOOKUP($B67,'ADP-Rank'!$A$2:$O$700,12,FALSE),(IF(Personalize!$E$31=4,VLOOKUP($B67,'ADP-Rank'!$A$2:$AZ$700,26,FALSE),(IF(Personalize!$E$31=5,VLOOKUP($B67,'ADP-Rank'!$A$2:$AZ$700,29,FALSE),(IF(Personalize!$E$31=6,VLOOKUP($B67,'ADP-Rank'!$A$2:$AZ$700,33,FALSE),""))))))))))) -> 45 | AF67: =IF(ISBLANK(A67),0,1) -> 0 | AG67: =IF(K67="",0,1) -> 1 | AH67: =A67 -> 0 | AI67: =IF(C67="C",1,IF(C67="1B",2,IF(C67="2B",3,IF(C67="3B",4,IF(C67="SS",5,IF(C67="CI",6,IF(C67="MI",7,IF(C67="OF",11,IF(C67="LF",8,IF(C67="CF",9,IF(C67="RF",10,IF(C67="DH",12,IF(C67="SP",13,IF(C67="RP",14,IF(C67="P",15,16))))))))))))))) -> 11 | AJ67: =VLOOKUP(B67,'Starter Calc'!$B$2:$BN$700,65,FALSE) -> Bench | AK67: =IFERROR(VLOOKUP($B67,'ADP-Rank'!$A$2:$AH$964,34,FALSE),TRUE) -> TRUE | AL67: 0
B68: Homer Bailey | C68: SP | D68: =IFERROR(IF(VLOOKUP(B68,'Starter Calc'!$B$2:$E$700,4,FALSE)="","",VLOOKUP(B68,'Starter Calc'!$B$2:$E$700,4,FALSE)),"") -> ,, | E68: =IFERROR(VLOOKUP($B68,'ADP-Rank'!$A$2:$D$700,3,FALSE),"") -> CIN | F68: =IFERROR(VLOOKUP($B68,'ADP-Rank'!$A$2:$W$700,23,FALSE),"") -> 28 | G68: =IFERROR((IF(Personalize!$E$38=1,VLOOKUP($B68,'ADP-Rank'!$A$2:$J$700,4,FALSE),(IF(Personalize!$E$38=2,VLOOKUP($B68,'ADP-Rank'!$A$2:$J$700,7,FALSE),(IF(Personalize!$E$38=3,VLOOKUP($B68,'ADP-Rank'!$A$2:$J$700,10,FALSE),(IF(Personalize!$E$38=4,VLOOKUP($B68,'ADP-Rank'!$A$2:$AD$700,24,FALSE),(IF(Personalize!$E$38=5,VLOOKUP($B68,'ADP-Rank'!$A$2:$AD$700,27,FALSE),(IF(Personalize!$E$38=6,VLOOKUP($B68,'ADP-Rank'!$A$2:$AZ$700,30,FALSE),(IF(Personalize!$E$38=7,VLOOKUP($B68,'ADP-Rank'!$A$2:$AZ$700,39,FALSE))))))))))))))),"") -> 65.71 | H68: =IFERROR(ROUNDDOWN(VLOOKUP($B68,'ADP-Rank'!$A$2:$AY$1064,38,FALSE),0),"") -> 5 | I68: =VLOOKUP($B68,'ADP-Rank'!$A$2:$AJ$1064,36,FALSE) -> 82 | J68: =IFERROR(RANK($M68,$M$6:$M$745,0),"") -> 63 | K68: =IFERROR(IF((OR($C68="RP",$C68="SP")),VLOOKUP($B68,Pitcher!$A$1:$Z$700,20,FALSE),(VLOOKUP($B68,Hitter!$A$1:$Z$700,26,FALSE))),"") -> 419.8434002 | L68: =IFERROR(IF((OR($C68="RP",$C68="SP")),VLOOKUP($C68,'Filtered-P'!$M$3:$P$4,4,FALSE), VLOOKUP($C68,Filtered!$Q$3:$T$14,4,FALSE)),"") -> 411.2053549 | M68: =IFERROR(($K68-$L68)/IF(OR($C68="SP",$C68="RP"),VLOOKUP($C68,'Filtered-P'!$M$3:$T$4,8,FALSE),VLOOKUP($C68,Filtered!$Q$3:$X$10,8,FALSE)),"") -> 0.1148683958 | N68: =IFERROR(IF((OR($C68="RP",$C68="SP")),"",(VLOOKUP($B68,Hitter!$A$1:$Z$700,26,FALSE)/VLOOKUP($B68,Hitter!$A$1:$Z$700,2,FALSE))),"") ->  | O68: =IFERROR(IF((OR($C68="RP",$C68="SP")),VLOOKUP($B68,Pitcher!$A$1:$Z$700,20,FALSE)/VLOOKUP($B68,Pitcher!$A$1:$Z$700,4,FALSE),""),"") -> 1.971095776 | P68: =IFERROR(IF((OR($C68="RP",$C68="SP")),VLOOKUP($B68,Pitcher!$A$1:$V$700,2,FALSE),""),"") -> 14.46956313 | Q68: =IFERROR(IF((OR($C68="RP",$C68="SP")),VLOOKUP($B68,Pitcher!$A$1:$V$700,9,FALSE),""),"") -> 0 | R68: =IFERROR(IF((OR($C68="RP",$C68="SP")),VLOOKUP($B68,Pitcher!$A$1:$V$700,7,FALSE),""),"") -> 196.8701606 | S68: =IFERROR(IF((OR($C68="RP",$C68="SP")),VLOOKUP($B68,Pitcher!$A$1:$AB$700,21,FALSE),""),"") -> 3.696396646 | T68: =IFERROR(IF((OR($C68="RP",$C68="SP")),VLOOKUP($B68,Pitcher!$A$1:$V$700,22,FALSE),""),"") -> 1.177789628 | U68: =IFERROR(IF((OR($C68="RP",$C68="SP")),"",VLOOKUP($B68,Hitter!$A$1:$AH$700,27,FALSE)),"") ->  | V68: =IFERROR(IF((OR($C68="RP",$C68="SP")),"",VLOOKUP($B68,Hitter!$A$1:$AH$700,9,FALSE)),"") ->  | W68: =IFERROR(IF((OR($C68="RP",$C68="SP")),"",VLOOKUP($B68,Hitter!$A$1:$AH$700,10,FALSE)),"") ->  | X68: =IFERROR(IF((OR($C68="RP",$C68="SP")),"",VLOOKUP($B68,Hitter!$A$1:$AH$700,4,FALSE)),"") ->  | Y68: =IFERROR(IF((OR($C68="RP",$C68="SP")),"",VLOOKUP($B68,Hitter!$A$1:$AH$700,11,FALSE)),"") ->  | Z68: =IFERROR(IF(ISTEXT($A68),"",(1-NORMDIST((COUNTA($A$6:$A$745)),($G68),((AE68-AD68)/6),TRUE))),"") -> 1 | AA68: =IFERROR(IF(ISTEXT($A68),"",(1-NORMDIST((COUNTA($A$6:$A$745))+(Personalize!$E$18+1),$G68,((AE68-AD68)/6),TRUE))),"") -> 0.9999999999 | AB68: =IFERROR(IF(ISTEXT($A68),"",(1-NORMDIST((COUNTA($A$6:$A$745))+((Personalize!$E$18+1)*2),$G68,((AE68-AD68)/6),TRUE))),"") -> 0.9999999994 | AC68: Mr. Cheatsheet Pitcher to Target | AD68: =IF(Personalize!$E$34=1,VLOOKUP($B68,'ADP-Rank'!$A$2:$J$700,5,FALSE),(IF(Personalize!$E$34=2,VLOOKUP($B68,'ADP-Rank'!$A$2:$J$700,8,FALSE),(IF(Personalize!$E$34=3,VLOOKUP($B68,'ADP-Rank'!$A$2:$O$700,11,FALSE),(IF(Personalize!$E$31=4,VLOOKUP($B68,'ADP-Rank'!$A$2:$AZ$700,25,FALSE),(IF(Personalize!$E$31=5,VLOOKUP($B68,'ADP-Rank'!$A$2:$AZ$700,28,FALSE),(IF(Personalize!$E$31=6,VLOOKUP($B68,'ADP-Rank'!$A$2:$AZ$700,32,FALSE),""))))))))))) -> 87 | AE68: =IF(Personalize!$E$34=1,VLOOKUP($B68,'ADP-Rank'!$A$2:$J$700,6,FALSE),(IF(Personalize!$E$34=2,VLOOKUP($B68,'ADP-Rank'!$A$2:$J$700,9,FALSE),(IF(Personalize!$E$34=3,VLOOKUP($B68,'ADP-Rank'!$A$2:$O$700,12,FALSE),(IF(Personalize!$E$31=4,VLOOKUP($B68,'ADP-Rank'!$A$2:$AZ$700,26,FALSE),(IF(Personalize!$E$31=5,VLOOKUP($B68,'ADP-Rank'!$A$2:$AZ$700,29,FALSE),(IF(Personalize!$E$31=6,VLOOKUP($B68,'ADP-Rank'!$A$2:$AZ$700,33,FALSE),""))))))))))) -> 145 | AF68: =IF(ISBLANK(A68),0,1) -> 0 | AG68: =IF(K68="",0,1) -> 1 | AH68: =A68 -> 0 | AI68: =IF(C68="C",1,IF(C68="1B",2,IF(C68="2B",3,IF(C68="3B",4,IF(C68="SS",5,IF(C68="CI",6,IF(C68="MI",7,IF(C68="OF",11,IF(C68="LF",8,IF(C68="CF",9,IF(C68="RF",10,IF(C68="DH",12,IF(C68="SP",13,IF(C68="RP",14,IF(C68="P",15,16))))))))))))))) -> 13 | AJ68: =VLOOKUP(B68,'Starter Calc'!$B$2:$BN$700,65,FALSE) -> Bench | AK68: =IFERROR(VLOOKUP($B68,'ADP-Rank'!$A$2:$AH$964,34,FALSE),TRUE) -> TRUE | AL68: 1
